Workbook

Sheet Control
A1: Sheets | B1: Text File Names | C1: Description | E1: Notes: 50 sheets maximum
A2: P_PM12 | B2: Project_PM12_Stats.txt | C2: Project concentrations in the Embarrass River at PM-12 | E2: Referenced text files must be in same root folder as this spreadsheet
A3: P_PM12.2 | B3: Project_PM12_2_Stats.txt | C3: Project concentrations in the Embarrass River at PM-12.2
A4: P_PM12.3 | B4: Project_PM12_3_Stats.txt | C4: Project concentrations in the Embarrass River at PM-12.3
A5: P_PM12.4 | B5: Project_PM12_4_Stats.txt | C5: Project concentrations in the Embarrass River at PM-12.4
A6: P_PM13 | B6: Project_PM13_Stats.txt | C6: Project concentrations in the Embarrass River at PM-13
A7: P_UC1 | B7: Project_UC1_Stats.txt | C7: Project concentrations at the headwaters of Unnamed Creek (UC-1)
A8: P_PM11 | B8: Project_PM11_Stats.txt | C8: Project concentrations in Unnamed Creek at PM-11
A9: P_TC1 | B9: Project_TC1_Stats.txt | C9: Project concentrations at the headwaters of Trimble Creek
A10: P_PM19 | B10: Project_PM19_Stats.txt | C10: Project concentrations in Trimble Creek at PM-19
A11: P_MLC3 | B11: Project_MLC3_Stats.txt | C11: Project concentrations in Mud Lake at MLC-3
A12: P_MLC2 | B12: Project_MLC2_Stats.txt | C12: Project concentrations in Mud Lake Creek at MLC-2
A13: P_HARD | B13: Project_Hardness.txt | C13: Project hardness at all evaluation locations
A14: NA_PM12 | B14: Ex_PM12_Stats.txt | C14: Existing concentrations in the Embarrass River at PM-12
A15: NA_PM12.2 | B15: Ex_PM12_2_Stats.txt | C15: Existing concentrations in the Embarrass River at PM-12.2
A16: NA_PM12.3 | B16: Ex_PM12_3_Stats.txt | C16: Existing concentrations in the Embarrass River at PM-12.3
A17: NA_PM12.4 | B17: Ex_PM12_4_Stats.txt | C17: Existing concentrations in the Embarrass River at PM-12.4
A18: NA_PM13 | B18: Ex_PM13_Stats.txt | C18: Existing concentrations in the Embarrass River at PM-13
A19: NA_UC1 | B19: Ex_UC1_Stats.txt | C19: Existing concentrations at the headwaters of Unnamed Creek (UC-1)
A20: NA_PM11 | B20: Ex_PM11_Stats.txt | C20: Existing concentrations in Unnamed Creek at PM-11
A21: NA_TC1 | B21: Ex_TC1_Stats.txt | C21: Existing concentrations at the headwaters of Trimble Creek
A22: NA_PM19 | B22: Ex_PM19_Stats.txt | C22: Existing concentrations in Trimble Creek at PM-19
A23: NA_MLC3 | B23: Ex_MLC3_Stats.txt | C23: Existing concentrations in Mud Lake at MLC-3
A24: NA_MLC2 | B24: Ex_MLC2_Stats.txt | C24: Existing concentrations in Mud Lake Creek at MLC-2
A25: NA_HARD | B25: Ex_Hardness.txt | C25: Existing conditions hardness at all evaluation locations

Sheet Data_Pkg
F1: PM-12 | G1: PM-12 | H1: PM-12.2 | I1: PM-12.2 | J1: PM-12.3 | K1: PM-12.3 | L1: PM-12.4 | M1: PM-12.4 | N1: PM-13 | O1: PM-13 | P1: MLC-3 | Q1: MLC-3 | R1: MLC-2 | S1: MLC-2 | T1: TC-1 | U1: TC-1 | V1: PM-19 | W1: PM-19 | X1: PM-11 | Y1: PM-11
B2: Constituent | C2: PM13 Standards (ug/L) | E2: Other Standards (ug/L) | F2: Min | G2: Max | H2: Min | I2: Max | J2: Min | K2: Max | L2: Min | M2: Max | N2: Min | O2: Max | P2: Min | Q2: Max | R2: Min | S2: Max | T2: Min | U2: Max | V2: Min | W2: Max | X2: Min | Y2: Max
A3: 1 | B3: Ag | C3: 1 | E3: 1 | F3: =MIN(OFFSET(P_PM12!$C$13, 0, 4*(Data_Pkg!$A3-1), 2401, 1)) -> 0.085237 | G3: =MAX(OFFSET(P_PM12!$E$13, 0, 4*(Data_Pkg!$A3-1), 2401, 1)) -> 0.12702 | H3: =MIN(OFFSET(P_PM12.2!$C$13, 0, 4*(Data_Pkg!$A3-1), 2401, 1)) -> 0.099739 | I3: =MAX(OFFSET(P_PM12.2!$E$13, 0, 4*(Data_Pkg!$A3-1), 2401, 1)) -> 0.12784 | J3: =MIN(OFFSET(P_PM12.3!$C$13, 0, 4*(Data_Pkg!$A3-1), 2401, 1)) -> 0.084209 | K3: =MAX(OFFSET(P_PM12.3!$E$13, 0, 4*(Data_Pkg!$A3-1), 2401, 1)) -> 0.18524 | L3: =MIN(OFFSET(P_PM12.4!$C$13, 0, 4*(Data_Pkg!$A3-1), 2401, 1)) -> 0.078995 | M3: =MAX(OFFSET(P_PM12.4!$E$13, 0, 4*(Data_Pkg!$A3-1), 2401, 1)) -> 0.17494 | N3: =MIN(OFFSET(P_PM13!$C$13, 0, 4*(Data_Pkg!$A3-1), 2401, 1)) -> 0.077141 | O3: =MAX(OFFSET(P_PM13!$E$13, 0, 4*(Data_Pkg!$A3-1), 2401, 1)) -> 0.18084 | P3: =MIN(OFFSET(P_MLC3!$C$13, 0, 4*(Data_Pkg!$A3-1), 2401, 1)) -> 0.077308 | Q3: =MAX(OFFSET(P_MLC3!$E$13, 0, 4*(Data_Pkg!$A3-1), 2401, 1)) -> 0.12769 | R3: =MIN(OFFSET(P_MLC2!$C$13, 0, 4*(Data_Pkg!$A3-1), 2401, 1)) -> 0.079427 | S3: =MAX(OFFSET(P_MLC2!$E$13, 0, 4*(Data_Pkg!$A3-1), 2401, 1)) -> 0.12698 | T3: =MIN(OFFSET(P_TC1!$C$13, 0, 4*(Data_Pkg!$A3-1), 2401, 1)) -> 0.062908 | U3: =MAX(OFFSET(P_TC1!$E$13, 0, 4*(Data_Pkg!$A3-1), 2401, 1)) -> 0.33266 | V3: =MIN(OFFSET(P_PM19!$C$13, 0, 4*(Data_Pkg!$A3-1), 2401, 1)) -> 0.065397 | W3: =MAX(OFFSET(P_PM19!$E$13, 0, 4*(Data_Pkg!$A3-1), 2401, 1)) -> 0.31582 | X3: =MIN(OFFSET(P_PM11!$C$13, 0, 4*(Data_Pkg!$A3-1), 2401, 1)) -> 0.06683 | Y3: =MAX(OFFSET(P_PM11!$E$13, 0, 4*(Data_Pkg!$A3-1), 2401, 1)) -> 0.32474
A4: 2 | B4: Al | C4: 125 | E4: 125 | F4: =MIN(OFFSET(P_PM12!$C$13, 0, 4*(Data_Pkg!$A4-1), 2401, 1)) -> 55.418 | G4: =MAX(OFFSET(P_PM12!$E$13, 0, 4*(Data_Pkg!$A4-1), 2401, 1)) -> 185.15 | H4: =MIN(OFFSET(P_PM12.2!$C$13, 0, 4*(Data_Pkg!$A4-1), 2401, 1)) -> 52.789 | I4: =MAX(OFFSET(P_PM12.2!$E$13, 0, 4*(Data_Pkg!$A4-1), 2401, 1)) -> 178 | J4: =MIN(OFFSET(P_PM12.3!$C$13, 0, 4*(Data_Pkg!$A4-1), 2401, 1)) -> 32.022 | K4: =MAX(OFFSET(P_PM12.3!$E$13, 0, 4*(Data_Pkg!$A4-1), 2401, 1)) -> 178.14 | L4: =MIN(OFFSET(P_PM12.4!$C$13, 0, 4*(Data_Pkg!$A4-1), 2401, 1)) -> 34.176 | M4: =MAX(OFFSET(P_PM12.4!$E$13, 0, 4*(Data_Pkg!$A4-1), 2401, 1)) -> 179.43 | N4: =MIN(OFFSET(P_PM13!$C$13, 0, 4*(Data_Pkg!$A4-1), 2401, 1)) -> 32.506 | O4: =MAX(OFFSET(P_PM13!$E$13, 0, 4*(Data_Pkg!$A4-1), 2401, 1)) -> 178.59 | P4: =MIN(OFFSET(P_MLC3!$C$13, 0, 4*(Data_Pkg!$A4-1), 2401, 1)) -> 54.923 | Q4: =MAX(OFFSET(P_MLC3!$E$13, 0, 4*(Data_Pkg!$A4-1), 2401, 1)) -> 186.28 | R4: =MIN(OFFSET(P_MLC2!$C$13, 0, 4*(Data_Pkg!$A4-1), 2401, 1)) -> 48.358 | S4: =MAX(OFFSET(P_MLC2!$E$13, 0, 4*(Data_Pkg!$A4-1), 2401, 1)) -> 184.35 | T4: =MIN(OFFSET(P_TC1!$C$13, 0, 4*(Data_Pkg!$A4-1), 2401, 1)) -> 1.7116 | U4: =MAX(OFFSET(P_TC1!$E$13, 0, 4*(Data_Pkg!$A4-1), 2401, 1)) -> 110.67 | V4: =MIN(OFFSET(P_PM19!$C$13, 0, 4*(Data_Pkg!$A4-1), 2401, 1)) -> 2.736 | W4: =MAX(OFFSET(P_PM19!$E$13, 0, 4*(Data_Pkg!$A4-1), 2401, 1)) -> 130.49 | X4: =MIN(OFFSET(P_PM11!$C$13, 0, 4*(Data_Pkg!$A4-1), 2401, 1)) -> 2.0045 | Y4: =MAX(OFFSET(P_PM11!$E$13, 0, 4*(Data_Pkg!$A4-1), 2401, 1)) -> 158.48
A5: 3 | B5: Alk | F5: =MIN(OFFSET(P_PM12!$C$13, 0, 4*(Data_Pkg!$A5-1), 2401, 1)) -> 8302.1 | G5: =MAX(OFFSET(P_PM12!$E$13, 0, 4*(Data_Pkg!$A5-1), 2401, 1)) -> 99959 | H5: =MIN(OFFSET(P_PM12.2!$C$13, 0, 4*(Data_Pkg!$A5-1), 2401, 1)) -> 11269 | I5: =MAX(OFFSET(P_PM12.2!$E$13, 0, 4*(Data_Pkg!$A5-1), 2401, 1)) -> 99195 | J5: =MIN(OFFSET(P_PM12.3!$C$13, 0, 4*(Data_Pkg!$A5-1), 2401, 1)) -> 11479 | K5: =MAX(OFFSET(P_PM12.3!$E$13, 0, 4*(Data_Pkg!$A5-1), 2401, 1)) -> 99299 | L5: =MIN(OFFSET(P_PM12.4!$C$13, 0, 4*(Data_Pkg!$A5-1), 2401, 1)) -> 11074 | M5: =MAX(OFFSET(P_PM12.4!$E$13, 0, 4*(Data_Pkg!$A5-1), 2401, 1)) -> 99277 | N5: =MIN(OFFSET(P_PM13!$C$13, 0, 4*(Data_Pkg!$A5-1), 2401, 1)) -> 11265 | O5: =MAX(OFFSET(P_PM13!$E$13, 0, 4*(Data_Pkg!$A5-1), 2401, 1)) -> 99198 | P5: =MIN(OFFSET(P_MLC3!$C$13, 0, 4*(Data_Pkg!$A5-1), 2401, 1)) -> 7336.2 | Q5: =MAX(OFFSET(P_MLC3!$E$13, 0, 4*(Data_Pkg!$A5-1), 2401, 1)) -> 102540 | R5: =MIN(OFFSET(P_MLC2!$C$13, 0, 4*(Data_Pkg!$A5-1), 2401, 1)) -> 9039.5 | S5: =MAX(OFFSET(P_MLC2!$E$13, 0, 4*(Data_Pkg!$A5-1), 2401, 1)) -> 141840 | T5: =MIN(OFFSET(P_TC1!$C$13, 0, 4*(Data_Pkg!$A5-1), 2401, 1)) -> 23294 | U5: =MAX(OFFSET(P_TC1!$E$13, 0, 4*(Data_Pkg!$A5-1), 2401, 1)) -> 100250 | V5: =MIN(OFFSET(P_PM19!$C$13, 0, 4*(Data_Pkg!$A5-1), 2401, 1)) -> 20051 | W5: =MAX(OFFSET(P_PM19!$E$13, 0, 4*(Data_Pkg!$A5-1), 2401, 1)) -> 103870 | X5: =MIN(OFFSET(P_PM11!$C$13, 0, 4*(Data_Pkg!$A5-1), 2401, 1)) -> 12553 | Y5: =MAX(OFFSET(P_PM11!$E$13, 0, 4*(Data_Pkg!$A5-1), 2401, 1)) -> 100000
A6: 4 | B6: As | C6: 53 | E6: 53 | F6: =MIN(OFFSET(P_PM12!$C$13, 0, 4*(Data_Pkg!$A6-1), 2401, 1)) -> 0.32047 | G6: =MAX(OFFSET(P_PM12!$E$13, 0, 4*(Data_Pkg!$A6-1), 2401, 1)) -> 4.3558 | H6: =MIN(OFFSET(P_PM12.2!$C$13, 0, 4*(Data_Pkg!$A6-1), 2401, 1)) -> 0.35436 | I6: =MAX(OFFSET(P_PM12.2!$E$13, 0, 4*(Data_Pkg!$A6-1), 2401, 1)) -> 4.149 | J6: =MIN(OFFSET(P_PM12.3!$C$13, 0, 4*(Data_Pkg!$A6-1), 2401, 1)) -> 0.47066 | K6: =MAX(OFFSET(P_PM12.3!$E$13, 0, 4*(Data_Pkg!$A6-1), 2401, 1)) -> 5.9924 | L6: =MIN(OFFSET(P_PM12.4!$C$13, 0, 4*(Data_Pkg!$A6-1), 2401, 1)) -> 0.46711 | M6: =MAX(OFFSET(P_PM12.4!$E$13, 0, 4*(Data_Pkg!$A6-1), 2401, 1)) -> 5.5925 | N6: =MIN(OFFSET(P_PM13!$C$13, 0, 4*(Data_Pkg!$A6-1), 2401, 1)) -> 0.46905 | O6: =MAX(OFFSET(P_PM13!$E$13, 0, 4*(Data_Pkg!$A6-1), 2401, 1)) -> 5.8096 | P6: =MIN(OFFSET(P_MLC3!$C$13, 0, 4*(Data_Pkg!$A6-1), 2401, 1)) -> 0.30784 | Q6: =MAX(OFFSET(P_MLC3!$E$13, 0, 4*(Data_Pkg!$A6-1), 2401, 1)) -> 4.5054 | R6: =MIN(OFFSET(P_MLC2!$C$13, 0, 4*(Data_Pkg!$A6-1), 2401, 1)) -> 0.3473 | S6: =MAX(OFFSET(P_MLC2!$E$13, 0, 4*(Data_Pkg!$A6-1), 2401, 1)) -> 4.4432 | T6: =MIN(OFFSET(P_TC1!$C$13, 0, 4*(Data_Pkg!$A6-1), 2401, 1)) -> 1.7861 | U6: =MAX(OFFSET(P_TC1!$E$13, 0, 4*(Data_Pkg!$A6-1), 2401, 1)) -> 10 | V6: =MIN(OFFSET(P_PM19!$C$13, 0, 4*(Data_Pkg!$A6-1), 2401, 1)) -> 1.3226 | W6: =MAX(OFFSET(P_PM19!$E$13, 0, 4*(Data_Pkg!$A6-1), 2401, 1)) -> 9.8242 | X6: =MIN(OFFSET(P_PM11!$C$13, 0, 4*(Data_Pkg!$A6-1), 2401, 1)) -> 0.82742 | Y6: =MAX(OFFSET(P_PM11!$E$13, 0, 4*(Data_Pkg!$A6-1), 2401, 1)) -> 9.9994
A7: 5 | B7: B | C7: 500 | E7: 500 | F7: =MIN(OFFSET(P_PM12!$C$13, 0, 4*(Data_Pkg!$A7-1), 2401, 1)) -> 15.641 | G7: =MAX(OFFSET(P_PM12!$E$13, 0, 4*(Data_Pkg!$A7-1), 2401, 1)) -> 26.488 | H7: =MIN(OFFSET(P_PM12.2!$C$13, 0, 4*(Data_Pkg!$A7-1), 2401, 1)) -> 21.543 | I7: =MAX(OFFSET(P_PM12.2!$E$13, 0, 4*(Data_Pkg!$A7-1), 2401, 1)) -> 70.021 | J7: =MIN(OFFSET(P_PM12.3!$C$13, 0, 4*(Data_Pkg!$A7-1), 2401, 1)) -> 20.08 | K7: =MAX(OFFSET(P_PM12.3!$E$13, 0, 4*(Data_Pkg!$A7-1), 2401, 1)) -> 153.56 | L7: =MIN(OFFSET(P_PM12.4!$C$13, 0, 4*(Data_Pkg!$A7-1), 2401, 1)) -> 19.699 | M7: =MAX(OFFSET(P_PM12.4!$E$13, 0, 4*(Data_Pkg!$A7-1), 2401, 1)) -> 140.29 | N7: =MIN(OFFSET(P_PM13!$C$13, 0, 4*(Data_Pkg!$A7-1), 2401, 1)) -> 19.86 | O7: =MAX(OFFSET(P_PM13!$E$13, 0, 4*(Data_Pkg!$A7-1), 2401, 1)) -> 151.32 | P7: =MIN(OFFSET(P_MLC3!$C$13, 0, 4*(Data_Pkg!$A7-1), 2401, 1)) -> 15.55 | Q7: =MAX(OFFSET(P_MLC3!$E$13, 0, 4*(Data_Pkg!$A7-1), 2401, 1)) -> 29.489 | R7: =MIN(OFFSET(P_MLC2!$C$13, 0, 4*(Data_Pkg!$A7-1), 2401, 1)) -> 16.464 | S7: =MAX(OFFSET(P_MLC2!$E$13, 0, 4*(Data_Pkg!$A7-1), 2401, 1)) -> 94.535 | T7: =MIN(OFFSET(P_TC1!$C$13, 0, 4*(Data_Pkg!$A7-1), 2401, 1)) -> 42.001 | U7: =MAX(OFFSET(P_TC1!$E$13, 0, 4*(Data_Pkg!$A7-1), 2401, 1)) -> 367.89 | V7: =MIN(OFFSET(P_PM19!$C$13, 0, 4*(Data_Pkg!$A7-1), 2401, 1)) -> 33.789 | W7: =MAX(OFFSET(P_PM19!$E$13, 0, 4*(Data_Pkg!$A7-1), 2401, 1)) -> 348.57 | X7: =MIN(OFFSET(P_PM11!$C$13, 0, 4*(Data_Pkg!$A7-1), 2401, 1)) -> 23.517 | Y7: =MAX(OFFSET(P_PM11!$E$13, 0, 4*(Data_Pkg!$A7-1), 2401, 1)) -> 353.71
A8: 6 | B8: Ba | F8: =MIN(OFFSET(P_PM12!$C$13, 0, 4*(Data_Pkg!$A8-1), 2401, 1)) -> 4.9916 | G8: =MAX(OFFSET(P_PM12!$E$13, 0, 4*(Data_Pkg!$A8-1), 2401, 1)) -> 49.763 | H8: =MIN(OFFSET(P_PM12.2!$C$13, 0, 4*(Data_Pkg!$A8-1), 2401, 1)) -> 4.9516 | I8: =MAX(OFFSET(P_PM12.2!$E$13, 0, 4*(Data_Pkg!$A8-1), 2401, 1)) -> 39.202 | J8: =MIN(OFFSET(P_PM12.3!$C$13, 0, 4*(Data_Pkg!$A8-1), 2401, 1)) -> 4.9961 | K8: =MAX(OFFSET(P_PM12.3!$E$13, 0, 4*(Data_Pkg!$A8-1), 2401, 1)) -> 35.554 | L8: =MIN(OFFSET(P_PM12.4!$C$13, 0, 4*(Data_Pkg!$A8-1), 2401, 1)) -> 4.9954 | M8: =MAX(OFFSET(P_PM12.4!$E$13, 0, 4*(Data_Pkg!$A8-1), 2401, 1)) -> 37.016 | N8: =MIN(OFFSET(P_PM13!$C$13, 0, 4*(Data_Pkg!$A8-1), 2401, 1)) -> 4.9955 | O8: =MAX(OFFSET(P_PM13!$E$13, 0, 4*(Data_Pkg!$A8-1), 2401, 1)) -> 35.248 | P8: =MIN(OFFSET(P_MLC3!$C$13, 0, 4*(Data_Pkg!$A8-1), 2401, 1)) -> 4.878 | Q8: =MAX(OFFSET(P_MLC3!$E$13, 0, 4*(Data_Pkg!$A8-1), 2401, 1)) -> 60.358 | R8: =MIN(OFFSET(P_MLC2!$C$13, 0, 4*(Data_Pkg!$A8-1), 2401, 1)) -> 5.2601 | S8: =MAX(OFFSET(P_MLC2!$E$13, 0, 4*(Data_Pkg!$A8-1), 2401, 1)) -> 93.944 | T8: =MIN(OFFSET(P_TC1!$C$13, 0, 4*(Data_Pkg!$A8-1), 2401, 1)) -> 4.6597 | U8: =MAX(OFFSET(P_TC1!$E$13, 0, 4*(Data_Pkg!$A8-1), 2401, 1)) -> 5 | V8: =MIN(OFFSET(P_PM19!$C$13, 0, 4*(Data_Pkg!$A8-1), 2401, 1)) -> 4.9204 | W8: =MAX(OFFSET(P_PM19!$E$13, 0, 4*(Data_Pkg!$A8-1), 2401, 1)) -> 10.561 | X8: =MIN(OFFSET(P_PM11!$C$13, 0, 4*(Data_Pkg!$A8-1), 2401, 1)) -> 4.5675 | Y8: =MAX(OFFSET(P_PM11!$E$13, 0, 4*(Data_Pkg!$A8-1), 2401, 1)) -> 4.9999
A9: 7 | B9: Be | F9: =MIN(OFFSET(P_PM12!$C$13, 0, 4*(Data_Pkg!$A9-1), 2401, 1)) -> 0.073964 | G9: =MAX(OFFSET(P_PM12!$E$13, 0, 4*(Data_Pkg!$A9-1), 2401, 1)) -> 0.14975 | H9: =MIN(OFFSET(P_PM12.2!$C$13, 0, 4*(Data_Pkg!$A9-1), 2401, 1)) -> 0.074906 | I9: =MAX(OFFSET(P_PM12.2!$E$13, 0, 4*(Data_Pkg!$A9-1), 2401, 1)) -> 0.1397 | J9: =MIN(OFFSET(P_PM12.3!$C$13, 0, 4*(Data_Pkg!$A9-1), 2401, 1)) -> 0.075979 | K9: =MAX(OFFSET(P_PM12.3!$E$13, 0, 4*(Data_Pkg!$A9-1), 2401, 1)) -> 0.31097 | L9: =MIN(OFFSET(P_PM12.4!$C$13, 0, 4*(Data_Pkg!$A9-1), 2401, 1)) -> 0.075791 | M9: =MAX(OFFSET(P_PM12.4!$E$13, 0, 4*(Data_Pkg!$A9-1), 2401, 1)) -> 0.29938 | N9: =MIN(OFFSET(P_PM13!$C$13, 0, 4*(Data_Pkg!$A9-1), 2401, 1)) -> 0.075917 | O9: =MAX(OFFSET(P_PM13!$E$13, 0, 4*(Data_Pkg!$A9-1), 2401, 1)) -> 0.30936 | P9: =MIN(OFFSET(P_MLC3!$C$13, 0, 4*(Data_Pkg!$A9-1), 2401, 1)) -> 0.073663 | Q9: =MAX(OFFSET(P_MLC3!$E$13, 0, 4*(Data_Pkg!$A9-1), 2401, 1)) -> 0.17051 | R9: =MIN(OFFSET(P_MLC2!$C$13, 0, 4*(Data_Pkg!$A9-1), 2401, 1)) -> 0.07442 | S9: =MAX(OFFSET(P_MLC2!$E$13, 0, 4*(Data_Pkg!$A9-1), 2401, 1)) -> 0.18236 | T9: =MIN(OFFSET(P_TC1!$C$13, 0, 4*(Data_Pkg!$A9-1), 2401, 1)) -> 0.12069 | U9: =MAX(OFFSET(P_TC1!$E$13, 0, 4*(Data_Pkg!$A9-1), 2401, 1)) -> 0.65544 | V9: =MIN(OFFSET(P_PM19!$C$13, 0, 4*(Data_Pkg!$A9-1), 2401, 1)) -> 0.10188 | W9: =MAX(OFFSET(P_PM19!$E$13, 0, 4*(Data_Pkg!$A9-1), 2401, 1)) -> 0.62242 | X9: =MIN(OFFSET(P_PM11!$C$13, 0, 4*(Data_Pkg!$A9-1), 2401, 1)) -> 0.084193 | Y9: =MAX(OFFSET(P_PM11!$E$13, 0, 4*(Data_Pkg!$A9-1), 2401, 1)) -> 0.62901
A10: 8 | B10: Ca | F10: =MIN(OFFSET(P_PM12!$C$13, 0, 4*(Data_Pkg!$A10-1), 2401, 1)) -> 3378.3 | G10: =MAX(OFFSET(P_PM12!$E$13, 0, 4*(Data_Pkg!$A10-1), 2401, 1)) -> 23246 | H10: =MIN(OFFSET(P_PM12.2!$C$13, 0, 4*(Data_Pkg!$A10-1), 2401, 1)) -> 6777.9 | I10: =MAX(OFFSET(P_PM12.2!$E$13, 0, 4*(Data_Pkg!$A10-1), 2401, 1)) -> 41425 | J10: =MIN(OFFSET(P_PM12.3!$C$13, 0, 4*(Data_Pkg!$A10-1), 2401, 1)) -> 5301.6 | K10: =MAX(OFFSET(P_PM12.3!$E$13, 0, 4*(Data_Pkg!$A10-1), 2401, 1)) -> 34349 | L10: =MIN(OFFSET(P_PM12.4!$C$13, 0, 4*(Data_Pkg!$A10-1), 2401, 1)) -> 5079.9 | M10: =MAX(OFFSET(P_PM12.4!$E$13, 0, 4*(Data_Pkg!$A10-1), 2401, 1)) -> 33727 | N10: =MIN(OFFSET(P_PM13!$C$13, 0, 4*(Data_Pkg!$A10-1), 2401, 1)) -> 5027.5 | O10: =MAX(OFFSET(P_PM13!$E$13, 0, 4*(Data_Pkg!$A10-1), 2401, 1)) -> 33894 | P10: =MIN(OFFSET(P_MLC3!$C$13, 0, 4*(Data_Pkg!$A10-1), 2401, 1)) -> 3051.7 | Q10: =MAX(OFFSET(P_MLC3!$E$13, 0, 4*(Data_Pkg!$A10-1), 2401, 1)) -> 26663 | R10: =MIN(OFFSET(P_MLC2!$C$13, 0, 4*(Data_Pkg!$A10-1), 2401, 1)) -> 3558.5 | S10: =MAX(OFFSET(P_MLC2!$E$13, 0, 4*(Data_Pkg!$A10-1), 2401, 1)) -> 30353 | T10: =MIN(OFFSET(P_TC1!$C$13, 0, 4*(Data_Pkg!$A10-1), 2401, 1)) -> 12389 | U10: =MAX(OFFSET(P_TC1!$E$13, 0, 4*(Data_Pkg!$A10-1), 2401, 1)) -> 35100 | V10: =MIN(OFFSET(P_PM19!$C$13, 0, 4*(Data_Pkg!$A10-1), 2401, 1)) -> 9616 | W10: =MAX(OFFSET(P_PM19!$E$13, 0, 4*(Data_Pkg!$A10-1), 2401, 1)) -> 36627 | X10: =MIN(OFFSET(P_PM11!$C$13, 0, 4*(Data_Pkg!$A10-1), 2401, 1)) -> 6154.1 | Y10: =MAX(OFFSET(P_PM11!$E$13, 0, 4*(Data_Pkg!$A10-1), 2401, 1)) -> 35098
A11: 9 | B11: Cd* | C11: 2.364825265 | F11: =MIN(OFFSET(P_PM12!$C$13, 0, 4*(Data_Pkg!$A11-1), 2401, 1)) -> 0.07393 | G11: =MAX(OFFSET(P_PM12!$E$13, 0, 4*(Data_Pkg!$A11-1), 2401, 1)) -> 0.11327 | H11: =MIN(OFFSET(P_PM12.2!$C$13, 0, 4*(Data_Pkg!$A11-1), 2401, 1)) -> 0.075009 | I11: =MAX(OFFSET(P_PM12.2!$E$13, 0, 4*(Data_Pkg!$A11-1), 2401, 1)) -> 0.11068 | J11: =MIN(OFFSET(P_PM12.3!$C$13, 0, 4*(Data_Pkg!$A11-1), 2401, 1)) -> 0.075977 | K11: =MAX(OFFSET(P_PM12.3!$E$13, 0, 4*(Data_Pkg!$A11-1), 2401, 1)) -> 1.0479 | L11: =MIN(OFFSET(P_PM12.4!$C$13, 0, 4*(Data_Pkg!$A11-1), 2401, 1)) -> 0.075869 | M11: =MAX(OFFSET(P_PM12.4!$E$13, 0, 4*(Data_Pkg!$A11-1), 2401, 1)) -> 0.95188 | N11: =MIN(OFFSET(P_PM13!$C$13, 0, 4*(Data_Pkg!$A11-1), 2401, 1)) -> 0.075926 | O11: =MAX(OFFSET(P_PM13!$E$13, 0, 4*(Data_Pkg!$A11-1), 2401, 1)) -> 1.0085 | P11: =MIN(OFFSET(P_MLC3!$C$13, 0, 4*(Data_Pkg!$A11-1), 2401, 1)) -> 0.073419 | Q11: =MAX(OFFSET(P_MLC3!$E$13, 0, 4*(Data_Pkg!$A11-1), 2401, 1)) -> 0.12124 | R11: =MIN(OFFSET(P_MLC2!$C$13, 0, 4*(Data_Pkg!$A11-1), 2401, 1)) -> 0.074423 | S11: =MAX(OFFSET(P_MLC2!$E$13, 0, 4*(Data_Pkg!$A11-1), 2401, 1)) -> 0.13159 | T11: =MIN(OFFSET(P_TC1!$C$13, 0, 4*(Data_Pkg!$A11-1), 2401, 1)) -> 0.081597 | U11: =MAX(OFFSET(P_TC1!$E$13, 0, 4*(Data_Pkg!$A11-1), 2401, 1)) -> 2 | V11: =MIN(OFFSET(P_PM19!$C$13, 0, 4*(Data_Pkg!$A11-1), 2401, 1)) -> 0.083406 | W11: =MAX(OFFSET(P_PM19!$E$13, 0, 4*(Data_Pkg!$A11-1), 2401, 1)) -> 1.946 | X11: =MIN(OFFSET(P_PM11!$C$13, 0, 4*(Data_Pkg!$A11-1), 2401, 1)) -> 0.079797 | Y11: =MAX(OFFSET(P_PM11!$E$13, 0, 4*(Data_Pkg!$A11-1), 2401, 1)) -> 1.9957
A12: 10 | B12: Cl | C12: 230000 | E12: 230000 | F12: =MIN(OFFSET(P_PM12!$C$13, 0, 4*(Data_Pkg!$A12-1), 2401, 1)) -> 2448 | G12: =MAX(OFFSET(P_PM12!$E$13, 0, 4*(Data_Pkg!$A12-1), 2401, 1)) -> 9985.4 | H12: =MIN(OFFSET(P_PM12.2!$C$13, 0, 4*(Data_Pkg!$A12-1), 2401, 1)) -> 2563.3 | I12: =MAX(OFFSET(P_PM12.2!$E$13, 0, 4*(Data_Pkg!$A12-1), 2401, 1)) -> 9708 | J12: =MIN(OFFSET(P_PM12.3!$C$13, 0, 4*(Data_Pkg!$A12-1), 2401, 1)) -> 2122.7 | K12: =MAX(OFFSET(P_PM12.3!$E$13, 0, 4*(Data_Pkg!$A12-1), 2401, 1)) -> 9663.5 | L12: =MIN(OFFSET(P_PM12.4!$C$13, 0, 4*(Data_Pkg!$A12-1), 2401, 1)) -> 2173.7 | M12: =MAX(OFFSET(P_PM12.4!$E$13, 0, 4*(Data_Pkg!$A12-1), 2401, 1)) -> 9711.5 | N12: =MIN(OFFSET(P_PM13!$C$13, 0, 4*(Data_Pkg!$A12-1), 2401, 1)) -> 2254.7 | O12: =MAX(OFFSET(P_PM13!$E$13, 0, 4*(Data_Pkg!$A12-1), 2401, 1)) -> 9689.3 | P12: =MIN(OFFSET(P_MLC3!$C$13, 0, 4*(Data_Pkg!$A12-1), 2401, 1)) -> 2035.8 | Q12: =MAX(OFFSET(P_MLC3!$E$13, 0, 4*(Data_Pkg!$A12-1), 2401, 1)) -> 10190 | R12: =MIN(OFFSET(P_MLC2!$C$13, 0, 4*(Data_Pkg!$A12-1), 2401, 1)) -> 2503.9 | S12: =MAX(OFFSET(P_MLC2!$E$13, 0, 4*(Data_Pkg!$A12-1), 2401, 1)) -> 10202 | T12: =MIN(OFFSET(P_TC1!$C$13, 0, 4*(Data_Pkg!$A12-1), 2401, 1)) -> 1299.7 | U12: =MAX(OFFSET(P_TC1!$E$13, 0, 4*(Data_Pkg!$A12-1), 2401, 1)) -> 6215.9 | V12: =MIN(OFFSET(P_PM19!$C$13, 0, 4*(Data_Pkg!$A12-1), 2401, 1)) -> 1402.5 | W12: =MAX(OFFSET(P_PM19!$E$13, 0, 4*(Data_Pkg!$A12-1), 2401, 1)) -> 7515 | X12: =MIN(OFFSET(P_PM11!$C$13, 0, 4*(Data_Pkg!$A12-1), 2401, 1)) -> 1203.4 | Y12: =MAX(OFFSET(P_PM11!$E$13, 0, 4*(Data_Pkg!$A12-1), 2401, 1)) -> 8779.3
A13: 11 | B13: Co | C13: 5 | E13: 5 | F13: =MIN(OFFSET(P_PM12!$C$13, 0, 4*(Data_Pkg!$A13-1), 2401, 1)) -> 0.35815 | G13: =MAX(OFFSET(P_PM12!$E$13, 0, 4*(Data_Pkg!$A13-1), 2401, 1)) -> 2.7109 | H13: =MIN(OFFSET(P_PM12.2!$C$13, 0, 4*(Data_Pkg!$A13-1), 2401, 1)) -> 0.36079 | I13: =MAX(OFFSET(P_PM12.2!$E$13, 0, 4*(Data_Pkg!$A13-1), 2401, 1)) -> 2.6195 | J13: =MIN(OFFSET(P_PM12.3!$C$13, 0, 4*(Data_Pkg!$A13-1), 2401, 1)) -> 0.47243 | K13: =MAX(OFFSET(P_PM12.3!$E$13, 0, 4*(Data_Pkg!$A13-1), 2401, 1)) -> 3.0298 | L13: =MIN(OFFSET(P_PM12.4!$C$13, 0, 4*(Data_Pkg!$A13-1), 2401, 1)) -> 0.4286 | M13: =MAX(OFFSET(P_PM12.4!$E$13, 0, 4*(Data_Pkg!$A13-1), 2401, 1)) -> 2.8224 | N13: =MIN(OFFSET(P_PM13!$C$13, 0, 4*(Data_Pkg!$A13-1), 2401, 1)) -> 0.45305 | O13: =MAX(OFFSET(P_PM13!$E$13, 0, 4*(Data_Pkg!$A13-1), 2401, 1)) -> 2.956 | P13: =MIN(OFFSET(P_MLC3!$C$13, 0, 4*(Data_Pkg!$A13-1), 2401, 1)) -> 0.20464 | Q13: =MAX(OFFSET(P_MLC3!$E$13, 0, 4*(Data_Pkg!$A13-1), 2401, 1)) -> 2.7361 | R13: =MIN(OFFSET(P_MLC2!$C$13, 0, 4*(Data_Pkg!$A13-1), 2401, 1)) -> 0.31588 | S13: =MAX(OFFSET(P_MLC2!$E$13, 0, 4*(Data_Pkg!$A13-1), 2401, 1)) -> 2.7107 | T13: =MIN(OFFSET(P_TC1!$C$13, 0, 4*(Data_Pkg!$A13-1), 2401, 1)) -> 0.93979 | U13: =MAX(OFFSET(P_TC1!$E$13, 0, 4*(Data_Pkg!$A13-1), 2401, 1)) -> 5 | V13: =MIN(OFFSET(P_PM19!$C$13, 0, 4*(Data_Pkg!$A13-1), 2401, 1)) -> 0.81296 | W13: =MAX(OFFSET(P_PM19!$E$13, 0, 4*(Data_Pkg!$A13-1), 2401, 1)) -> 4.9251 | X13: =MIN(OFFSET(P_PM11!$C$13, 0, 4*(Data_Pkg!$A13-1), 2401, 1)) -> 0.66037 | Y13: =MAX(OFFSET(P_PM11!$E$13, 0, 4*(Data_Pkg!$A13-1), 2401, 1)) -> 4.9996
A14: 12 | B14: Cr | C14: 11 | E14: 11 | F14: =MIN(OFFSET(P_PM12!$C$13, 0, 4*(Data_Pkg!$A14-1), 2401, 1)) -> 0.16364 | G14: =MAX(OFFSET(P_PM12!$E$13, 0, 4*(Data_Pkg!$A14-1), 2401, 1)) -> 1.7661 | H14: =MIN(OFFSET(P_PM12.2!$C$13, 0, 4*(Data_Pkg!$A14-1), 2401, 1)) -> 0.17746 | I14: =MAX(OFFSET(P_PM12.2!$E$13, 0, 4*(Data_Pkg!$A14-1), 2401, 1)) -> 1.7099 | J14: =MIN(OFFSET(P_PM12.3!$C$13, 0, 4*(Data_Pkg!$A14-1), 2401, 1)) -> 0.19494 | K14: =MAX(OFFSET(P_PM12.3!$E$13, 0, 4*(Data_Pkg!$A14-1), 2401, 1)) -> 4.3235 | L14: =MIN(OFFSET(P_PM12.4!$C$13, 0, 4*(Data_Pkg!$A14-1), 2401, 1)) -> 0.19257 | M14: =MAX(OFFSET(P_PM12.4!$E$13, 0, 4*(Data_Pkg!$A14-1), 2401, 1)) -> 3.9595 | N14: =MIN(OFFSET(P_PM13!$C$13, 0, 4*(Data_Pkg!$A14-1), 2401, 1)) -> 0.19436 | O14: =MAX(OFFSET(P_PM13!$E$13, 0, 4*(Data_Pkg!$A14-1), 2401, 1)) -> 4.1265 | P14: =MIN(OFFSET(P_MLC3!$C$13, 0, 4*(Data_Pkg!$A14-1), 2401, 1)) -> 0.14766 | Q14: =MAX(OFFSET(P_MLC3!$E$13, 0, 4*(Data_Pkg!$A14-1), 2401, 1)) -> 1.7844 | R14: =MIN(OFFSET(P_MLC2!$C$13, 0, 4*(Data_Pkg!$A14-1), 2401, 1)) -> 0.16663 | S14: =MAX(OFFSET(P_MLC2!$E$13, 0, 4*(Data_Pkg!$A14-1), 2401, 1)) -> 1.7589 | T14: =MIN(OFFSET(P_TC1!$C$13, 0, 4*(Data_Pkg!$A14-1), 2401, 1)) -> 0.3227 | U14: =MAX(OFFSET(P_TC1!$E$13, 0, 4*(Data_Pkg!$A14-1), 2401, 1)) -> 7.6044 | V14: =MIN(OFFSET(P_PM19!$C$13, 0, 4*(Data_Pkg!$A14-1), 2401, 1)) -> 0.28102 | W14: =MAX(OFFSET(P_PM19!$E$13, 0, 4*(Data_Pkg!$A14-1), 2401, 1)) -> 7.3948 | X14: =MIN(OFFSET(P_PM11!$C$13, 0, 4*(Data_Pkg!$A14-1), 2401, 1)) -> 0.21877 | Y14: =MAX(OFFSET(P_PM11!$E$13, 0, 4*(Data_Pkg!$A14-1), 2401, 1)) -> 7.5376
A15: 13 | B15: Cu* | C15: 8.928851756 | F15: =MIN(OFFSET(P_PM12!$C$13, 0, 4*(Data_Pkg!$A15-1), 2401, 1)) -> 0.18591 | G15: =MAX(OFFSET(P_PM12!$E$13, 0, 4*(Data_Pkg!$A15-1), 2401, 1)) -> 2.0143 | H15: =MIN(OFFSET(P_PM12.2!$C$13, 0, 4*(Data_Pkg!$A15-1), 2401, 1)) -> 0.25439 | I15: =MAX(OFFSET(P_PM12.2!$E$13, 0, 4*(Data_Pkg!$A15-1), 2401, 1)) -> 1.992 | J15: =MIN(OFFSET(P_PM12.3!$C$13, 0, 4*(Data_Pkg!$A15-1), 2401, 1)) -> 0.29488 | K15: =MAX(OFFSET(P_PM12.3!$E$13, 0, 4*(Data_Pkg!$A15-1), 2401, 1)) -> 5.7992 | L15: =MIN(OFFSET(P_PM12.4!$C$13, 0, 4*(Data_Pkg!$A15-1), 2401, 1)) -> 0.2869 | M15: =MAX(OFFSET(P_PM12.4!$E$13, 0, 4*(Data_Pkg!$A15-1), 2401, 1)) -> 5.4738 | N15: =MIN(OFFSET(P_PM13!$C$13, 0, 4*(Data_Pkg!$A15-1), 2401, 1)) -> 0.29128 | O15: =MAX(OFFSET(P_PM13!$E$13, 0, 4*(Data_Pkg!$A15-1), 2401, 1)) -> 5.6712 | P15: =MIN(OFFSET(P_MLC3!$C$13, 0, 4*(Data_Pkg!$A15-1), 2401, 1)) -> 0.16988 | Q15: =MAX(OFFSET(P_MLC3!$E$13, 0, 4*(Data_Pkg!$A15-1), 2401, 1)) -> 2.2224 | R15: =MIN(OFFSET(P_MLC2!$C$13, 0, 4*(Data_Pkg!$A15-1), 2401, 1)) -> 0.1967 | S15: =MAX(OFFSET(P_MLC2!$E$13, 0, 4*(Data_Pkg!$A15-1), 2401, 1)) -> 2.2192 | T15: =MIN(OFFSET(P_TC1!$C$13, 0, 4*(Data_Pkg!$A15-1), 2401, 1)) -> 1.0369 | U15: =MAX(OFFSET(P_TC1!$E$13, 0, 4*(Data_Pkg!$A15-1), 2401, 1)) -> 9 | V15: =MIN(OFFSET(P_PM19!$C$13, 0, 4*(Data_Pkg!$A15-1), 2401, 1)) -> 0.77056 | W15: =MAX(OFFSET(P_PM19!$E$13, 0, 4*(Data_Pkg!$A15-1), 2401, 1)) -> 8.8699 | X15: =MIN(OFFSET(P_PM11!$C$13, 0, 4*(Data_Pkg!$A15-1), 2401, 1)) -> 0.45697 | Y15: =MAX(OFFSET(P_PM11!$E$13, 0, 4*(Data_Pkg!$A15-1), 2401, 1)) -> 8.9988
A16: 14 | B16: F | F16: =MIN(OFFSET(P_PM12!$C$13, 0, 4*(Data_Pkg!$A16-1), 2401, 1)) -> 21.598 | G16: =MAX(OFFSET(P_PM12!$E$13, 0, 4*(Data_Pkg!$A16-1), 2401, 1)) -> 211.33 | H16: =MIN(OFFSET(P_PM12.2!$C$13, 0, 4*(Data_Pkg!$A16-1), 2401, 1)) -> 26.458 | I16: =MAX(OFFSET(P_PM12.2!$E$13, 0, 4*(Data_Pkg!$A16-1), 2401, 1)) -> 225.41 | J16: =MIN(OFFSET(P_PM12.3!$C$13, 0, 4*(Data_Pkg!$A16-1), 2401, 1)) -> 25.066 | K16: =MAX(OFFSET(P_PM12.3!$E$13, 0, 4*(Data_Pkg!$A16-1), 2401, 1)) -> 208.5 | L16: =MIN(OFFSET(P_PM12.4!$C$13, 0, 4*(Data_Pkg!$A16-1), 2401, 1)) -> 24.473 | M16: =MAX(OFFSET(P_PM12.4!$E$13, 0, 4*(Data_Pkg!$A16-1), 2401, 1)) -> 219.49 | N16: =MIN(OFFSET(P_PM13!$C$13, 0, 4*(Data_Pkg!$A16-1), 2401, 1)) -> 24.198 | O16: =MAX(OFFSET(P_PM13!$E$13, 0, 4*(Data_Pkg!$A16-1), 2401, 1)) -> 217.39 | P16: =MIN(OFFSET(P_MLC3!$C$13, 0, 4*(Data_Pkg!$A16-1), 2401, 1)) -> 19.063 | Q16: =MAX(OFFSET(P_MLC3!$E$13, 0, 4*(Data_Pkg!$A16-1), 2401, 1)) -> 216.36 | R16: =MIN(OFFSET(P_MLC2!$C$13, 0, 4*(Data_Pkg!$A16-1), 2401, 1)) -> 32.382 | S16: =MAX(OFFSET(P_MLC2!$E$13, 0, 4*(Data_Pkg!$A16-1), 2401, 1)) -> 1137.9 | T16: =MIN(OFFSET(P_TC1!$C$13, 0, 4*(Data_Pkg!$A16-1), 2401, 1)) -> 31.572 | U16: =MAX(OFFSET(P_TC1!$E$13, 0, 4*(Data_Pkg!$A16-1), 2401, 1)) -> 129.66 | V16: =MIN(OFFSET(P_PM19!$C$13, 0, 4*(Data_Pkg!$A16-1), 2401, 1)) -> 29.206 | W16: =MAX(OFFSET(P_PM19!$E$13, 0, 4*(Data_Pkg!$A16-1), 2401, 1)) -> 151.87 | X16: =MIN(OFFSET(P_PM11!$C$13, 0, 4*(Data_Pkg!$A16-1), 2401, 1)) -> 22.323 | Y16: =MAX(OFFSET(P_PM11!$E$13, 0, 4*(Data_Pkg!$A16-1), 2401, 1)) -> 181.51
A17: 15 | B17: Fe | F17: =MIN(OFFSET(P_PM12!$C$13, 0, 4*(Data_Pkg!$A17-1), 2401, 1)) -> 1019.3 | G17: =MAX(OFFSET(P_PM12!$E$13, 0, 4*(Data_Pkg!$A17-1), 2401, 1)) -> 12476 | H17: =MIN(OFFSET(P_PM12.2!$C$13, 0, 4*(Data_Pkg!$A17-1), 2401, 1)) -> 856.45 | I17: =MAX(OFFSET(P_PM12.2!$E$13, 0, 4*(Data_Pkg!$A17-1), 2401, 1)) -> 11927 | J17: =MIN(OFFSET(P_PM12.3!$C$13, 0, 4*(Data_Pkg!$A17-1), 2401, 1)) -> 576.35 | K17: =MAX(OFFSET(P_PM12.3!$E$13, 0, 4*(Data_Pkg!$A17-1), 2401, 1)) -> 11862 | L17: =MIN(OFFSET(P_PM12.4!$C$13, 0, 4*(Data_Pkg!$A17-1), 2401, 1)) -> 576 | M17: =MAX(OFFSET(P_PM12.4!$E$13, 0, 4*(Data_Pkg!$A17-1), 2401, 1)) -> 11929 | N17: =MIN(OFFSET(P_PM13!$C$13, 0, 4*(Data_Pkg!$A17-1), 2401, 1)) -> 614.72 | O17: =MAX(OFFSET(P_PM13!$E$13, 0, 4*(Data_Pkg!$A17-1), 2401, 1)) -> 11808 | P17: =MIN(OFFSET(P_MLC3!$C$13, 0, 4*(Data_Pkg!$A17-1), 2401, 1)) -> 457.21 | Q17: =MAX(OFFSET(P_MLC3!$E$13, 0, 4*(Data_Pkg!$A17-1), 2401, 1)) -> 12587 | R17: =MIN(OFFSET(P_MLC2!$C$13, 0, 4*(Data_Pkg!$A17-1), 2401, 1)) -> 540.88 | S17: =MAX(OFFSET(P_MLC2!$E$13, 0, 4*(Data_Pkg!$A17-1), 2401, 1)) -> 12396 | T17: =MIN(OFFSET(P_TC1!$C$13, 0, 4*(Data_Pkg!$A17-1), 2401, 1)) -> 176.22 | U17: =MAX(OFFSET(P_TC1!$E$13, 0, 4*(Data_Pkg!$A17-1), 2401, 1)) -> 6979.1 | V17: =MIN(OFFSET(P_PM19!$C$13, 0, 4*(Data_Pkg!$A17-1), 2401, 1)) -> 250.7 | W17: =MAX(OFFSET(P_PM19!$E$13, 0, 4*(Data_Pkg!$A17-1), 2401, 1)) -> 8330.6 | X17: =MIN(OFFSET(P_PM11!$C$13, 0, 4*(Data_Pkg!$A17-1), 2401, 1)) -> 202.33 | Y17: =MAX(OFFSET(P_PM11!$E$13, 0, 4*(Data_Pkg!$A17-1), 2401, 1)) -> 10465
A18: 16 | B18: K | F18: =MIN(OFFSET(P_PM12!$C$13, 0, 4*(Data_Pkg!$A18-1), 2401, 1)) -> 159.21 | G18: =MAX(OFFSET(P_PM12!$E$13, 0, 4*(Data_Pkg!$A18-1), 2401, 1)) -> 2325 | H18: =MIN(OFFSET(P_PM12.2!$C$13, 0, 4*(Data_Pkg!$A18-1), 2401, 1)) -> 2152.5 | I18: =MAX(OFFSET(P_PM12.2!$E$13, 0, 4*(Data_Pkg!$A18-1), 2401, 1)) -> 18449 | J18: =MIN(OFFSET(P_PM12.3!$C$13, 0, 4*(Data_Pkg!$A18-1), 2401, 1)) -> 1021.8 | K18: =MAX(OFFSET(P_PM12.3!$E$13, 0, 4*(Data_Pkg!$A18-1), 2401, 1)) -> 7721.2 | L18: =MIN(OFFSET(P_PM12.4!$C$13, 0, 4*(Data_Pkg!$A18-1), 2401, 1)) -> 930.64 | M18: =MAX(OFFSET(P_PM12.4!$E$13, 0, 4*(Data_Pkg!$A18-1), 2401, 1)) -> 6963 | N18: =MIN(OFFSET(P_PM13!$C$13, 0, 4*(Data_Pkg!$A18-1), 2401, 1)) -> 851.48 | O18: =MAX(OFFSET(P_PM13!$E$13, 0, 4*(Data_Pkg!$A18-1), 2401, 1)) -> 6127.4 | P18: =MIN(OFFSET(P_MLC3!$C$13, 0, 4*(Data_Pkg!$A18-1), 2401, 1)) -> 141.09 | Q18: =MAX(OFFSET(P_MLC3!$E$13, 0, 4*(Data_Pkg!$A18-1), 2401, 1)) -> 2335.6 | R18: =MIN(OFFSET(P_MLC2!$C$13, 0, 4*(Data_Pkg!$A18-1), 2401, 1)) -> 200.92 | S18: =MAX(OFFSET(P_MLC2!$E$13, 0, 4*(Data_Pkg!$A18-1), 2401, 1)) -> 3779.6 | T18: =MIN(OFFSET(P_TC1!$C$13, 0, 4*(Data_Pkg!$A18-1), 2401, 1)) -> 277.04 | U18: =MAX(OFFSET(P_TC1!$E$13, 0, 4*(Data_Pkg!$A18-1), 2401, 1)) -> 1449.6 | V18: =MIN(OFFSET(P_PM19!$C$13, 0, 4*(Data_Pkg!$A18-1), 2401, 1)) -> 283.42 | W18: =MAX(OFFSET(P_PM19!$E$13, 0, 4*(Data_Pkg!$A18-1), 2401, 1)) -> 1821 | X18: =MIN(OFFSET(P_PM11!$C$13, 0, 4*(Data_Pkg!$A18-1), 2401, 1)) -> 163.85 | Y18: =MAX(OFFSET(P_PM11!$E$13, 0, 4*(Data_Pkg!$A18-1), 2401, 1)) -> 2079.6
A19: 17 | B19: Mg | F19: =MIN(OFFSET(P_PM12!$C$13, 0, 4*(Data_Pkg!$A19-1), 2401, 1)) -> 1230.6 | G19: =MAX(OFFSET(P_PM12!$E$13, 0, 4*(Data_Pkg!$A19-1), 2401, 1)) -> 12128 | H19: =MIN(OFFSET(P_PM12.2!$C$13, 0, 4*(Data_Pkg!$A19-1), 2401, 1)) -> 10246 | I19: =MAX(OFFSET(P_PM12.2!$E$13, 0, 4*(Data_Pkg!$A19-1), 2401, 1)) -> 88161 | J19: =MIN(OFFSET(P_PM12.3!$C$13, 0, 4*(Data_Pkg!$A19-1), 2401, 1)) -> 5232.9 | K19: =MAX(OFFSET(P_PM12.3!$E$13, 0, 4*(Data_Pkg!$A19-1), 2401, 1)) -> 38098 | L19: =MIN(OFFSET(P_PM12.4!$C$13, 0, 4*(Data_Pkg!$A19-1), 2401, 1)) -> 4814.7 | M19: =MAX(OFFSET(P_PM12.4!$E$13, 0, 4*(Data_Pkg!$A19-1), 2401, 1)) -> 34620 | N19: =MIN(OFFSET(P_PM13!$C$13, 0, 4*(Data_Pkg!$A19-1), 2401, 1)) -> 4513.9 | O19: =MAX(OFFSET(P_PM13!$E$13, 0, 4*(Data_Pkg!$A19-1), 2401, 1)) -> 31564 | P19: =MIN(OFFSET(P_MLC3!$C$13, 0, 4*(Data_Pkg!$A19-1), 2401, 1)) -> 1117.2 | Q19: =MAX(OFFSET(P_MLC3!$E$13, 0, 4*(Data_Pkg!$A19-1), 2401, 1)) -> 13105 | R19: =MIN(OFFSET(P_MLC2!$C$13, 0, 4*(Data_Pkg!$A19-1), 2401, 1)) -> 1431.4 | S19: =MAX(OFFSET(P_MLC2!$E$13, 0, 4*(Data_Pkg!$A19-1), 2401, 1)) -> 27026 | T19: =MIN(OFFSET(P_TC1!$C$13, 0, 4*(Data_Pkg!$A19-1), 2401, 1)) -> 1854.3 | U19: =MAX(OFFSET(P_TC1!$E$13, 0, 4*(Data_Pkg!$A19-1), 2401, 1)) -> 7749.1 | V19: =MIN(OFFSET(P_PM19!$C$13, 0, 4*(Data_Pkg!$A19-1), 2401, 1)) -> 2136.4 | W19: =MAX(OFFSET(P_PM19!$E$13, 0, 4*(Data_Pkg!$A19-1), 2401, 1)) -> 9999.3 | X19: =MIN(OFFSET(P_PM11!$C$13, 0, 4*(Data_Pkg!$A19-1), 2401, 1)) -> 1232.6 | Y19: =MAX(OFFSET(P_PM11!$E$13, 0, 4*(Data_Pkg!$A19-1), 2401, 1)) -> 10023
A20: 18 | B20: Mn | F20: =MIN(OFFSET(P_PM12!$C$13, 0, 4*(Data_Pkg!$A20-1), 2401, 1)) -> 60.783 | G20: =MAX(OFFSET(P_PM12!$E$13, 0, 4*(Data_Pkg!$A20-1), 2401, 1)) -> 1285.6 | H20: =MIN(OFFSET(P_PM12.2!$C$13, 0, 4*(Data_Pkg!$A20-1), 2401, 1)) -> 93.603 | I20: =MAX(OFFSET(P_PM12.2!$E$13, 0, 4*(Data_Pkg!$A20-1), 2401, 1)) -> 1266.6 | J20: =MIN(OFFSET(P_PM12.3!$C$13, 0, 4*(Data_Pkg!$A20-1), 2401, 1)) -> 72.124 | K20: =MAX(OFFSET(P_PM12.3!$E$13, 0, 4*(Data_Pkg!$A20-1), 2401, 1)) -> 1229.5 | L20: =MIN(OFFSET(P_PM12.4!$C$13, 0, 4*(Data_Pkg!$A20-1), 2401, 1)) -> 71.292 | M20: =MAX(OFFSET(P_PM12.4!$E$13, 0, 4*(Data_Pkg!$A20-1), 2401, 1)) -> 1234.8 | N20: =MIN(OFFSET(P_PM13!$C$13, 0, 4*(Data_Pkg!$A20-1), 2401, 1)) -> 71.019 | O20: =MAX(OFFSET(P_PM13!$E$13, 0, 4*(Data_Pkg!$A20-1), 2401, 1)) -> 1224 | P20: =MIN(OFFSET(P_MLC3!$C$13, 0, 4*(Data_Pkg!$A20-1), 2401, 1)) -> 50.619 | Q20: =MAX(OFFSET(P_MLC3!$E$13, 0, 4*(Data_Pkg!$A20-1), 2401, 1)) -> 1308.5 | R20: =MIN(OFFSET(P_MLC2!$C$13, 0, 4*(Data_Pkg!$A20-1), 2401, 1)) -> 57.475 | S20: =MAX(OFFSET(P_MLC2!$E$13, 0, 4*(Data_Pkg!$A20-1), 2401, 1)) -> 1289.7 | T20: =MIN(OFFSET(P_TC1!$C$13, 0, 4*(Data_Pkg!$A20-1), 2401, 1)) -> 48.014 | U20: =MAX(OFFSET(P_TC1!$E$13, 0, 4*(Data_Pkg!$A20-1), 2401, 1)) -> 712.15 | V20: =MIN(OFFSET(P_PM19!$C$13, 0, 4*(Data_Pkg!$A20-1), 2401, 1)) -> 57.025 | W20: =MAX(OFFSET(P_PM19!$E$13, 0, 4*(Data_Pkg!$A20-1), 2401, 1)) -> 885.94 | X20: =MIN(OFFSET(P_PM11!$C$13, 0, 4*(Data_Pkg!$A20-1), 2401, 1)) -> 45.871 | Y20: =MAX(OFFSET(P_PM11!$E$13, 0, 4*(Data_Pkg!$A20-1), 2401, 1)) -> 1085
A21: 19 | B21: Na | F21: =MIN(OFFSET(P_PM12!$C$13, 0, 4*(Data_Pkg!$A21-1), 2401, 1)) -> 1855.2 | G21: =MAX(OFFSET(P_PM12!$E$13, 0, 4*(Data_Pkg!$A21-1), 2401, 1)) -> 5351.3 | H21: =MIN(OFFSET(P_PM12.2!$C$13, 0, 4*(Data_Pkg!$A21-1), 2401, 1)) -> 5352.2 | I21: =MAX(OFFSET(P_PM12.2!$E$13, 0, 4*(Data_Pkg!$A21-1), 2401, 1)) -> 32804 | J21: =MIN(OFFSET(P_PM12.3!$C$13, 0, 4*(Data_Pkg!$A21-1), 2401, 1)) -> 3381.7 | K21: =MAX(OFFSET(P_PM12.3!$E$13, 0, 4*(Data_Pkg!$A21-1), 2401, 1)) -> 14919 | L21: =MIN(OFFSET(P_PM12.4!$C$13, 0, 4*(Data_Pkg!$A21-1), 2401, 1)) -> 3226.8 | M21: =MAX(OFFSET(P_PM12.4!$E$13, 0, 4*(Data_Pkg!$A21-1), 2401, 1)) -> 13679 | N21: =MIN(OFFSET(P_PM13!$C$13, 0, 4*(Data_Pkg!$A21-1), 2401, 1)) -> 3100.9 | O21: =MAX(OFFSET(P_PM13!$E$13, 0, 4*(Data_Pkg!$A21-1), 2401, 1)) -> 12465 | P21: =MIN(OFFSET(P_MLC3!$C$13, 0, 4*(Data_Pkg!$A21-1), 2401, 1)) -> 1821.7 | Q21: =MAX(OFFSET(P_MLC3!$E$13, 0, 4*(Data_Pkg!$A21-1), 2401, 1)) -> 7488.3 | R21: =MIN(OFFSET(P_MLC2!$C$13, 0, 4*(Data_Pkg!$A21-1), 2401, 1)) -> 2118.4 | S21: =MAX(OFFSET(P_MLC2!$E$13, 0, 4*(Data_Pkg!$A21-1), 2401, 1)) -> 22681 | T21: =MIN(OFFSET(P_TC1!$C$13, 0, 4*(Data_Pkg!$A21-1), 2401, 1)) -> 1896.2 | U21: =MAX(OFFSET(P_TC1!$E$13, 0, 4*(Data_Pkg!$A21-1), 2401, 1)) -> 3810.8 | V21: =MIN(OFFSET(P_PM19!$C$13, 0, 4*(Data_Pkg!$A21-1), 2401, 1)) -> 2072.3 | W21: =MAX(OFFSET(P_PM19!$E$13, 0, 4*(Data_Pkg!$A21-1), 2401, 1)) -> 4674.9 | X21: =MIN(OFFSET(P_PM11!$C$13, 0, 4*(Data_Pkg!$A21-1), 2401, 1)) -> 1807.7 | Y21: =MAX(OFFSET(P_PM11!$E$13, 0, 4*(Data_Pkg!$A21-1), 2401, 1)) -> 4762.1
A22: 20 | B22: Ni* | C22: 49.94786944 | F22: =MIN(OFFSET(P_PM12!$C$13, 0, 4*(Data_Pkg!$A22-1), 2401, 1)) -> 0.44755 | G22: =MAX(OFFSET(P_PM12!$E$13, 0, 4*(Data_Pkg!$A22-1), 2401, 1)) -> 3.2252 | H22: =MIN(OFFSET(P_PM12.2!$C$13, 0, 4*(Data_Pkg!$A22-1), 2401, 1)) -> 0.54537 | I22: =MAX(OFFSET(P_PM12.2!$E$13, 0, 4*(Data_Pkg!$A22-1), 2401, 1)) -> 3.3934 | J22: =MIN(OFFSET(P_PM12.3!$C$13, 0, 4*(Data_Pkg!$A22-1), 2401, 1)) -> 0.53301 | K22: =MAX(OFFSET(P_PM12.3!$E$13, 0, 4*(Data_Pkg!$A22-1), 2401, 1)) -> 29.38 | L22: =MIN(OFFSET(P_PM12.4!$C$13, 0, 4*(Data_Pkg!$A22-1), 2401, 1)) -> 0.52407 | M22: =MAX(OFFSET(P_PM12.4!$E$13, 0, 4*(Data_Pkg!$A22-1), 2401, 1)) -> 27.072 | N22: =MIN(OFFSET(P_PM13!$C$13, 0, 4*(Data_Pkg!$A22-1), 2401, 1)) -> 0.52385 | O22: =MAX(OFFSET(P_PM13!$E$13, 0, 4*(Data_Pkg!$A22-1), 2401, 1)) -> 28.416 | P22: =MIN(OFFSET(P_MLC3!$C$13, 0, 4*(Data_Pkg!$A22-1), 2401, 1)) -> 0.43976 | Q22: =MAX(OFFSET(P_MLC3!$E$13, 0, 4*(Data_Pkg!$A22-1), 2401, 1)) -> 3.9546 | R22: =MIN(OFFSET(P_MLC2!$C$13, 0, 4*(Data_Pkg!$A22-1), 2401, 1)) -> 0.45291 | S22: =MAX(OFFSET(P_MLC2!$E$13, 0, 4*(Data_Pkg!$A22-1), 2401, 1)) -> 4.0243 | T22: =MIN(OFFSET(P_TC1!$C$13, 0, 4*(Data_Pkg!$A22-1), 2401, 1)) -> 1.3405 | U22: =MAX(OFFSET(P_TC1!$E$13, 0, 4*(Data_Pkg!$A22-1), 2401, 1)) -> 50 | V22: =MIN(OFFSET(P_PM19!$C$13, 0, 4*(Data_Pkg!$A22-1), 2401, 1)) -> 0.98924 | W22: =MAX(OFFSET(P_PM19!$E$13, 0, 4*(Data_Pkg!$A22-1), 2401, 1)) -> 49.127 | X22: =MIN(OFFSET(P_PM11!$C$13, 0, 4*(Data_Pkg!$A22-1), 2401, 1)) -> 0.62937 | Y22: =MAX(OFFSET(P_PM11!$E$13, 0, 4*(Data_Pkg!$A22-1), 2401, 1)) -> 49.993
A23: 21 | B23: Pb* | C23: 2.980482747 | F23: =MIN(OFFSET(P_PM12!$C$13, 0, 4*(Data_Pkg!$A23-1), 2401, 1)) -> 0.11063 | G23: =MAX(OFFSET(P_PM12!$E$13, 0, 4*(Data_Pkg!$A23-1), 2401, 1)) -> 0.49972 | H23: =MIN(OFFSET(P_PM12.2!$C$13, 0, 4*(Data_Pkg!$A23-1), 2401, 1)) -> 0.11151 | I23: =MAX(OFFSET(P_PM12.2!$E$13, 0, 4*(Data_Pkg!$A23-1), 2401, 1)) -> 0.4843 | J23: =MIN(OFFSET(P_PM12.3!$C$13, 0, 4*(Data_Pkg!$A23-1), 2401, 1)) -> 0.14418 | K23: =MAX(OFFSET(P_PM12.3!$E$13, 0, 4*(Data_Pkg!$A23-1), 2401, 1)) -> 1.7769 | L23: =MIN(OFFSET(P_PM12.4!$C$13, 0, 4*(Data_Pkg!$A23-1), 2401, 1)) -> 0.14187 | M23: =MAX(OFFSET(P_PM12.4!$E$13, 0, 4*(Data_Pkg!$A23-1), 2401, 1)) -> 1.6507 | N23: =MIN(OFFSET(P_PM13!$C$13, 0, 4*(Data_Pkg!$A23-1), 2401, 1)) -> 0.14462 | O23: =MAX(OFFSET(P_PM13!$E$13, 0, 4*(Data_Pkg!$A23-1), 2401, 1)) -> 1.7288 | P23: =MIN(OFFSET(P_MLC3!$C$13, 0, 4*(Data_Pkg!$A23-1), 2401, 1)) -> 0.10761 | Q23: =MAX(OFFSET(P_MLC3!$E$13, 0, 4*(Data_Pkg!$A23-1), 2401, 1)) -> 0.50457 | R23: =MIN(OFFSET(P_MLC2!$C$13, 0, 4*(Data_Pkg!$A23-1), 2401, 1)) -> 0.11679 | S23: =MAX(OFFSET(P_MLC2!$E$13, 0, 4*(Data_Pkg!$A23-1), 2401, 1)) -> 0.62964 | T23: =MIN(OFFSET(P_TC1!$C$13, 0, 4*(Data_Pkg!$A23-1), 2401, 1)) -> 0.47803 | U23: =MAX(OFFSET(P_TC1!$E$13, 0, 4*(Data_Pkg!$A23-1), 2401, 1)) -> 3 | V23: =MIN(OFFSET(P_PM19!$C$13, 0, 4*(Data_Pkg!$A23-1), 2401, 1)) -> 0.35022 | W23: =MAX(OFFSET(P_PM19!$E$13, 0, 4*(Data_Pkg!$A23-1), 2401, 1)) -> 2.9471 | X23: =MIN(OFFSET(P_PM11!$C$13, 0, 4*(Data_Pkg!$A23-1), 2401, 1)) -> 0.23791 | Y23: =MAX(OFFSET(P_PM11!$E$13, 0, 4*(Data_Pkg!$A23-1), 2401, 1)) -> 2.9996
A24: 22 | B24: Sb | C24: 31 | E24: 31 | F24: =MIN(OFFSET(P_PM12!$C$13, 0, 4*(Data_Pkg!$A24-1), 2401, 1)) -> 0.21054 | G24: =MAX(OFFSET(P_PM12!$E$13, 0, 4*(Data_Pkg!$A24-1), 2401, 1)) -> 0.37161 | H24: =MIN(OFFSET(P_PM12.2!$C$13, 0, 4*(Data_Pkg!$A24-1), 2401, 1)) -> 0.21203 | I24: =MAX(OFFSET(P_PM12.2!$E$13, 0, 4*(Data_Pkg!$A24-1), 2401, 1)) -> 0.48268 | J24: =MIN(OFFSET(P_PM12.3!$C$13, 0, 4*(Data_Pkg!$A24-1), 2401, 1)) -> 0.2131 | K24: =MAX(OFFSET(P_PM12.3!$E$13, 0, 4*(Data_Pkg!$A24-1), 2401, 1)) -> 9.7791 | L24: =MIN(OFFSET(P_PM12.4!$C$13, 0, 4*(Data_Pkg!$A24-1), 2401, 1)) -> 0.21283 | M24: =MAX(OFFSET(P_PM12.4!$E$13, 0, 4*(Data_Pkg!$A24-1), 2401, 1)) -> 8.8562 | N24: =MIN(OFFSET(P_PM13!$C$13, 0, 4*(Data_Pkg!$A24-1), 2401, 1)) -> 0.21302 | O24: =MAX(OFFSET(P_PM13!$E$13, 0, 4*(Data_Pkg!$A24-1), 2401, 1)) -> 9.245 | P24: =MIN(OFFSET(P_MLC3!$C$13, 0, 4*(Data_Pkg!$A24-1), 2401, 1)) -> 0.21004 | Q24: =MAX(OFFSET(P_MLC3!$E$13, 0, 4*(Data_Pkg!$A24-1), 2401, 1)) -> 0.46498 | R24: =MIN(OFFSET(P_MLC2!$C$13, 0, 4*(Data_Pkg!$A24-1), 2401, 1)) -> 0.21124 | S24: =MAX(OFFSET(P_MLC2!$E$13, 0, 4*(Data_Pkg!$A24-1), 2401, 1)) -> 0.46103 | T24: =MIN(OFFSET(P_TC1!$C$13, 0, 4*(Data_Pkg!$A24-1), 2401, 1)) -> 0.24988 | U24: =MAX(OFFSET(P_TC1!$E$13, 0, 4*(Data_Pkg!$A24-1), 2401, 1)) -> 20.543 | V24: =MIN(OFFSET(P_PM19!$C$13, 0, 4*(Data_Pkg!$A24-1), 2401, 1)) -> 0.23422 | W24: =MAX(OFFSET(P_PM19!$E$13, 0, 4*(Data_Pkg!$A24-1), 2401, 1)) -> 19.22 | X24: =MIN(OFFSET(P_PM11!$C$13, 0, 4*(Data_Pkg!$A24-1), 2401, 1)) -> 0.21954 | Y24: =MAX(OFFSET(P_PM11!$E$13, 0, 4*(Data_Pkg!$A24-1), 2401, 1)) -> 19.78
A25: 23 | B25: Se | C25: 5 | E25: 5 | F25: =MIN(OFFSET(P_PM12!$C$13, 0, 4*(Data_Pkg!$A25-1), 2401, 1)) -> 0.2442 | G25: =MAX(OFFSET(P_PM12!$E$13, 0, 4*(Data_Pkg!$A25-1), 2401, 1)) -> 0.76902 | H25: =MIN(OFFSET(P_PM12.2!$C$13, 0, 4*(Data_Pkg!$A25-1), 2401, 1)) -> 0.2642 | I25: =MAX(OFFSET(P_PM12.2!$E$13, 0, 4*(Data_Pkg!$A25-1), 2401, 1)) -> 0.76202 | J25: =MIN(OFFSET(P_PM12.3!$C$13, 0, 4*(Data_Pkg!$A25-1), 2401, 1)) -> 0.2677 | K25: =MAX(OFFSET(P_PM12.3!$E$13, 0, 4*(Data_Pkg!$A25-1), 2401, 1)) -> 2.8544 | L25: =MIN(OFFSET(P_PM12.4!$C$13, 0, 4*(Data_Pkg!$A25-1), 2401, 1)) -> 0.26477 | M25: =MAX(OFFSET(P_PM12.4!$E$13, 0, 4*(Data_Pkg!$A25-1), 2401, 1)) -> 2.6334 | N25: =MIN(OFFSET(P_PM13!$C$13, 0, 4*(Data_Pkg!$A25-1), 2401, 1)) -> 0.2664 | O25: =MAX(OFFSET(P_PM13!$E$13, 0, 4*(Data_Pkg!$A25-1), 2401, 1)) -> 2.7385 | P25: =MIN(OFFSET(P_MLC3!$C$13, 0, 4*(Data_Pkg!$A25-1), 2401, 1)) -> 0.24075 | Q25: =MAX(OFFSET(P_MLC3!$E$13, 0, 4*(Data_Pkg!$A25-1), 2401, 1)) -> 0.81581 | R25: =MIN(OFFSET(P_MLC2!$C$13, 0, 4*(Data_Pkg!$A25-1), 2401, 1)) -> 0.24795 | S25: =MAX(OFFSET(P_MLC2!$E$13, 0, 4*(Data_Pkg!$A25-1), 2401, 1)) -> 0.84338 | T25: =MIN(OFFSET(P_TC1!$C$13, 0, 4*(Data_Pkg!$A25-1), 2401, 1)) -> 0.38278 | U25: =MAX(OFFSET(P_TC1!$E$13, 0, 4*(Data_Pkg!$A25-1), 2401, 1)) -> 5 | V25: =MIN(OFFSET(P_PM19!$C$13, 0, 4*(Data_Pkg!$A25-1), 2401, 1)) -> 0.34688 | W25: =MAX(OFFSET(P_PM19!$E$13, 0, 4*(Data_Pkg!$A25-1), 2401, 1)) -> 4.8737 | X25: =MIN(OFFSET(P_PM11!$C$13, 0, 4*(Data_Pkg!$A25-1), 2401, 1)) -> 0.29713 | Y25: =MAX(OFFSET(P_PM11!$E$13, 0, 4*(Data_Pkg!$A25-1), 2401, 1)) -> 4.9909
A26: 24 | B26: SO4 | F26: =MIN(OFFSET(P_PM12!$C$13, 0, 4*(Data_Pkg!$A26-1), 2401, 1)) -> 583.2 | G26: =MAX(OFFSET(P_PM12!$E$13, 0, 4*(Data_Pkg!$A26-1), 2401, 1)) -> 14310 | H26: =MIN(OFFSET(P_PM12.2!$C$13, 0, 4*(Data_Pkg!$A26-1), 2401, 1)) -> 37980 | I26: =MAX(OFFSET(P_PM12.2!$E$13, 0, 4*(Data_Pkg!$A26-1), 2401, 1)) -> 371300 | J26: =MIN(OFFSET(P_PM12.3!$C$13, 0, 4*(Data_Pkg!$A26-1), 2401, 1)) -> 16946 | K26: =MAX(OFFSET(P_PM12.3!$E$13, 0, 4*(Data_Pkg!$A26-1), 2401, 1)) -> 147820 | L26: =MIN(OFFSET(P_PM12.4!$C$13, 0, 4*(Data_Pkg!$A26-1), 2401, 1)) -> 15134 | M26: =MAX(OFFSET(P_PM12.4!$E$13, 0, 4*(Data_Pkg!$A26-1), 2401, 1)) -> 131440 | N26: =MIN(OFFSET(P_PM13!$C$13, 0, 4*(Data_Pkg!$A26-1), 2401, 1)) -> 13628 | O26: =MAX(OFFSET(P_PM13!$E$13, 0, 4*(Data_Pkg!$A26-1), 2401, 1)) -> 114230 | P26: =MIN(OFFSET(P_MLC3!$C$13, 0, 4*(Data_Pkg!$A26-1), 2401, 1)) -> 480.9 | Q26: =MAX(OFFSET(P_MLC3!$E$13, 0, 4*(Data_Pkg!$A26-1), 2401, 1)) -> 14631 | R26: =MIN(OFFSET(P_MLC2!$C$13, 0, 4*(Data_Pkg!$A26-1), 2401, 1)) -> 1118.4 | S26: =MAX(OFFSET(P_MLC2!$E$13, 0, 4*(Data_Pkg!$A26-1), 2401, 1)) -> 63046 | T26: =MIN(OFFSET(P_TC1!$C$13, 0, 4*(Data_Pkg!$A26-1), 2401, 1)) -> 3133.7 | U26: =MAX(OFFSET(P_TC1!$E$13, 0, 4*(Data_Pkg!$A26-1), 2401, 1)) -> 12172 | V26: =MIN(OFFSET(P_PM19!$C$13, 0, 4*(Data_Pkg!$A26-1), 2401, 1)) -> 3041.8 | W26: =MAX(OFFSET(P_PM19!$E$13, 0, 4*(Data_Pkg!$A26-1), 2401, 1)) -> 19499 | X26: =MIN(OFFSET(P_PM11!$C$13, 0, 4*(Data_Pkg!$A26-1), 2401, 1)) -> 1241.8 | Y26: =MAX(OFFSET(P_PM11!$E$13, 0, 4*(Data_Pkg!$A26-1), 2401, 1)) -> 13544
A27: 25 | B27: Tl | C27: 0.56 | E27: 0.56 | F27: =MIN(OFFSET(P_PM12!$C$13, 0, 4*(Data_Pkg!$A27-1), 2401, 1)) -> 0.0023563 | G27: =MAX(OFFSET(P_PM12!$E$13, 0, 4*(Data_Pkg!$A27-1), 2401, 1)) -> 0.13056 | H27: =MIN(OFFSET(P_PM12.2!$C$13, 0, 4*(Data_Pkg!$A27-1), 2401, 1)) -> 0.005866 | I27: =MAX(OFFSET(P_PM12.2!$E$13, 0, 4*(Data_Pkg!$A27-1), 2401, 1)) -> 0.13309 | J27: =MIN(OFFSET(P_PM12.3!$C$13, 0, 4*(Data_Pkg!$A27-1), 2401, 1)) -> 0.0044553 | K27: =MAX(OFFSET(P_PM12.3!$E$13, 0, 4*(Data_Pkg!$A27-1), 2401, 1)) -> 0.17061 | L27: =MIN(OFFSET(P_PM12.4!$C$13, 0, 4*(Data_Pkg!$A27-1), 2401, 1)) -> 0.0042046 | M27: =MAX(OFFSET(P_PM12.4!$E$13, 0, 4*(Data_Pkg!$A27-1), 2401, 1)) -> 0.16695 | N27: =MIN(OFFSET(P_PM13!$C$13, 0, 4*(Data_Pkg!$A27-1), 2401, 1)) -> 0.0041457 | O27: =MAX(OFFSET(P_PM13!$E$13, 0, 4*(Data_Pkg!$A27-1), 2401, 1)) -> 0.16829 | P27: =MIN(OFFSET(P_MLC3!$C$13, 0, 4*(Data_Pkg!$A27-1), 2401, 1)) -> 0.0017838 | Q27: =MAX(OFFSET(P_MLC3!$E$13, 0, 4*(Data_Pkg!$A27-1), 2401, 1)) -> 0.16151 | R27: =MIN(OFFSET(P_MLC2!$C$13, 0, 4*(Data_Pkg!$A27-1), 2401, 1)) -> 0.0028666 | S27: =MAX(OFFSET(P_MLC2!$E$13, 0, 4*(Data_Pkg!$A27-1), 2401, 1)) -> 0.1731 | T27: =MIN(OFFSET(P_TC1!$C$13, 0, 4*(Data_Pkg!$A27-1), 2401, 1)) -> 0.015969 | U27: =MAX(OFFSET(P_TC1!$E$13, 0, 4*(Data_Pkg!$A27-1), 2401, 1)) -> 0.2396 | V27: =MIN(OFFSET(P_PM19!$C$13, 0, 4*(Data_Pkg!$A27-1), 2401, 1)) -> 0.011493 | W27: =MAX(OFFSET(P_PM19!$E$13, 0, 4*(Data_Pkg!$A27-1), 2401, 1)) -> 0.22874 | X27: =MIN(OFFSET(P_PM11!$C$13, 0, 4*(Data_Pkg!$A27-1), 2401, 1)) -> 0.0047829 | Y27: =MAX(OFFSET(P_PM11!$E$13, 0, 4*(Data_Pkg!$A27-1), 2401, 1)) -> 0.2318
A28: 26 | B28: V | F28: =MIN(OFFSET(P_PM12!$C$13, 0, 4*(Data_Pkg!$A28-1), 2401, 1)) -> 0.18664 | G28: =MAX(OFFSET(P_PM12!$E$13, 0, 4*(Data_Pkg!$A28-1), 2401, 1)) -> 3.7057 | H28: =MIN(OFFSET(P_PM12.2!$C$13, 0, 4*(Data_Pkg!$A28-1), 2401, 1)) -> 0.3527 | I28: =MAX(OFFSET(P_PM12.2!$E$13, 0, 4*(Data_Pkg!$A28-1), 2401, 1)) -> 4.5449 | J28: =MIN(OFFSET(P_PM12.3!$C$13, 0, 4*(Data_Pkg!$A28-1), 2401, 1)) -> 0.26642 | K28: =MAX(OFFSET(P_PM12.3!$E$13, 0, 4*(Data_Pkg!$A28-1), 2401, 1)) -> 6.6637 | L28: =MIN(OFFSET(P_PM12.4!$C$13, 0, 4*(Data_Pkg!$A28-1), 2401, 1)) -> 0.25687 | M28: =MAX(OFFSET(P_PM12.4!$E$13, 0, 4*(Data_Pkg!$A28-1), 2401, 1)) -> 6.3581 | N28: =MIN(OFFSET(P_PM13!$C$13, 0, 4*(Data_Pkg!$A28-1), 2401, 1)) -> 0.25055 | O28: =MAX(OFFSET(P_PM13!$E$13, 0, 4*(Data_Pkg!$A28-1), 2401, 1)) -> 6.4072 | P28: =MIN(OFFSET(P_MLC3!$C$13, 0, 4*(Data_Pkg!$A28-1), 2401, 1)) -> 0.175 | Q28: =MAX(OFFSET(P_MLC3!$E$13, 0, 4*(Data_Pkg!$A28-1), 2401, 1)) -> 4.9285 | R28: =MIN(OFFSET(P_MLC2!$C$13, 0, 4*(Data_Pkg!$A28-1), 2401, 1)) -> 0.19587 | S28: =MAX(OFFSET(P_MLC2!$E$13, 0, 4*(Data_Pkg!$A28-1), 2401, 1)) -> 5.0515 | T28: =MIN(OFFSET(P_TC1!$C$13, 0, 4*(Data_Pkg!$A28-1), 2401, 1)) -> 0.54087 | U28: =MAX(OFFSET(P_TC1!$E$13, 0, 4*(Data_Pkg!$A28-1), 2401, 1)) -> 9.4403 | V28: =MIN(OFFSET(P_PM19!$C$13, 0, 4*(Data_Pkg!$A28-1), 2401, 1)) -> 0.40909 | W28: =MAX(OFFSET(P_PM19!$E$13, 0, 4*(Data_Pkg!$A28-1), 2401, 1)) -> 9.1889 | X28: =MIN(OFFSET(P_PM11!$C$13, 0, 4*(Data_Pkg!$A28-1), 2401, 1)) -> 0.23242 | Y28: =MAX(OFFSET(P_PM11!$E$13, 0, 4*(Data_Pkg!$A28-1), 2401, 1)) -> 9.3864
A29: 27 | B29: Zn* | C29: 114.7206325 | F29: =MIN(OFFSET(P_PM12!$C$13, 0, 4*(Data_Pkg!$A29-1), 2401, 1)) -> 1.0785 | G29: =MAX(OFFSET(P_PM12!$E$13, 0, 4*(Data_Pkg!$A29-1), 2401, 1)) -> 18.892 | H29: =MIN(OFFSET(P_PM12.2!$C$13, 0, 4*(Data_Pkg!$A29-1), 2401, 1)) -> 1.1622 | I29: =MAX(OFFSET(P_PM12.2!$E$13, 0, 4*(Data_Pkg!$A29-1), 2401, 1)) -> 18.278 | J29: =MIN(OFFSET(P_PM12.3!$C$13, 0, 4*(Data_Pkg!$A29-1), 2401, 1)) -> 1.2723 | K29: =MAX(OFFSET(P_PM12.3!$E$13, 0, 4*(Data_Pkg!$A29-1), 2401, 1)) -> 58.45 | L29: =MIN(OFFSET(P_PM12.4!$C$13, 0, 4*(Data_Pkg!$A29-1), 2401, 1)) -> 1.2459 | M29: =MAX(OFFSET(P_PM12.4!$E$13, 0, 4*(Data_Pkg!$A29-1), 2401, 1)) -> 54.776 | N29: =MIN(OFFSET(P_PM13!$C$13, 0, 4*(Data_Pkg!$A29-1), 2401, 1)) -> 1.2667 | O29: =MAX(OFFSET(P_PM13!$E$13, 0, 4*(Data_Pkg!$A29-1), 2401, 1)) -> 56.967 | P29: =MIN(OFFSET(P_MLC3!$C$13, 0, 4*(Data_Pkg!$A29-1), 2401, 1)) -> 0.93548 | Q29: =MAX(OFFSET(P_MLC3!$E$13, 0, 4*(Data_Pkg!$A29-1), 2401, 1)) -> 19.139 | R29: =MIN(OFFSET(P_MLC2!$C$13, 0, 4*(Data_Pkg!$A29-1), 2401, 1)) -> 1.1279 | S29: =MAX(OFFSET(P_MLC2!$E$13, 0, 4*(Data_Pkg!$A29-1), 2401, 1)) -> 18.97 | T29: =MIN(OFFSET(P_TC1!$C$13, 0, 4*(Data_Pkg!$A29-1), 2401, 1)) -> 4.6204 | U29: =MAX(OFFSET(P_TC1!$E$13, 0, 4*(Data_Pkg!$A29-1), 2401, 1)) -> 100 | V29: =MIN(OFFSET(P_PM19!$C$13, 0, 4*(Data_Pkg!$A29-1), 2401, 1)) -> 3.304 | W29: =MAX(OFFSET(P_PM19!$E$13, 0, 4*(Data_Pkg!$A29-1), 2401, 1)) -> 98.157 | X29: =MIN(OFFSET(P_PM11!$C$13, 0, 4*(Data_Pkg!$A29-1), 2401, 1)) -> 2.085 | Y29: =MAX(OFFSET(P_PM11!$E$13, 0, 4*(Data_Pkg!$A29-1), 2401, 1)) -> 99.929
A30: 1 | B30: Hardness | C30: 500000 | E30: 500000 | F30: =MIN(OFFSET(P_HARD!$C$13, 0, 4*(Data_Pkg!$A30-1), 2401, 1)) * 1000 -> 18793 | G30: =MAX(OFFSET(P_HARD!$E$13, 0, 4*(Data_Pkg!$A30-1), 2401, 1)) * 1000 -> 96676 | H30: =MIN(OFFSET(P_HARD!$G$13, 0, 4*(Data_Pkg!$A30-1), 2401, 1)) * 1000 -> 66306 | I30: =MAX(OFFSET(P_HARD!$I$13, 0, 4*(Data_Pkg!$A30-1), 2401, 1)) * 1000 -> 461940 | J30: =MIN(OFFSET(P_HARD!$K$13, 0, 4*(Data_Pkg!$A30-1), 2401, 1)) * 1000 -> 40407 | K30: =MAX(OFFSET(P_HARD!$M$13, 0, 4*(Data_Pkg!$A30-1), 2401, 1)) * 1000 -> 231470 | L30: =MIN(OFFSET(P_HARD!$O$13, 0, 4*(Data_Pkg!$A30-1), 2401, 1)) * 1000 -> 38002 | M30: =MAX(OFFSET(P_HARD!$Q$13, 0, 4*(Data_Pkg!$A30-1), 2401, 1)) * 1000 -> 214880 | N30: =MIN(OFFSET(P_HARD!$S$13, 0, 4*(Data_Pkg!$A30-1), 2401, 1)) * 1000 -> 36364 | O30: =MAX(OFFSET(P_HARD!$U$13, 0, 4*(Data_Pkg!$A30-1), 2401, 1)) * 1000 -> 207530 | P30: =MIN(OFFSET(P_HARD!$W$13, 0, 4*(Data_Pkg!$A30-1), 2401, 1)) * 1000 -> 17921 | Q30: =MAX(OFFSET(P_HARD!$Y$13, 0, 4*(Data_Pkg!$A30-1), 2401, 1)) * 1000 -> 118270 | R30: =MIN(OFFSET(P_HARD!$AA$13, 0, 4*(Data_Pkg!$A30-1), 2401, 1)) * 1000 -> 20566 | S30: =MAX(OFFSET(P_HARD!$AC$13, 0, 4*(Data_Pkg!$A30-1), 2401, 1)) * 1000 -> 183060 | T30: =MIN(OFFSET(P_HARD!$AE$13, 0, 4*(Data_Pkg!$A30-1), 2401, 1)) * 1000 -> 43520 | U30: =MAX(OFFSET(P_HARD!$AG$13, 0, 4*(Data_Pkg!$A30-1), 2401, 1)) * 1000 -> 100050 | V30: =MIN(OFFSET(P_HARD!$AI$13, 0, 4*(Data_Pkg!$A30-1), 2401, 1)) * 1000 -> 38979 | W30: =MAX(OFFSET(P_HARD!$AK$13, 0, 4*(Data_Pkg!$A30-1), 2401, 1)) * 1000 -> 127670 | X30: =MIN(OFFSET(P_HARD!$AQ$13, 0, 4*(Data_Pkg!$A30-1), 2401, 1)) * 1000 -> 26350 | Y30: =MAX(OFFSET(P_HARD!$AS$13, 0, 4*(Data_Pkg!$A30-1), 2401, 1)) * 1000 -> 100050

Sheet LRG_FIG_21

Sheet LRG_FIG_22

Sheet LRG_FIG_23

Sheet LRG_FIG_24

Sheet LRG_FIG_25

Sheet LRG_FIG_26

Sheet LRG_FIG_27

Sheet PlotControl
A2: Model Name: | B2: Plant Site Version 6.0
A4: Plot: | B4: Annual Max | C4: =B2 & " Model " & IF(B4="Annual Max", "Annual Maximum", B4) & " of Concentration Statistics " & B6 & " in " & INDEX($B$15:$B$25,C8) & " at " & B8 -> Plant Site Version 6.0 Model Annual Maximum of Concentration Statistics Co in Mud Lake Creek at MLC-3 | V4: Directory to save PDFs to: | W4: C:\Users\jem4\Desktop\temp
C5: =B2 & " Model Monthly Concentration Statistics " & B6 & " in " & INDEX($B$15:$B$25,C8) & " at " & B8 -> Plant Site Version 6.0 Model Monthly Concentration Statistics Co in Mud Lake Creek at MLC-3 | V5: Figure caption | W5: Figure I-10-01.1
A6: Constituent to Plot (dropdown): | B6: Co | C6: =MATCH(B6,$A$28:$A$55,0) -> 11
A8: Location to Plot (dropdown): | B8: MLC-3 | C8: =MATCH(B8,$A$15:$A$25,0) -> 6
A10: Initial Time for Monthly Plot (yr): | B10: 180
B11: =B10+20 -> 200
A12: Standard | B12: =VLOOKUP($B$6,$A$28:$B$55,2,FALSE) -> 5
A14: Locations
A15: PM-12 | B15: the Embarrass River
A16: PM-12.2 | B16: the Embarrass River
A17: PM-12.3 | B17: the Embarrass River
A18: PM-12.4 | B18: the Embarrass River
A19: PM-13 | B19: the Embarrass River
A20: MLC-3 | B20: Mud Lake Creek
A21: MLC-2 | B21: Mud Lake Creek
A22: TC-1 | B22: Trimble Creek
A23: PM-19 | B23: Trimble Creek
A24: UC-1 | B24: Unnamed Creek
A25: PM-11 | B25: Unnamed Creek
I26: Annual Project Results | L26: Annual No-Action Results | O26: Standard | T26: Monthly Project Results | W26: Monthly No-Action Results
A27: Constituent | B27: Partridge Standard (ug/L) | C27: Colby Standard (ug/L) | D27: Hardness based (1 for yes, 0 for no) | E27: Hardness - A | F27: Hardness - B | H27: Time | I27: P10 | J27: P50 | K27: P90 | L27: P10 | M27: P50 | N27: P90 | O27: P10 | P27: P50 | Q27: P90 | S27: Time | T27: P10 | U27: P50 | V27: P90 | W27: P10 | X27: P50 | Y27: P90 | Z27: SW Standard
A28: Ag | B28: 1 | C28: 1 | D28: 0 | H28: 0 | I28: =IF($B$6="Hardness",VLOOKUP($H28,Ann_Hard!$A$5:$D$205,2),VLOOKUP($H28,P_All!$A$5:$AH$205,3*($C$8-1)+2)) -> 0.45868 | J28: =IF($B$6="Hardness",VLOOKUP($H28,Ann_Hard!$A$5:$D$205,3),VLOOKUP($H28,P_All!$A$5:$AH$205,3*($C$8-1)+3)) -> 1.0573 | K28: =IF($B$6="Hardness",VLOOKUP($H28,Ann_Hard!$A$5:$D$205,4),VLOOKUP($H28,P_All!$A$5:$AH$205,3*($C$8-1)+4)) -> 2.463 | L28: =IF($B$6="Hardness",VLOOKUP($H28,Ann_Hard!$A$5:$G$205,5),VLOOKUP($H28,NA_All!$A$5:$AH$205,3*($C$8-1)+2)) -> 1.3607 | M28: =IF($B$6="Hardness",VLOOKUP($H28,Ann_Hard!$A$5:$G$205,6),VLOOKUP($H28,NA_All!$A$5:$AH$205,3*($C$8-1)+3)) -> 1.3912 | N28: =IF($B$6="Hardness",VLOOKUP($H28,Ann_Hard!$A$5:$G$205,7),VLOOKUP($H28,NA_All!$A$5:$AH$205,3*($C$8-1)+4)) -> 2.1323 | O28: =IF(VLOOKUP($B$6,$A$28:$D$55,4,FALSE)=0,#N/A,IF($B$8="PM-13",#N/A,(EXP((VLOOKUP($B$6,$A$28:$F$55,5,FALSE)*LN(Ann_Hard!B5/1000)) + VLOOKUP($B$6,$A$28:$F$55,6,FALSE))))) ->  | P28: =IF(VLOOKUP($B$6,$A$28:$D$55,4,FALSE)=0,VLOOKUP($B$6,$A$28:$B$55,2,FALSE),IF($B$8="PM-13",(EXP((VLOOKUP($B$6,$A$28:$F$55,5,FALSE)*LN(95)) + VLOOKUP($B$6,$A$28:$F$55,6,FALSE))),#N/A)) -> 5 | Q28: =IF(VLOOKUP($B$6,$A$28:$D$55,4,FALSE)=0,#N/A,IF($B$8="PM-13",#N/A,(EXP((VLOOKUP($B$6,$A$28:$F$55,5,FALSE)*LN(Ann_Hard!D5/1000)) + VLOOKUP($B$6,$A$28:$F$55,6,FALSE))))) ->  | S28: =B10 -> 180 | T28: =VLOOKUP($S28,P_All!$AJ$5:$BQ$245,3*($C$8-1)+2) -> 0.39671 | U28: =VLOOKUP($S28,P_All!$AJ$5:$BQ$245,3*($C$8-1)+3) -> 0.815 | V28: =VLOOKUP($S28,P_All!$AJ$5:$BQ$245,3*($C$8-1)+4) -> 1.7514 | W28: =VLOOKUP($S28,NA_All!$AJ$5:$BQ$245,3*($C$8-1)+2) -> 0.67286 | X28: =VLOOKUP($S28,NA_All!$AJ$5:$BQ$245,3*($C$8-1)+3) -> 0.95879 | Y28: =VLOOKUP($S28,NA_All!$AJ$5:$BQ$245,3*($C$8-1)+4) -> 1.5927 | Z28: =IF(ISNA(VLOOKUP($B$6,$A$28:$E$55,IF($B$8=$A$25,3,2))),EXP(VLOOKUP($B$6,$A$28:$E$55,4)*LN(VLOOKUP($S28,#REF!,$C$8+1)/1000)+VLOOKUP($B$6,$A$28:$E$55,5)),VLOOKUP($B$6,$A$28:$E$55,IF($B$8=$A$25,3,2))) -> 5
A29: Al | B29: 125 | C29: 125 | D29: 0 | H29: 1 | I29: =IF($B$6="Hardness",VLOOKUP($H29,Ann_Hard!$A$5:$D$205,2),VLOOKUP($H29,P_All!$A$5:$AH$205,3*($C$8-1)+2)) -> 0.44741 | J29: =IF($B$6="Hardness",VLOOKUP($H29,Ann_Hard!$A$5:$D$205,3),VLOOKUP($H29,P_All!$A$5:$AH$205,3*($C$8-1)+3)) -> 1.0471 | K29: =IF($B$6="Hardness",VLOOKUP($H29,Ann_Hard!$A$5:$D$205,4),VLOOKUP($H29,P_All!$A$5:$AH$205,3*($C$8-1)+4)) -> 2.341 | L29: =IF($B$6="Hardness",VLOOKUP($H29,Ann_Hard!$A$5:$G$205,5),VLOOKUP($H29,NA_All!$A$5:$AH$205,3*($C$8-1)+2)) -> 1.3674 | M29: =IF($B$6="Hardness",VLOOKUP($H29,Ann_Hard!$A$5:$G$205,6),VLOOKUP($H29,NA_All!$A$5:$AH$205,3*($C$8-1)+3)) -> 1.3936 | N29: =IF($B$6="Hardness",VLOOKUP($H29,Ann_Hard!$A$5:$G$205,7),VLOOKUP($H29,NA_All!$A$5:$AH$205,3*($C$8-1)+4)) -> 2.002 | O29: =IF(VLOOKUP($B$6,$A$28:$D$55,4,FALSE)=0,#N/A,IF($B$8="PM-13",#N/A,(EXP((VLOOKUP($B$6,$A$28:$F$55,5,FALSE)*LN(Ann_Hard!B6/1000)) + VLOOKUP($B$6,$A$28:$F$55,6,FALSE))))) ->  | P29: =IF(VLOOKUP($B$6,$A$28:$D$55,4,FALSE)=0,VLOOKUP($B$6,$A$28:$B$55,2,FALSE),IF($B$8="PM-13",(EXP((VLOOKUP($B$6,$A$28:$F$55,5,FALSE)*LN(95)) + VLOOKUP($B$6,$A$28:$F$55,6,FALSE))),#N/A)) -> 5 | Q29: =IF(VLOOKUP($B$6,$A$28:$D$55,4,FALSE)=0,#N/A,IF($B$8="PM-13",#N/A,(EXP((VLOOKUP($B$6,$A$28:$F$55,5,FALSE)*LN(Ann_Hard!D6/1000)) + VLOOKUP($B$6,$A$28:$F$55,6,FALSE))))) ->  | S29: =S28+1/12 -> 180.0833333 | T29: =VLOOKUP($S29,P_All!$AJ$5:$BQ$245,3*($C$8-1)+2) -> 0.34103 | U29: =VLOOKUP($S29,P_All!$AJ$5:$BQ$245,3*($C$8-1)+3) -> 0.64042 | V29: =VLOOKUP($S29,P_All!$AJ$5:$BQ$245,3*($C$8-1)+4) -> 1.3189 | W29: =VLOOKUP($S29,NA_All!$AJ$5:$BQ$245,3*($C$8-1)+2) -> 0.65446 | X29: =VLOOKUP($S29,NA_All!$AJ$5:$BQ$245,3*($C$8-1)+3) -> 0.92734 | Y29: =VLOOKUP($S29,NA_All!$AJ$5:$BQ$245,3*($C$8-1)+4) -> 1.5724 | Z29: =IF(ISNA(VLOOKUP($B$6,$A$28:$E$55,IF($B$8=$A$25,3,2))),EXP(VLOOKUP($B$6,$A$28:$E$55,4)*LN(VLOOKUP($S29,#REF!,$C$8+1)/1000)+VLOOKUP($B$6,$A$28:$E$55,5)),VLOOKUP($B$6,$A$28:$E$55,IF($B$8=$A$25,3,2))) -> 5
A30: Alkalinity | D30: 0 | H30: 2 | I30: =IF($B$6="Hardness",VLOOKUP($H30,Ann_Hard!$A$5:$D$205,2),VLOOKUP($H30,P_All!$A$5:$AH$205,3*($C$8-1)+2)) -> 0.44197 | J30: =IF($B$6="Hardness",VLOOKUP($H30,Ann_Hard!$A$5:$D$205,3),VLOOKUP($H30,P_All!$A$5:$AH$205,3*($C$8-1)+3)) -> 1.0375 | K30: =IF($B$6="Hardness",VLOOKUP($H30,Ann_Hard!$A$5:$D$205,4),VLOOKUP($H30,P_All!$A$5:$AH$205,3*($C$8-1)+4)) -> 2.6828 | L30: =IF($B$6="Hardness",VLOOKUP($H30,Ann_Hard!$A$5:$G$205,5),VLOOKUP($H30,NA_All!$A$5:$AH$205,3*($C$8-1)+2)) -> 1.3668 | M30: =IF($B$6="Hardness",VLOOKUP($H30,Ann_Hard!$A$5:$G$205,6),VLOOKUP($H30,NA_All!$A$5:$AH$205,3*($C$8-1)+3)) -> 1.3937 | N30: =IF($B$6="Hardness",VLOOKUP($H30,Ann_Hard!$A$5:$G$205,7),VLOOKUP($H30,NA_All!$A$5:$AH$205,3*($C$8-1)+4)) -> 2.2828 | O30: =IF(VLOOKUP($B$6,$A$28:$D$55,4,FALSE)=0,#N/A,IF($B$8="PM-13",#N/A,(EXP((VLOOKUP($B$6,$A$28:$F$55,5,FALSE)*LN(Ann_Hard!B7/1000)) + VLOOKUP($B$6,$A$28:$F$55,6,FALSE))))) ->  | P30: 5 | Q30: =IF(VLOOKUP($B$6,$A$28:$D$55,4,FALSE)=0,#N/A,IF($B$8="PM-13",#N/A,(EXP((VLOOKUP($B$6,$A$28:$F$55,5,FALSE)*LN(Ann_Hard!D7/1000)) + VLOOKUP($B$6,$A$28:$F$55,6,FALSE))))) ->  | S30: =S29+1/12 -> 180.1666667 | T30: =VLOOKUP($S30,P_All!$AJ$5:$BQ$245,3*($C$8-1)+2) -> 0.29525 | U30: =VLOOKUP($S30,P_All!$AJ$5:$BQ$245,3*($C$8-1)+3) -> 0.52662 | V30: =VLOOKUP($S30,P_All!$AJ$5:$BQ$245,3*($C$8-1)+4) -> 1.0391 | W30: =VLOOKUP($S30,NA_All!$AJ$5:$BQ$245,3*($C$8-1)+2) -> 0.65208 | X30: =VLOOKUP($S30,NA_All!$AJ$5:$BQ$245,3*($C$8-1)+3) -> 0.92635 | Y30: =VLOOKUP($S30,NA_All!$AJ$5:$BQ$245,3*($C$8-1)+4) -> 1.601 | Z30: =IF(ISNA(VLOOKUP($B$6,$A$28:$E$55,IF($B$8=$A$25,3,2))),EXP(VLOOKUP($B$6,$A$28:$E$55,4)*LN(VLOOKUP($S30,#REF!,$C$8+1)/1000)+VLOOKUP($B$6,$A$28:$E$55,5)),VLOOKUP($B$6,$A$28:$E$55,IF($B$8=$A$25,3,2))) -> 5
A31: As | B31: 53 | C31: 2 | D31: 0 | H31: 3 | I31: =IF($B$6="Hardness",VLOOKUP($H31,Ann_Hard!$A$5:$D$205,2),VLOOKUP($H31,P_All!$A$5:$AH$205,3*($C$8-1)+2)) -> 0.45495 | J31: =IF($B$6="Hardness",VLOOKUP($H31,Ann_Hard!$A$5:$D$205,3),VLOOKUP($H31,P_All!$A$5:$AH$205,3*($C$8-1)+3)) -> 1.0198 | K31: =IF($B$6="Hardness",VLOOKUP($H31,Ann_Hard!$A$5:$D$205,4),VLOOKUP($H31,P_All!$A$5:$AH$205,3*($C$8-1)+4)) -> 2.3561 | L31: =IF($B$6="Hardness",VLOOKUP($H31,Ann_Hard!$A$5:$G$205,5),VLOOKUP($H31,NA_All!$A$5:$AH$205,3*($C$8-1)+2)) -> 1.3612 | M31: =IF($B$6="Hardness",VLOOKUP($H31,Ann_Hard!$A$5:$G$205,6),VLOOKUP($H31,NA_All!$A$5:$AH$205,3*($C$8-1)+3)) -> 1.3925 | N31: =IF($B$6="Hardness",VLOOKUP($H31,Ann_Hard!$A$5:$G$205,7),VLOOKUP($H31,NA_All!$A$5:$AH$205,3*($C$8-1)+4)) -> 2.0397 | O31: =IF(VLOOKUP($B$6,$A$28:$D$55,4,FALSE)=0,#N/A,IF($B$8="PM-13",#N/A,(EXP((VLOOKUP($B$6,$A$28:$F$55,5,FALSE)*LN(Ann_Hard!B8/1000)) + VLOOKUP($B$6,$A$28:$F$55,6,FALSE))))) ->  | P31: 5 | Q31: =IF(VLOOKUP($B$6,$A$28:$D$55,4,FALSE)=0,#N/A,IF($B$8="PM-13",#N/A,(EXP((VLOOKUP($B$6,$A$28:$F$55,5,FALSE)*LN(Ann_Hard!D8/1000)) + VLOOKUP($B$6,$A$28:$F$55,6,FALSE))))) ->  | S31: 180.25 | T31: =VLOOKUP($S31,P_All!$AJ$5:$BQ$245,3*($C$8-1)+2) -> 0.27155 | U31: =VLOOKUP($S31,P_All!$AJ$5:$BQ$245,3*($C$8-1)+3) -> 0.49504 | V31: =VLOOKUP($S31,P_All!$AJ$5:$BQ$245,3*($C$8-1)+4) -> 1.3023 | W31: =VLOOKUP($S31,NA_All!$AJ$5:$BQ$245,3*($C$8-1)+2) -> 0.65289 | X31: =VLOOKUP($S31,NA_All!$AJ$5:$BQ$245,3*($C$8-1)+3) -> 0.94735 | Y31: =VLOOKUP($S31,NA_All!$AJ$5:$BQ$245,3*($C$8-1)+4) -> 1.6407 | Z31: =IF(ISNA(VLOOKUP($B$6,$A$28:$E$55,IF($B$8=$A$25,3,2))),EXP(VLOOKUP($B$6,$A$28:$E$55,4)*LN(VLOOKUP($S31,#REF!,$C$8+1)/1000)+VLOOKUP($B$6,$A$28:$E$55,5)),VLOOKUP($B$6,$A$28:$E$55,IF($B$8=$A$25,3,2))) -> 5
A32: B | B32: 500 | C32: 500 | D32: 0 | H32: 4 | I32: =IF($B$6="Hardness",VLOOKUP($H32,Ann_Hard!$A$5:$D$205,2),VLOOKUP($H32,P_All!$A$5:$AH$205,3*($C$8-1)+2)) -> 0.42389 | J32: =IF($B$6="Hardness",VLOOKUP($H32,Ann_Hard!$A$5:$D$205,3),VLOOKUP($H32,P_All!$A$5:$AH$205,3*($C$8-1)+3)) -> 1.0077 | K32: =IF($B$6="Hardness",VLOOKUP($H32,Ann_Hard!$A$5:$D$205,4),VLOOKUP($H32,P_All!$A$5:$AH$205,3*($C$8-1)+4)) -> 2.6459 | L32: =IF($B$6="Hardness",VLOOKUP($H32,Ann_Hard!$A$5:$G$205,5),VLOOKUP($H32,NA_All!$A$5:$AH$205,3*($C$8-1)+2)) -> 1.3451 | M32: =IF($B$6="Hardness",VLOOKUP($H32,Ann_Hard!$A$5:$G$205,6),VLOOKUP($H32,NA_All!$A$5:$AH$205,3*($C$8-1)+3)) -> 1.3795 | N32: =IF($B$6="Hardness",VLOOKUP($H32,Ann_Hard!$A$5:$G$205,7),VLOOKUP($H32,NA_All!$A$5:$AH$205,3*($C$8-1)+4)) -> 2.2654 | O32: =IF(VLOOKUP($B$6,$A$28:$D$55,4,FALSE)=0,#N/A,IF($B$8="PM-13",#N/A,(EXP((VLOOKUP($B$6,$A$28:$F$55,5,FALSE)*LN(Ann_Hard!B9/1000)) + VLOOKUP($B$6,$A$28:$F$55,6,FALSE))))) ->  | P32: 5 | Q32: =IF(VLOOKUP($B$6,$A$28:$D$55,4,FALSE)=0,#N/A,IF($B$8="PM-13",#N/A,(EXP((VLOOKUP($B$6,$A$28:$F$55,5,FALSE)*LN(Ann_Hard!D9/1000)) + VLOOKUP($B$6,$A$28:$F$55,6,FALSE))))) ->  | S32: 180.3333333 | T32: =VLOOKUP($S32,P_All!$AJ$5:$BQ$245,3*($C$8-1)+2) -> 0.37382 | U32: =VLOOKUP($S32,P_All!$AJ$5:$BQ$245,3*($C$8-1)+3) -> 0.96339 | V32: =VLOOKUP($S32,P_All!$AJ$5:$BQ$245,3*($C$8-1)+4) -> 2.2423 | W32: =VLOOKUP($S32,NA_All!$AJ$5:$BQ$245,3*($C$8-1)+2) -> 0.55847 | X32: =VLOOKUP($S32,NA_All!$AJ$5:$BQ$245,3*($C$8-1)+3) -> 1.0188 | Y32: =VLOOKUP($S32,NA_All!$AJ$5:$BQ$245,3*($C$8-1)+4) -> 1.9319 | Z32: =IF(ISNA(VLOOKUP($B$6,$A$28:$E$55,IF($B$8=$A$25,3,2))),EXP(VLOOKUP($B$6,$A$28:$E$55,4)*LN(VLOOKUP($S32,#REF!,$C$8+1)/1000)+VLOOKUP($B$6,$A$28:$E$55,5)),VLOOKUP($B$6,$A$28:$E$55,IF($B$8=$A$25,3,2))) -> 5
A33: Ba | C33: 2000 | D33: 0 | H33: 5 | I33: =IF($B$6="Hardness",VLOOKUP($H33,Ann_Hard!$A$5:$D$205,2),VLOOKUP($H33,P_All!$A$5:$AH$205,3*($C$8-1)+2)) -> 0.47645 | J33: =IF($B$6="Hardness",VLOOKUP($H33,Ann_Hard!$A$5:$D$205,3),VLOOKUP($H33,P_All!$A$5:$AH$205,3*($C$8-1)+3)) -> 1.0604 | K33: =IF($B$6="Hardness",VLOOKUP($H33,Ann_Hard!$A$5:$D$205,4),VLOOKUP($H33,P_All!$A$5:$AH$205,3*($C$8-1)+4)) -> 2.4626 | L33: =IF($B$6="Hardness",VLOOKUP($H33,Ann_Hard!$A$5:$G$205,5),VLOOKUP($H33,NA_All!$A$5:$AH$205,3*($C$8-1)+2)) -> 1.3146 | M33: =IF($B$6="Hardness",VLOOKUP($H33,Ann_Hard!$A$5:$G$205,6),VLOOKUP($H33,NA_All!$A$5:$AH$205,3*($C$8-1)+3)) -> 1.3548 | N33: =IF($B$6="Hardness",VLOOKUP($H33,Ann_Hard!$A$5:$G$205,7),VLOOKUP($H33,NA_All!$A$5:$AH$205,3*($C$8-1)+4)) -> 2.2047 | O33: =IF(VLOOKUP($B$6,$A$28:$D$55,4,FALSE)=0,#N/A,IF($B$8="PM-13",#N/A,(EXP((VLOOKUP($B$6,$A$28:$F$55,5,FALSE)*LN(Ann_Hard!B10/1000)) + VLOOKUP($B$6,$A$28:$F$55,6,FALSE))))) ->  | P33: 5 | Q33: =IF(VLOOKUP($B$6,$A$28:$D$55,4,FALSE)=0,#N/A,IF($B$8="PM-13",#N/A,(EXP((VLOOKUP($B$6,$A$28:$F$55,5,FALSE)*LN(Ann_Hard!D10/1000)) + VLOOKUP($B$6,$A$28:$F$55,6,FALSE))))) ->  | S33: 180.4166667 | T33: =VLOOKUP($S33,P_All!$AJ$5:$BQ$245,3*($C$8-1)+2) -> 0.45677 | U33: =VLOOKUP($S33,P_All!$AJ$5:$BQ$245,3*($C$8-1)+3) -> 1.0676 | V33: =VLOOKUP($S33,P_All!$AJ$5:$BQ$245,3*($C$8-1)+4) -> 2.5843 | W33: =VLOOKUP($S33,NA_All!$AJ$5:$BQ$245,3*($C$8-1)+2) -> 0.58526 | X33: =VLOOKUP($S33,NA_All!$AJ$5:$BQ$245,3*($C$8-1)+3) -> 1.0665 | Y33: =VLOOKUP($S33,NA_All!$AJ$5:$BQ$245,3*($C$8-1)+4) -> 2.1154 | Z33: =IF(ISNA(VLOOKUP($B$6,$A$28:$E$55,IF($B$8=$A$25,3,2))),EXP(VLOOKUP($B$6,$A$28:$E$55,4)*LN(VLOOKUP($S33,#REF!,$C$8+1)/1000)+VLOOKUP($B$6,$A$28:$E$55,5)),VLOOKUP($B$6,$A$28:$E$55,IF($B$8=$A$25,3,2))) -> 5
A34: Be | C34: 4 | D34: 0 | H34: 6 | I34: =IF($B$6="Hardness",VLOOKUP($H34,Ann_Hard!$A$5:$D$205,2),VLOOKUP($H34,P_All!$A$5:$AH$205,3*($C$8-1)+2)) -> 0.45496 | J34: =IF($B$6="Hardness",VLOOKUP($H34,Ann_Hard!$A$5:$D$205,3),VLOOKUP($H34,P_All!$A$5:$AH$205,3*($C$8-1)+3)) -> 1.0544 | K34: =IF($B$6="Hardness",VLOOKUP($H34,Ann_Hard!$A$5:$D$205,4),VLOOKUP($H34,P_All!$A$5:$AH$205,3*($C$8-1)+4)) -> 2.5529 | L34: =IF($B$6="Hardness",VLOOKUP($H34,Ann_Hard!$A$5:$G$205,5),VLOOKUP($H34,NA_All!$A$5:$AH$205,3*($C$8-1)+2)) -> 1.2748 | M34: =IF($B$6="Hardness",VLOOKUP($H34,Ann_Hard!$A$5:$G$205,6),VLOOKUP($H34,NA_All!$A$5:$AH$205,3*($C$8-1)+3)) -> 1.3417 | N34: =IF($B$6="Hardness",VLOOKUP($H34,Ann_Hard!$A$5:$G$205,7),VLOOKUP($H34,NA_All!$A$5:$AH$205,3*($C$8-1)+4)) -> 2.1251 | O34: =IF(VLOOKUP($B$6,$A$28:$D$55,4,FALSE)=0,#N/A,IF($B$8="PM-13",#N/A,(EXP((VLOOKUP($B$6,$A$28:$F$55,5,FALSE)*LN(Ann_Hard!B11/1000)) + VLOOKUP($B$6,$A$28:$F$55,6,FALSE))))) ->  | P34: 5 | Q34: =IF(VLOOKUP($B$6,$A$28:$D$55,4,FALSE)=0,#N/A,IF($B$8="PM-13",#N/A,(EXP((VLOOKUP($B$6,$A$28:$F$55,5,FALSE)*LN(Ann_Hard!D11/1000)) + VLOOKUP($B$6,$A$28:$F$55,6,FALSE))))) ->  | S34: 180.5 | T34: =VLOOKUP($S34,P_All!$AJ$5:$BQ$245,3*($C$8-1)+2) -> 0.45228 | U34: =VLOOKUP($S34,P_All!$AJ$5:$BQ$245,3*($C$8-1)+3) -> 1.0509 | V34: =VLOOKUP($S34,P_All!$AJ$5:$BQ$245,3*($C$8-1)+4) -> 2.4909 | W34: =VLOOKUP($S34,NA_All!$AJ$5:$BQ$245,3*($C$8-1)+2) -> 0.6359 | X34: =VLOOKUP($S34,NA_All!$AJ$5:$BQ$245,3*($C$8-1)+3) -> 1.0407 | Y34: =VLOOKUP($S34,NA_All!$AJ$5:$BQ$245,3*($C$8-1)+4) -> 2.0648 | Z34: =IF(ISNA(VLOOKUP($B$6,$A$28:$E$55,IF($B$8=$A$25,3,2))),EXP(VLOOKUP($B$6,$A$28:$E$55,4)*LN(VLOOKUP($S34,#REF!,$C$8+1)/1000)+VLOOKUP($B$6,$A$28:$E$55,5)),VLOOKUP($B$6,$A$28:$E$55,IF($B$8=$A$25,3,2))) -> 5
A35: Ca | D35: 0 | H35: 7 | I35: =IF($B$6="Hardness",VLOOKUP($H35,Ann_Hard!$A$5:$D$205,2),VLOOKUP($H35,P_All!$A$5:$AH$205,3*($C$8-1)+2)) -> 0.4463 | J35: =IF($B$6="Hardness",VLOOKUP($H35,Ann_Hard!$A$5:$D$205,3),VLOOKUP($H35,P_All!$A$5:$AH$205,3*($C$8-1)+3)) -> 1.0723 | K35: =IF($B$6="Hardness",VLOOKUP($H35,Ann_Hard!$A$5:$D$205,4),VLOOKUP($H35,P_All!$A$5:$AH$205,3*($C$8-1)+4)) -> 2.533 | L35: =IF($B$6="Hardness",VLOOKUP($H35,Ann_Hard!$A$5:$G$205,5),VLOOKUP($H35,NA_All!$A$5:$AH$205,3*($C$8-1)+2)) -> 1.2461 | M35: =IF($B$6="Hardness",VLOOKUP($H35,Ann_Hard!$A$5:$G$205,6),VLOOKUP($H35,NA_All!$A$5:$AH$205,3*($C$8-1)+3)) -> 1.3333 | N35: =IF($B$6="Hardness",VLOOKUP($H35,Ann_Hard!$A$5:$G$205,7),VLOOKUP($H35,NA_All!$A$5:$AH$205,3*($C$8-1)+4)) -> 2.1757 | O35: =IF(VLOOKUP($B$6,$A$28:$D$55,4,FALSE)=0,#N/A,IF($B$8="PM-13",#N/A,(EXP((VLOOKUP($B$6,$A$28:$F$55,5,FALSE)*LN(Ann_Hard!B12/1000)) + VLOOKUP($B$6,$A$28:$F$55,6,FALSE))))) ->  | P35: 5 | Q35: =IF(VLOOKUP($B$6,$A$28:$D$55,4,FALSE)=0,#N/A,IF($B$8="PM-13",#N/A,(EXP((VLOOKUP($B$6,$A$28:$F$55,5,FALSE)*LN(Ann_Hard!D12/1000)) + VLOOKUP($B$6,$A$28:$F$55,6,FALSE))))) ->  | S35: 180.5833333 | T35: =VLOOKUP($S35,P_All!$AJ$5:$BQ$245,3*($C$8-1)+2) -> 0.41468 | U35: =VLOOKUP($S35,P_All!$AJ$5:$BQ$245,3*($C$8-1)+3) -> 0.88484 | V35: =VLOOKUP($S35,P_All!$AJ$5:$BQ$245,3*($C$8-1)+4) -> 2.1194 | W35: =VLOOKUP($S35,NA_All!$AJ$5:$BQ$245,3*($C$8-1)+2) -> 0.63681 | X35: =VLOOKUP($S35,NA_All!$AJ$5:$BQ$245,3*($C$8-1)+3) -> 0.96975 | Y35: =VLOOKUP($S35,NA_All!$AJ$5:$BQ$245,3*($C$8-1)+4) -> 1.7162 | Z35: =IF(ISNA(VLOOKUP($B$6,$A$28:$E$55,IF($B$8=$A$25,3,2))),EXP(VLOOKUP($B$6,$A$28:$E$55,4)*LN(VLOOKUP($S35,#REF!,$C$8+1)/1000)+VLOOKUP($B$6,$A$28:$E$55,5)),VLOOKUP($B$6,$A$28:$E$55,IF($B$8=$A$25,3,2))) -> 5
A36: Cd | C36: 5 | D36: 1 | E36: 0.7852 | F36: -2.715 | H36: 8 | I36: =IF($B$6="Hardness",VLOOKUP($H36,Ann_Hard!$A$5:$D$205,2),VLOOKUP($H36,P_All!$A$5:$AH$205,3*($C$8-1)+2)) -> 0.44583 | J36: =IF($B$6="Hardness",VLOOKUP($H36,Ann_Hard!$A$5:$D$205,3),VLOOKUP($H36,P_All!$A$5:$AH$205,3*($C$8-1)+3)) -> 1.0484 | K36: =IF($B$6="Hardness",VLOOKUP($H36,Ann_Hard!$A$5:$D$205,4),VLOOKUP($H36,P_All!$A$5:$AH$205,3*($C$8-1)+4)) -> 2.4602 | L36: =IF($B$6="Hardness",VLOOKUP($H36,Ann_Hard!$A$5:$G$205,5),VLOOKUP($H36,NA_All!$A$5:$AH$205,3*($C$8-1)+2)) -> 1.2109 | M36: =IF($B$6="Hardness",VLOOKUP($H36,Ann_Hard!$A$5:$G$205,6),VLOOKUP($H36,NA_All!$A$5:$AH$205,3*($C$8-1)+3)) -> 1.3308 | N36: =IF($B$6="Hardness",VLOOKUP($H36,Ann_Hard!$A$5:$G$205,7),VLOOKUP($H36,NA_All!$A$5:$AH$205,3*($C$8-1)+4)) -> 2.1195 | O36: =IF(VLOOKUP($B$6,$A$28:$D$55,4,FALSE)=0,#N/A,IF($B$8="PM-13",#N/A,(EXP((VLOOKUP($B$6,$A$28:$F$55,5,FALSE)*LN(Ann_Hard!B13/1000)) + VLOOKUP($B$6,$A$28:$F$55,6,FALSE))))) ->  | P36: 5 | Q36: =IF(VLOOKUP($B$6,$A$28:$D$55,4,FALSE)=0,#N/A,IF($B$8="PM-13",#N/A,(EXP((VLOOKUP($B$6,$A$28:$F$55,5,FALSE)*LN(Ann_Hard!D13/1000)) + VLOOKUP($B$6,$A$28:$F$55,6,FALSE))))) ->  | S36: 180.6666667 | T36: =VLOOKUP($S36,P_All!$AJ$5:$BQ$245,3*($C$8-1)+2) -> 0.38279 | U36: =VLOOKUP($S36,P_All!$AJ$5:$BQ$245,3*($C$8-1)+3) -> 0.82521 | V36: =VLOOKUP($S36,P_All!$AJ$5:$BQ$245,3*($C$8-1)+4) -> 1.8524 | W36: =VLOOKUP($S36,NA_All!$AJ$5:$BQ$245,3*($C$8-1)+2) -> 0.64411 | X36: =VLOOKUP($S36,NA_All!$AJ$5:$BQ$245,3*($C$8-1)+3) -> 0.94691 | Y36: =VLOOKUP($S36,NA_All!$AJ$5:$BQ$245,3*($C$8-1)+4) -> 1.6082 | Z36: =IF(ISNA(VLOOKUP($B$6,$A$28:$E$55,IF($B$8=$A$25,3,2))),EXP(VLOOKUP($B$6,$A$28:$E$55,4)*LN(VLOOKUP($S36,#REF!,$C$8+1)/1000)+VLOOKUP($B$6,$A$28:$E$55,5)),VLOOKUP($B$6,$A$28:$E$55,IF($B$8=$A$25,3,2))) -> 5
A37: Cl | B37: 230000 | C37: 230000 | D37: 0 | H37: 9 | I37: =IF($B$6="Hardness",VLOOKUP($H37,Ann_Hard!$A$5:$D$205,2),VLOOKUP($H37,P_All!$A$5:$AH$205,3*($C$8-1)+2)) -> 0.45541 | J37: =IF($B$6="Hardness",VLOOKUP($H37,Ann_Hard!$A$5:$D$205,3),VLOOKUP($H37,P_All!$A$5:$AH$205,3*($C$8-1)+3)) -> 1.0861 | K37: =IF($B$6="Hardness",VLOOKUP($H37,Ann_Hard!$A$5:$D$205,4),VLOOKUP($H37,P_All!$A$5:$AH$205,3*($C$8-1)+4)) -> 2.4124 | L37: =IF($B$6="Hardness",VLOOKUP($H37,Ann_Hard!$A$5:$G$205,5),VLOOKUP($H37,NA_All!$A$5:$AH$205,3*($C$8-1)+2)) -> 1.2007 | M37: =IF($B$6="Hardness",VLOOKUP($H37,Ann_Hard!$A$5:$G$205,6),VLOOKUP($H37,NA_All!$A$5:$AH$205,3*($C$8-1)+3)) -> 1.3289 | N37: =IF($B$6="Hardness",VLOOKUP($H37,Ann_Hard!$A$5:$G$205,7),VLOOKUP($H37,NA_All!$A$5:$AH$205,3*($C$8-1)+4)) -> 2.0612 | O37: =IF(VLOOKUP($B$6,$A$28:$D$55,4,FALSE)=0,#N/A,IF($B$8="PM-13",#N/A,(EXP((VLOOKUP($B$6,$A$28:$F$55,5,FALSE)*LN(Ann_Hard!B14/1000)) + VLOOKUP($B$6,$A$28:$F$55,6,FALSE))))) ->  | P37: 5 | Q37: =IF(VLOOKUP($B$6,$A$28:$D$55,4,FALSE)=0,#N/A,IF($B$8="PM-13",#N/A,(EXP((VLOOKUP($B$6,$A$28:$F$55,5,FALSE)*LN(Ann_Hard!D14/1000)) + VLOOKUP($B$6,$A$28:$F$55,6,FALSE))))) ->  | S37: 180.75 | T37: =VLOOKUP($S37,P_All!$AJ$5:$BQ$245,3*($C$8-1)+2) -> 0.39635 | U37: =VLOOKUP($S37,P_All!$AJ$5:$BQ$245,3*($C$8-1)+3) -> 0.81757 | V37: =VLOOKUP($S37,P_All!$AJ$5:$BQ$245,3*($C$8-1)+4) -> 2.0709 | W37: =VLOOKUP($S37,NA_All!$AJ$5:$BQ$245,3*($C$8-1)+2) -> 0.63498 | X37: =VLOOKUP($S37,NA_All!$AJ$5:$BQ$245,3*($C$8-1)+3) -> 0.95614 | Y37: =VLOOKUP($S37,NA_All!$AJ$5:$BQ$245,3*($C$8-1)+4) -> 1.7046 | Z37: =IF(ISNA(VLOOKUP($B$6,$A$28:$E$55,IF($B$8=$A$25,3,2))),EXP(VLOOKUP($B$6,$A$28:$E$55,4)*LN(VLOOKUP($S37,#REF!,$C$8+1)/1000)+VLOOKUP($B$6,$A$28:$E$55,5)),VLOOKUP($B$6,$A$28:$E$55,IF($B$8=$A$25,3,2))) -> 5
A38: Co | B38: 5 | C38: 2.8 | D38: 0 | H38: 10 | I38: =IF($B$6="Hardness",VLOOKUP($H38,Ann_Hard!$A$5:$D$205,2),VLOOKUP($H38,P_All!$A$5:$AH$205,3*($C$8-1)+2)) -> 0.4521 | J38: =IF($B$6="Hardness",VLOOKUP($H38,Ann_Hard!$A$5:$D$205,3),VLOOKUP($H38,P_All!$A$5:$AH$205,3*($C$8-1)+3)) -> 1.0463 | K38: =IF($B$6="Hardness",VLOOKUP($H38,Ann_Hard!$A$5:$D$205,4),VLOOKUP($H38,P_All!$A$5:$AH$205,3*($C$8-1)+4)) -> 2.3636 | L38: =IF($B$6="Hardness",VLOOKUP($H38,Ann_Hard!$A$5:$G$205,5),VLOOKUP($H38,NA_All!$A$5:$AH$205,3*($C$8-1)+2)) -> 1.1844 | M38: =IF($B$6="Hardness",VLOOKUP($H38,Ann_Hard!$A$5:$G$205,6),VLOOKUP($H38,NA_All!$A$5:$AH$205,3*($C$8-1)+3)) -> 1.3135 | N38: =IF($B$6="Hardness",VLOOKUP($H38,Ann_Hard!$A$5:$G$205,7),VLOOKUP($H38,NA_All!$A$5:$AH$205,3*($C$8-1)+4)) -> 2.1045 | O38: =IF(VLOOKUP($B$6,$A$28:$D$55,4,FALSE)=0,#N/A,IF($B$8="PM-13",#N/A,(EXP((VLOOKUP($B$6,$A$28:$F$55,5,FALSE)*LN(Ann_Hard!B15/1000)) + VLOOKUP($B$6,$A$28:$F$55,6,FALSE))))) ->  | P38: 5 | Q38: =IF(VLOOKUP($B$6,$A$28:$D$55,4,FALSE)=0,#N/A,IF($B$8="PM-13",#N/A,(EXP((VLOOKUP($B$6,$A$28:$F$55,5,FALSE)*LN(Ann_Hard!D15/1000)) + VLOOKUP($B$6,$A$28:$F$55,6,FALSE))))) ->  | S38: 180.8333333 | T38: =VLOOKUP($S38,P_All!$AJ$5:$BQ$245,3*($C$8-1)+2) -> 0.41613 | U38: =VLOOKUP($S38,P_All!$AJ$5:$BQ$245,3*($C$8-1)+3) -> 0.86935 | V38: =VLOOKUP($S38,P_All!$AJ$5:$BQ$245,3*($C$8-1)+4) -> 1.9002 | W38: =VLOOKUP($S38,NA_All!$AJ$5:$BQ$245,3*($C$8-1)+2) -> 0.64272 | X38: =VLOOKUP($S38,NA_All!$AJ$5:$BQ$245,3*($C$8-1)+3) -> 0.97211 | Y38: =VLOOKUP($S38,NA_All!$AJ$5:$BQ$245,3*($C$8-1)+4) -> 1.625 | Z38: =IF(ISNA(VLOOKUP($B$6,$A$28:$E$55,IF($B$8=$A$25,3,2))),EXP(VLOOKUP($B$6,$A$28:$E$55,4)*LN(VLOOKUP($S38,#REF!,$C$8+1)/1000)+VLOOKUP($B$6,$A$28:$E$55,5)),VLOOKUP($B$6,$A$28:$E$55,IF($B$8=$A$25,3,2))) -> 5
A39: Cr | B39: 11 | C39: 11 | D39: 0 | H39: 11 | I39: =IF($B$6="Hardness",VLOOKUP($H39,Ann_Hard!$A$5:$D$205,2),VLOOKUP($H39,P_All!$A$5:$AH$205,3*($C$8-1)+2)) -> 0.43911 | J39: =IF($B$6="Hardness",VLOOKUP($H39,Ann_Hard!$A$5:$D$205,3),VLOOKUP($H39,P_All!$A$5:$AH$205,3*($C$8-1)+3)) -> 1.0551 | K39: =IF($B$6="Hardness",VLOOKUP($H39,Ann_Hard!$A$5:$D$205,4),VLOOKUP($H39,P_All!$A$5:$AH$205,3*($C$8-1)+4)) -> 2.4309 | L39: =IF($B$6="Hardness",VLOOKUP($H39,Ann_Hard!$A$5:$G$205,5),VLOOKUP($H39,NA_All!$A$5:$AH$205,3*($C$8-1)+2)) -> 1.1718 | M39: =IF($B$6="Hardness",VLOOKUP($H39,Ann_Hard!$A$5:$G$205,6),VLOOKUP($H39,NA_All!$A$5:$AH$205,3*($C$8-1)+3)) -> 1.3081 | N39: =IF($B$6="Hardness",VLOOKUP($H39,Ann_Hard!$A$5:$G$205,7),VLOOKUP($H39,NA_All!$A$5:$AH$205,3*($C$8-1)+4)) -> 2.119 | O39: =IF(VLOOKUP($B$6,$A$28:$D$55,4,FALSE)=0,#N/A,IF($B$8="PM-13",#N/A,(EXP((VLOOKUP($B$6,$A$28:$F$55,5,FALSE)*LN(Ann_Hard!B16/1000)) + VLOOKUP($B$6,$A$28:$F$55,6,FALSE))))) ->  | P39: 5 | Q39: =IF(VLOOKUP($B$6,$A$28:$D$55,4,FALSE)=0,#N/A,IF($B$8="PM-13",#N/A,(EXP((VLOOKUP($B$6,$A$28:$F$55,5,FALSE)*LN(Ann_Hard!D16/1000)) + VLOOKUP($B$6,$A$28:$F$55,6,FALSE))))) ->  | S39: 180.9166667 | T39: =VLOOKUP($S39,P_All!$AJ$5:$BQ$245,3*($C$8-1)+2) -> 0.43978 | U39: =VLOOKUP($S39,P_All!$AJ$5:$BQ$245,3*($C$8-1)+3) -> 0.91991 | V39: =VLOOKUP($S39,P_All!$AJ$5:$BQ$245,3*($C$8-1)+4) -> 2.1979 | W39: =VLOOKUP($S39,NA_All!$AJ$5:$BQ$245,3*($C$8-1)+2) -> 0.67166 | X39: =VLOOKUP($S39,NA_All!$AJ$5:$BQ$245,3*($C$8-1)+3) -> 1.0113 | Y39: =VLOOKUP($S39,NA_All!$AJ$5:$BQ$245,3*($C$8-1)+4) -> 1.7145 | Z39: =IF(ISNA(VLOOKUP($B$6,$A$28:$E$55,IF($B$8=$A$25,3,2))),EXP(VLOOKUP($B$6,$A$28:$E$55,4)*LN(VLOOKUP($S39,#REF!,$C$8+1)/1000)+VLOOKUP($B$6,$A$28:$E$55,5)),VLOOKUP($B$6,$A$28:$E$55,IF($B$8=$A$25,3,2))) -> 5
A40: Cu | D40: 1 | E40: 0.8545 | F40: -1.702 | H40: 12 | I40: =IF($B$6="Hardness",VLOOKUP($H40,Ann_Hard!$A$5:$D$205,2),VLOOKUP($H40,P_All!$A$5:$AH$205,3*($C$8-1)+2)) -> 0.46941 | J40: =IF($B$6="Hardness",VLOOKUP($H40,Ann_Hard!$A$5:$D$205,3),VLOOKUP($H40,P_All!$A$5:$AH$205,3*($C$8-1)+3)) -> 1.054 | K40: =IF($B$6="Hardness",VLOOKUP($H40,Ann_Hard!$A$5:$D$205,4),VLOOKUP($H40,P_All!$A$5:$AH$205,3*($C$8-1)+4)) -> 2.3928 | L40: =IF($B$6="Hardness",VLOOKUP($H40,Ann_Hard!$A$5:$G$205,5),VLOOKUP($H40,NA_All!$A$5:$AH$205,3*($C$8-1)+2)) -> 1.1449 | M40: =IF($B$6="Hardness",VLOOKUP($H40,Ann_Hard!$A$5:$G$205,6),VLOOKUP($H40,NA_All!$A$5:$AH$205,3*($C$8-1)+3)) -> 1.3094 | N40: =IF($B$6="Hardness",VLOOKUP($H40,Ann_Hard!$A$5:$G$205,7),VLOOKUP($H40,NA_All!$A$5:$AH$205,3*($C$8-1)+4)) -> 2.1365 | O40: =IF(VLOOKUP($B$6,$A$28:$D$55,4,FALSE)=0,#N/A,IF($B$8="PM-13",#N/A,(EXP((VLOOKUP($B$6,$A$28:$F$55,5,FALSE)*LN(Ann_Hard!B17/1000)) + VLOOKUP($B$6,$A$28:$F$55,6,FALSE))))) ->  | P40: 5 | Q40: =IF(VLOOKUP($B$6,$A$28:$D$55,4,FALSE)=0,#N/A,IF($B$8="PM-13",#N/A,(EXP((VLOOKUP($B$6,$A$28:$F$55,5,FALSE)*LN(Ann_Hard!D17/1000)) + VLOOKUP($B$6,$A$28:$F$55,6,FALSE))))) ->  | S40: 181 | T40: =VLOOKUP($S40,P_All!$AJ$5:$BQ$245,3*($C$8-1)+2) -> 0.42385 | U40: =VLOOKUP($S40,P_All!$AJ$5:$BQ$245,3*($C$8-1)+3) -> 0.834 | V40: =VLOOKUP($S40,P_All!$AJ$5:$BQ$245,3*($C$8-1)+4) -> 1.7745 | W40: =VLOOKUP($S40,NA_All!$AJ$5:$BQ$245,3*($C$8-1)+2) -> 0.67456 | X40: =VLOOKUP($S40,NA_All!$AJ$5:$BQ$245,3*($C$8-1)+3) -> 0.95593 | Y40: =VLOOKUP($S40,NA_All!$AJ$5:$BQ$245,3*($C$8-1)+4) -> 1.6062 | Z40: =IF(ISNA(VLOOKUP($B$6,$A$28:$E$55,IF($B$8=$A$25,3,2))),EXP(VLOOKUP($B$6,$A$28:$E$55,4)*LN(VLOOKUP($S40,#REF!,$C$8+1)/1000)+VLOOKUP($B$6,$A$28:$E$55,5)),VLOOKUP($B$6,$A$28:$E$55,IF($B$8=$A$25,3,2))) -> 5
A41: F | C41: 4000 | D41: 0 | H41: 13 | I41: =IF($B$6="Hardness",VLOOKUP($H41,Ann_Hard!$A$5:$D$205,2),VLOOKUP($H41,P_All!$A$5:$AH$205,3*($C$8-1)+2)) -> 0.43998 | J41: =IF($B$6="Hardness",VLOOKUP($H41,Ann_Hard!$A$5:$D$205,3),VLOOKUP($H41,P_All!$A$5:$AH$205,3*($C$8-1)+3)) -> 1.0064 | K41: =IF($B$6="Hardness",VLOOKUP($H41,Ann_Hard!$A$5:$D$205,4),VLOOKUP($H41,P_All!$A$5:$AH$205,3*($C$8-1)+4)) -> 2.4697 | L41: =IF($B$6="Hardness",VLOOKUP($H41,Ann_Hard!$A$5:$G$205,5),VLOOKUP($H41,NA_All!$A$5:$AH$205,3*($C$8-1)+2)) -> 1.1305 | M41: =IF($B$6="Hardness",VLOOKUP($H41,Ann_Hard!$A$5:$G$205,6),VLOOKUP($H41,NA_All!$A$5:$AH$205,3*($C$8-1)+3)) -> 1.3038 | N41: =IF($B$6="Hardness",VLOOKUP($H41,Ann_Hard!$A$5:$G$205,7),VLOOKUP($H41,NA_All!$A$5:$AH$205,3*($C$8-1)+4)) -> 2.1086 | O41: =IF(VLOOKUP($B$6,$A$28:$D$55,4,FALSE)=0,#N/A,IF($B$8="PM-13",#N/A,(EXP((VLOOKUP($B$6,$A$28:$F$55,5,FALSE)*LN(Ann_Hard!B18/1000)) + VLOOKUP($B$6,$A$28:$F$55,6,FALSE))))) ->  | P41: 5 | Q41: =IF(VLOOKUP($B$6,$A$28:$D$55,4,FALSE)=0,#N/A,IF($B$8="PM-13",#N/A,(EXP((VLOOKUP($B$6,$A$28:$F$55,5,FALSE)*LN(Ann_Hard!D18/1000)) + VLOOKUP($B$6,$A$28:$F$55,6,FALSE))))) ->  | S41: 181.0833333 | T41: =VLOOKUP($S41,P_All!$AJ$5:$BQ$245,3*($C$8-1)+2) -> 0.33596 | U41: =VLOOKUP($S41,P_All!$AJ$5:$BQ$245,3*($C$8-1)+3) -> 0.62929 | V41: =VLOOKUP($S41,P_All!$AJ$5:$BQ$245,3*($C$8-1)+4) -> 1.2621 | W41: =VLOOKUP($S41,NA_All!$AJ$5:$BQ$245,3*($C$8-1)+2) -> 0.64859 | X41: =VLOOKUP($S41,NA_All!$AJ$5:$BQ$245,3*($C$8-1)+3) -> 0.92219 | Y41: =VLOOKUP($S41,NA_All!$AJ$5:$BQ$245,3*($C$8-1)+4) -> 1.5944 | Z41: =IF(ISNA(VLOOKUP($B$6,$A$28:$E$55,IF($B$8=$A$25,3,2))),EXP(VLOOKUP($B$6,$A$28:$E$55,4)*LN(VLOOKUP($S41,#REF!,$C$8+1)/1000)+VLOOKUP($B$6,$A$28:$E$55,5)),VLOOKUP($B$6,$A$28:$E$55,IF($B$8=$A$25,3,2))) -> 5
A42: Fe | C42: 300 | D42: 0 | H42: 14 | I42: =IF($B$6="Hardness",VLOOKUP($H42,Ann_Hard!$A$5:$D$205,2),VLOOKUP($H42,P_All!$A$5:$AH$205,3*($C$8-1)+2)) -> 0.43874 | J42: =IF($B$6="Hardness",VLOOKUP($H42,Ann_Hard!$A$5:$D$205,3),VLOOKUP($H42,P_All!$A$5:$AH$205,3*($C$8-1)+3)) -> 1.0288 | K42: =IF($B$6="Hardness",VLOOKUP($H42,Ann_Hard!$A$5:$D$205,4),VLOOKUP($H42,P_All!$A$5:$AH$205,3*($C$8-1)+4)) -> 2.4375 | L42: =IF($B$6="Hardness",VLOOKUP($H42,Ann_Hard!$A$5:$G$205,5),VLOOKUP($H42,NA_All!$A$5:$AH$205,3*($C$8-1)+2)) -> 1.1201 | M42: =IF($B$6="Hardness",VLOOKUP($H42,Ann_Hard!$A$5:$G$205,6),VLOOKUP($H42,NA_All!$A$5:$AH$205,3*($C$8-1)+3)) -> 1.2932 | N42: =IF($B$6="Hardness",VLOOKUP($H42,Ann_Hard!$A$5:$G$205,7),VLOOKUP($H42,NA_All!$A$5:$AH$205,3*($C$8-1)+4)) -> 2.1857 | O42: =IF(VLOOKUP($B$6,$A$28:$D$55,4,FALSE)=0,#N/A,IF($B$8="PM-13",#N/A,(EXP((VLOOKUP($B$6,$A$28:$F$55,5,FALSE)*LN(Ann_Hard!B19/1000)) + VLOOKUP($B$6,$A$28:$F$55,6,FALSE))))) ->  | P42: 5 | Q42: =IF(VLOOKUP($B$6,$A$28:$D$55,4,FALSE)=0,#N/A,IF($B$8="PM-13",#N/A,(EXP((VLOOKUP($B$6,$A$28:$F$55,5,FALSE)*LN(Ann_Hard!D19/1000)) + VLOOKUP($B$6,$A$28:$F$55,6,FALSE))))) ->  | S42: 181.1666667 | T42: =VLOOKUP($S42,P_All!$AJ$5:$BQ$245,3*($C$8-1)+2) -> 0.2757 | U42: =VLOOKUP($S42,P_All!$AJ$5:$BQ$245,3*($C$8-1)+3) -> 0.50118 | V42: =VLOOKUP($S42,P_All!$AJ$5:$BQ$245,3*($C$8-1)+4) -> 0.94799 | W42: =VLOOKUP($S42,NA_All!$AJ$5:$BQ$245,3*($C$8-1)+2) -> 0.64988 | X42: =VLOOKUP($S42,NA_All!$AJ$5:$BQ$245,3*($C$8-1)+3) -> 0.90836 | Y42: =VLOOKUP($S42,NA_All!$AJ$5:$BQ$245,3*($C$8-1)+4) -> 1.5809 | Z42: =IF(ISNA(VLOOKUP($B$6,$A$28:$E$55,IF($B$8=$A$25,3,2))),EXP(VLOOKUP($B$6,$A$28:$E$55,4)*LN(VLOOKUP($S42,#REF!,$C$8+1)/1000)+VLOOKUP($B$6,$A$28:$E$55,5)),VLOOKUP($B$6,$A$28:$E$55,IF($B$8=$A$25,3,2))) -> 5
A43: K | D43: 0 | H43: 15 | I43: =IF($B$6="Hardness",VLOOKUP($H43,Ann_Hard!$A$5:$D$205,2),VLOOKUP($H43,P_All!$A$5:$AH$205,3*($C$8-1)+2)) -> 0.45997 | J43: =IF($B$6="Hardness",VLOOKUP($H43,Ann_Hard!$A$5:$D$205,3),VLOOKUP($H43,P_All!$A$5:$AH$205,3*($C$8-1)+3)) -> 1.0703 | K43: =IF($B$6="Hardness",VLOOKUP($H43,Ann_Hard!$A$5:$D$205,4),VLOOKUP($H43,P_All!$A$5:$AH$205,3*($C$8-1)+4)) -> 2.4414 | L43: =IF($B$6="Hardness",VLOOKUP($H43,Ann_Hard!$A$5:$G$205,5),VLOOKUP($H43,NA_All!$A$5:$AH$205,3*($C$8-1)+2)) -> 1.1068 | M43: =IF($B$6="Hardness",VLOOKUP($H43,Ann_Hard!$A$5:$G$205,6),VLOOKUP($H43,NA_All!$A$5:$AH$205,3*($C$8-1)+3)) -> 1.2965 | N43: =IF($B$6="Hardness",VLOOKUP($H43,Ann_Hard!$A$5:$G$205,7),VLOOKUP($H43,NA_All!$A$5:$AH$205,3*($C$8-1)+4)) -> 2.1255 | O43: =IF(VLOOKUP($B$6,$A$28:$D$55,4,FALSE)=0,#N/A,IF($B$8="PM-13",#N/A,(EXP((VLOOKUP($B$6,$A$28:$F$55,5,FALSE)*LN(Ann_Hard!B20/1000)) + VLOOKUP($B$6,$A$28:$F$55,6,FALSE))))) ->  | P43: 5 | Q43: =IF(VLOOKUP($B$6,$A$28:$D$55,4,FALSE)=0,#N/A,IF($B$8="PM-13",#N/A,(EXP((VLOOKUP($B$6,$A$28:$F$55,5,FALSE)*LN(Ann_Hard!D20/1000)) + VLOOKUP($B$6,$A$28:$F$55,6,FALSE))))) ->  | S43: 181.25 | T43: =VLOOKUP($S43,P_All!$AJ$5:$BQ$245,3*($C$8-1)+2) -> 0.25798 | U43: =VLOOKUP($S43,P_All!$AJ$5:$BQ$245,3*($C$8-1)+3) -> 0.47296 | V43: =VLOOKUP($S43,P_All!$AJ$5:$BQ$245,3*($C$8-1)+4) -> 1.2414 | W43: =VLOOKUP($S43,NA_All!$AJ$5:$BQ$245,3*($C$8-1)+2) -> 0.64821 | X43: =VLOOKUP($S43,NA_All!$AJ$5:$BQ$245,3*($C$8-1)+3) -> 0.94271 | Y43: =VLOOKUP($S43,NA_All!$AJ$5:$BQ$245,3*($C$8-1)+4) -> 1.6099 | Z43: =IF(ISNA(VLOOKUP($B$6,$A$28:$E$55,IF($B$8=$A$25,3,2))),EXP(VLOOKUP($B$6,$A$28:$E$55,4)*LN(VLOOKUP($S43,#REF!,$C$8+1)/1000)+VLOOKUP($B$6,$A$28:$E$55,5)),VLOOKUP($B$6,$A$28:$E$55,IF($B$8=$A$25,3,2))) -> 5
A44: Mg | D44: 0 | H44: 16 | I44: =IF($B$6="Hardness",VLOOKUP($H44,Ann_Hard!$A$5:$D$205,2),VLOOKUP($H44,P_All!$A$5:$AH$205,3*($C$8-1)+2)) -> 0.51545 | J44: =IF($B$6="Hardness",VLOOKUP($H44,Ann_Hard!$A$5:$D$205,3),VLOOKUP($H44,P_All!$A$5:$AH$205,3*($C$8-1)+3)) -> 1.0808 | K44: =IF($B$6="Hardness",VLOOKUP($H44,Ann_Hard!$A$5:$D$205,4),VLOOKUP($H44,P_All!$A$5:$AH$205,3*($C$8-1)+4)) -> 2.3925 | L44: =IF($B$6="Hardness",VLOOKUP($H44,Ann_Hard!$A$5:$G$205,5),VLOOKUP($H44,NA_All!$A$5:$AH$205,3*($C$8-1)+2)) -> 1.0996 | M44: =IF($B$6="Hardness",VLOOKUP($H44,Ann_Hard!$A$5:$G$205,6),VLOOKUP($H44,NA_All!$A$5:$AH$205,3*($C$8-1)+3)) -> 1.292 | N44: =IF($B$6="Hardness",VLOOKUP($H44,Ann_Hard!$A$5:$G$205,7),VLOOKUP($H44,NA_All!$A$5:$AH$205,3*($C$8-1)+4)) -> 2.1569 | O44: =IF(VLOOKUP($B$6,$A$28:$D$55,4,FALSE)=0,#N/A,IF($B$8="PM-13",#N/A,(EXP((VLOOKUP($B$6,$A$28:$F$55,5,FALSE)*LN(Ann_Hard!B21/1000)) + VLOOKUP($B$6,$A$28:$F$55,6,FALSE))))) ->  | P44: 5 | Q44: =IF(VLOOKUP($B$6,$A$28:$D$55,4,FALSE)=0,#N/A,IF($B$8="PM-13",#N/A,(EXP((VLOOKUP($B$6,$A$28:$F$55,5,FALSE)*LN(Ann_Hard!D21/1000)) + VLOOKUP($B$6,$A$28:$F$55,6,FALSE))))) ->  | S44: 181.3333333 | T44: =VLOOKUP($S44,P_All!$AJ$5:$BQ$245,3*($C$8-1)+2) -> 0.37209 | U44: =VLOOKUP($S44,P_All!$AJ$5:$BQ$245,3*($C$8-1)+3) -> 0.89075 | V44: =VLOOKUP($S44,P_All!$AJ$5:$BQ$245,3*($C$8-1)+4) -> 2.2487 | W44: =VLOOKUP($S44,NA_All!$AJ$5:$BQ$245,3*($C$8-1)+2) -> 0.56726 | X44: =VLOOKUP($S44,NA_All!$AJ$5:$BQ$245,3*($C$8-1)+3) -> 0.99212 | Y44: =VLOOKUP($S44,NA_All!$AJ$5:$BQ$245,3*($C$8-1)+4) -> 2.0464 | Z44: =IF(ISNA(VLOOKUP($B$6,$A$28:$E$55,IF($B$8=$A$25,3,2))),EXP(VLOOKUP($B$6,$A$28:$E$55,4)*LN(VLOOKUP($S44,#REF!,$C$8+1)/1000)+VLOOKUP($B$6,$A$28:$E$55,5)),VLOOKUP($B$6,$A$28:$E$55,IF($B$8=$A$25,3,2))) -> 5
A45: Mn | C45: 50 | D45: 0 | H45: 17 | I45: =IF($B$6="Hardness",VLOOKUP($H45,Ann_Hard!$A$5:$D$205,2),VLOOKUP($H45,P_All!$A$5:$AH$205,3*($C$8-1)+2)) -> 0.42855 | J45: =IF($B$6="Hardness",VLOOKUP($H45,Ann_Hard!$A$5:$D$205,3),VLOOKUP($H45,P_All!$A$5:$AH$205,3*($C$8-1)+3)) -> 1.014 | K45: =IF($B$6="Hardness",VLOOKUP($H45,Ann_Hard!$A$5:$D$205,4),VLOOKUP($H45,P_All!$A$5:$AH$205,3*($C$8-1)+4)) -> 2.5048 | L45: =IF($B$6="Hardness",VLOOKUP($H45,Ann_Hard!$A$5:$G$205,5),VLOOKUP($H45,NA_All!$A$5:$AH$205,3*($C$8-1)+2)) -> 1.0709 | M45: =IF($B$6="Hardness",VLOOKUP($H45,Ann_Hard!$A$5:$G$205,6),VLOOKUP($H45,NA_All!$A$5:$AH$205,3*($C$8-1)+3)) -> 1.285 | N45: =IF($B$6="Hardness",VLOOKUP($H45,Ann_Hard!$A$5:$G$205,7),VLOOKUP($H45,NA_All!$A$5:$AH$205,3*($C$8-1)+4)) -> 2.121 | O45: =IF(VLOOKUP($B$6,$A$28:$D$55,4,FALSE)=0,#N/A,IF($B$8="PM-13",#N/A,(EXP((VLOOKUP($B$6,$A$28:$F$55,5,FALSE)*LN(Ann_Hard!B22/1000)) + VLOOKUP($B$6,$A$28:$F$55,6,FALSE))))) ->  | P45: 5 | Q45: =IF(VLOOKUP($B$6,$A$28:$D$55,4,FALSE)=0,#N/A,IF($B$8="PM-13",#N/A,(EXP((VLOOKUP($B$6,$A$28:$F$55,5,FALSE)*LN(Ann_Hard!D22/1000)) + VLOOKUP($B$6,$A$28:$F$55,6,FALSE))))) ->  | S45: 181.4166667 | T45: =VLOOKUP($S45,P_All!$AJ$5:$BQ$245,3*($C$8-1)+2) -> 0.42428 | U45: =VLOOKUP($S45,P_All!$AJ$5:$BQ$245,3*($C$8-1)+3) -> 1.0145 | V45: =VLOOKUP($S45,P_All!$AJ$5:$BQ$245,3*($C$8-1)+4) -> 2.2615 | W45: =VLOOKUP($S45,NA_All!$AJ$5:$BQ$245,3*($C$8-1)+2) -> 0.57271 | X45: =VLOOKUP($S45,NA_All!$AJ$5:$BQ$245,3*($C$8-1)+3) -> 1.0377 | Y45: =VLOOKUP($S45,NA_All!$AJ$5:$BQ$245,3*($C$8-1)+4) -> 1.9449 | Z45: =IF(ISNA(VLOOKUP($B$6,$A$28:$E$55,IF($B$8=$A$25,3,2))),EXP(VLOOKUP($B$6,$A$28:$E$55,4)*LN(VLOOKUP($S45,#REF!,$C$8+1)/1000)+VLOOKUP($B$6,$A$28:$E$55,5)),VLOOKUP($B$6,$A$28:$E$55,IF($B$8=$A$25,3,2))) -> 5
A46: Na | D46: 0 | H46: 18 | I46: =IF($B$6="Hardness",VLOOKUP($H46,Ann_Hard!$A$5:$D$205,2),VLOOKUP($H46,P_All!$A$5:$AH$205,3*($C$8-1)+2)) -> 0.47305 | J46: =IF($B$6="Hardness",VLOOKUP($H46,Ann_Hard!$A$5:$D$205,3),VLOOKUP($H46,P_All!$A$5:$AH$205,3*($C$8-1)+3)) -> 1.0418 | K46: =IF($B$6="Hardness",VLOOKUP($H46,Ann_Hard!$A$5:$D$205,4),VLOOKUP($H46,P_All!$A$5:$AH$205,3*($C$8-1)+4)) -> 2.4874 | L46: =IF($B$6="Hardness",VLOOKUP($H46,Ann_Hard!$A$5:$G$205,5),VLOOKUP($H46,NA_All!$A$5:$AH$205,3*($C$8-1)+2)) -> 1.0487 | M46: =IF($B$6="Hardness",VLOOKUP($H46,Ann_Hard!$A$5:$G$205,6),VLOOKUP($H46,NA_All!$A$5:$AH$205,3*($C$8-1)+3)) -> 1.3006 | N46: =IF($B$6="Hardness",VLOOKUP($H46,Ann_Hard!$A$5:$G$205,7),VLOOKUP($H46,NA_All!$A$5:$AH$205,3*($C$8-1)+4)) -> 2.1468 | O46: =IF(VLOOKUP($B$6,$A$28:$D$55,4,FALSE)=0,#N/A,IF($B$8="PM-13",#N/A,(EXP((VLOOKUP($B$6,$A$28:$F$55,5,FALSE)*LN(Ann_Hard!B23/1000)) + VLOOKUP($B$6,$A$28:$F$55,6,FALSE))))) ->  | P46: 5 | Q46: =IF(VLOOKUP($B$6,$A$28:$D$55,4,FALSE)=0,#N/A,IF($B$8="PM-13",#N/A,(EXP((VLOOKUP($B$6,$A$28:$F$55,5,FALSE)*LN(Ann_Hard!D23/1000)) + VLOOKUP($B$6,$A$28:$F$55,6,FALSE))))) ->  | S46: 181.5 | T46: =VLOOKUP($S46,P_All!$AJ$5:$BQ$245,3*($C$8-1)+2) -> 0.39402 | U46: =VLOOKUP($S46,P_All!$AJ$5:$BQ$245,3*($C$8-1)+3) -> 0.91117 | V46: =VLOOKUP($S46,P_All!$AJ$5:$BQ$245,3*($C$8-1)+4) -> 2.3524 | W46: =VLOOKUP($S46,NA_All!$AJ$5:$BQ$245,3*($C$8-1)+2) -> 0.59053 | X46: =VLOOKUP($S46,NA_All!$AJ$5:$BQ$245,3*($C$8-1)+3) -> 0.9945 | Y46: =VLOOKUP($S46,NA_All!$AJ$5:$BQ$245,3*($C$8-1)+4) -> 1.8462 | Z46: =IF(ISNA(VLOOKUP($B$6,$A$28:$E$55,IF($B$8=$A$25,3,2))),EXP(VLOOKUP($B$6,$A$28:$E$55,4)*LN(VLOOKUP($S46,#REF!,$C$8+1)/1000)+VLOOKUP($B$6,$A$28:$E$55,5)),VLOOKUP($B$6,$A$28:$E$55,IF($B$8=$A$25,3,2))) -> 5
A47: Ni | D47: 1 | E47: 0.846 | F47: 0.0584 | H47: 19 | I47: =IF($B$6="Hardness",VLOOKUP($H47,Ann_Hard!$A$5:$D$205,2),VLOOKUP($H47,P_All!$A$5:$AH$205,3*($C$8-1)+2)) -> 0.44746 | J47: =IF($B$6="Hardness",VLOOKUP($H47,Ann_Hard!$A$5:$D$205,3),VLOOKUP($H47,P_All!$A$5:$AH$205,3*($C$8-1)+3)) -> 1.0299 | K47: =IF($B$6="Hardness",VLOOKUP($H47,Ann_Hard!$A$5:$D$205,4),VLOOKUP($H47,P_All!$A$5:$AH$205,3*($C$8-1)+4)) -> 2.4668 | L47: =IF($B$6="Hardness",VLOOKUP($H47,Ann_Hard!$A$5:$G$205,5),VLOOKUP($H47,NA_All!$A$5:$AH$205,3*($C$8-1)+2)) -> 1.0421 | M47: =IF($B$6="Hardness",VLOOKUP($H47,Ann_Hard!$A$5:$G$205,6),VLOOKUP($H47,NA_All!$A$5:$AH$205,3*($C$8-1)+3)) -> 1.2763 | N47: =IF($B$6="Hardness",VLOOKUP($H47,Ann_Hard!$A$5:$G$205,7),VLOOKUP($H47,NA_All!$A$5:$AH$205,3*($C$8-1)+4)) -> 2.1938 | O47: =IF(VLOOKUP($B$6,$A$28:$D$55,4,FALSE)=0,#N/A,IF($B$8="PM-13",#N/A,(EXP((VLOOKUP($B$6,$A$28:$F$55,5,FALSE)*LN(Ann_Hard!B24/1000)) + VLOOKUP($B$6,$A$28:$F$55,6,FALSE))))) ->  | P47: 5 | Q47: =IF(VLOOKUP($B$6,$A$28:$D$55,4,FALSE)=0,#N/A,IF($B$8="PM-13",#N/A,(EXP((VLOOKUP($B$6,$A$28:$F$55,5,FALSE)*LN(Ann_Hard!D24/1000)) + VLOOKUP($B$6,$A$28:$F$55,6,FALSE))))) ->  | S47: 181.5833333 | T47: =VLOOKUP($S47,P_All!$AJ$5:$BQ$245,3*($C$8-1)+2) -> 0.44461 | U47: =VLOOKUP($S47,P_All!$AJ$5:$BQ$245,3*($C$8-1)+3) -> 0.91584 | V47: =VLOOKUP($S47,P_All!$AJ$5:$BQ$245,3*($C$8-1)+4) -> 2.1851 | W47: =VLOOKUP($S47,NA_All!$AJ$5:$BQ$245,3*($C$8-1)+2) -> 0.64378 | X47: =VLOOKUP($S47,NA_All!$AJ$5:$BQ$245,3*($C$8-1)+3) -> 0.99271 | Y47: =VLOOKUP($S47,NA_All!$AJ$5:$BQ$245,3*($C$8-1)+4) -> 1.7721 | Z47: =IF(ISNA(VLOOKUP($B$6,$A$28:$E$55,IF($B$8=$A$25,3,2))),EXP(VLOOKUP($B$6,$A$28:$E$55,4)*LN(VLOOKUP($S47,#REF!,$C$8+1)/1000)+VLOOKUP($B$6,$A$28:$E$55,5)),VLOOKUP($B$6,$A$28:$E$55,IF($B$8=$A$25,3,2))) -> 5
A48: Pb | D48: 1 | E48: 1.273 | F48: -4.705 | H48: 20 | I48: =IF($B$6="Hardness",VLOOKUP($H48,Ann_Hard!$A$5:$D$205,2),VLOOKUP($H48,P_All!$A$5:$AH$205,3*($C$8-1)+2)) -> 0.44541 | J48: =IF($B$6="Hardness",VLOOKUP($H48,Ann_Hard!$A$5:$D$205,3),VLOOKUP($H48,P_All!$A$5:$AH$205,3*($C$8-1)+3)) -> 1.0588 | K48: =IF($B$6="Hardness",VLOOKUP($H48,Ann_Hard!$A$5:$D$205,4),VLOOKUP($H48,P_All!$A$5:$AH$205,3*($C$8-1)+4)) -> 2.4737 | L48: =IF($B$6="Hardness",VLOOKUP($H48,Ann_Hard!$A$5:$G$205,5),VLOOKUP($H48,NA_All!$A$5:$AH$205,3*($C$8-1)+2)) -> 1.027 | M48: =IF($B$6="Hardness",VLOOKUP($H48,Ann_Hard!$A$5:$G$205,6),VLOOKUP($H48,NA_All!$A$5:$AH$205,3*($C$8-1)+3)) -> 1.2726 | N48: =IF($B$6="Hardness",VLOOKUP($H48,Ann_Hard!$A$5:$G$205,7),VLOOKUP($H48,NA_All!$A$5:$AH$205,3*($C$8-1)+4)) -> 2.2449 | O48: =IF(VLOOKUP($B$6,$A$28:$D$55,4,FALSE)=0,#N/A,IF($B$8="PM-13",#N/A,(EXP((VLOOKUP($B$6,$A$28:$F$55,5,FALSE)*LN(Ann_Hard!B25/1000)) + VLOOKUP($B$6,$A$28:$F$55,6,FALSE))))) ->  | P48: 5 | Q48: =IF(VLOOKUP($B$6,$A$28:$D$55,4,FALSE)=0,#N/A,IF($B$8="PM-13",#N/A,(EXP((VLOOKUP($B$6,$A$28:$F$55,5,FALSE)*LN(Ann_Hard!D25/1000)) + VLOOKUP($B$6,$A$28:$F$55,6,FALSE))))) ->  | S48: 181.6666667 | T48: =VLOOKUP($S48,P_All!$AJ$5:$BQ$245,3*($C$8-1)+2) -> 0.38364 | U48: =VLOOKUP($S48,P_All!$AJ$5:$BQ$245,3*($C$8-1)+3) -> 0.76438 | V48: =VLOOKUP($S48,P_All!$AJ$5:$BQ$245,3*($C$8-1)+4) -> 1.6971 | W48: =VLOOKUP($S48,NA_All!$AJ$5:$BQ$245,3*($C$8-1)+2) -> 0.63353 | X48: =VLOOKUP($S48,NA_All!$AJ$5:$BQ$245,3*($C$8-1)+3) -> 0.92991 | Y48: =VLOOKUP($S48,NA_All!$AJ$5:$BQ$245,3*($C$8-1)+4) -> 1.6027 | Z48: =IF(ISNA(VLOOKUP($B$6,$A$28:$E$55,IF($B$8=$A$25,3,2))),EXP(VLOOKUP($B$6,$A$28:$E$55,4)*LN(VLOOKUP($S48,#REF!,$C$8+1)/1000)+VLOOKUP($B$6,$A$28:$E$55,5)),VLOOKUP($B$6,$A$28:$E$55,IF($B$8=$A$25,3,2))) -> 5
A49: Sb | B49: 31 | C49: 5.5 | D49: 0 | H49: 21 | I49: =IF($B$6="Hardness",VLOOKUP($H49,Ann_Hard!$A$5:$D$205,2),VLOOKUP($H49,P_All!$A$5:$AH$205,3*($C$8-1)+2)) -> 0.44509 | J49: =IF($B$6="Hardness",VLOOKUP($H49,Ann_Hard!$A$5:$D$205,3),VLOOKUP($H49,P_All!$A$5:$AH$205,3*($C$8-1)+3)) -> 1.0225 | K49: =IF($B$6="Hardness",VLOOKUP($H49,Ann_Hard!$A$5:$D$205,4),VLOOKUP($H49,P_All!$A$5:$AH$205,3*($C$8-1)+4)) -> 2.3821 | L49: =IF($B$6="Hardness",VLOOKUP($H49,Ann_Hard!$A$5:$G$205,5),VLOOKUP($H49,NA_All!$A$5:$AH$205,3*($C$8-1)+2)) -> 1.0158 | M49: =IF($B$6="Hardness",VLOOKUP($H49,Ann_Hard!$A$5:$G$205,6),VLOOKUP($H49,NA_All!$A$5:$AH$205,3*($C$8-1)+3)) -> 1.2625 | N49: =IF($B$6="Hardness",VLOOKUP($H49,Ann_Hard!$A$5:$G$205,7),VLOOKUP($H49,NA_All!$A$5:$AH$205,3*($C$8-1)+4)) -> 2.0908 | O49: =IF(VLOOKUP($B$6,$A$28:$D$55,4,FALSE)=0,#N/A,IF($B$8="PM-13",#N/A,(EXP((VLOOKUP($B$6,$A$28:$F$55,5,FALSE)*LN(Ann_Hard!B26/1000)) + VLOOKUP($B$6,$A$28:$F$55,6,FALSE))))) ->  | P49: 5 | Q49: =IF(VLOOKUP($B$6,$A$28:$D$55,4,FALSE)=0,#N/A,IF($B$8="PM-13",#N/A,(EXP((VLOOKUP($B$6,$A$28:$F$55,5,FALSE)*LN(Ann_Hard!D26/1000)) + VLOOKUP($B$6,$A$28:$F$55,6,FALSE))))) ->  | S49: 181.75 | T49: =VLOOKUP($S49,P_All!$AJ$5:$BQ$245,3*($C$8-1)+2) -> 0.36798 | U49: =VLOOKUP($S49,P_All!$AJ$5:$BQ$245,3*($C$8-1)+3) -> 0.84169 | V49: =VLOOKUP($S49,P_All!$AJ$5:$BQ$245,3*($C$8-1)+4) -> 2.1873 | W49: =VLOOKUP($S49,NA_All!$AJ$5:$BQ$245,3*($C$8-1)+2) -> 0.63088 | X49: =VLOOKUP($S49,NA_All!$AJ$5:$BQ$245,3*($C$8-1)+3) -> 0.95965 | Y49: =VLOOKUP($S49,NA_All!$AJ$5:$BQ$245,3*($C$8-1)+4) -> 1.7638 | Z49: =IF(ISNA(VLOOKUP($B$6,$A$28:$E$55,IF($B$8=$A$25,3,2))),EXP(VLOOKUP($B$6,$A$28:$E$55,4)*LN(VLOOKUP($S49,#REF!,$C$8+1)/1000)+VLOOKUP($B$6,$A$28:$E$55,5)),VLOOKUP($B$6,$A$28:$E$55,IF($B$8=$A$25,3,2))) -> 5
A50: Se | B50: 5 | C50: 5 | D50: 0 | H50: 22 | I50: =IF($B$6="Hardness",VLOOKUP($H50,Ann_Hard!$A$5:$D$205,2),VLOOKUP($H50,P_All!$A$5:$AH$205,3*($C$8-1)+2)) -> 0.44901 | J50: =IF($B$6="Hardness",VLOOKUP($H50,Ann_Hard!$A$5:$D$205,3),VLOOKUP($H50,P_All!$A$5:$AH$205,3*($C$8-1)+3)) -> 1.0142 | K50: =IF($B$6="Hardness",VLOOKUP($H50,Ann_Hard!$A$5:$D$205,4),VLOOKUP($H50,P_All!$A$5:$AH$205,3*($C$8-1)+4)) -> 2.5293 | L50: =IF($B$6="Hardness",VLOOKUP($H50,Ann_Hard!$A$5:$G$205,5),VLOOKUP($H50,NA_All!$A$5:$AH$205,3*($C$8-1)+2)) -> 1.0058 | M50: =IF($B$6="Hardness",VLOOKUP($H50,Ann_Hard!$A$5:$G$205,6),VLOOKUP($H50,NA_All!$A$5:$AH$205,3*($C$8-1)+3)) -> 1.2732 | N50: =IF($B$6="Hardness",VLOOKUP($H50,Ann_Hard!$A$5:$G$205,7),VLOOKUP($H50,NA_All!$A$5:$AH$205,3*($C$8-1)+4)) -> 2.2184 | O50: =IF(VLOOKUP($B$6,$A$28:$D$55,4,FALSE)=0,#N/A,IF($B$8="PM-13",#N/A,(EXP((VLOOKUP($B$6,$A$28:$F$55,5,FALSE)*LN(Ann_Hard!B27/1000)) + VLOOKUP($B$6,$A$28:$F$55,6,FALSE))))) ->  | P50: 5 | Q50: =IF(VLOOKUP($B$6,$A$28:$D$55,4,FALSE)=0,#N/A,IF($B$8="PM-13",#N/A,(EXP((VLOOKUP($B$6,$A$28:$F$55,5,FALSE)*LN(Ann_Hard!D27/1000)) + VLOOKUP($B$6,$A$28:$F$55,6,FALSE))))) ->  | S50: 181.8333333 | T50: =VLOOKUP($S50,P_All!$AJ$5:$BQ$245,3*($C$8-1)+2) -> 0.42258 | U50: =VLOOKUP($S50,P_All!$AJ$5:$BQ$245,3*($C$8-1)+3) -> 0.89569 | V50: =VLOOKUP($S50,P_All!$AJ$5:$BQ$245,3*($C$8-1)+4) -> 2.1025 | W50: =VLOOKUP($S50,NA_All!$AJ$5:$BQ$245,3*($C$8-1)+2) -> 0.66642 | X50: =VLOOKUP($S50,NA_All!$AJ$5:$BQ$245,3*($C$8-1)+3) -> 0.97143 | Y50: =VLOOKUP($S50,NA_All!$AJ$5:$BQ$245,3*($C$8-1)+4) -> 1.7257 | Z50: =IF(ISNA(VLOOKUP($B$6,$A$28:$E$55,IF($B$8=$A$25,3,2))),EXP(VLOOKUP($B$6,$A$28:$E$55,4)*LN(VLOOKUP($S50,#REF!,$C$8+1)/1000)+VLOOKUP($B$6,$A$28:$E$55,5)),VLOOKUP($B$6,$A$28:$E$55,IF($B$8=$A$25,3,2))) -> 5
A51: SO4 | C51: 250000 | D51: 0 | H51: 23 | I51: =IF($B$6="Hardness",VLOOKUP($H51,Ann_Hard!$A$5:$D$205,2),VLOOKUP($H51,P_All!$A$5:$AH$205,3*($C$8-1)+2)) -> 0.45441 | J51: =IF($B$6="Hardness",VLOOKUP($H51,Ann_Hard!$A$5:$D$205,3),VLOOKUP($H51,P_All!$A$5:$AH$205,3*($C$8-1)+3)) -> 1.0322 | K51: =IF($B$6="Hardness",VLOOKUP($H51,Ann_Hard!$A$5:$D$205,4),VLOOKUP($H51,P_All!$A$5:$AH$205,3*($C$8-1)+4)) -> 2.3965 | L51: =IF($B$6="Hardness",VLOOKUP($H51,Ann_Hard!$A$5:$G$205,5),VLOOKUP($H51,NA_All!$A$5:$AH$205,3*($C$8-1)+2)) -> 0.99134 | M51: =IF($B$6="Hardness",VLOOKUP($H51,Ann_Hard!$A$5:$G$205,6),VLOOKUP($H51,NA_All!$A$5:$AH$205,3*($C$8-1)+3)) -> 1.2557 | N51: =IF($B$6="Hardness",VLOOKUP($H51,Ann_Hard!$A$5:$G$205,7),VLOOKUP($H51,NA_All!$A$5:$AH$205,3*($C$8-1)+4)) -> 2.1626 | O51: =IF(VLOOKUP($B$6,$A$28:$D$55,4,FALSE)=0,#N/A,IF($B$8="PM-13",#N/A,(EXP((VLOOKUP($B$6,$A$28:$F$55,5,FALSE)*LN(Ann_Hard!B28/1000)) + VLOOKUP($B$6,$A$28:$F$55,6,FALSE))))) ->  | P51: 5 | Q51: =IF(VLOOKUP($B$6,$A$28:$D$55,4,FALSE)=0,#N/A,IF($B$8="PM-13",#N/A,(EXP((VLOOKUP($B$6,$A$28:$F$55,5,FALSE)*LN(Ann_Hard!D28/1000)) + VLOOKUP($B$6,$A$28:$F$55,6,FALSE))))) ->  | S51: 181.9166667 | T51: =VLOOKUP($S51,P_All!$AJ$5:$BQ$245,3*($C$8-1)+2) -> 0.43687 | U51: =VLOOKUP($S51,P_All!$AJ$5:$BQ$245,3*($C$8-1)+3) -> 0.96079 | V51: =VLOOKUP($S51,P_All!$AJ$5:$BQ$245,3*($C$8-1)+4) -> 2.049 | W51: =VLOOKUP($S51,NA_All!$AJ$5:$BQ$245,3*($C$8-1)+2) -> 0.6888 | X51: =VLOOKUP($S51,NA_All!$AJ$5:$BQ$245,3*($C$8-1)+3) -> 1.0139 | Y51: =VLOOKUP($S51,NA_All!$AJ$5:$BQ$245,3*($C$8-1)+4) -> 1.63 | Z51: =IF(ISNA(VLOOKUP($B$6,$A$28:$E$55,IF($B$8=$A$25,3,2))),EXP(VLOOKUP($B$6,$A$28:$E$55,4)*LN(VLOOKUP($S51,#REF!,$C$8+1)/1000)+VLOOKUP($B$6,$A$28:$E$55,5)),VLOOKUP($B$6,$A$28:$E$55,IF($B$8=$A$25,3,2))) -> 5
A52: Tl | B52: 0.56 | C52: 0.28 | D52: 0 | H52: 24 | I52: =IF($B$6="Hardness",VLOOKUP($H52,Ann_Hard!$A$5:$D$205,2),VLOOKUP($H52,P_All!$A$5:$AH$205,3*($C$8-1)+2)) -> 0.46676 | J52: =IF($B$6="Hardness",VLOOKUP($H52,Ann_Hard!$A$5:$D$205,3),VLOOKUP($H52,P_All!$A$5:$AH$205,3*($C$8-1)+3)) -> 1.007 | K52: =IF($B$6="Hardness",VLOOKUP($H52,Ann_Hard!$A$5:$D$205,4),VLOOKUP($H52,P_All!$A$5:$AH$205,3*($C$8-1)+4)) -> 2.4483 | L52: =IF($B$6="Hardness",VLOOKUP($H52,Ann_Hard!$A$5:$G$205,5),VLOOKUP($H52,NA_All!$A$5:$AH$205,3*($C$8-1)+2)) -> 0.98019 | M52: =IF($B$6="Hardness",VLOOKUP($H52,Ann_Hard!$A$5:$G$205,6),VLOOKUP($H52,NA_All!$A$5:$AH$205,3*($C$8-1)+3)) -> 1.27 | N52: =IF($B$6="Hardness",VLOOKUP($H52,Ann_Hard!$A$5:$G$205,7),VLOOKUP($H52,NA_All!$A$5:$AH$205,3*($C$8-1)+4)) -> 2.2362 | O52: =IF(VLOOKUP($B$6,$A$28:$D$55,4,FALSE)=0,#N/A,IF($B$8="PM-13",#N/A,(EXP((VLOOKUP($B$6,$A$28:$F$55,5,FALSE)*LN(Ann_Hard!B29/1000)) + VLOOKUP($B$6,$A$28:$F$55,6,FALSE))))) ->  | P52: 5 | Q52: =IF(VLOOKUP($B$6,$A$28:$D$55,4,FALSE)=0,#N/A,IF($B$8="PM-13",#N/A,(EXP((VLOOKUP($B$6,$A$28:$F$55,5,FALSE)*LN(Ann_Hard!D29/1000)) + VLOOKUP($B$6,$A$28:$F$55,6,FALSE))))) ->  | S52: 182 | T52: =VLOOKUP($S52,P_All!$AJ$5:$BQ$245,3*($C$8-1)+2) -> 0.4051 | U52: =VLOOKUP($S52,P_All!$AJ$5:$BQ$245,3*($C$8-1)+3) -> 0.78992 | V52: =VLOOKUP($S52,P_All!$AJ$5:$BQ$245,3*($C$8-1)+4) -> 1.8765 | W52: =VLOOKUP($S52,NA_All!$AJ$5:$BQ$245,3*($C$8-1)+2) -> 0.67604 | X52: =VLOOKUP($S52,NA_All!$AJ$5:$BQ$245,3*($C$8-1)+3) -> 0.94775 | Y52: =VLOOKUP($S52,NA_All!$AJ$5:$BQ$245,3*($C$8-1)+4) -> 1.6173 | Z52: =IF(ISNA(VLOOKUP($B$6,$A$28:$E$55,IF($B$8=$A$25,3,2))),EXP(VLOOKUP($B$6,$A$28:$E$55,4)*LN(VLOOKUP($S52,#REF!,$C$8+1)/1000)+VLOOKUP($B$6,$A$28:$E$55,5)),VLOOKUP($B$6,$A$28:$E$55,IF($B$8=$A$25,3,2))) -> 5
A53: V | D53: 0 | H53: 25 | I53: =IF($B$6="Hardness",VLOOKUP($H53,Ann_Hard!$A$5:$D$205,2),VLOOKUP($H53,P_All!$A$5:$AH$205,3*($C$8-1)+2)) -> 0.45723 | J53: =IF($B$6="Hardness",VLOOKUP($H53,Ann_Hard!$A$5:$D$205,3),VLOOKUP($H53,P_All!$A$5:$AH$205,3*($C$8-1)+3)) -> 1.0541 | K53: =IF($B$6="Hardness",VLOOKUP($H53,Ann_Hard!$A$5:$D$205,4),VLOOKUP($H53,P_All!$A$5:$AH$205,3*($C$8-1)+4)) -> 2.4707 | L53: =IF($B$6="Hardness",VLOOKUP($H53,Ann_Hard!$A$5:$G$205,5),VLOOKUP($H53,NA_All!$A$5:$AH$205,3*($C$8-1)+2)) -> 0.97008 | M53: =IF($B$6="Hardness",VLOOKUP($H53,Ann_Hard!$A$5:$G$205,6),VLOOKUP($H53,NA_All!$A$5:$AH$205,3*($C$8-1)+3)) -> 1.2704 | N53: =IF($B$6="Hardness",VLOOKUP($H53,Ann_Hard!$A$5:$G$205,7),VLOOKUP($H53,NA_All!$A$5:$AH$205,3*($C$8-1)+4)) -> 2.29 | O53: =IF(VLOOKUP($B$6,$A$28:$D$55,4,FALSE)=0,#N/A,IF($B$8="PM-13",#N/A,(EXP((VLOOKUP($B$6,$A$28:$F$55,5,FALSE)*LN(Ann_Hard!B30/1000)) + VLOOKUP($B$6,$A$28:$F$55,6,FALSE))))) ->  | P53: 5 | Q53: =IF(VLOOKUP($B$6,$A$28:$D$55,4,FALSE)=0,#N/A,IF($B$8="PM-13",#N/A,(EXP((VLOOKUP($B$6,$A$28:$F$55,5,FALSE)*LN(Ann_Hard!D30/1000)) + VLOOKUP($B$6,$A$28:$F$55,6,FALSE))))) ->  | S53: 182.0833333 | T53: =VLOOKUP($S53,P_All!$AJ$5:$BQ$245,3*($C$8-1)+2) -> 0.34429 | U53: =VLOOKUP($S53,P_All!$AJ$5:$BQ$245,3*($C$8-1)+3) -> 0.64197 | V53: =VLOOKUP($S53,P_All!$AJ$5:$BQ$245,3*($C$8-1)+4) -> 1.3607 | W53: =VLOOKUP($S53,NA_All!$AJ$5:$BQ$245,3*($C$8-1)+2) -> 0.64898 | X53: =VLOOKUP($S53,NA_All!$AJ$5:$BQ$245,3*($C$8-1)+3) -> 0.91051 | Y53: =VLOOKUP($S53,NA_All!$AJ$5:$BQ$245,3*($C$8-1)+4) -> 1.5963 | Z53: =IF(ISNA(VLOOKUP($B$6,$A$28:$E$55,IF($B$8=$A$25,3,2))),EXP(VLOOKUP($B$6,$A$28:$E$55,4)*LN(VLOOKUP($S53,#REF!,$C$8+1)/1000)+VLOOKUP($B$6,$A$28:$E$55,5)),VLOOKUP($B$6,$A$28:$E$55,IF($B$8=$A$25,3,2))) -> 5
A54: Zn | D54: 1 | E54: 0.8473 | F54: 0.884 | H54: 26 | I54: =IF($B$6="Hardness",VLOOKUP($H54,Ann_Hard!$A$5:$D$205,2),VLOOKUP($H54,P_All!$A$5:$AH$205,3*($C$8-1)+2)) -> 0.46088 | J54: =IF($B$6="Hardness",VLOOKUP($H54,Ann_Hard!$A$5:$D$205,3),VLOOKUP($H54,P_All!$A$5:$AH$205,3*($C$8-1)+3)) -> 0.99969 | K54: =IF($B$6="Hardness",VLOOKUP($H54,Ann_Hard!$A$5:$D$205,4),VLOOKUP($H54,P_All!$A$5:$AH$205,3*($C$8-1)+4)) -> 2.4598 | L54: =IF($B$6="Hardness",VLOOKUP($H54,Ann_Hard!$A$5:$G$205,5),VLOOKUP($H54,NA_All!$A$5:$AH$205,3*($C$8-1)+2)) -> 0.95868 | M54: =IF($B$6="Hardness",VLOOKUP($H54,Ann_Hard!$A$5:$G$205,6),VLOOKUP($H54,NA_All!$A$5:$AH$205,3*($C$8-1)+3)) -> 1.2583 | N54: =IF($B$6="Hardness",VLOOKUP($H54,Ann_Hard!$A$5:$G$205,7),VLOOKUP($H54,NA_All!$A$5:$AH$205,3*($C$8-1)+4)) -> 2.2306 | O54: =IF(VLOOKUP($B$6,$A$28:$D$55,4,FALSE)=0,#N/A,IF($B$8="PM-13",#N/A,(EXP((VLOOKUP($B$6,$A$28:$F$55,5,FALSE)*LN(Ann_Hard!B31/1000)) + VLOOKUP($B$6,$A$28:$F$55,6,FALSE))))) ->  | P54: 5 | Q54: =IF(VLOOKUP($B$6,$A$28:$D$55,4,FALSE)=0,#N/A,IF($B$8="PM-13",#N/A,(EXP((VLOOKUP($B$6,$A$28:$F$55,5,FALSE)*LN(Ann_Hard!D31/1000)) + VLOOKUP($B$6,$A$28:$F$55,6,FALSE))))) ->  | S54: 182.1666667 | T54: =VLOOKUP($S54,P_All!$AJ$5:$BQ$245,3*($C$8-1)+2) -> 0.28631 | U54: =VLOOKUP($S54,P_All!$AJ$5:$BQ$245,3*($C$8-1)+3) -> 0.48567 | V54: =VLOOKUP($S54,P_All!$AJ$5:$BQ$245,3*($C$8-1)+4) -> 1.0044 | W54: =VLOOKUP($S54,NA_All!$AJ$5:$BQ$245,3*($C$8-1)+2) -> 0.65024 | X54: =VLOOKUP($S54,NA_All!$AJ$5:$BQ$245,3*($C$8-1)+3) -> 0.90134 | Y54: =VLOOKUP($S54,NA_All!$AJ$5:$BQ$245,3*($C$8-1)+4) -> 1.6376 | Z54: =IF(ISNA(VLOOKUP($B$6,$A$28:$E$55,IF($B$8=$A$25,3,2))),EXP(VLOOKUP($B$6,$A$28:$E$55,4)*LN(VLOOKUP($S54,#REF!,$C$8+1)/1000)+VLOOKUP($B$6,$A$28:$E$55,5)),VLOOKUP($B$6,$A$28:$E$55,IF($B$8=$A$25,3,2))) -> 5
A55: Hardness | B55: 500000 | C55: 500000 | D55: 0 | H55: 27 | I55: =IF($B$6="Hardness",VLOOKUP($H55,Ann_Hard!$A$5:$D$205,2),VLOOKUP($H55,P_All!$A$5:$AH$205,3*($C$8-1)+2)) -> 0.45489 | J55: =IF($B$6="Hardness",VLOOKUP($H55,Ann_Hard!$A$5:$D$205,3),VLOOKUP($H55,P_All!$A$5:$AH$205,3*($C$8-1)+3)) -> 1.1155 | K55: =IF($B$6="Hardness",VLOOKUP($H55,Ann_Hard!$A$5:$D$205,4),VLOOKUP($H55,P_All!$A$5:$AH$205,3*($C$8-1)+4)) -> 2.5473 | L55: =IF($B$6="Hardness",VLOOKUP($H55,Ann_Hard!$A$5:$G$205,5),VLOOKUP($H55,NA_All!$A$5:$AH$205,3*($C$8-1)+2)) -> 0.94426 | M55: =IF($B$6="Hardness",VLOOKUP($H55,Ann_Hard!$A$5:$G$205,6),VLOOKUP($H55,NA_All!$A$5:$AH$205,3*($C$8-1)+3)) -> 1.2633 | N55: =IF($B$6="Hardness",VLOOKUP($H55,Ann_Hard!$A$5:$G$205,7),VLOOKUP($H55,NA_All!$A$5:$AH$205,3*($C$8-1)+4)) -> 2.2924 | O55: =IF(VLOOKUP($B$6,$A$28:$D$55,4,FALSE)=0,#N/A,IF($B$8="PM-13",#N/A,(EXP((VLOOKUP($B$6,$A$28:$F$55,5,FALSE)*LN(Ann_Hard!B32/1000)) + VLOOKUP($B$6,$A$28:$F$55,6,FALSE))))) ->  | P55: 5 | Q55: =IF(VLOOKUP($B$6,$A$28:$D$55,4,FALSE)=0,#N/A,IF($B$8="PM-13",#N/A,(EXP((VLOOKUP($B$6,$A$28:$F$55,5,FALSE)*LN(Ann_Hard!D32/1000)) + VLOOKUP($B$6,$A$28:$F$55,6,FALSE))))) ->  | S55: 182.25 | T55: =VLOOKUP($S55,P_All!$AJ$5:$BQ$245,3*($C$8-1)+2) -> 0.25239 | U55: =VLOOKUP($S55,P_All!$AJ$5:$BQ$245,3*($C$8-1)+3) -> 0.49066 | V55: =VLOOKUP($S55,P_All!$AJ$5:$BQ$245,3*($C$8-1)+4) -> 1.2148 | W55: =VLOOKUP($S55,NA_All!$AJ$5:$BQ$245,3*($C$8-1)+2) -> 0.64629 | X55: =VLOOKUP($S55,NA_All!$AJ$5:$BQ$245,3*($C$8-1)+3) -> 0.91304 | Y55: =VLOOKUP($S55,NA_All!$AJ$5:$BQ$245,3*($C$8-1)+4) -> 1.5954 | Z55: =IF(ISNA(VLOOKUP($B$6,$A$28:$E$55,IF($B$8=$A$25,3,2))),EXP(VLOOKUP($B$6,$A$28:$E$55,4)*LN(VLOOKUP($S55,#REF!,$C$8+1)/1000)+VLOOKUP($B$6,$A$28:$E$55,5)),VLOOKUP($B$6,$A$28:$E$55,IF($B$8=$A$25,3,2))) -> 5
H56: 28 | I56: =IF($B$6="Hardness",VLOOKUP($H56,Ann_Hard!$A$5:$D$205,2),VLOOKUP($H56,P_All!$A$5:$AH$205,3*($C$8-1)+2)) -> 0.43969 | J56: =IF($B$6="Hardness",VLOOKUP($H56,Ann_Hard!$A$5:$D$205,3),VLOOKUP($H56,P_All!$A$5:$AH$205,3*($C$8-1)+3)) -> 1.0268 | K56: =IF($B$6="Hardness",VLOOKUP($H56,Ann_Hard!$A$5:$D$205,4),VLOOKUP($H56,P_All!$A$5:$AH$205,3*($C$8-1)+4)) -> 2.4247 | L56: =IF($B$6="Hardness",VLOOKUP($H56,Ann_Hard!$A$5:$G$205,5),VLOOKUP($H56,NA_All!$A$5:$AH$205,3*($C$8-1)+2)) -> 0.9442 | M56: =IF($B$6="Hardness",VLOOKUP($H56,Ann_Hard!$A$5:$G$205,6),VLOOKUP($H56,NA_All!$A$5:$AH$205,3*($C$8-1)+3)) -> 1.2619 | N56: =IF($B$6="Hardness",VLOOKUP($H56,Ann_Hard!$A$5:$G$205,7),VLOOKUP($H56,NA_All!$A$5:$AH$205,3*($C$8-1)+4)) -> 2.0795 | O56: =IF(VLOOKUP($B$6,$A$28:$D$55,4,FALSE)=0,#N/A,IF($B$8="PM-13",#N/A,(EXP((VLOOKUP($B$6,$A$28:$F$55,5,FALSE)*LN(Ann_Hard!B33/1000)) + VLOOKUP($B$6,$A$28:$F$55,6,FALSE))))) ->  | P56: 5 | Q56: =IF(VLOOKUP($B$6,$A$28:$D$55,4,FALSE)=0,#N/A,IF($B$8="PM-13",#N/A,(EXP((VLOOKUP($B$6,$A$28:$F$55,5,FALSE)*LN(Ann_Hard!D33/1000)) + VLOOKUP($B$6,$A$28:$F$55,6,FALSE))))) ->  | S56: 182.3333333 | T56: =VLOOKUP($S56,P_All!$AJ$5:$BQ$245,3*($C$8-1)+2) -> 0.33385 | U56: =VLOOKUP($S56,P_All!$AJ$5:$BQ$245,3*($C$8-1)+3) -> 0.95075 | V56: =VLOOKUP($S56,P_All!$AJ$5:$BQ$245,3*($C$8-1)+4) -> 2.4696 | W56: =VLOOKUP($S56,NA_All!$AJ$5:$BQ$245,3*($C$8-1)+2) -> 0.60543 | X56: =VLOOKUP($S56,NA_All!$AJ$5:$BQ$245,3*($C$8-1)+3) -> 1.0161 | Y56: =VLOOKUP($S56,NA_All!$AJ$5:$BQ$245,3*($C$8-1)+4) -> 1.9145 | Z56: =IF(ISNA(VLOOKUP($B$6,$A$28:$E$55,IF($B$8=$A$25,3,2))),EXP(VLOOKUP($B$6,$A$28:$E$55,4)*LN(VLOOKUP($S56,#REF!,$C$8+1)/1000)+VLOOKUP($B$6,$A$28:$E$55,5)),VLOOKUP($B$6,$A$28:$E$55,IF($B$8=$A$25,3,2))) -> 5
A57: Plot | H57: 29 | I57: =IF($B$6="Hardness",VLOOKUP($H57,Ann_Hard!$A$5:$D$205,2),VLOOKUP($H57,P_All!$A$5:$AH$205,3*($C$8-1)+2)) -> 0.42493 | J57: =IF($B$6="Hardness",VLOOKUP($H57,Ann_Hard!$A$5:$D$205,3),VLOOKUP($H57,P_All!$A$5:$AH$205,3*($C$8-1)+3)) -> 1.0024 | K57: =IF($B$6="Hardness",VLOOKUP($H57,Ann_Hard!$A$5:$D$205,4),VLOOKUP($H57,P_All!$A$5:$AH$205,3*($C$8-1)+4)) -> 2.3213 | L57: =IF($B$6="Hardness",VLOOKUP($H57,Ann_Hard!$A$5:$G$205,5),VLOOKUP($H57,NA_All!$A$5:$AH$205,3*($C$8-1)+2)) -> 0.94103 | M57: =IF($B$6="Hardness",VLOOKUP($H57,Ann_Hard!$A$5:$G$205,6),VLOOKUP($H57,NA_All!$A$5:$AH$205,3*($C$8-1)+3)) -> 1.2661 | N57: =IF($B$6="Hardness",VLOOKUP($H57,Ann_Hard!$A$5:$G$205,7),VLOOKUP($H57,NA_All!$A$5:$AH$205,3*($C$8-1)+4)) -> 2.1674 | O57: =IF(VLOOKUP($B$6,$A$28:$D$55,4,FALSE)=0,#N/A,IF($B$8="PM-13",#N/A,(EXP((VLOOKUP($B$6,$A$28:$F$55,5,FALSE)*LN(Ann_Hard!B34/1000)) + VLOOKUP($B$6,$A$28:$F$55,6,FALSE))))) ->  | P57: 5 | Q57: =IF(VLOOKUP($B$6,$A$28:$D$55,4,FALSE)=0,#N/A,IF($B$8="PM-13",#N/A,(EXP((VLOOKUP($B$6,$A$28:$F$55,5,FALSE)*LN(Ann_Hard!D34/1000)) + VLOOKUP($B$6,$A$28:$F$55,6,FALSE))))) ->  | S57: 182.4166667 | T57: =VLOOKUP($S57,P_All!$AJ$5:$BQ$245,3*($C$8-1)+2) -> 0.45806 | U57: =VLOOKUP($S57,P_All!$AJ$5:$BQ$245,3*($C$8-1)+3) -> 0.99128 | V57: =VLOOKUP($S57,P_All!$AJ$5:$BQ$245,3*($C$8-1)+4) -> 2.4417 | W57: =VLOOKUP($S57,NA_All!$AJ$5:$BQ$245,3*($C$8-1)+2) -> 0.59261 | X57: =VLOOKUP($S57,NA_All!$AJ$5:$BQ$245,3*($C$8-1)+3) -> 1.0308 | Y57: =VLOOKUP($S57,NA_All!$AJ$5:$BQ$245,3*($C$8-1)+4) -> 2.0586 | Z57: =IF(ISNA(VLOOKUP($B$6,$A$28:$E$55,IF($B$8=$A$25,3,2))),EXP(VLOOKUP($B$6,$A$28:$E$55,4)*LN(VLOOKUP($S57,#REF!,$C$8+1)/1000)+VLOOKUP($B$6,$A$28:$E$55,5)),VLOOKUP($B$6,$A$28:$E$55,IF($B$8=$A$25,3,2))) -> 5
A58: Annual Max | H58: 30 | I58: =IF($B$6="Hardness",VLOOKUP($H58,Ann_Hard!$A$5:$D$205,2),VLOOKUP($H58,P_All!$A$5:$AH$205,3*($C$8-1)+2)) -> 0.47415 | J58: =IF($B$6="Hardness",VLOOKUP($H58,Ann_Hard!$A$5:$D$205,3),VLOOKUP($H58,P_All!$A$5:$AH$205,3*($C$8-1)+3)) -> 1.014 | K58: =IF($B$6="Hardness",VLOOKUP($H58,Ann_Hard!$A$5:$D$205,4),VLOOKUP($H58,P_All!$A$5:$AH$205,3*($C$8-1)+4)) -> 2.5706 | L58: =IF($B$6="Hardness",VLOOKUP($H58,Ann_Hard!$A$5:$G$205,5),VLOOKUP($H58,NA_All!$A$5:$AH$205,3*($C$8-1)+2)) -> 0.9351 | M58: =IF($B$6="Hardness",VLOOKUP($H58,Ann_Hard!$A$5:$G$205,6),VLOOKUP($H58,NA_All!$A$5:$AH$205,3*($C$8-1)+3)) -> 1.273 | N58: =IF($B$6="Hardness",VLOOKUP($H58,Ann_Hard!$A$5:$G$205,7),VLOOKUP($H58,NA_All!$A$5:$AH$205,3*($C$8-1)+4)) -> 2.229 | O58: =IF(VLOOKUP($B$6,$A$28:$D$55,4,FALSE)=0,#N/A,IF($B$8="PM-13",#N/A,(EXP((VLOOKUP($B$6,$A$28:$F$55,5,FALSE)*LN(Ann_Hard!B35/1000)) + VLOOKUP($B$6,$A$28:$F$55,6,FALSE))))) ->  | P58: 5 | Q58: =IF(VLOOKUP($B$6,$A$28:$D$55,4,FALSE)=0,#N/A,IF($B$8="PM-13",#N/A,(EXP((VLOOKUP($B$6,$A$28:$F$55,5,FALSE)*LN(Ann_Hard!D35/1000)) + VLOOKUP($B$6,$A$28:$F$55,6,FALSE))))) ->  | S58: 182.5 | T58: =VLOOKUP($S58,P_All!$AJ$5:$BQ$245,3*($C$8-1)+2) -> 0.44545 | U58: =VLOOKUP($S58,P_All!$AJ$5:$BQ$245,3*($C$8-1)+3) -> 0.99605 | V58: =VLOOKUP($S58,P_All!$AJ$5:$BQ$245,3*($C$8-1)+4) -> 2.2306 | W58: =VLOOKUP($S58,NA_All!$AJ$5:$BQ$245,3*($C$8-1)+2) -> 0.61119 | X58: =VLOOKUP($S58,NA_All!$AJ$5:$BQ$245,3*($C$8-1)+3) -> 1.0036 | Y58: =VLOOKUP($S58,NA_All!$AJ$5:$BQ$245,3*($C$8-1)+4) -> 1.8841 | Z58: =IF(ISNA(VLOOKUP($B$6,$A$28:$E$55,IF($B$8=$A$25,3,2))),EXP(VLOOKUP($B$6,$A$28:$E$55,4)*LN(VLOOKUP($S58,#REF!,$C$8+1)/1000)+VLOOKUP($B$6,$A$28:$E$55,5)),VLOOKUP($B$6,$A$28:$E$55,IF($B$8=$A$25,3,2))) -> 5
A59: Annual Average | H59: 31 | I59: =IF($B$6="Hardness",VLOOKUP($H59,Ann_Hard!$A$5:$D$205,2),VLOOKUP($H59,P_All!$A$5:$AH$205,3*($C$8-1)+2)) -> 0.45938 | J59: =IF($B$6="Hardness",VLOOKUP($H59,Ann_Hard!$A$5:$D$205,3),VLOOKUP($H59,P_All!$A$5:$AH$205,3*($C$8-1)+3)) -> 1.0942 | K59: =IF($B$6="Hardness",VLOOKUP($H59,Ann_Hard!$A$5:$D$205,4),VLOOKUP($H59,P_All!$A$5:$AH$205,3*($C$8-1)+4)) -> 2.4643 | L59: =IF($B$6="Hardness",VLOOKUP($H59,Ann_Hard!$A$5:$G$205,5),VLOOKUP($H59,NA_All!$A$5:$AH$205,3*($C$8-1)+2)) -> 0.92786 | M59: =IF($B$6="Hardness",VLOOKUP($H59,Ann_Hard!$A$5:$G$205,6),VLOOKUP($H59,NA_All!$A$5:$AH$205,3*($C$8-1)+3)) -> 1.2796 | N59: =IF($B$6="Hardness",VLOOKUP($H59,Ann_Hard!$A$5:$G$205,7),VLOOKUP($H59,NA_All!$A$5:$AH$205,3*($C$8-1)+4)) -> 2.3172 | O59: =IF(VLOOKUP($B$6,$A$28:$D$55,4,FALSE)=0,#N/A,IF($B$8="PM-13",#N/A,(EXP((VLOOKUP($B$6,$A$28:$F$55,5,FALSE)*LN(Ann_Hard!B36/1000)) + VLOOKUP($B$6,$A$28:$F$55,6,FALSE))))) ->  | P59: 5 | Q59: =IF(VLOOKUP($B$6,$A$28:$D$55,4,FALSE)=0,#N/A,IF($B$8="PM-13",#N/A,(EXP((VLOOKUP($B$6,$A$28:$F$55,5,FALSE)*LN(Ann_Hard!D36/1000)) + VLOOKUP($B$6,$A$28:$F$55,6,FALSE))))) ->  | S59: 182.5833333 | T59: =VLOOKUP($S59,P_All!$AJ$5:$BQ$245,3*($C$8-1)+2) -> 0.4539 | U59: =VLOOKUP($S59,P_All!$AJ$5:$BQ$245,3*($C$8-1)+3) -> 0.90678 | V59: =VLOOKUP($S59,P_All!$AJ$5:$BQ$245,3*($C$8-1)+4) -> 2.1833 | W59: =VLOOKUP($S59,NA_All!$AJ$5:$BQ$245,3*($C$8-1)+2) -> 0.65427 | X59: =VLOOKUP($S59,NA_All!$AJ$5:$BQ$245,3*($C$8-1)+3) -> 0.97051 | Y59: =VLOOKUP($S59,NA_All!$AJ$5:$BQ$245,3*($C$8-1)+4) -> 1.8384 | Z59: =IF(ISNA(VLOOKUP($B$6,$A$28:$E$55,IF($B$8=$A$25,3,2))),EXP(VLOOKUP($B$6,$A$28:$E$55,4)*LN(VLOOKUP($S59,#REF!,$C$8+1)/1000)+VLOOKUP($B$6,$A$28:$E$55,5)),VLOOKUP($B$6,$A$28:$E$55,IF($B$8=$A$25,3,2))) -> 5
H60: 32 | I60: =IF($B$6="Hardness",VLOOKUP($H60,Ann_Hard!$A$5:$D$205,2),VLOOKUP($H60,P_All!$A$5:$AH$205,3*($C$8-1)+2)) -> 0.45308 | J60: =IF($B$6="Hardness",VLOOKUP($H60,Ann_Hard!$A$5:$D$205,3),VLOOKUP($H60,P_All!$A$5:$AH$205,3*($C$8-1)+3)) -> 1.0326 | K60: =IF($B$6="Hardness",VLOOKUP($H60,Ann_Hard!$A$5:$D$205,4),VLOOKUP($H60,P_All!$A$5:$AH$205,3*($C$8-1)+4)) -> 2.5308 | L60: =IF($B$6="Hardness",VLOOKUP($H60,Ann_Hard!$A$5:$G$205,5),VLOOKUP($H60,NA_All!$A$5:$AH$205,3*($C$8-1)+2)) -> 0.92398 | M60: =IF($B$6="Hardness",VLOOKUP($H60,Ann_Hard!$A$5:$G$205,6),VLOOKUP($H60,NA_All!$A$5:$AH$205,3*($C$8-1)+3)) -> 1.2639 | N60: =IF($B$6="Hardness",VLOOKUP($H60,Ann_Hard!$A$5:$G$205,7),VLOOKUP($H60,NA_All!$A$5:$AH$205,3*($C$8-1)+4)) -> 2.2687 | O60: =IF(VLOOKUP($B$6,$A$28:$D$55,4,FALSE)=0,#N/A,IF($B$8="PM-13",#N/A,(EXP((VLOOKUP($B$6,$A$28:$F$55,5,FALSE)*LN(Ann_Hard!B37/1000)) + VLOOKUP($B$6,$A$28:$F$55,6,FALSE))))) ->  | P60: 5 | Q60: =IF(VLOOKUP($B$6,$A$28:$D$55,4,FALSE)=0,#N/A,IF($B$8="PM-13",#N/A,(EXP((VLOOKUP($B$6,$A$28:$F$55,5,FALSE)*LN(Ann_Hard!D37/1000)) + VLOOKUP($B$6,$A$28:$F$55,6,FALSE))))) ->  | S60: 182.6666667 | T60: =VLOOKUP($S60,P_All!$AJ$5:$BQ$245,3*($C$8-1)+2) -> 0.41174 | U60: =VLOOKUP($S60,P_All!$AJ$5:$BQ$245,3*($C$8-1)+3) -> 0.74874 | V60: =VLOOKUP($S60,P_All!$AJ$5:$BQ$245,3*($C$8-1)+4) -> 1.6805 | W60: =VLOOKUP($S60,NA_All!$AJ$5:$BQ$245,3*($C$8-1)+2) -> 0.63679 | X60: =VLOOKUP($S60,NA_All!$AJ$5:$BQ$245,3*($C$8-1)+3) -> 0.92626 | Y60: =VLOOKUP($S60,NA_All!$AJ$5:$BQ$245,3*($C$8-1)+4) -> 1.6477 | Z60: =IF(ISNA(VLOOKUP($B$6,$A$28:$E$55,IF($B$8=$A$25,3,2))),EXP(VLOOKUP($B$6,$A$28:$E$55,4)*LN(VLOOKUP($S60,#REF!,$C$8+1)/1000)+VLOOKUP($B$6,$A$28:$E$55,5)),VLOOKUP($B$6,$A$28:$E$55,IF($B$8=$A$25,3,2))) -> 5
H61: 33 | I61: =IF($B$6="Hardness",VLOOKUP($H61,Ann_Hard!$A$5:$D$205,2),VLOOKUP($H61,P_All!$A$5:$AH$205,3*($C$8-1)+2)) -> 0.45803 | J61: =IF($B$6="Hardness",VLOOKUP($H61,Ann_Hard!$A$5:$D$205,3),VLOOKUP($H61,P_All!$A$5:$AH$205,3*($C$8-1)+3)) -> 1.0763 | K61: =IF($B$6="Hardness",VLOOKUP($H61,Ann_Hard!$A$5:$D$205,4),VLOOKUP($H61,P_All!$A$5:$AH$205,3*($C$8-1)+4)) -> 2.6149 | L61: =IF($B$6="Hardness",VLOOKUP($H61,Ann_Hard!$A$5:$G$205,5),VLOOKUP($H61,NA_All!$A$5:$AH$205,3*($C$8-1)+2)) -> 0.91986 | M61: =IF($B$6="Hardness",VLOOKUP($H61,Ann_Hard!$A$5:$G$205,6),VLOOKUP($H61,NA_All!$A$5:$AH$205,3*($C$8-1)+3)) -> 1.2458 | N61: =IF($B$6="Hardness",VLOOKUP($H61,Ann_Hard!$A$5:$G$205,7),VLOOKUP($H61,NA_All!$A$5:$AH$205,3*($C$8-1)+4)) -> 2.2594 | O61: =IF(VLOOKUP($B$6,$A$28:$D$55,4,FALSE)=0,#N/A,IF($B$8="PM-13",#N/A,(EXP((VLOOKUP($B$6,$A$28:$F$55,5,FALSE)*LN(Ann_Hard!B38/1000)) + VLOOKUP($B$6,$A$28:$F$55,6,FALSE))))) ->  | P61: 5 | Q61: =IF(VLOOKUP($B$6,$A$28:$D$55,4,FALSE)=0,#N/A,IF($B$8="PM-13",#N/A,(EXP((VLOOKUP($B$6,$A$28:$F$55,5,FALSE)*LN(Ann_Hard!D38/1000)) + VLOOKUP($B$6,$A$28:$F$55,6,FALSE))))) ->  | S61: 182.75 | T61: =VLOOKUP($S61,P_All!$AJ$5:$BQ$245,3*($C$8-1)+2) -> 0.3394 | U61: =VLOOKUP($S61,P_All!$AJ$5:$BQ$245,3*($C$8-1)+3) -> 0.80561 | V61: =VLOOKUP($S61,P_All!$AJ$5:$BQ$245,3*($C$8-1)+4) -> 1.9494 | W61: =VLOOKUP($S61,NA_All!$AJ$5:$BQ$245,3*($C$8-1)+2) -> 0.6366 | X61: =VLOOKUP($S61,NA_All!$AJ$5:$BQ$245,3*($C$8-1)+3) -> 0.96213 | Y61: =VLOOKUP($S61,NA_All!$AJ$5:$BQ$245,3*($C$8-1)+4) -> 1.6817 | Z61: =IF(ISNA(VLOOKUP($B$6,$A$28:$E$55,IF($B$8=$A$25,3,2))),EXP(VLOOKUP($B$6,$A$28:$E$55,4)*LN(VLOOKUP($S61,#REF!,$C$8+1)/1000)+VLOOKUP($B$6,$A$28:$E$55,5)),VLOOKUP($B$6,$A$28:$E$55,IF($B$8=$A$25,3,2))) -> 5
H62: 34 | I62: =IF($B$6="Hardness",VLOOKUP($H62,Ann_Hard!$A$5:$D$205,2),VLOOKUP($H62,P_All!$A$5:$AH$205,3*($C$8-1)+2)) -> 0.47212 | J62: =IF($B$6="Hardness",VLOOKUP($H62,Ann_Hard!$A$5:$D$205,3),VLOOKUP($H62,P_All!$A$5:$AH$205,3*($C$8-1)+3)) -> 1.0363 | K62: =IF($B$6="Hardness",VLOOKUP($H62,Ann_Hard!$A$5:$D$205,4),VLOOKUP($H62,P_All!$A$5:$AH$205,3*($C$8-1)+4)) -> 2.4702 | L62: =IF($B$6="Hardness",VLOOKUP($H62,Ann_Hard!$A$5:$G$205,5),VLOOKUP($H62,NA_All!$A$5:$AH$205,3*($C$8-1)+2)) -> 0.90727 | M62: =IF($B$6="Hardness",VLOOKUP($H62,Ann_Hard!$A$5:$G$205,6),VLOOKUP($H62,NA_All!$A$5:$AH$205,3*($C$8-1)+3)) -> 1.2404 | N62: =IF($B$6="Hardness",VLOOKUP($H62,Ann_Hard!$A$5:$G$205,7),VLOOKUP($H62,NA_All!$A$5:$AH$205,3*($C$8-1)+4)) -> 2.2549 | O62: =IF(VLOOKUP($B$6,$A$28:$D$55,4,FALSE)=0,#N/A,IF($B$8="PM-13",#N/A,(EXP((VLOOKUP($B$6,$A$28:$F$55,5,FALSE)*LN(Ann_Hard!B39/1000)) + VLOOKUP($B$6,$A$28:$F$55,6,FALSE))))) ->  | P62: 5 | Q62: =IF(VLOOKUP($B$6,$A$28:$D$55,4,FALSE)=0,#N/A,IF($B$8="PM-13",#N/A,(EXP((VLOOKUP($B$6,$A$28:$F$55,5,FALSE)*LN(Ann_Hard!D39/1000)) + VLOOKUP($B$6,$A$28:$F$55,6,FALSE))))) ->  | S62: 182.8333333 | T62: =VLOOKUP($S62,P_All!$AJ$5:$BQ$245,3*($C$8-1)+2) -> 0.39663 | U62: =VLOOKUP($S62,P_All!$AJ$5:$BQ$245,3*($C$8-1)+3) -> 0.92075 | V62: =VLOOKUP($S62,P_All!$AJ$5:$BQ$245,3*($C$8-1)+4) -> 1.9253 | W62: =VLOOKUP($S62,NA_All!$AJ$5:$BQ$245,3*($C$8-1)+2) -> 0.64197 | X62: =VLOOKUP($S62,NA_All!$AJ$5:$BQ$245,3*($C$8-1)+3) -> 0.9682 | Y62: =VLOOKUP($S62,NA_All!$AJ$5:$BQ$245,3*($C$8-1)+4) -> 1.6864 | Z62: =IF(ISNA(VLOOKUP($B$6,$A$28:$E$55,IF($B$8=$A$25,3,2))),EXP(VLOOKUP($B$6,$A$28:$E$55,4)*LN(VLOOKUP($S62,#REF!,$C$8+1)/1000)+VLOOKUP($B$6,$A$28:$E$55,5)),VLOOKUP($B$6,$A$28:$E$55,IF($B$8=$A$25,3,2))) -> 5
H63: 35 | I63: =IF($B$6="Hardness",VLOOKUP($H63,Ann_Hard!$A$5:$D$205,2),VLOOKUP($H63,P_All!$A$5:$AH$205,3*($C$8-1)+2)) -> 0.44527 | J63: =IF($B$6="Hardness",VLOOKUP($H63,Ann_Hard!$A$5:$D$205,3),VLOOKUP($H63,P_All!$A$5:$AH$205,3*($C$8-1)+3)) -> 1.0052 | K63: =IF($B$6="Hardness",VLOOKUP($H63,Ann_Hard!$A$5:$D$205,4),VLOOKUP($H63,P_All!$A$5:$AH$205,3*($C$8-1)+4)) -> 2.4126 | L63: =IF($B$6="Hardness",VLOOKUP($H63,Ann_Hard!$A$5:$G$205,5),VLOOKUP($H63,NA_All!$A$5:$AH$205,3*($C$8-1)+2)) -> 0.90065 | M63: =IF($B$6="Hardness",VLOOKUP($H63,Ann_Hard!$A$5:$G$205,6),VLOOKUP($H63,NA_All!$A$5:$AH$205,3*($C$8-1)+3)) -> 1.2443 | N63: =IF($B$6="Hardness",VLOOKUP($H63,Ann_Hard!$A$5:$G$205,7),VLOOKUP($H63,NA_All!$A$5:$AH$205,3*($C$8-1)+4)) -> 2.2425 | O63: =IF(VLOOKUP($B$6,$A$28:$D$55,4,FALSE)=0,#N/A,IF($B$8="PM-13",#N/A,(EXP((VLOOKUP($B$6,$A$28:$F$55,5,FALSE)*LN(Ann_Hard!B40/1000)) + VLOOKUP($B$6,$A$28:$F$55,6,FALSE))))) ->  | P63: 5 | Q63: =IF(VLOOKUP($B$6,$A$28:$D$55,4,FALSE)=0,#N/A,IF($B$8="PM-13",#N/A,(EXP((VLOOKUP($B$6,$A$28:$F$55,5,FALSE)*LN(Ann_Hard!D40/1000)) + VLOOKUP($B$6,$A$28:$F$55,6,FALSE))))) ->  | S63: 182.9166667 | T63: =VLOOKUP($S63,P_All!$AJ$5:$BQ$245,3*($C$8-1)+2) -> 0.42567 | U63: =VLOOKUP($S63,P_All!$AJ$5:$BQ$245,3*($C$8-1)+3) -> 0.95233 | V63: =VLOOKUP($S63,P_All!$AJ$5:$BQ$245,3*($C$8-1)+4) -> 2.176 | W63: =VLOOKUP($S63,NA_All!$AJ$5:$BQ$245,3*($C$8-1)+2) -> 0.66307 | X63: =VLOOKUP($S63,NA_All!$AJ$5:$BQ$245,3*($C$8-1)+3) -> 1.0006 | Y63: =VLOOKUP($S63,NA_All!$AJ$5:$BQ$245,3*($C$8-1)+4) -> 1.7645 | Z63: =IF(ISNA(VLOOKUP($B$6,$A$28:$E$55,IF($B$8=$A$25,3,2))),EXP(VLOOKUP($B$6,$A$28:$E$55,4)*LN(VLOOKUP($S63,#REF!,$C$8+1)/1000)+VLOOKUP($B$6,$A$28:$E$55,5)),VLOOKUP($B$6,$A$28:$E$55,IF($B$8=$A$25,3,2))) -> 5
H64: 36 | I64: =IF($B$6="Hardness",VLOOKUP($H64,Ann_Hard!$A$5:$D$205,2),VLOOKUP($H64,P_All!$A$5:$AH$205,3*($C$8-1)+2)) -> 0.44362 | J64: =IF($B$6="Hardness",VLOOKUP($H64,Ann_Hard!$A$5:$D$205,3),VLOOKUP($H64,P_All!$A$5:$AH$205,3*($C$8-1)+3)) -> 1.0028 | K64: =IF($B$6="Hardness",VLOOKUP($H64,Ann_Hard!$A$5:$D$205,4),VLOOKUP($H64,P_All!$A$5:$AH$205,3*($C$8-1)+4)) -> 2.4135 | L64: =IF($B$6="Hardness",VLOOKUP($H64,Ann_Hard!$A$5:$G$205,5),VLOOKUP($H64,NA_All!$A$5:$AH$205,3*($C$8-1)+2)) -> 0.9042 | M64: =IF($B$6="Hardness",VLOOKUP($H64,Ann_Hard!$A$5:$G$205,6),VLOOKUP($H64,NA_All!$A$5:$AH$205,3*($C$8-1)+3)) -> 1.2377 | N64: =IF($B$6="Hardness",VLOOKUP($H64,Ann_Hard!$A$5:$G$205,7),VLOOKUP($H64,NA_All!$A$5:$AH$205,3*($C$8-1)+4)) -> 2.1851 | O64: =IF(VLOOKUP($B$6,$A$28:$D$55,4,FALSE)=0,#N/A,IF($B$8="PM-13",#N/A,(EXP((VLOOKUP($B$6,$A$28:$F$55,5,FALSE)*LN(Ann_Hard!B41/1000)) + VLOOKUP($B$6,$A$28:$F$55,6,FALSE))))) ->  | P64: 5 | Q64: =IF(VLOOKUP($B$6,$A$28:$D$55,4,FALSE)=0,#N/A,IF($B$8="PM-13",#N/A,(EXP((VLOOKUP($B$6,$A$28:$F$55,5,FALSE)*LN(Ann_Hard!D41/1000)) + VLOOKUP($B$6,$A$28:$F$55,6,FALSE))))) ->  | S64: 183 | T64: =VLOOKUP($S64,P_All!$AJ$5:$BQ$245,3*($C$8-1)+2) -> 0.39754 | U64: =VLOOKUP($S64,P_All!$AJ$5:$BQ$245,3*($C$8-1)+3) -> 0.76042 | V64: =VLOOKUP($S64,P_All!$AJ$5:$BQ$245,3*($C$8-1)+4) -> 1.789 | W64: =VLOOKUP($S64,NA_All!$AJ$5:$BQ$245,3*($C$8-1)+2) -> 0.65709 | X64: =VLOOKUP($S64,NA_All!$AJ$5:$BQ$245,3*($C$8-1)+3) -> 0.95166 | Y64: =VLOOKUP($S64,NA_All!$AJ$5:$BQ$245,3*($C$8-1)+4) -> 1.654 | Z64: =IF(ISNA(VLOOKUP($B$6,$A$28:$E$55,IF($B$8=$A$25,3,2))),EXP(VLOOKUP($B$6,$A$28:$E$55,4)*LN(VLOOKUP($S64,#REF!,$C$8+1)/1000)+VLOOKUP($B$6,$A$28:$E$55,5)),VLOOKUP($B$6,$A$28:$E$55,IF($B$8=$A$25,3,2))) -> 5
H65: 37 | I65: =IF($B$6="Hardness",VLOOKUP($H65,Ann_Hard!$A$5:$D$205,2),VLOOKUP($H65,P_All!$A$5:$AH$205,3*($C$8-1)+2)) -> 0.46567 | J65: =IF($B$6="Hardness",VLOOKUP($H65,Ann_Hard!$A$5:$D$205,3),VLOOKUP($H65,P_All!$A$5:$AH$205,3*($C$8-1)+3)) -> 1.047 | K65: =IF($B$6="Hardness",VLOOKUP($H65,Ann_Hard!$A$5:$D$205,4),VLOOKUP($H65,P_All!$A$5:$AH$205,3*($C$8-1)+4)) -> 2.5301 | L65: =IF($B$6="Hardness",VLOOKUP($H65,Ann_Hard!$A$5:$G$205,5),VLOOKUP($H65,NA_All!$A$5:$AH$205,3*($C$8-1)+2)) -> 0.90423 | M65: =IF($B$6="Hardness",VLOOKUP($H65,Ann_Hard!$A$5:$G$205,6),VLOOKUP($H65,NA_All!$A$5:$AH$205,3*($C$8-1)+3)) -> 1.2523 | N65: =IF($B$6="Hardness",VLOOKUP($H65,Ann_Hard!$A$5:$G$205,7),VLOOKUP($H65,NA_All!$A$5:$AH$205,3*($C$8-1)+4)) -> 2.3108 | O65: =IF(VLOOKUP($B$6,$A$28:$D$55,4,FALSE)=0,#N/A,IF($B$8="PM-13",#N/A,(EXP((VLOOKUP($B$6,$A$28:$F$55,5,FALSE)*LN(Ann_Hard!B42/1000)) + VLOOKUP($B$6,$A$28:$F$55,6,FALSE))))) ->  | P65: 5 | Q65: =IF(VLOOKUP($B$6,$A$28:$D$55,4,FALSE)=0,#N/A,IF($B$8="PM-13",#N/A,(EXP((VLOOKUP($B$6,$A$28:$F$55,5,FALSE)*LN(Ann_Hard!D42/1000)) + VLOOKUP($B$6,$A$28:$F$55,6,FALSE))))) ->  | S65: 183.0833333 | T65: =VLOOKUP($S65,P_All!$AJ$5:$BQ$245,3*($C$8-1)+2) -> 0.34431 | U65: =VLOOKUP($S65,P_All!$AJ$5:$BQ$245,3*($C$8-1)+3) -> 0.62456 | V65: =VLOOKUP($S65,P_All!$AJ$5:$BQ$245,3*($C$8-1)+4) -> 1.3281 | W65: =VLOOKUP($S65,NA_All!$AJ$5:$BQ$245,3*($C$8-1)+2) -> 0.64559 | X65: =VLOOKUP($S65,NA_All!$AJ$5:$BQ$245,3*($C$8-1)+3) -> 0.92941 | Y65: =VLOOKUP($S65,NA_All!$AJ$5:$BQ$245,3*($C$8-1)+4) -> 1.5785 | Z65: =IF(ISNA(VLOOKUP($B$6,$A$28:$E$55,IF($B$8=$A$25,3,2))),EXP(VLOOKUP($B$6,$A$28:$E$55,4)*LN(VLOOKUP($S65,#REF!,$C$8+1)/1000)+VLOOKUP($B$6,$A$28:$E$55,5)),VLOOKUP($B$6,$A$28:$E$55,IF($B$8=$A$25,3,2))) -> 5
H66: 38 | I66: =IF($B$6="Hardness",VLOOKUP($H66,Ann_Hard!$A$5:$D$205,2),VLOOKUP($H66,P_All!$A$5:$AH$205,3*($C$8-1)+2)) -> 0.46161 | J66: =IF($B$6="Hardness",VLOOKUP($H66,Ann_Hard!$A$5:$D$205,3),VLOOKUP($H66,P_All!$A$5:$AH$205,3*($C$8-1)+3)) -> 0.9948 | K66: =IF($B$6="Hardness",VLOOKUP($H66,Ann_Hard!$A$5:$D$205,4),VLOOKUP($H66,P_All!$A$5:$AH$205,3*($C$8-1)+4)) -> 2.4332 | L66: =IF($B$6="Hardness",VLOOKUP($H66,Ann_Hard!$A$5:$G$205,5),VLOOKUP($H66,NA_All!$A$5:$AH$205,3*($C$8-1)+2)) -> 0.90151 | M66: =IF($B$6="Hardness",VLOOKUP($H66,Ann_Hard!$A$5:$G$205,6),VLOOKUP($H66,NA_All!$A$5:$AH$205,3*($C$8-1)+3)) -> 1.2413 | N66: =IF($B$6="Hardness",VLOOKUP($H66,Ann_Hard!$A$5:$G$205,7),VLOOKUP($H66,NA_All!$A$5:$AH$205,3*($C$8-1)+4)) -> 2.2014 | O66: =IF(VLOOKUP($B$6,$A$28:$D$55,4,FALSE)=0,#N/A,IF($B$8="PM-13",#N/A,(EXP((VLOOKUP($B$6,$A$28:$F$55,5,FALSE)*LN(Ann_Hard!B43/1000)) + VLOOKUP($B$6,$A$28:$F$55,6,FALSE))))) ->  | P66: 5 | Q66: =IF(VLOOKUP($B$6,$A$28:$D$55,4,FALSE)=0,#N/A,IF($B$8="PM-13",#N/A,(EXP((VLOOKUP($B$6,$A$28:$F$55,5,FALSE)*LN(Ann_Hard!D43/1000)) + VLOOKUP($B$6,$A$28:$F$55,6,FALSE))))) ->  | S66: 183.1666667 | T66: =VLOOKUP($S66,P_All!$AJ$5:$BQ$245,3*($C$8-1)+2) -> 0.30271 | U66: =VLOOKUP($S66,P_All!$AJ$5:$BQ$245,3*($C$8-1)+3) -> 0.511 | V66: =VLOOKUP($S66,P_All!$AJ$5:$BQ$245,3*($C$8-1)+4) -> 1.0151 | W66: =VLOOKUP($S66,NA_All!$AJ$5:$BQ$245,3*($C$8-1)+2) -> 0.65171 | X66: =VLOOKUP($S66,NA_All!$AJ$5:$BQ$245,3*($C$8-1)+3) -> 0.91287 | Y66: =VLOOKUP($S66,NA_All!$AJ$5:$BQ$245,3*($C$8-1)+4) -> 1.615 | Z66: =IF(ISNA(VLOOKUP($B$6,$A$28:$E$55,IF($B$8=$A$25,3,2))),EXP(VLOOKUP($B$6,$A$28:$E$55,4)*LN(VLOOKUP($S66,#REF!,$C$8+1)/1000)+VLOOKUP($B$6,$A$28:$E$55,5)),VLOOKUP($B$6,$A$28:$E$55,IF($B$8=$A$25,3,2))) -> 5
H67: 39 | I67: =IF($B$6="Hardness",VLOOKUP($H67,Ann_Hard!$A$5:$D$205,2),VLOOKUP($H67,P_All!$A$5:$AH$205,3*($C$8-1)+2)) -> 0.48131 | J67: =IF($B$6="Hardness",VLOOKUP($H67,Ann_Hard!$A$5:$D$205,3),VLOOKUP($H67,P_All!$A$5:$AH$205,3*($C$8-1)+3)) -> 1.0869 | K67: =IF($B$6="Hardness",VLOOKUP($H67,Ann_Hard!$A$5:$D$205,4),VLOOKUP($H67,P_All!$A$5:$AH$205,3*($C$8-1)+4)) -> 2.5929 | L67: =IF($B$6="Hardness",VLOOKUP($H67,Ann_Hard!$A$5:$G$205,5),VLOOKUP($H67,NA_All!$A$5:$AH$205,3*($C$8-1)+2)) -> 0.88319 | M67: =IF($B$6="Hardness",VLOOKUP($H67,Ann_Hard!$A$5:$G$205,6),VLOOKUP($H67,NA_All!$A$5:$AH$205,3*($C$8-1)+3)) -> 1.234 | N67: =IF($B$6="Hardness",VLOOKUP($H67,Ann_Hard!$A$5:$G$205,7),VLOOKUP($H67,NA_All!$A$5:$AH$205,3*($C$8-1)+4)) -> 2.322 | O67: =IF(VLOOKUP($B$6,$A$28:$D$55,4,FALSE)=0,#N/A,IF($B$8="PM-13",#N/A,(EXP((VLOOKUP($B$6,$A$28:$F$55,5,FALSE)*LN(Ann_Hard!B44/1000)) + VLOOKUP($B$6,$A$28:$F$55,6,FALSE))))) ->  | P67: 5 | Q67: =IF(VLOOKUP($B$6,$A$28:$D$55,4,FALSE)=0,#N/A,IF($B$8="PM-13",#N/A,(EXP((VLOOKUP($B$6,$A$28:$F$55,5,FALSE)*LN(Ann_Hard!D44/1000)) + VLOOKUP($B$6,$A$28:$F$55,6,FALSE))))) ->  | S67: 183.25 | T67: =VLOOKUP($S67,P_All!$AJ$5:$BQ$245,3*($C$8-1)+2) -> 0.26784 | U67: =VLOOKUP($S67,P_All!$AJ$5:$BQ$245,3*($C$8-1)+3) -> 0.49788 | V67: =VLOOKUP($S67,P_All!$AJ$5:$BQ$245,3*($C$8-1)+4) -> 1.1711 | W67: =VLOOKUP($S67,NA_All!$AJ$5:$BQ$245,3*($C$8-1)+2) -> 0.64622 | X67: =VLOOKUP($S67,NA_All!$AJ$5:$BQ$245,3*($C$8-1)+3) -> 0.90771 | Y67: =VLOOKUP($S67,NA_All!$AJ$5:$BQ$245,3*($C$8-1)+4) -> 1.5986 | Z67: =IF(ISNA(VLOOKUP($B$6,$A$28:$E$55,IF($B$8=$A$25,3,2))),EXP(VLOOKUP($B$6,$A$28:$E$55,4)*LN(VLOOKUP($S67,#REF!,$C$8+1)/1000)+VLOOKUP($B$6,$A$28:$E$55,5)),VLOOKUP($B$6,$A$28:$E$55,IF($B$8=$A$25,3,2))) -> 5
H68: 40 | I68: =IF($B$6="Hardness",VLOOKUP($H68,Ann_Hard!$A$5:$D$205,2),VLOOKUP($H68,P_All!$A$5:$AH$205,3*($C$8-1)+2)) -> 0.46251 | J68: =IF($B$6="Hardness",VLOOKUP($H68,Ann_Hard!$A$5:$D$205,3),VLOOKUP($H68,P_All!$A$5:$AH$205,3*($C$8-1)+3)) -> 1.0321 | K68: =IF($B$6="Hardness",VLOOKUP($H68,Ann_Hard!$A$5:$D$205,4),VLOOKUP($H68,P_All!$A$5:$AH$205,3*($C$8-1)+4)) -> 2.5216 | L68: =IF($B$6="Hardness",VLOOKUP($H68,Ann_Hard!$A$5:$G$205,5),VLOOKUP($H68,NA_All!$A$5:$AH$205,3*($C$8-1)+2)) -> 0.88212 | M68: =IF($B$6="Hardness",VLOOKUP($H68,Ann_Hard!$A$5:$G$205,6),VLOOKUP($H68,NA_All!$A$5:$AH$205,3*($C$8-1)+3)) -> 1.2381 | N68: =IF($B$6="Hardness",VLOOKUP($H68,Ann_Hard!$A$5:$G$205,7),VLOOKUP($H68,NA_All!$A$5:$AH$205,3*($C$8-1)+4)) -> 2.3066 | O68: =IF(VLOOKUP($B$6,$A$28:$D$55,4,FALSE)=0,#N/A,IF($B$8="PM-13",#N/A,(EXP((VLOOKUP($B$6,$A$28:$F$55,5,FALSE)*LN(Ann_Hard!B45/1000)) + VLOOKUP($B$6,$A$28:$F$55,6,FALSE))))) ->  | P68: 5 | Q68: =IF(VLOOKUP($B$6,$A$28:$D$55,4,FALSE)=0,#N/A,IF($B$8="PM-13",#N/A,(EXP((VLOOKUP($B$6,$A$28:$F$55,5,FALSE)*LN(Ann_Hard!D45/1000)) + VLOOKUP($B$6,$A$28:$F$55,6,FALSE))))) ->  | S68: 183.3333333 | T68: =VLOOKUP($S68,P_All!$AJ$5:$BQ$245,3*($C$8-1)+2) -> 0.3709 | U68: =VLOOKUP($S68,P_All!$AJ$5:$BQ$245,3*($C$8-1)+3) -> 0.92166 | V68: =VLOOKUP($S68,P_All!$AJ$5:$BQ$245,3*($C$8-1)+4) -> 2.3831 | W68: =VLOOKUP($S68,NA_All!$AJ$5:$BQ$245,3*($C$8-1)+2) -> 0.56449 | X68: =VLOOKUP($S68,NA_All!$AJ$5:$BQ$245,3*($C$8-1)+3) -> 1.0363 | Y68: =VLOOKUP($S68,NA_All!$AJ$5:$BQ$245,3*($C$8-1)+4) -> 2.0823 | Z68: =IF(ISNA(VLOOKUP($B$6,$A$28:$E$55,IF($B$8=$A$25,3,2))),EXP(VLOOKUP($B$6,$A$28:$E$55,4)*LN(VLOOKUP($S68,#REF!,$C$8+1)/1000)+VLOOKUP($B$6,$A$28:$E$55,5)),VLOOKUP($B$6,$A$28:$E$55,IF($B$8=$A$25,3,2))) -> 5
H69: 41 | I69: =IF($B$6="Hardness",VLOOKUP($H69,Ann_Hard!$A$5:$D$205,2),VLOOKUP($H69,P_All!$A$5:$AH$205,3*($C$8-1)+2)) -> 0.44844 | J69: =IF($B$6="Hardness",VLOOKUP($H69,Ann_Hard!$A$5:$D$205,3),VLOOKUP($H69,P_All!$A$5:$AH$205,3*($C$8-1)+3)) -> 1.0292 | K69: =IF($B$6="Hardness",VLOOKUP($H69,Ann_Hard!$A$5:$D$205,4),VLOOKUP($H69,P_All!$A$5:$AH$205,3*($C$8-1)+4)) -> 2.4101 | L69: =IF($B$6="Hardness",VLOOKUP($H69,Ann_Hard!$A$5:$G$205,5),VLOOKUP($H69,NA_All!$A$5:$AH$205,3*($C$8-1)+2)) -> 0.88288 | M69: =IF($B$6="Hardness",VLOOKUP($H69,Ann_Hard!$A$5:$G$205,6),VLOOKUP($H69,NA_All!$A$5:$AH$205,3*($C$8-1)+3)) -> 1.2376 | N69: =IF($B$6="Hardness",VLOOKUP($H69,Ann_Hard!$A$5:$G$205,7),VLOOKUP($H69,NA_All!$A$5:$AH$205,3*($C$8-1)+4)) -> 2.2227 | O69: =IF(VLOOKUP($B$6,$A$28:$D$55,4,FALSE)=0,#N/A,IF($B$8="PM-13",#N/A,(EXP((VLOOKUP($B$6,$A$28:$F$55,5,FALSE)*LN(Ann_Hard!B46/1000)) + VLOOKUP($B$6,$A$28:$F$55,6,FALSE))))) ->  | P69: 5 | Q69: =IF(VLOOKUP($B$6,$A$28:$D$55,4,FALSE)=0,#N/A,IF($B$8="PM-13",#N/A,(EXP((VLOOKUP($B$6,$A$28:$F$55,5,FALSE)*LN(Ann_Hard!D46/1000)) + VLOOKUP($B$6,$A$28:$F$55,6,FALSE))))) ->  | S69: 183.4166667 | T69: =VLOOKUP($S69,P_All!$AJ$5:$BQ$245,3*($C$8-1)+2) -> 0.46164 | U69: =VLOOKUP($S69,P_All!$AJ$5:$BQ$245,3*($C$8-1)+3) -> 1.0939 | V69: =VLOOKUP($S69,P_All!$AJ$5:$BQ$245,3*($C$8-1)+4) -> 2.4683 | W69: =VLOOKUP($S69,NA_All!$AJ$5:$BQ$245,3*($C$8-1)+2) -> 0.60388 | X69: =VLOOKUP($S69,NA_All!$AJ$5:$BQ$245,3*($C$8-1)+3) -> 1.0954 | Y69: =VLOOKUP($S69,NA_All!$AJ$5:$BQ$245,3*($C$8-1)+4) -> 2.0552 | Z69: =IF(ISNA(VLOOKUP($B$6,$A$28:$E$55,IF($B$8=$A$25,3,2))),EXP(VLOOKUP($B$6,$A$28:$E$55,4)*LN(VLOOKUP($S69,#REF!,$C$8+1)/1000)+VLOOKUP($B$6,$A$28:$E$55,5)),VLOOKUP($B$6,$A$28:$E$55,IF($B$8=$A$25,3,2))) -> 5
H70: 42 | I70: =IF($B$6="Hardness",VLOOKUP($H70,Ann_Hard!$A$5:$D$205,2),VLOOKUP($H70,P_All!$A$5:$AH$205,3*($C$8-1)+2)) -> 0.45309 | J70: =IF($B$6="Hardness",VLOOKUP($H70,Ann_Hard!$A$5:$D$205,3),VLOOKUP($H70,P_All!$A$5:$AH$205,3*($C$8-1)+3)) -> 1.067 | K70: =IF($B$6="Hardness",VLOOKUP($H70,Ann_Hard!$A$5:$D$205,4),VLOOKUP($H70,P_All!$A$5:$AH$205,3*($C$8-1)+4)) -> 2.4704 | L70: =IF($B$6="Hardness",VLOOKUP($H70,Ann_Hard!$A$5:$G$205,5),VLOOKUP($H70,NA_All!$A$5:$AH$205,3*($C$8-1)+2)) -> 0.87541 | M70: =IF($B$6="Hardness",VLOOKUP($H70,Ann_Hard!$A$5:$G$205,6),VLOOKUP($H70,NA_All!$A$5:$AH$205,3*($C$8-1)+3)) -> 1.2443 | N70: =IF($B$6="Hardness",VLOOKUP($H70,Ann_Hard!$A$5:$G$205,7),VLOOKUP($H70,NA_All!$A$5:$AH$205,3*($C$8-1)+4)) -> 2.259 | O70: =IF(VLOOKUP($B$6,$A$28:$D$55,4,FALSE)=0,#N/A,IF($B$8="PM-13",#N/A,(EXP((VLOOKUP($B$6,$A$28:$F$55,5,FALSE)*LN(Ann_Hard!B47/1000)) + VLOOKUP($B$6,$A$28:$F$55,6,FALSE))))) ->  | P70: 5 | Q70: =IF(VLOOKUP($B$6,$A$28:$D$55,4,FALSE)=0,#N/A,IF($B$8="PM-13",#N/A,(EXP((VLOOKUP($B$6,$A$28:$F$55,5,FALSE)*LN(Ann_Hard!D47/1000)) + VLOOKUP($B$6,$A$28:$F$55,6,FALSE))))) ->  | S70: 183.5 | T70: =VLOOKUP($S70,P_All!$AJ$5:$BQ$245,3*($C$8-1)+2) -> 0.47419 | U70: =VLOOKUP($S70,P_All!$AJ$5:$BQ$245,3*($C$8-1)+3) -> 0.94705 | V70: =VLOOKUP($S70,P_All!$AJ$5:$BQ$245,3*($C$8-1)+4) -> 2.3171 | W70: =VLOOKUP($S70,NA_All!$AJ$5:$BQ$245,3*($C$8-1)+2) -> 0.65113 | X70: =VLOOKUP($S70,NA_All!$AJ$5:$BQ$245,3*($C$8-1)+3) -> 1.0192 | Y70: =VLOOKUP($S70,NA_All!$AJ$5:$BQ$245,3*($C$8-1)+4) -> 1.8258 | Z70: =IF(ISNA(VLOOKUP($B$6,$A$28:$E$55,IF($B$8=$A$25,3,2))),EXP(VLOOKUP($B$6,$A$28:$E$55,4)*LN(VLOOKUP($S70,#REF!,$C$8+1)/1000)+VLOOKUP($B$6,$A$28:$E$55,5)),VLOOKUP($B$6,$A$28:$E$55,IF($B$8=$A$25,3,2))) -> 5
H71: 43 | I71: =IF($B$6="Hardness",VLOOKUP($H71,Ann_Hard!$A$5:$D$205,2),VLOOKUP($H71,P_All!$A$5:$AH$205,3*($C$8-1)+2)) -> 0.4395 | J71: =IF($B$6="Hardness",VLOOKUP($H71,Ann_Hard!$A$5:$D$205,3),VLOOKUP($H71,P_All!$A$5:$AH$205,3*($C$8-1)+3)) -> 1.0293 | K71: =IF($B$6="Hardness",VLOOKUP($H71,Ann_Hard!$A$5:$D$205,4),VLOOKUP($H71,P_All!$A$5:$AH$205,3*($C$8-1)+4)) -> 2.4553 | L71: =IF($B$6="Hardness",VLOOKUP($H71,Ann_Hard!$A$5:$G$205,5),VLOOKUP($H71,NA_All!$A$5:$AH$205,3*($C$8-1)+2)) -> 0.87177 | M71: =IF($B$6="Hardness",VLOOKUP($H71,Ann_Hard!$A$5:$G$205,6),VLOOKUP($H71,NA_All!$A$5:$AH$205,3*($C$8-1)+3)) -> 1.2505 | N71: =IF($B$6="Hardness",VLOOKUP($H71,Ann_Hard!$A$5:$G$205,7),VLOOKUP($H71,NA_All!$A$5:$AH$205,3*($C$8-1)+4)) -> 2.2069 | O71: =IF(VLOOKUP($B$6,$A$28:$D$55,4,FALSE)=0,#N/A,IF($B$8="PM-13",#N/A,(EXP((VLOOKUP($B$6,$A$28:$F$55,5,FALSE)*LN(Ann_Hard!B48/1000)) + VLOOKUP($B$6,$A$28:$F$55,6,FALSE))))) ->  | P71: 5 | Q71: =IF(VLOOKUP($B$6,$A$28:$D$55,4,FALSE)=0,#N/A,IF($B$8="PM-13",#N/A,(EXP((VLOOKUP($B$6,$A$28:$F$55,5,FALSE)*LN(Ann_Hard!D48/1000)) + VLOOKUP($B$6,$A$28:$F$55,6,FALSE))))) ->  | S71: 183.5833333 | T71: =VLOOKUP($S71,P_All!$AJ$5:$BQ$245,3*($C$8-1)+2) -> 0.41149 | U71: =VLOOKUP($S71,P_All!$AJ$5:$BQ$245,3*($C$8-1)+3) -> 0.9772 | V71: =VLOOKUP($S71,P_All!$AJ$5:$BQ$245,3*($C$8-1)+4) -> 2.2229 | W71: =VLOOKUP($S71,NA_All!$AJ$5:$BQ$245,3*($C$8-1)+2) -> 0.634 | X71: =VLOOKUP($S71,NA_All!$AJ$5:$BQ$245,3*($C$8-1)+3) -> 1.0024 | Y71: =VLOOKUP($S71,NA_All!$AJ$5:$BQ$245,3*($C$8-1)+4) -> 1.7988 | Z71: =IF(ISNA(VLOOKUP($B$6,$A$28:$E$55,IF($B$8=$A$25,3,2))),EXP(VLOOKUP($B$6,$A$28:$E$55,4)*LN(VLOOKUP($S71,#REF!,$C$8+1)/1000)+VLOOKUP($B$6,$A$28:$E$55,5)),VLOOKUP($B$6,$A$28:$E$55,IF($B$8=$A$25,3,2))) -> 5
H72: 44 | I72: =IF($B$6="Hardness",VLOOKUP($H72,Ann_Hard!$A$5:$D$205,2),VLOOKUP($H72,P_All!$A$5:$AH$205,3*($C$8-1)+2)) -> 0.46997 | J72: =IF($B$6="Hardness",VLOOKUP($H72,Ann_Hard!$A$5:$D$205,3),VLOOKUP($H72,P_All!$A$5:$AH$205,3*($C$8-1)+3)) -> 1.065 | K72: =IF($B$6="Hardness",VLOOKUP($H72,Ann_Hard!$A$5:$D$205,4),VLOOKUP($H72,P_All!$A$5:$AH$205,3*($C$8-1)+4)) -> 2.6323 | L72: =IF($B$6="Hardness",VLOOKUP($H72,Ann_Hard!$A$5:$G$205,5),VLOOKUP($H72,NA_All!$A$5:$AH$205,3*($C$8-1)+2)) -> 0.86626 | M72: =IF($B$6="Hardness",VLOOKUP($H72,Ann_Hard!$A$5:$G$205,6),VLOOKUP($H72,NA_All!$A$5:$AH$205,3*($C$8-1)+3)) -> 1.235 | N72: =IF($B$6="Hardness",VLOOKUP($H72,Ann_Hard!$A$5:$G$205,7),VLOOKUP($H72,NA_All!$A$5:$AH$205,3*($C$8-1)+4)) -> 2.3177 | O72: =IF(VLOOKUP($B$6,$A$28:$D$55,4,FALSE)=0,#N/A,IF($B$8="PM-13",#N/A,(EXP((VLOOKUP($B$6,$A$28:$F$55,5,FALSE)*LN(Ann_Hard!B49/1000)) + VLOOKUP($B$6,$A$28:$F$55,6,FALSE))))) ->  | P72: 5 | Q72: =IF(VLOOKUP($B$6,$A$28:$D$55,4,FALSE)=0,#N/A,IF($B$8="PM-13",#N/A,(EXP((VLOOKUP($B$6,$A$28:$F$55,5,FALSE)*LN(Ann_Hard!D49/1000)) + VLOOKUP($B$6,$A$28:$F$55,6,FALSE))))) ->  | S72: 183.6666667 | T72: =VLOOKUP($S72,P_All!$AJ$5:$BQ$245,3*($C$8-1)+2) -> 0.39569 | U72: =VLOOKUP($S72,P_All!$AJ$5:$BQ$245,3*($C$8-1)+3) -> 0.80606 | V72: =VLOOKUP($S72,P_All!$AJ$5:$BQ$245,3*($C$8-1)+4) -> 1.968 | W72: =VLOOKUP($S72,NA_All!$AJ$5:$BQ$245,3*($C$8-1)+2) -> 0.63687 | X72: =VLOOKUP($S72,NA_All!$AJ$5:$BQ$245,3*($C$8-1)+3) -> 0.96405 | Y72: =VLOOKUP($S72,NA_All!$AJ$5:$BQ$245,3*($C$8-1)+4) -> 1.681 | Z72: =IF(ISNA(VLOOKUP($B$6,$A$28:$E$55,IF($B$8=$A$25,3,2))),EXP(VLOOKUP($B$6,$A$28:$E$55,4)*LN(VLOOKUP($S72,#REF!,$C$8+1)/1000)+VLOOKUP($B$6,$A$28:$E$55,5)),VLOOKUP($B$6,$A$28:$E$55,IF($B$8=$A$25,3,2))) -> 5
H73: 45 | I73: =IF($B$6="Hardness",VLOOKUP($H73,Ann_Hard!$A$5:$D$205,2),VLOOKUP($H73,P_All!$A$5:$AH$205,3*($C$8-1)+2)) -> 0.45492 | J73: =IF($B$6="Hardness",VLOOKUP($H73,Ann_Hard!$A$5:$D$205,3),VLOOKUP($H73,P_All!$A$5:$AH$205,3*($C$8-1)+3)) -> 1.0758 | K73: =IF($B$6="Hardness",VLOOKUP($H73,Ann_Hard!$A$5:$D$205,4),VLOOKUP($H73,P_All!$A$5:$AH$205,3*($C$8-1)+4)) -> 2.4288 | L73: =IF($B$6="Hardness",VLOOKUP($H73,Ann_Hard!$A$5:$G$205,5),VLOOKUP($H73,NA_All!$A$5:$AH$205,3*($C$8-1)+2)) -> 0.86408 | M73: =IF($B$6="Hardness",VLOOKUP($H73,Ann_Hard!$A$5:$G$205,6),VLOOKUP($H73,NA_All!$A$5:$AH$205,3*($C$8-1)+3)) -> 1.2342 | N73: =IF($B$6="Hardness",VLOOKUP($H73,Ann_Hard!$A$5:$G$205,7),VLOOKUP($H73,NA_All!$A$5:$AH$205,3*($C$8-1)+4)) -> 2.3166 | O73: =IF(VLOOKUP($B$6,$A$28:$D$55,4,FALSE)=0,#N/A,IF($B$8="PM-13",#N/A,(EXP((VLOOKUP($B$6,$A$28:$F$55,5,FALSE)*LN(Ann_Hard!B50/1000)) + VLOOKUP($B$6,$A$28:$F$55,6,FALSE))))) ->  | P73: 5 | Q73: =IF(VLOOKUP($B$6,$A$28:$D$55,4,FALSE)=0,#N/A,IF($B$8="PM-13",#N/A,(EXP((VLOOKUP($B$6,$A$28:$F$55,5,FALSE)*LN(Ann_Hard!D50/1000)) + VLOOKUP($B$6,$A$28:$F$55,6,FALSE))))) ->  | S73: 183.75 | T73: =VLOOKUP($S73,P_All!$AJ$5:$BQ$245,3*($C$8-1)+2) -> 0.37603 | U73: =VLOOKUP($S73,P_All!$AJ$5:$BQ$245,3*($C$8-1)+3) -> 0.86082 | V73: =VLOOKUP($S73,P_All!$AJ$5:$BQ$245,3*($C$8-1)+4) -> 1.9945 | W73: =VLOOKUP($S73,NA_All!$AJ$5:$BQ$245,3*($C$8-1)+2) -> 0.63791 | X73: =VLOOKUP($S73,NA_All!$AJ$5:$BQ$245,3*($C$8-1)+3) -> 0.94689 | Y73: =VLOOKUP($S73,NA_All!$AJ$5:$BQ$245,3*($C$8-1)+4) -> 1.7098 | Z73: =IF(ISNA(VLOOKUP($B$6,$A$28:$E$55,IF($B$8=$A$25,3,2))),EXP(VLOOKUP($B$6,$A$28:$E$55,4)*LN(VLOOKUP($S73,#REF!,$C$8+1)/1000)+VLOOKUP($B$6,$A$28:$E$55,5)),VLOOKUP($B$6,$A$28:$E$55,IF($B$8=$A$25,3,2))) -> 5
H74: 46 | I74: =IF($B$6="Hardness",VLOOKUP($H74,Ann_Hard!$A$5:$D$205,2),VLOOKUP($H74,P_All!$A$5:$AH$205,3*($C$8-1)+2)) -> 0.44572 | J74: =IF($B$6="Hardness",VLOOKUP($H74,Ann_Hard!$A$5:$D$205,3),VLOOKUP($H74,P_All!$A$5:$AH$205,3*($C$8-1)+3)) -> 1.0067 | K74: =IF($B$6="Hardness",VLOOKUP($H74,Ann_Hard!$A$5:$D$205,4),VLOOKUP($H74,P_All!$A$5:$AH$205,3*($C$8-1)+4)) -> 2.3694 | L74: =IF($B$6="Hardness",VLOOKUP($H74,Ann_Hard!$A$5:$G$205,5),VLOOKUP($H74,NA_All!$A$5:$AH$205,3*($C$8-1)+2)) -> 0.86329 | M74: =IF($B$6="Hardness",VLOOKUP($H74,Ann_Hard!$A$5:$G$205,6),VLOOKUP($H74,NA_All!$A$5:$AH$205,3*($C$8-1)+3)) -> 1.25 | N74: =IF($B$6="Hardness",VLOOKUP($H74,Ann_Hard!$A$5:$G$205,7),VLOOKUP($H74,NA_All!$A$5:$AH$205,3*($C$8-1)+4)) -> 2.2251 | O74: =IF(VLOOKUP($B$6,$A$28:$D$55,4,FALSE)=0,#N/A,IF($B$8="PM-13",#N/A,(EXP((VLOOKUP($B$6,$A$28:$F$55,5,FALSE)*LN(Ann_Hard!B51/1000)) + VLOOKUP($B$6,$A$28:$F$55,6,FALSE))))) ->  | P74: 5 | Q74: =IF(VLOOKUP($B$6,$A$28:$D$55,4,FALSE)=0,#N/A,IF($B$8="PM-13",#N/A,(EXP((VLOOKUP($B$6,$A$28:$F$55,5,FALSE)*LN(Ann_Hard!D51/1000)) + VLOOKUP($B$6,$A$28:$F$55,6,FALSE))))) ->  | S74: 183.8333333 | T74: =VLOOKUP($S74,P_All!$AJ$5:$BQ$245,3*($C$8-1)+2) -> 0.38655 | U74: =VLOOKUP($S74,P_All!$AJ$5:$BQ$245,3*($C$8-1)+3) -> 0.88267 | V74: =VLOOKUP($S74,P_All!$AJ$5:$BQ$245,3*($C$8-1)+4) -> 2.1782 | W74: =VLOOKUP($S74,NA_All!$AJ$5:$BQ$245,3*($C$8-1)+2) -> 0.63613 | X74: =VLOOKUP($S74,NA_All!$AJ$5:$BQ$245,3*($C$8-1)+3) -> 0.97695 | Y74: =VLOOKUP($S74,NA_All!$AJ$5:$BQ$245,3*($C$8-1)+4) -> 1.6879 | Z74: =IF(ISNA(VLOOKUP($B$6,$A$28:$E$55,IF($B$8=$A$25,3,2))),EXP(VLOOKUP($B$6,$A$28:$E$55,4)*LN(VLOOKUP($S74,#REF!,$C$8+1)/1000)+VLOOKUP($B$6,$A$28:$E$55,5)),VLOOKUP($B$6,$A$28:$E$55,IF($B$8=$A$25,3,2))) -> 5
H75: 47 | I75: =IF($B$6="Hardness",VLOOKUP($H75,Ann_Hard!$A$5:$D$205,2),VLOOKUP($H75,P_All!$A$5:$AH$205,3*($C$8-1)+2)) -> 0.47656 | J75: =IF($B$6="Hardness",VLOOKUP($H75,Ann_Hard!$A$5:$D$205,3),VLOOKUP($H75,P_All!$A$5:$AH$205,3*($C$8-1)+3)) -> 1.0339 | K75: =IF($B$6="Hardness",VLOOKUP($H75,Ann_Hard!$A$5:$D$205,4),VLOOKUP($H75,P_All!$A$5:$AH$205,3*($C$8-1)+4)) -> 2.4302 | L75: =IF($B$6="Hardness",VLOOKUP($H75,Ann_Hard!$A$5:$G$205,5),VLOOKUP($H75,NA_All!$A$5:$AH$205,3*($C$8-1)+2)) -> 0.86153 | M75: =IF($B$6="Hardness",VLOOKUP($H75,Ann_Hard!$A$5:$G$205,6),VLOOKUP($H75,NA_All!$A$5:$AH$205,3*($C$8-1)+3)) -> 1.2691 | N75: =IF($B$6="Hardness",VLOOKUP($H75,Ann_Hard!$A$5:$G$205,7),VLOOKUP($H75,NA_All!$A$5:$AH$205,3*($C$8-1)+4)) -> 2.2408 | O75: =IF(VLOOKUP($B$6,$A$28:$D$55,4,FALSE)=0,#N/A,IF($B$8="PM-13",#N/A,(EXP((VLOOKUP($B$6,$A$28:$F$55,5,FALSE)*LN(Ann_Hard!B52/1000)) + VLOOKUP($B$6,$A$28:$F$55,6,FALSE))))) ->  | P75: 5 | Q75: =IF(VLOOKUP($B$6,$A$28:$D$55,4,FALSE)=0,#N/A,IF($B$8="PM-13",#N/A,(EXP((VLOOKUP($B$6,$A$28:$F$55,5,FALSE)*LN(Ann_Hard!D52/1000)) + VLOOKUP($B$6,$A$28:$F$55,6,FALSE))))) ->  | S75: 183.9166667 | T75: =VLOOKUP($S75,P_All!$AJ$5:$BQ$245,3*($C$8-1)+2) -> 0.43457 | U75: =VLOOKUP($S75,P_All!$AJ$5:$BQ$245,3*($C$8-1)+3) -> 0.94703 | V75: =VLOOKUP($S75,P_All!$AJ$5:$BQ$245,3*($C$8-1)+4) -> 2.1798 | W75: =VLOOKUP($S75,NA_All!$AJ$5:$BQ$245,3*($C$8-1)+2) -> 0.6731 | X75: =VLOOKUP($S75,NA_All!$AJ$5:$BQ$245,3*($C$8-1)+3) -> 0.99431 | Y75: =VLOOKUP($S75,NA_All!$AJ$5:$BQ$245,3*($C$8-1)+4) -> 1.6988 | Z75: =IF(ISNA(VLOOKUP($B$6,$A$28:$E$55,IF($B$8=$A$25,3,2))),EXP(VLOOKUP($B$6,$A$28:$E$55,4)*LN(VLOOKUP($S75,#REF!,$C$8+1)/1000)+VLOOKUP($B$6,$A$28:$E$55,5)),VLOOKUP($B$6,$A$28:$E$55,IF($B$8=$A$25,3,2))) -> 5
H76: 48 | I76: =IF($B$6="Hardness",VLOOKUP($H76,Ann_Hard!$A$5:$D$205,2),VLOOKUP($H76,P_All!$A$5:$AH$205,3*($C$8-1)+2)) -> 0.46383 | J76: =IF($B$6="Hardness",VLOOKUP($H76,Ann_Hard!$A$5:$D$205,3),VLOOKUP($H76,P_All!$A$5:$AH$205,3*($C$8-1)+3)) -> 1.0749 | K76: =IF($B$6="Hardness",VLOOKUP($H76,Ann_Hard!$A$5:$D$205,4),VLOOKUP($H76,P_All!$A$5:$AH$205,3*($C$8-1)+4)) -> 2.6011 | L76: =IF($B$6="Hardness",VLOOKUP($H76,Ann_Hard!$A$5:$G$205,5),VLOOKUP($H76,NA_All!$A$5:$AH$205,3*($C$8-1)+2)) -> 0.85176 | M76: =IF($B$6="Hardness",VLOOKUP($H76,Ann_Hard!$A$5:$G$205,6),VLOOKUP($H76,NA_All!$A$5:$AH$205,3*($C$8-1)+3)) -> 1.2346 | N76: =IF($B$6="Hardness",VLOOKUP($H76,Ann_Hard!$A$5:$G$205,7),VLOOKUP($H76,NA_All!$A$5:$AH$205,3*($C$8-1)+4)) -> 2.3091 | O76: =IF(VLOOKUP($B$6,$A$28:$D$55,4,FALSE)=0,#N/A,IF($B$8="PM-13",#N/A,(EXP((VLOOKUP($B$6,$A$28:$F$55,5,FALSE)*LN(Ann_Hard!B53/1000)) + VLOOKUP($B$6,$A$28:$F$55,6,FALSE))))) ->  | P76: 5 | Q76: =IF(VLOOKUP($B$6,$A$28:$D$55,4,FALSE)=0,#N/A,IF($B$8="PM-13",#N/A,(EXP((VLOOKUP($B$6,$A$28:$F$55,5,FALSE)*LN(Ann_Hard!D53/1000)) + VLOOKUP($B$6,$A$28:$F$55,6,FALSE))))) ->  | S76: 184 | T76: =VLOOKUP($S76,P_All!$AJ$5:$BQ$245,3*($C$8-1)+2) -> 0.43004 | U76: =VLOOKUP($S76,P_All!$AJ$5:$BQ$245,3*($C$8-1)+3) -> 0.85248 | V76: =VLOOKUP($S76,P_All!$AJ$5:$BQ$245,3*($C$8-1)+4) -> 1.6862 | W76: =VLOOKUP($S76,NA_All!$AJ$5:$BQ$245,3*($C$8-1)+2) -> 0.67393 | X76: =VLOOKUP($S76,NA_All!$AJ$5:$BQ$245,3*($C$8-1)+3) -> 0.96295 | Y76: =VLOOKUP($S76,NA_All!$AJ$5:$BQ$245,3*($C$8-1)+4) -> 1.5903 | Z76: =IF(ISNA(VLOOKUP($B$6,$A$28:$E$55,IF($B$8=$A$25,3,2))),EXP(VLOOKUP($B$6,$A$28:$E$55,4)*LN(VLOOKUP($S76,#REF!,$C$8+1)/1000)+VLOOKUP($B$6,$A$28:$E$55,5)),VLOOKUP($B$6,$A$28:$E$55,IF($B$8=$A$25,3,2))) -> 5
H77: 49 | I77: =IF($B$6="Hardness",VLOOKUP($H77,Ann_Hard!$A$5:$D$205,2),VLOOKUP($H77,P_All!$A$5:$AH$205,3*($C$8-1)+2)) -> 0.46142 | J77: =IF($B$6="Hardness",VLOOKUP($H77,Ann_Hard!$A$5:$D$205,3),VLOOKUP($H77,P_All!$A$5:$AH$205,3*($C$8-1)+3)) -> 1.0075 | K77: =IF($B$6="Hardness",VLOOKUP($H77,Ann_Hard!$A$5:$D$205,4),VLOOKUP($H77,P_All!$A$5:$AH$205,3*($C$8-1)+4)) -> 2.4978 | L77: =IF($B$6="Hardness",VLOOKUP($H77,Ann_Hard!$A$5:$G$205,5),VLOOKUP($H77,NA_All!$A$5:$AH$205,3*($C$8-1)+2)) -> 0.85139 | M77: =IF($B$6="Hardness",VLOOKUP($H77,Ann_Hard!$A$5:$G$205,6),VLOOKUP($H77,NA_All!$A$5:$AH$205,3*($C$8-1)+3)) -> 1.2248 | N77: =IF($B$6="Hardness",VLOOKUP($H77,Ann_Hard!$A$5:$G$205,7),VLOOKUP($H77,NA_All!$A$5:$AH$205,3*($C$8-1)+4)) -> 2.3 | O77: =IF(VLOOKUP($B$6,$A$28:$D$55,4,FALSE)=0,#N/A,IF($B$8="PM-13",#N/A,(EXP((VLOOKUP($B$6,$A$28:$F$55,5,FALSE)*LN(Ann_Hard!B54/1000)) + VLOOKUP($B$6,$A$28:$F$55,6,FALSE))))) ->  | P77: 5 | Q77: =IF(VLOOKUP($B$6,$A$28:$D$55,4,FALSE)=0,#N/A,IF($B$8="PM-13",#N/A,(EXP((VLOOKUP($B$6,$A$28:$F$55,5,FALSE)*LN(Ann_Hard!D54/1000)) + VLOOKUP($B$6,$A$28:$F$55,6,FALSE))))) ->  | S77: 184.0833333 | T77: =VLOOKUP($S77,P_All!$AJ$5:$BQ$245,3*($C$8-1)+2) -> 0.35158 | U77: =VLOOKUP($S77,P_All!$AJ$5:$BQ$245,3*($C$8-1)+3) -> 0.61777 | V77: =VLOOKUP($S77,P_All!$AJ$5:$BQ$245,3*($C$8-1)+4) -> 1.3536 | W77: =VLOOKUP($S77,NA_All!$AJ$5:$BQ$245,3*($C$8-1)+2) -> 0.65037 | X77: =VLOOKUP($S77,NA_All!$AJ$5:$BQ$245,3*($C$8-1)+3) -> 0.91766 | Y77: =VLOOKUP($S77,NA_All!$AJ$5:$BQ$245,3*($C$8-1)+4) -> 1.5946 | Z77: =IF(ISNA(VLOOKUP($B$6,$A$28:$E$55,IF($B$8=$A$25,3,2))),EXP(VLOOKUP($B$6,$A$28:$E$55,4)*LN(VLOOKUP($S77,#REF!,$C$8+1)/1000)+VLOOKUP($B$6,$A$28:$E$55,5)),VLOOKUP($B$6,$A$28:$E$55,IF($B$8=$A$25,3,2))) -> 5
H78: 50 | I78: =IF($B$6="Hardness",VLOOKUP($H78,Ann_Hard!$A$5:$D$205,2),VLOOKUP($H78,P_All!$A$5:$AH$205,3*($C$8-1)+2)) -> 0.47495 | J78: =IF($B$6="Hardness",VLOOKUP($H78,Ann_Hard!$A$5:$D$205,3),VLOOKUP($H78,P_All!$A$5:$AH$205,3*($C$8-1)+3)) -> 1.0449 | K78: =IF($B$6="Hardness",VLOOKUP($H78,Ann_Hard!$A$5:$D$205,4),VLOOKUP($H78,P_All!$A$5:$AH$205,3*($C$8-1)+4)) -> 2.4707 | L78: =IF($B$6="Hardness",VLOOKUP($H78,Ann_Hard!$A$5:$G$205,5),VLOOKUP($H78,NA_All!$A$5:$AH$205,3*($C$8-1)+2)) -> 0.83877 | M78: =IF($B$6="Hardness",VLOOKUP($H78,Ann_Hard!$A$5:$G$205,6),VLOOKUP($H78,NA_All!$A$5:$AH$205,3*($C$8-1)+3)) -> 1.2356 | N78: =IF($B$6="Hardness",VLOOKUP($H78,Ann_Hard!$A$5:$G$205,7),VLOOKUP($H78,NA_All!$A$5:$AH$205,3*($C$8-1)+4)) -> 2.2726 | O78: =IF(VLOOKUP($B$6,$A$28:$D$55,4,FALSE)=0,#N/A,IF($B$8="PM-13",#N/A,(EXP((VLOOKUP($B$6,$A$28:$F$55,5,FALSE)*LN(Ann_Hard!B55/1000)) + VLOOKUP($B$6,$A$28:$F$55,6,FALSE))))) ->  | P78: 5 | Q78: =IF(VLOOKUP($B$6,$A$28:$D$55,4,FALSE)=0,#N/A,IF($B$8="PM-13",#N/A,(EXP((VLOOKUP($B$6,$A$28:$F$55,5,FALSE)*LN(Ann_Hard!D55/1000)) + VLOOKUP($B$6,$A$28:$F$55,6,FALSE))))) ->  | S78: 184.1666667 | T78: =VLOOKUP($S78,P_All!$AJ$5:$BQ$245,3*($C$8-1)+2) -> 0.28133 | U78: =VLOOKUP($S78,P_All!$AJ$5:$BQ$245,3*($C$8-1)+3) -> 0.48498 | V78: =VLOOKUP($S78,P_All!$AJ$5:$BQ$245,3*($C$8-1)+4) -> 0.9539 | W78: =VLOOKUP($S78,NA_All!$AJ$5:$BQ$245,3*($C$8-1)+2) -> 0.6457 | X78: =VLOOKUP($S78,NA_All!$AJ$5:$BQ$245,3*($C$8-1)+3) -> 0.90571 | Y78: =VLOOKUP($S78,NA_All!$AJ$5:$BQ$245,3*($C$8-1)+4) -> 1.6151 | Z78: =IF(ISNA(VLOOKUP($B$6,$A$28:$E$55,IF($B$8=$A$25,3,2))),EXP(VLOOKUP($B$6,$A$28:$E$55,4)*LN(VLOOKUP($S78,#REF!,$C$8+1)/1000)+VLOOKUP($B$6,$A$28:$E$55,5)),VLOOKUP($B$6,$A$28:$E$55,IF($B$8=$A$25,3,2))) -> 5
H79: 51 | I79: =IF($B$6="Hardness",VLOOKUP($H79,Ann_Hard!$A$5:$D$205,2),VLOOKUP($H79,P_All!$A$5:$AH$205,3*($C$8-1)+2)) -> 0.46529 | J79: =IF($B$6="Hardness",VLOOKUP($H79,Ann_Hard!$A$5:$D$205,3),VLOOKUP($H79,P_All!$A$5:$AH$205,3*($C$8-1)+3)) -> 1.072 | K79: =IF($B$6="Hardness",VLOOKUP($H79,Ann_Hard!$A$5:$D$205,4),VLOOKUP($H79,P_All!$A$5:$AH$205,3*($C$8-1)+4)) -> 2.6249 | L79: =IF($B$6="Hardness",VLOOKUP($H79,Ann_Hard!$A$5:$G$205,5),VLOOKUP($H79,NA_All!$A$5:$AH$205,3*($C$8-1)+2)) -> 0.84259 | M79: =IF($B$6="Hardness",VLOOKUP($H79,Ann_Hard!$A$5:$G$205,6),VLOOKUP($H79,NA_All!$A$5:$AH$205,3*($C$8-1)+3)) -> 1.2204 | N79: =IF($B$6="Hardness",VLOOKUP($H79,Ann_Hard!$A$5:$G$205,7),VLOOKUP($H79,NA_All!$A$5:$AH$205,3*($C$8-1)+4)) -> 2.3027 | O79: =IF(VLOOKUP($B$6,$A$28:$D$55,4,FALSE)=0,#N/A,IF($B$8="PM-13",#N/A,(EXP((VLOOKUP($B$6,$A$28:$F$55,5,FALSE)*LN(Ann_Hard!B56/1000)) + VLOOKUP($B$6,$A$28:$F$55,6,FALSE))))) ->  | P79: 5 | Q79: =IF(VLOOKUP($B$6,$A$28:$D$55,4,FALSE)=0,#N/A,IF($B$8="PM-13",#N/A,(EXP((VLOOKUP($B$6,$A$28:$F$55,5,FALSE)*LN(Ann_Hard!D56/1000)) + VLOOKUP($B$6,$A$28:$F$55,6,FALSE))))) ->  | S79: 184.25 | T79: =VLOOKUP($S79,P_All!$AJ$5:$BQ$245,3*($C$8-1)+2) -> 0.25009 | U79: =VLOOKUP($S79,P_All!$AJ$5:$BQ$245,3*($C$8-1)+3) -> 0.44853 | V79: =VLOOKUP($S79,P_All!$AJ$5:$BQ$245,3*($C$8-1)+4) -> 1.155 | W79: =VLOOKUP($S79,NA_All!$AJ$5:$BQ$245,3*($C$8-1)+2) -> 0.64342 | X79: =VLOOKUP($S79,NA_All!$AJ$5:$BQ$245,3*($C$8-1)+3) -> 0.93113 | Y79: =VLOOKUP($S79,NA_All!$AJ$5:$BQ$245,3*($C$8-1)+4) -> 1.7298 | Z79: =IF(ISNA(VLOOKUP($B$6,$A$28:$E$55,IF($B$8=$A$25,3,2))),EXP(VLOOKUP($B$6,$A$28:$E$55,4)*LN(VLOOKUP($S79,#REF!,$C$8+1)/1000)+VLOOKUP($B$6,$A$28:$E$55,5)),VLOOKUP($B$6,$A$28:$E$55,IF($B$8=$A$25,3,2))) -> 5
H80: 52 | I80: =IF($B$6="Hardness",VLOOKUP($H80,Ann_Hard!$A$5:$D$205,2),VLOOKUP($H80,P_All!$A$5:$AH$205,3*($C$8-1)+2)) -> 0.45344 | J80: =IF($B$6="Hardness",VLOOKUP($H80,Ann_Hard!$A$5:$D$205,3),VLOOKUP($H80,P_All!$A$5:$AH$205,3*($C$8-1)+3)) -> 1.0479 | K80: =IF($B$6="Hardness",VLOOKUP($H80,Ann_Hard!$A$5:$D$205,4),VLOOKUP($H80,P_All!$A$5:$AH$205,3*($C$8-1)+4)) -> 2.3606 | L80: =IF($B$6="Hardness",VLOOKUP($H80,Ann_Hard!$A$5:$G$205,5),VLOOKUP($H80,NA_All!$A$5:$AH$205,3*($C$8-1)+2)) -> 0.83967 | M80: =IF($B$6="Hardness",VLOOKUP($H80,Ann_Hard!$A$5:$G$205,6),VLOOKUP($H80,NA_All!$A$5:$AH$205,3*($C$8-1)+3)) -> 1.2239 | N80: =IF($B$6="Hardness",VLOOKUP($H80,Ann_Hard!$A$5:$G$205,7),VLOOKUP($H80,NA_All!$A$5:$AH$205,3*($C$8-1)+4)) -> 2.3546 | O80: =IF(VLOOKUP($B$6,$A$28:$D$55,4,FALSE)=0,#N/A,IF($B$8="PM-13",#N/A,(EXP((VLOOKUP($B$6,$A$28:$F$55,5,FALSE)*LN(Ann_Hard!B57/1000)) + VLOOKUP($B$6,$A$28:$F$55,6,FALSE))))) ->  | P80: 5 | Q80: =IF(VLOOKUP($B$6,$A$28:$D$55,4,FALSE)=0,#N/A,IF($B$8="PM-13",#N/A,(EXP((VLOOKUP($B$6,$A$28:$F$55,5,FALSE)*LN(Ann_Hard!D57/1000)) + VLOOKUP($B$6,$A$28:$F$55,6,FALSE))))) ->  | S80: 184.3333333 | T80: =VLOOKUP($S80,P_All!$AJ$5:$BQ$245,3*($C$8-1)+2) -> 0.39446 | U80: =VLOOKUP($S80,P_All!$AJ$5:$BQ$245,3*($C$8-1)+3) -> 0.95404 | V80: =VLOOKUP($S80,P_All!$AJ$5:$BQ$245,3*($C$8-1)+4) -> 2.3528 | W80: =VLOOKUP($S80,NA_All!$AJ$5:$BQ$245,3*($C$8-1)+2) -> 0.59168 | X80: =VLOOKUP($S80,NA_All!$AJ$5:$BQ$245,3*($C$8-1)+3) -> 1.0289 | Y80: =VLOOKUP($S80,NA_All!$AJ$5:$BQ$245,3*($C$8-1)+4) -> 2.1457 | Z80: =IF(ISNA(VLOOKUP($B$6,$A$28:$E$55,IF($B$8=$A$25,3,2))),EXP(VLOOKUP($B$6,$A$28:$E$55,4)*LN(VLOOKUP($S80,#REF!,$C$8+1)/1000)+VLOOKUP($B$6,$A$28:$E$55,5)),VLOOKUP($B$6,$A$28:$E$55,IF($B$8=$A$25,3,2))) -> 5
H81: 53 | I81: =IF($B$6="Hardness",VLOOKUP($H81,Ann_Hard!$A$5:$D$205,2),VLOOKUP($H81,P_All!$A$5:$AH$205,3*($C$8-1)+2)) -> 0.47532 | J81: =IF($B$6="Hardness",VLOOKUP($H81,Ann_Hard!$A$5:$D$205,3),VLOOKUP($H81,P_All!$A$5:$AH$205,3*($C$8-1)+3)) -> 1.0346 | K81: =IF($B$6="Hardness",VLOOKUP($H81,Ann_Hard!$A$5:$D$205,4),VLOOKUP($H81,P_All!$A$5:$AH$205,3*($C$8-1)+4)) -> 2.4841 | L81: =IF($B$6="Hardness",VLOOKUP($H81,Ann_Hard!$A$5:$G$205,5),VLOOKUP($H81,NA_All!$A$5:$AH$205,3*($C$8-1)+2)) -> 0.83752 | M81: =IF($B$6="Hardness",VLOOKUP($H81,Ann_Hard!$A$5:$G$205,6),VLOOKUP($H81,NA_All!$A$5:$AH$205,3*($C$8-1)+3)) -> 1.2161 | N81: =IF($B$6="Hardness",VLOOKUP($H81,Ann_Hard!$A$5:$G$205,7),VLOOKUP($H81,NA_All!$A$5:$AH$205,3*($C$8-1)+4)) -> 2.2825 | O81: =IF(VLOOKUP($B$6,$A$28:$D$55,4,FALSE)=0,#N/A,IF($B$8="PM-13",#N/A,(EXP((VLOOKUP($B$6,$A$28:$F$55,5,FALSE)*LN(Ann_Hard!B58/1000)) + VLOOKUP($B$6,$A$28:$F$55,6,FALSE))))) ->  | P81: 5 | Q81: =IF(VLOOKUP($B$6,$A$28:$D$55,4,FALSE)=0,#N/A,IF($B$8="PM-13",#N/A,(EXP((VLOOKUP($B$6,$A$28:$F$55,5,FALSE)*LN(Ann_Hard!D58/1000)) + VLOOKUP($B$6,$A$28:$F$55,6,FALSE))))) ->  | S81: 184.4166667 | T81: =VLOOKUP($S81,P_All!$AJ$5:$BQ$245,3*($C$8-1)+2) -> 0.4014 | U81: =VLOOKUP($S81,P_All!$AJ$5:$BQ$245,3*($C$8-1)+3) -> 1.0221 | V81: =VLOOKUP($S81,P_All!$AJ$5:$BQ$245,3*($C$8-1)+4) -> 2.4863 | W81: =VLOOKUP($S81,NA_All!$AJ$5:$BQ$245,3*($C$8-1)+2) -> 0.57626 | X81: =VLOOKUP($S81,NA_All!$AJ$5:$BQ$245,3*($C$8-1)+3) -> 1.0432 | Y81: =VLOOKUP($S81,NA_All!$AJ$5:$BQ$245,3*($C$8-1)+4) -> 2.1242 | Z81: =IF(ISNA(VLOOKUP($B$6,$A$28:$E$55,IF($B$8=$A$25,3,2))),EXP(VLOOKUP($B$6,$A$28:$E$55,4)*LN(VLOOKUP($S81,#REF!,$C$8+1)/1000)+VLOOKUP($B$6,$A$28:$E$55,5)),VLOOKUP($B$6,$A$28:$E$55,IF($B$8=$A$25,3,2))) -> 5
H82: 54 | I82: =IF($B$6="Hardness",VLOOKUP($H82,Ann_Hard!$A$5:$D$205,2),VLOOKUP($H82,P_All!$A$5:$AH$205,3*($C$8-1)+2)) -> 0.4696 | J82: =IF($B$6="Hardness",VLOOKUP($H82,Ann_Hard!$A$5:$D$205,3),VLOOKUP($H82,P_All!$A$5:$AH$205,3*($C$8-1)+3)) -> 1.0159 | K82: =IF($B$6="Hardness",VLOOKUP($H82,Ann_Hard!$A$5:$D$205,4),VLOOKUP($H82,P_All!$A$5:$AH$205,3*($C$8-1)+4)) -> 2.4376 | L82: =IF($B$6="Hardness",VLOOKUP($H82,Ann_Hard!$A$5:$G$205,5),VLOOKUP($H82,NA_All!$A$5:$AH$205,3*($C$8-1)+2)) -> 0.83709 | M82: =IF($B$6="Hardness",VLOOKUP($H82,Ann_Hard!$A$5:$G$205,6),VLOOKUP($H82,NA_All!$A$5:$AH$205,3*($C$8-1)+3)) -> 1.2164 | N82: =IF($B$6="Hardness",VLOOKUP($H82,Ann_Hard!$A$5:$G$205,7),VLOOKUP($H82,NA_All!$A$5:$AH$205,3*($C$8-1)+4)) -> 2.2283 | O82: =IF(VLOOKUP($B$6,$A$28:$D$55,4,FALSE)=0,#N/A,IF($B$8="PM-13",#N/A,(EXP((VLOOKUP($B$6,$A$28:$F$55,5,FALSE)*LN(Ann_Hard!B59/1000)) + VLOOKUP($B$6,$A$28:$F$55,6,FALSE))))) ->  | P82: 5 | Q82: =IF(VLOOKUP($B$6,$A$28:$D$55,4,FALSE)=0,#N/A,IF($B$8="PM-13",#N/A,(EXP((VLOOKUP($B$6,$A$28:$F$55,5,FALSE)*LN(Ann_Hard!D59/1000)) + VLOOKUP($B$6,$A$28:$F$55,6,FALSE))))) ->  | S82: 184.5 | T82: =VLOOKUP($S82,P_All!$AJ$5:$BQ$245,3*($C$8-1)+2) -> 0.41373 | U82: =VLOOKUP($S82,P_All!$AJ$5:$BQ$245,3*($C$8-1)+3) -> 1.0364 | V82: =VLOOKUP($S82,P_All!$AJ$5:$BQ$245,3*($C$8-1)+4) -> 2.5328 | W82: =VLOOKUP($S82,NA_All!$AJ$5:$BQ$245,3*($C$8-1)+2) -> 0.5974 | X82: =VLOOKUP($S82,NA_All!$AJ$5:$BQ$245,3*($C$8-1)+3) -> 1.0262 | Y82: =VLOOKUP($S82,NA_All!$AJ$5:$BQ$245,3*($C$8-1)+4) -> 2.0629 | Z82: =IF(ISNA(VLOOKUP($B$6,$A$28:$E$55,IF($B$8=$A$25,3,2))),EXP(VLOOKUP($B$6,$A$28:$E$55,4)*LN(VLOOKUP($S82,#REF!,$C$8+1)/1000)+VLOOKUP($B$6,$A$28:$E$55,5)),VLOOKUP($B$6,$A$28:$E$55,IF($B$8=$A$25,3,2))) -> 5
H83: 55 | I83: =IF($B$6="Hardness",VLOOKUP($H83,Ann_Hard!$A$5:$D$205,2),VLOOKUP($H83,P_All!$A$5:$AH$205,3*($C$8-1)+2)) -> 0.43645 | J83: =IF($B$6="Hardness",VLOOKUP($H83,Ann_Hard!$A$5:$D$205,3),VLOOKUP($H83,P_All!$A$5:$AH$205,3*($C$8-1)+3)) -> 0.98089 | K83: =IF($B$6="Hardness",VLOOKUP($H83,Ann_Hard!$A$5:$D$205,4),VLOOKUP($H83,P_All!$A$5:$AH$205,3*($C$8-1)+4)) -> 2.3936 | L83: =IF($B$6="Hardness",VLOOKUP($H83,Ann_Hard!$A$5:$G$205,5),VLOOKUP($H83,NA_All!$A$5:$AH$205,3*($C$8-1)+2)) -> 0.84498 | M83: =IF($B$6="Hardness",VLOOKUP($H83,Ann_Hard!$A$5:$G$205,6),VLOOKUP($H83,NA_All!$A$5:$AH$205,3*($C$8-1)+3)) -> 1.2238 | N83: =IF($B$6="Hardness",VLOOKUP($H83,Ann_Hard!$A$5:$G$205,7),VLOOKUP($H83,NA_All!$A$5:$AH$205,3*($C$8-1)+4)) -> 2.2349 | O83: =IF(VLOOKUP($B$6,$A$28:$D$55,4,FALSE)=0,#N/A,IF($B$8="PM-13",#N/A,(EXP((VLOOKUP($B$6,$A$28:$F$55,5,FALSE)*LN(Ann_Hard!B60/1000)) + VLOOKUP($B$6,$A$28:$F$55,6,FALSE))))) ->  | P83: 5 | Q83: =IF(VLOOKUP($B$6,$A$28:$D$55,4,FALSE)=0,#N/A,IF($B$8="PM-13",#N/A,(EXP((VLOOKUP($B$6,$A$28:$F$55,5,FALSE)*LN(Ann_Hard!D60/1000)) + VLOOKUP($B$6,$A$28:$F$55,6,FALSE))))) ->  | S83: 184.5833333 | T83: =VLOOKUP($S83,P_All!$AJ$5:$BQ$245,3*($C$8-1)+2) -> 0.42286 | U83: =VLOOKUP($S83,P_All!$AJ$5:$BQ$245,3*($C$8-1)+3) -> 0.87945 | V83: =VLOOKUP($S83,P_All!$AJ$5:$BQ$245,3*($C$8-1)+4) -> 2.3036 | W83: =VLOOKUP($S83,NA_All!$AJ$5:$BQ$245,3*($C$8-1)+2) -> 0.62905 | X83: =VLOOKUP($S83,NA_All!$AJ$5:$BQ$245,3*($C$8-1)+3) -> 0.97219 | Y83: =VLOOKUP($S83,NA_All!$AJ$5:$BQ$245,3*($C$8-1)+4) -> 1.704 | Z83: =IF(ISNA(VLOOKUP($B$6,$A$28:$E$55,IF($B$8=$A$25,3,2))),EXP(VLOOKUP($B$6,$A$28:$E$55,4)*LN(VLOOKUP($S83,#REF!,$C$8+1)/1000)+VLOOKUP($B$6,$A$28:$E$55,5)),VLOOKUP($B$6,$A$28:$E$55,IF($B$8=$A$25,3,2))) -> 5
H84: 56 | I84: =IF($B$6="Hardness",VLOOKUP($H84,Ann_Hard!$A$5:$D$205,2),VLOOKUP($H84,P_All!$A$5:$AH$205,3*($C$8-1)+2)) -> 0.4539 | J84: =IF($B$6="Hardness",VLOOKUP($H84,Ann_Hard!$A$5:$D$205,3),VLOOKUP($H84,P_All!$A$5:$AH$205,3*($C$8-1)+3)) -> 1.0338 | K84: =IF($B$6="Hardness",VLOOKUP($H84,Ann_Hard!$A$5:$D$205,4),VLOOKUP($H84,P_All!$A$5:$AH$205,3*($C$8-1)+4)) -> 2.4877 | L84: =IF($B$6="Hardness",VLOOKUP($H84,Ann_Hard!$A$5:$G$205,5),VLOOKUP($H84,NA_All!$A$5:$AH$205,3*($C$8-1)+2)) -> 0.84395 | M84: =IF($B$6="Hardness",VLOOKUP($H84,Ann_Hard!$A$5:$G$205,6),VLOOKUP($H84,NA_All!$A$5:$AH$205,3*($C$8-1)+3)) -> 1.2304 | N84: =IF($B$6="Hardness",VLOOKUP($H84,Ann_Hard!$A$5:$G$205,7),VLOOKUP($H84,NA_All!$A$5:$AH$205,3*($C$8-1)+4)) -> 2.2609 | O84: =IF(VLOOKUP($B$6,$A$28:$D$55,4,FALSE)=0,#N/A,IF($B$8="PM-13",#N/A,(EXP((VLOOKUP($B$6,$A$28:$F$55,5,FALSE)*LN(Ann_Hard!B61/1000)) + VLOOKUP($B$6,$A$28:$F$55,6,FALSE))))) ->  | P84: 5 | Q84: =IF(VLOOKUP($B$6,$A$28:$D$55,4,FALSE)=0,#N/A,IF($B$8="PM-13",#N/A,(EXP((VLOOKUP($B$6,$A$28:$F$55,5,FALSE)*LN(Ann_Hard!D61/1000)) + VLOOKUP($B$6,$A$28:$F$55,6,FALSE))))) ->  | S84: 184.6666667 | T84: =VLOOKUP($S84,P_All!$AJ$5:$BQ$245,3*($C$8-1)+2) -> 0.36603 | U84: =VLOOKUP($S84,P_All!$AJ$5:$BQ$245,3*($C$8-1)+3) -> 0.82432 | V84: =VLOOKUP($S84,P_All!$AJ$5:$BQ$245,3*($C$8-1)+4) -> 1.8486 | W84: =VLOOKUP($S84,NA_All!$AJ$5:$BQ$245,3*($C$8-1)+2) -> 0.65618 | X84: =VLOOKUP($S84,NA_All!$AJ$5:$BQ$245,3*($C$8-1)+3) -> 0.96315 | Y84: =VLOOKUP($S84,NA_All!$AJ$5:$BQ$245,3*($C$8-1)+4) -> 1.6735 | Z84: =IF(ISNA(VLOOKUP($B$6,$A$28:$E$55,IF($B$8=$A$25,3,2))),EXP(VLOOKUP($B$6,$A$28:$E$55,4)*LN(VLOOKUP($S84,#REF!,$C$8+1)/1000)+VLOOKUP($B$6,$A$28:$E$55,5)),VLOOKUP($B$6,$A$28:$E$55,IF($B$8=$A$25,3,2))) -> 5
H85: 57 | I85: =IF($B$6="Hardness",VLOOKUP($H85,Ann_Hard!$A$5:$D$205,2),VLOOKUP($H85,P_All!$A$5:$AH$205,3*($C$8-1)+2)) -> 0.42768 | J85: =IF($B$6="Hardness",VLOOKUP($H85,Ann_Hard!$A$5:$D$205,3),VLOOKUP($H85,P_All!$A$5:$AH$205,3*($C$8-1)+3)) -> 0.97751 | K85: =IF($B$6="Hardness",VLOOKUP($H85,Ann_Hard!$A$5:$D$205,4),VLOOKUP($H85,P_All!$A$5:$AH$205,3*($C$8-1)+4)) -> 2.4676 | L85: =IF($B$6="Hardness",VLOOKUP($H85,Ann_Hard!$A$5:$G$205,5),VLOOKUP($H85,NA_All!$A$5:$AH$205,3*($C$8-1)+2)) -> 0.83453 | M85: =IF($B$6="Hardness",VLOOKUP($H85,Ann_Hard!$A$5:$G$205,6),VLOOKUP($H85,NA_All!$A$5:$AH$205,3*($C$8-1)+3)) -> 1.2169 | N85: =IF($B$6="Hardness",VLOOKUP($H85,Ann_Hard!$A$5:$G$205,7),VLOOKUP($H85,NA_All!$A$5:$AH$205,3*($C$8-1)+4)) -> 2.2501 | O85: =IF(VLOOKUP($B$6,$A$28:$D$55,4,FALSE)=0,#N/A,IF($B$8="PM-13",#N/A,(EXP((VLOOKUP($B$6,$A$28:$F$55,5,FALSE)*LN(Ann_Hard!B62/1000)) + VLOOKUP($B$6,$A$28:$F$55,6,FALSE))))) ->  | P85: 5 | Q85: =IF(VLOOKUP($B$6,$A$28:$D$55,4,FALSE)=0,#N/A,IF($B$8="PM-13",#N/A,(EXP((VLOOKUP($B$6,$A$28:$F$55,5,FALSE)*LN(Ann_Hard!D62/1000)) + VLOOKUP($B$6,$A$28:$F$55,6,FALSE))))) ->  | S85: 184.75 | T85: =VLOOKUP($S85,P_All!$AJ$5:$BQ$245,3*($C$8-1)+2) -> 0.36874 | U85: =VLOOKUP($S85,P_All!$AJ$5:$BQ$245,3*($C$8-1)+3) -> 0.85907 | V85: =VLOOKUP($S85,P_All!$AJ$5:$BQ$245,3*($C$8-1)+4) -> 2.2959 | W85: =VLOOKUP($S85,NA_All!$AJ$5:$BQ$245,3*($C$8-1)+2) -> 0.63666 | X85: =VLOOKUP($S85,NA_All!$AJ$5:$BQ$245,3*($C$8-1)+3) -> 0.98898 | Y85: =VLOOKUP($S85,NA_All!$AJ$5:$BQ$245,3*($C$8-1)+4) -> 1.7449 | Z85: =IF(ISNA(VLOOKUP($B$6,$A$28:$E$55,IF($B$8=$A$25,3,2))),EXP(VLOOKUP($B$6,$A$28:$E$55,4)*LN(VLOOKUP($S85,#REF!,$C$8+1)/1000)+VLOOKUP($B$6,$A$28:$E$55,5)),VLOOKUP($B$6,$A$28:$E$55,IF($B$8=$A$25,3,2))) -> 5
H86: 58 | I86: =IF($B$6="Hardness",VLOOKUP($H86,Ann_Hard!$A$5:$D$205,2),VLOOKUP($H86,P_All!$A$5:$AH$205,3*($C$8-1)+2)) -> 0.44859 | J86: =IF($B$6="Hardness",VLOOKUP($H86,Ann_Hard!$A$5:$D$205,3),VLOOKUP($H86,P_All!$A$5:$AH$205,3*($C$8-1)+3)) -> 1.0586 | K86: =IF($B$6="Hardness",VLOOKUP($H86,Ann_Hard!$A$5:$D$205,4),VLOOKUP($H86,P_All!$A$5:$AH$205,3*($C$8-1)+4)) -> 2.5638 | L86: =IF($B$6="Hardness",VLOOKUP($H86,Ann_Hard!$A$5:$G$205,5),VLOOKUP($H86,NA_All!$A$5:$AH$205,3*($C$8-1)+2)) -> 0.83316 | M86: =IF($B$6="Hardness",VLOOKUP($H86,Ann_Hard!$A$5:$G$205,6),VLOOKUP($H86,NA_All!$A$5:$AH$205,3*($C$8-1)+3)) -> 1.2394 | N86: =IF($B$6="Hardness",VLOOKUP($H86,Ann_Hard!$A$5:$G$205,7),VLOOKUP($H86,NA_All!$A$5:$AH$205,3*($C$8-1)+4)) -> 2.2607 | O86: =IF(VLOOKUP($B$6,$A$28:$D$55,4,FALSE)=0,#N/A,IF($B$8="PM-13",#N/A,(EXP((VLOOKUP($B$6,$A$28:$F$55,5,FALSE)*LN(Ann_Hard!B63/1000)) + VLOOKUP($B$6,$A$28:$F$55,6,FALSE))))) ->  | P86: 5 | Q86: =IF(VLOOKUP($B$6,$A$28:$D$55,4,FALSE)=0,#N/A,IF($B$8="PM-13",#N/A,(EXP((VLOOKUP($B$6,$A$28:$F$55,5,FALSE)*LN(Ann_Hard!D63/1000)) + VLOOKUP($B$6,$A$28:$F$55,6,FALSE))))) ->  | S86: 184.8333333 | T86: =VLOOKUP($S86,P_All!$AJ$5:$BQ$245,3*($C$8-1)+2) -> 0.42011 | U86: =VLOOKUP($S86,P_All!$AJ$5:$BQ$245,3*($C$8-1)+3) -> 0.92915 | V86: =VLOOKUP($S86,P_All!$AJ$5:$BQ$245,3*($C$8-1)+4) -> 2.2249 | W86: =VLOOKUP($S86,NA_All!$AJ$5:$BQ$245,3*($C$8-1)+2) -> 0.65629 | X86: =VLOOKUP($S86,NA_All!$AJ$5:$BQ$245,3*($C$8-1)+3) -> 1.0037 | Y86: =VLOOKUP($S86,NA_All!$AJ$5:$BQ$245,3*($C$8-1)+4) -> 1.7313 | Z86: =IF(ISNA(VLOOKUP($B$6,$A$28:$E$55,IF($B$8=$A$25,3,2))),EXP(VLOOKUP($B$6,$A$28:$E$55,4)*LN(VLOOKUP($S86,#REF!,$C$8+1)/1000)+VLOOKUP($B$6,$A$28:$E$55,5)),VLOOKUP($B$6,$A$28:$E$55,IF($B$8=$A$25,3,2))) -> 5
H87: 59 | I87: =IF($B$6="Hardness",VLOOKUP($H87,Ann_Hard!$A$5:$D$205,2),VLOOKUP($H87,P_All!$A$5:$AH$205,3*($C$8-1)+2)) -> 0.46719 | J87: =IF($B$6="Hardness",VLOOKUP($H87,Ann_Hard!$A$5:$D$205,3),VLOOKUP($H87,P_All!$A$5:$AH$205,3*($C$8-1)+3)) -> 1.0247 | K87: =IF($B$6="Hardness",VLOOKUP($H87,Ann_Hard!$A$5:$D$205,4),VLOOKUP($H87,P_All!$A$5:$AH$205,3*($C$8-1)+4)) -> 2.4612 | L87: =IF($B$6="Hardness",VLOOKUP($H87,Ann_Hard!$A$5:$G$205,5),VLOOKUP($H87,NA_All!$A$5:$AH$205,3*($C$8-1)+2)) -> 0.82235 | M87: =IF($B$6="Hardness",VLOOKUP($H87,Ann_Hard!$A$5:$G$205,6),VLOOKUP($H87,NA_All!$A$5:$AH$205,3*($C$8-1)+3)) -> 1.2545 | N87: =IF($B$6="Hardness",VLOOKUP($H87,Ann_Hard!$A$5:$G$205,7),VLOOKUP($H87,NA_All!$A$5:$AH$205,3*($C$8-1)+4)) -> 2.1882 | O87: =IF(VLOOKUP($B$6,$A$28:$D$55,4,FALSE)=0,#N/A,IF($B$8="PM-13",#N/A,(EXP((VLOOKUP($B$6,$A$28:$F$55,5,FALSE)*LN(Ann_Hard!B64/1000)) + VLOOKUP($B$6,$A$28:$F$55,6,FALSE))))) ->  | P87: 5 | Q87: =IF(VLOOKUP($B$6,$A$28:$D$55,4,FALSE)=0,#N/A,IF($B$8="PM-13",#N/A,(EXP((VLOOKUP($B$6,$A$28:$F$55,5,FALSE)*LN(Ann_Hard!D64/1000)) + VLOOKUP($B$6,$A$28:$F$55,6,FALSE))))) ->  | S87: 184.9166667 | T87: =VLOOKUP($S87,P_All!$AJ$5:$BQ$245,3*($C$8-1)+2) -> 0.391 | U87: =VLOOKUP($S87,P_All!$AJ$5:$BQ$245,3*($C$8-1)+3) -> 0.93719 | V87: =VLOOKUP($S87,P_All!$AJ$5:$BQ$245,3*($C$8-1)+4) -> 1.9878 | W87: =VLOOKUP($S87,NA_All!$AJ$5:$BQ$245,3*($C$8-1)+2) -> 0.66474 | X87: =VLOOKUP($S87,NA_All!$AJ$5:$BQ$245,3*($C$8-1)+3) -> 1.0181 | Y87: =VLOOKUP($S87,NA_All!$AJ$5:$BQ$245,3*($C$8-1)+4) -> 1.6411 | Z87: =IF(ISNA(VLOOKUP($B$6,$A$28:$E$55,IF($B$8=$A$25,3,2))),EXP(VLOOKUP($B$6,$A$28:$E$55,4)*LN(VLOOKUP($S87,#REF!,$C$8+1)/1000)+VLOOKUP($B$6,$A$28:$E$55,5)),VLOOKUP($B$6,$A$28:$E$55,IF($B$8=$A$25,3,2))) -> 5
H88: 60 | I88: =IF($B$6="Hardness",VLOOKUP($H88,Ann_Hard!$A$5:$D$205,2),VLOOKUP($H88,P_All!$A$5:$AH$205,3*($C$8-1)+2)) -> 0.44677 | J88: =IF($B$6="Hardness",VLOOKUP($H88,Ann_Hard!$A$5:$D$205,3),VLOOKUP($H88,P_All!$A$5:$AH$205,3*($C$8-1)+3)) -> 1.0339 | K88: =IF($B$6="Hardness",VLOOKUP($H88,Ann_Hard!$A$5:$D$205,4),VLOOKUP($H88,P_All!$A$5:$AH$205,3*($C$8-1)+4)) -> 2.6073 | L88: =IF($B$6="Hardness",VLOOKUP($H88,Ann_Hard!$A$5:$G$205,5),VLOOKUP($H88,NA_All!$A$5:$AH$205,3*($C$8-1)+2)) -> 0.81745 | M88: =IF($B$6="Hardness",VLOOKUP($H88,Ann_Hard!$A$5:$G$205,6),VLOOKUP($H88,NA_All!$A$5:$AH$205,3*($C$8-1)+3)) -> 1.2337 | N88: =IF($B$6="Hardness",VLOOKUP($H88,Ann_Hard!$A$5:$G$205,7),VLOOKUP($H88,NA_All!$A$5:$AH$205,3*($C$8-1)+4)) -> 2.3075 | O88: =IF(VLOOKUP($B$6,$A$28:$D$55,4,FALSE)=0,#N/A,IF($B$8="PM-13",#N/A,(EXP((VLOOKUP($B$6,$A$28:$F$55,5,FALSE)*LN(Ann_Hard!B65/1000)) + VLOOKUP($B$6,$A$28:$F$55,6,FALSE))))) ->  | P88: 5 | Q88: =IF(VLOOKUP($B$6,$A$28:$D$55,4,FALSE)=0,#N/A,IF($B$8="PM-13",#N/A,(EXP((VLOOKUP($B$6,$A$28:$F$55,5,FALSE)*LN(Ann_Hard!D65/1000)) + VLOOKUP($B$6,$A$28:$F$55,6,FALSE))))) ->  | S88: 185 | T88: =VLOOKUP($S88,P_All!$AJ$5:$BQ$245,3*($C$8-1)+2) -> 0.38512 | U88: =VLOOKUP($S88,P_All!$AJ$5:$BQ$245,3*($C$8-1)+3) -> 0.78182 | V88: =VLOOKUP($S88,P_All!$AJ$5:$BQ$245,3*($C$8-1)+4) -> 1.7876 | W88: =VLOOKUP($S88,NA_All!$AJ$5:$BQ$245,3*($C$8-1)+2) -> 0.65921 | X88: =VLOOKUP($S88,NA_All!$AJ$5:$BQ$245,3*($C$8-1)+3) -> 0.94917 | Y88: =VLOOKUP($S88,NA_All!$AJ$5:$BQ$245,3*($C$8-1)+4) -> 1.598 | Z88: =IF(ISNA(VLOOKUP($B$6,$A$28:$E$55,IF($B$8=$A$25,3,2))),EXP(VLOOKUP($B$6,$A$28:$E$55,4)*LN(VLOOKUP($S88,#REF!,$C$8+1)/1000)+VLOOKUP($B$6,$A$28:$E$55,5)),VLOOKUP($B$6,$A$28:$E$55,IF($B$8=$A$25,3,2))) -> 5
H89: 61 | I89: =IF($B$6="Hardness",VLOOKUP($H89,Ann_Hard!$A$5:$D$205,2),VLOOKUP($H89,P_All!$A$5:$AH$205,3*($C$8-1)+2)) -> 0.45245 | J89: =IF($B$6="Hardness",VLOOKUP($H89,Ann_Hard!$A$5:$D$205,3),VLOOKUP($H89,P_All!$A$5:$AH$205,3*($C$8-1)+3)) -> 1.0453 | K89: =IF($B$6="Hardness",VLOOKUP($H89,Ann_Hard!$A$5:$D$205,4),VLOOKUP($H89,P_All!$A$5:$AH$205,3*($C$8-1)+4)) -> 2.4792 | L89: =IF($B$6="Hardness",VLOOKUP($H89,Ann_Hard!$A$5:$G$205,5),VLOOKUP($H89,NA_All!$A$5:$AH$205,3*($C$8-1)+2)) -> 0.82707 | M89: =IF($B$6="Hardness",VLOOKUP($H89,Ann_Hard!$A$5:$G$205,6),VLOOKUP($H89,NA_All!$A$5:$AH$205,3*($C$8-1)+3)) -> 1.2164 | N89: =IF($B$6="Hardness",VLOOKUP($H89,Ann_Hard!$A$5:$G$205,7),VLOOKUP($H89,NA_All!$A$5:$AH$205,3*($C$8-1)+4)) -> 2.3459 | O89: =IF(VLOOKUP($B$6,$A$28:$D$55,4,FALSE)=0,#N/A,IF($B$8="PM-13",#N/A,(EXP((VLOOKUP($B$6,$A$28:$F$55,5,FALSE)*LN(Ann_Hard!B66/1000)) + VLOOKUP($B$6,$A$28:$F$55,6,FALSE))))) ->  | P89: 5 | Q89: =IF(VLOOKUP($B$6,$A$28:$D$55,4,FALSE)=0,#N/A,IF($B$8="PM-13",#N/A,(EXP((VLOOKUP($B$6,$A$28:$F$55,5,FALSE)*LN(Ann_Hard!D66/1000)) + VLOOKUP($B$6,$A$28:$F$55,6,FALSE))))) ->  | S89: 185.0833333 | T89: =VLOOKUP($S89,P_All!$AJ$5:$BQ$245,3*($C$8-1)+2) -> 0.33779 | U89: =VLOOKUP($S89,P_All!$AJ$5:$BQ$245,3*($C$8-1)+3) -> 0.63093 | V89: =VLOOKUP($S89,P_All!$AJ$5:$BQ$245,3*($C$8-1)+4) -> 1.3993 | W89: =VLOOKUP($S89,NA_All!$AJ$5:$BQ$245,3*($C$8-1)+2) -> 0.65825 | X89: =VLOOKUP($S89,NA_All!$AJ$5:$BQ$245,3*($C$8-1)+3) -> 0.9226 | Y89: =VLOOKUP($S89,NA_All!$AJ$5:$BQ$245,3*($C$8-1)+4) -> 1.5861 | Z89: =IF(ISNA(VLOOKUP($B$6,$A$28:$E$55,IF($B$8=$A$25,3,2))),EXP(VLOOKUP($B$6,$A$28:$E$55,4)*LN(VLOOKUP($S89,#REF!,$C$8+1)/1000)+VLOOKUP($B$6,$A$28:$E$55,5)),VLOOKUP($B$6,$A$28:$E$55,IF($B$8=$A$25,3,2))) -> 5
H90: 62 | I90: =IF($B$6="Hardness",VLOOKUP($H90,Ann_Hard!$A$5:$D$205,2),VLOOKUP($H90,P_All!$A$5:$AH$205,3*($C$8-1)+2)) -> 0.44522 | J90: =IF($B$6="Hardness",VLOOKUP($H90,Ann_Hard!$A$5:$D$205,3),VLOOKUP($H90,P_All!$A$5:$AH$205,3*($C$8-1)+3)) -> 1.0041 | K90: =IF($B$6="Hardness",VLOOKUP($H90,Ann_Hard!$A$5:$D$205,4),VLOOKUP($H90,P_All!$A$5:$AH$205,3*($C$8-1)+4)) -> 2.5079 | L90: =IF($B$6="Hardness",VLOOKUP($H90,Ann_Hard!$A$5:$G$205,5),VLOOKUP($H90,NA_All!$A$5:$AH$205,3*($C$8-1)+2)) -> 0.82917 | M90: =IF($B$6="Hardness",VLOOKUP($H90,Ann_Hard!$A$5:$G$205,6),VLOOKUP($H90,NA_All!$A$5:$AH$205,3*($C$8-1)+3)) -> 1.212 | N90: =IF($B$6="Hardness",VLOOKUP($H90,Ann_Hard!$A$5:$G$205,7),VLOOKUP($H90,NA_All!$A$5:$AH$205,3*($C$8-1)+4)) -> 2.2167 | O90: =IF(VLOOKUP($B$6,$A$28:$D$55,4,FALSE)=0,#N/A,IF($B$8="PM-13",#N/A,(EXP((VLOOKUP($B$6,$A$28:$F$55,5,FALSE)*LN(Ann_Hard!B67/1000)) + VLOOKUP($B$6,$A$28:$F$55,6,FALSE))))) ->  | P90: 5 | Q90: =IF(VLOOKUP($B$6,$A$28:$D$55,4,FALSE)=0,#N/A,IF($B$8="PM-13",#N/A,(EXP((VLOOKUP($B$6,$A$28:$F$55,5,FALSE)*LN(Ann_Hard!D67/1000)) + VLOOKUP($B$6,$A$28:$F$55,6,FALSE))))) ->  | S90: 185.1666667 | T90: =VLOOKUP($S90,P_All!$AJ$5:$BQ$245,3*($C$8-1)+2) -> 0.28636 | U90: =VLOOKUP($S90,P_All!$AJ$5:$BQ$245,3*($C$8-1)+3) -> 0.49171 | V90: =VLOOKUP($S90,P_All!$AJ$5:$BQ$245,3*($C$8-1)+4) -> 1.057 | W90: =VLOOKUP($S90,NA_All!$AJ$5:$BQ$245,3*($C$8-1)+2) -> 0.64704 | X90: =VLOOKUP($S90,NA_All!$AJ$5:$BQ$245,3*($C$8-1)+3) -> 0.90502 | Y90: =VLOOKUP($S90,NA_All!$AJ$5:$BQ$245,3*($C$8-1)+4) -> 1.6089 | Z90: =IF(ISNA(VLOOKUP($B$6,$A$28:$E$55,IF($B$8=$A$25,3,2))),EXP(VLOOKUP($B$6,$A$28:$E$55,4)*LN(VLOOKUP($S90,#REF!,$C$8+1)/1000)+VLOOKUP($B$6,$A$28:$E$55,5)),VLOOKUP($B$6,$A$28:$E$55,IF($B$8=$A$25,3,2))) -> 5
H91: 63 | I91: =IF($B$6="Hardness",VLOOKUP($H91,Ann_Hard!$A$5:$D$205,2),VLOOKUP($H91,P_All!$A$5:$AH$205,3*($C$8-1)+2)) -> 0.45695 | J91: =IF($B$6="Hardness",VLOOKUP($H91,Ann_Hard!$A$5:$D$205,3),VLOOKUP($H91,P_All!$A$5:$AH$205,3*($C$8-1)+3)) -> 1.0864 | K91: =IF($B$6="Hardness",VLOOKUP($H91,Ann_Hard!$A$5:$D$205,4),VLOOKUP($H91,P_All!$A$5:$AH$205,3*($C$8-1)+4)) -> 2.5093 | L91: =IF($B$6="Hardness",VLOOKUP($H91,Ann_Hard!$A$5:$G$205,5),VLOOKUP($H91,NA_All!$A$5:$AH$205,3*($C$8-1)+2)) -> 0.80719 | M91: =IF($B$6="Hardness",VLOOKUP($H91,Ann_Hard!$A$5:$G$205,6),VLOOKUP($H91,NA_All!$A$5:$AH$205,3*($C$8-1)+3)) -> 1.2188 | N91: =IF($B$6="Hardness",VLOOKUP($H91,Ann_Hard!$A$5:$G$205,7),VLOOKUP($H91,NA_All!$A$5:$AH$205,3*($C$8-1)+4)) -> 2.2753 | O91: =IF(VLOOKUP($B$6,$A$28:$D$55,4,FALSE)=0,#N/A,IF($B$8="PM-13",#N/A,(EXP((VLOOKUP($B$6,$A$28:$F$55,5,FALSE)*LN(Ann_Hard!B68/1000)) + VLOOKUP($B$6,$A$28:$F$55,6,FALSE))))) ->  | P91: 5 | Q91: =IF(VLOOKUP($B$6,$A$28:$D$55,4,FALSE)=0,#N/A,IF($B$8="PM-13",#N/A,(EXP((VLOOKUP($B$6,$A$28:$F$55,5,FALSE)*LN(Ann_Hard!D68/1000)) + VLOOKUP($B$6,$A$28:$F$55,6,FALSE))))) ->  | S91: 185.25 | T91: =VLOOKUP($S91,P_All!$AJ$5:$BQ$245,3*($C$8-1)+2) -> 0.24813 | U91: =VLOOKUP($S91,P_All!$AJ$5:$BQ$245,3*($C$8-1)+3) -> 0.48826 | V91: =VLOOKUP($S91,P_All!$AJ$5:$BQ$245,3*($C$8-1)+4) -> 1.2413 | W91: =VLOOKUP($S91,NA_All!$AJ$5:$BQ$245,3*($C$8-1)+2) -> 0.64088 | X91: =VLOOKUP($S91,NA_All!$AJ$5:$BQ$245,3*($C$8-1)+3) -> 0.92082 | Y91: =VLOOKUP($S91,NA_All!$AJ$5:$BQ$245,3*($C$8-1)+4) -> 1.6156 | Z91: =IF(ISNA(VLOOKUP($B$6,$A$28:$E$55,IF($B$8=$A$25,3,2))),EXP(VLOOKUP($B$6,$A$28:$E$55,4)*LN(VLOOKUP($S91,#REF!,$C$8+1)/1000)+VLOOKUP($B$6,$A$28:$E$55,5)),VLOOKUP($B$6,$A$28:$E$55,IF($B$8=$A$25,3,2))) -> 5
H92: 64 | I92: =IF($B$6="Hardness",VLOOKUP($H92,Ann_Hard!$A$5:$D$205,2),VLOOKUP($H92,P_All!$A$5:$AH$205,3*($C$8-1)+2)) -> 0.43454 | J92: =IF($B$6="Hardness",VLOOKUP($H92,Ann_Hard!$A$5:$D$205,3),VLOOKUP($H92,P_All!$A$5:$AH$205,3*($C$8-1)+3)) -> 0.99421 | K92: =IF($B$6="Hardness",VLOOKUP($H92,Ann_Hard!$A$5:$D$205,4),VLOOKUP($H92,P_All!$A$5:$AH$205,3*($C$8-1)+4)) -> 2.4979 | L92: =IF($B$6="Hardness",VLOOKUP($H92,Ann_Hard!$A$5:$G$205,5),VLOOKUP($H92,NA_All!$A$5:$AH$205,3*($C$8-1)+2)) -> 0.8181 | M92: =IF($B$6="Hardness",VLOOKUP($H92,Ann_Hard!$A$5:$G$205,6),VLOOKUP($H92,NA_All!$A$5:$AH$205,3*($C$8-1)+3)) -> 1.2149 | N92: =IF($B$6="Hardness",VLOOKUP($H92,Ann_Hard!$A$5:$G$205,7),VLOOKUP($H92,NA_All!$A$5:$AH$205,3*($C$8-1)+4)) -> 2.254 | O92: =IF(VLOOKUP($B$6,$A$28:$D$55,4,FALSE)=0,#N/A,IF($B$8="PM-13",#N/A,(EXP((VLOOKUP($B$6,$A$28:$F$55,5,FALSE)*LN(Ann_Hard!B69/1000)) + VLOOKUP($B$6,$A$28:$F$55,6,FALSE))))) ->  | P92: 5 | Q92: =IF(VLOOKUP($B$6,$A$28:$D$55,4,FALSE)=0,#N/A,IF($B$8="PM-13",#N/A,(EXP((VLOOKUP($B$6,$A$28:$F$55,5,FALSE)*LN(Ann_Hard!D69/1000)) + VLOOKUP($B$6,$A$28:$F$55,6,FALSE))))) ->  | S92: 185.3333333 | T92: =VLOOKUP($S92,P_All!$AJ$5:$BQ$245,3*($C$8-1)+2) -> 0.41307 | U92: =VLOOKUP($S92,P_All!$AJ$5:$BQ$245,3*($C$8-1)+3) -> 0.97623 | V92: =VLOOKUP($S92,P_All!$AJ$5:$BQ$245,3*($C$8-1)+4) -> 2.5093 | W92: =VLOOKUP($S92,NA_All!$AJ$5:$BQ$245,3*($C$8-1)+2) -> 0.61996 | X92: =VLOOKUP($S92,NA_All!$AJ$5:$BQ$245,3*($C$8-1)+3) -> 1.0245 | Y92: =VLOOKUP($S92,NA_All!$AJ$5:$BQ$245,3*($C$8-1)+4) -> 2.1405 | Z92: =IF(ISNA(VLOOKUP($B$6,$A$28:$E$55,IF($B$8=$A$25,3,2))),EXP(VLOOKUP($B$6,$A$28:$E$55,4)*LN(VLOOKUP($S92,#REF!,$C$8+1)/1000)+VLOOKUP($B$6,$A$28:$E$55,5)),VLOOKUP($B$6,$A$28:$E$55,IF($B$8=$A$25,3,2))) -> 5
H93: 65 | I93: =IF($B$6="Hardness",VLOOKUP($H93,Ann_Hard!$A$5:$D$205,2),VLOOKUP($H93,P_All!$A$5:$AH$205,3*($C$8-1)+2)) -> 0.4876 | J93: =IF($B$6="Hardness",VLOOKUP($H93,Ann_Hard!$A$5:$D$205,3),VLOOKUP($H93,P_All!$A$5:$AH$205,3*($C$8-1)+3)) -> 1.0352 | K93: =IF($B$6="Hardness",VLOOKUP($H93,Ann_Hard!$A$5:$D$205,4),VLOOKUP($H93,P_All!$A$5:$AH$205,3*($C$8-1)+4)) -> 2.7361 | L93: =IF($B$6="Hardness",VLOOKUP($H93,Ann_Hard!$A$5:$G$205,5),VLOOKUP($H93,NA_All!$A$5:$AH$205,3*($C$8-1)+2)) -> 0.80918 | M93: =IF($B$6="Hardness",VLOOKUP($H93,Ann_Hard!$A$5:$G$205,6),VLOOKUP($H93,NA_All!$A$5:$AH$205,3*($C$8-1)+3)) -> 1.1931 | N93: =IF($B$6="Hardness",VLOOKUP($H93,Ann_Hard!$A$5:$G$205,7),VLOOKUP($H93,NA_All!$A$5:$AH$205,3*($C$8-1)+4)) -> 2.3002 | O93: =IF(VLOOKUP($B$6,$A$28:$D$55,4,FALSE)=0,#N/A,IF($B$8="PM-13",#N/A,(EXP((VLOOKUP($B$6,$A$28:$F$55,5,FALSE)*LN(Ann_Hard!B70/1000)) + VLOOKUP($B$6,$A$28:$F$55,6,FALSE))))) ->  | P93: =IF(VLOOKUP($B$6,$A$28:$D$55,4,FALSE)=0,VLOOKUP($B$6,$A$28:$B$55,2,FALSE),IF($B$8="PM-13",(EXP((VLOOKUP($B$6,$A$28:$F$55,5,FALSE)*LN(95)) + VLOOKUP($B$6,$A$28:$F$55,6,FALSE))),#N/A)) -> 5 | Q93: =IF(VLOOKUP($B$6,$A$28:$D$55,4,FALSE)=0,#N/A,IF($B$8="PM-13",#N/A,(EXP((VLOOKUP($B$6,$A$28:$F$55,5,FALSE)*LN(Ann_Hard!D70/1000)) + VLOOKUP($B$6,$A$28:$F$55,6,FALSE))))) ->  | S93: 185.4166667 | T93: =VLOOKUP($S93,P_All!$AJ$5:$BQ$245,3*($C$8-1)+2) -> 0.42617 | U93: =VLOOKUP($S93,P_All!$AJ$5:$BQ$245,3*($C$8-1)+3) -> 1.0682 | V93: =VLOOKUP($S93,P_All!$AJ$5:$BQ$245,3*($C$8-1)+4) -> 2.3733 | W93: =VLOOKUP($S93,NA_All!$AJ$5:$BQ$245,3*($C$8-1)+2) -> 0.59018 | X93: =VLOOKUP($S93,NA_All!$AJ$5:$BQ$245,3*($C$8-1)+3) -> 1.0586 | Y93: =VLOOKUP($S93,NA_All!$AJ$5:$BQ$245,3*($C$8-1)+4) -> 1.9876 | Z93: =IF(ISNA(VLOOKUP($B$6,$A$28:$E$55,IF($B$8=$A$25,3,2))),EXP(VLOOKUP($B$6,$A$28:$E$55,4)*LN(VLOOKUP($S93,#REF!,$C$8+1)/1000)+VLOOKUP($B$6,$A$28:$E$55,5)),VLOOKUP($B$6,$A$28:$E$55,IF($B$8=$A$25,3,2))) -> 5
H94: 66 | I94: =IF($B$6="Hardness",VLOOKUP($H94,Ann_Hard!$A$5:$D$205,2),VLOOKUP($H94,P_All!$A$5:$AH$205,3*($C$8-1)+2)) -> 0.44964 | J94: =IF($B$6="Hardness",VLOOKUP($H94,Ann_Hard!$A$5:$D$205,3),VLOOKUP($H94,P_All!$A$5:$AH$205,3*($C$8-1)+3)) -> 1.0364 | K94: =IF($B$6="Hardness",VLOOKUP($H94,Ann_Hard!$A$5:$D$205,4),VLOOKUP($H94,P_All!$A$5:$AH$205,3*($C$8-1)+4)) -> 2.4748 | L94: =IF($B$6="Hardness",VLOOKUP($H94,Ann_Hard!$A$5:$G$205,5),VLOOKUP($H94,NA_All!$A$5:$AH$205,3*($C$8-1)+2)) -> 0.79872 | M94: =IF($B$6="Hardness",VLOOKUP($H94,Ann_Hard!$A$5:$G$205,6),VLOOKUP($H94,NA_All!$A$5:$AH$205,3*($C$8-1)+3)) -> 1.1882 | N94: =IF($B$6="Hardness",VLOOKUP($H94,Ann_Hard!$A$5:$G$205,7),VLOOKUP($H94,NA_All!$A$5:$AH$205,3*($C$8-1)+4)) -> 2.2178 | O94: =IF(VLOOKUP($B$6,$A$28:$D$55,4,FALSE)=0,#N/A,IF($B$8="PM-13",#N/A,(EXP((VLOOKUP($B$6,$A$28:$F$55,5,FALSE)*LN(Ann_Hard!B71/1000)) + VLOOKUP($B$6,$A$28:$F$55,6,FALSE))))) ->  | P94: 5 | Q94: =IF(VLOOKUP($B$6,$A$28:$D$55,4,FALSE)=0,#N/A,IF($B$8="PM-13",#N/A,(EXP((VLOOKUP($B$6,$A$28:$F$55,5,FALSE)*LN(Ann_Hard!D71/1000)) + VLOOKUP($B$6,$A$28:$F$55,6,FALSE))))) ->  | S94: =S93+1/12 -> 185.5 | T94: =VLOOKUP($S94,P_All!$AJ$5:$BQ$245,3*($C$8-1)+2) -> 0.42445 | U94: =VLOOKUP($S94,P_All!$AJ$5:$BQ$245,3*($C$8-1)+3) -> 0.97726 | V94: =VLOOKUP($S94,P_All!$AJ$5:$BQ$245,3*($C$8-1)+4) -> 2.4164 | W94: =VLOOKUP($S94,NA_All!$AJ$5:$BQ$245,3*($C$8-1)+2) -> 0.62246 | X94: =VLOOKUP($S94,NA_All!$AJ$5:$BQ$245,3*($C$8-1)+3) -> 1.0235 | Y94: =VLOOKUP($S94,NA_All!$AJ$5:$BQ$245,3*($C$8-1)+4) -> 1.9927 | Z94: =IF(ISNA(VLOOKUP($B$6,$A$28:$E$55,IF($B$8=$A$25,3,2))),EXP(VLOOKUP($B$6,$A$28:$E$55,4)*LN(VLOOKUP($S94,#REF!,$C$8+1)/1000)+VLOOKUP($B$6,$A$28:$E$55,5)),VLOOKUP($B$6,$A$28:$E$55,IF($B$8=$A$25,3,2))) -> 5
H95: 67 | I95: =IF($B$6="Hardness",VLOOKUP($H95,Ann_Hard!$A$5:$D$205,2),VLOOKUP($H95,P_All!$A$5:$AH$205,3*($C$8-1)+2)) -> 0.4613 | J95: =IF($B$6="Hardness",VLOOKUP($H95,Ann_Hard!$A$5:$D$205,3),VLOOKUP($H95,P_All!$A$5:$AH$205,3*($C$8-1)+3)) -> 1.0767 | K95: =IF($B$6="Hardness",VLOOKUP($H95,Ann_Hard!$A$5:$D$205,4),VLOOKUP($H95,P_All!$A$5:$AH$205,3*($C$8-1)+4)) -> 2.6308 | L95: =IF($B$6="Hardness",VLOOKUP($H95,Ann_Hard!$A$5:$G$205,5),VLOOKUP($H95,NA_All!$A$5:$AH$205,3*($C$8-1)+2)) -> 0.81351 | M95: =IF($B$6="Hardness",VLOOKUP($H95,Ann_Hard!$A$5:$G$205,6),VLOOKUP($H95,NA_All!$A$5:$AH$205,3*($C$8-1)+3)) -> 1.1972 | N95: =IF($B$6="Hardness",VLOOKUP($H95,Ann_Hard!$A$5:$G$205,7),VLOOKUP($H95,NA_All!$A$5:$AH$205,3*($C$8-1)+4)) -> 2.3173 | O95: =IF(VLOOKUP($B$6,$A$28:$D$55,4,FALSE)=0,#N/A,IF($B$8="PM-13",#N/A,(EXP((VLOOKUP($B$6,$A$28:$F$55,5,FALSE)*LN(Ann_Hard!B72/1000)) + VLOOKUP($B$6,$A$28:$F$55,6,FALSE))))) ->  | P95: 5 | Q95: =IF(VLOOKUP($B$6,$A$28:$D$55,4,FALSE)=0,#N/A,IF($B$8="PM-13",#N/A,(EXP((VLOOKUP($B$6,$A$28:$F$55,5,FALSE)*LN(Ann_Hard!D72/1000)) + VLOOKUP($B$6,$A$28:$F$55,6,FALSE))))) ->  | S95: 185.5833333 | T95: =VLOOKUP($S95,P_All!$AJ$5:$BQ$245,3*($C$8-1)+2) -> 0.45093 | U95: =VLOOKUP($S95,P_All!$AJ$5:$BQ$245,3*($C$8-1)+3) -> 0.90395 | V95: =VLOOKUP($S95,P_All!$AJ$5:$BQ$245,3*($C$8-1)+4) -> 2.0633 | W95: =VLOOKUP($S95,NA_All!$AJ$5:$BQ$245,3*($C$8-1)+2) -> 0.64667 | X95: =VLOOKUP($S95,NA_All!$AJ$5:$BQ$245,3*($C$8-1)+3) -> 0.97769 | Y95: =VLOOKUP($S95,NA_All!$AJ$5:$BQ$245,3*($C$8-1)+4) -> 1.7419 | Z95: =IF(ISNA(VLOOKUP($B$6,$A$28:$E$55,IF($B$8=$A$25,3,2))),EXP(VLOOKUP($B$6,$A$28:$E$55,4)*LN(VLOOKUP($S95,#REF!,$C$8+1)/1000)+VLOOKUP($B$6,$A$28:$E$55,5)),VLOOKUP($B$6,$A$28:$E$55,IF($B$8=$A$25,3,2))) -> 5
H96: 68 | I96: =IF($B$6="Hardness",VLOOKUP($H96,Ann_Hard!$A$5:$D$205,2),VLOOKUP($H96,P_All!$A$5:$AH$205,3*($C$8-1)+2)) -> 0.45009 | J96: =IF($B$6="Hardness",VLOOKUP($H96,Ann_Hard!$A$5:$D$205,3),VLOOKUP($H96,P_All!$A$5:$AH$205,3*($C$8-1)+3)) -> 1.0557 | K96: =IF($B$6="Hardness",VLOOKUP($H96,Ann_Hard!$A$5:$D$205,4),VLOOKUP($H96,P_All!$A$5:$AH$205,3*($C$8-1)+4)) -> 2.4291 | L96: =IF($B$6="Hardness",VLOOKUP($H96,Ann_Hard!$A$5:$G$205,5),VLOOKUP($H96,NA_All!$A$5:$AH$205,3*($C$8-1)+2)) -> 0.80126 | M96: =IF($B$6="Hardness",VLOOKUP($H96,Ann_Hard!$A$5:$G$205,6),VLOOKUP($H96,NA_All!$A$5:$AH$205,3*($C$8-1)+3)) -> 1.2091 | N96: =IF($B$6="Hardness",VLOOKUP($H96,Ann_Hard!$A$5:$G$205,7),VLOOKUP($H96,NA_All!$A$5:$AH$205,3*($C$8-1)+4)) -> 2.2057 | O96: =IF(VLOOKUP($B$6,$A$28:$D$55,4,FALSE)=0,#N/A,IF($B$8="PM-13",#N/A,(EXP((VLOOKUP($B$6,$A$28:$F$55,5,FALSE)*LN(Ann_Hard!B73/1000)) + VLOOKUP($B$6,$A$28:$F$55,6,FALSE))))) ->  | P96: 5 | Q96: =IF(VLOOKUP($B$6,$A$28:$D$55,4,FALSE)=0,#N/A,IF($B$8="PM-13",#N/A,(EXP((VLOOKUP($B$6,$A$28:$F$55,5,FALSE)*LN(Ann_Hard!D73/1000)) + VLOOKUP($B$6,$A$28:$F$55,6,FALSE))))) ->  | S96: 185.6666667 | T96: =VLOOKUP($S96,P_All!$AJ$5:$BQ$245,3*($C$8-1)+2) -> 0.37954 | U96: =VLOOKUP($S96,P_All!$AJ$5:$BQ$245,3*($C$8-1)+3) -> 0.816 | V96: =VLOOKUP($S96,P_All!$AJ$5:$BQ$245,3*($C$8-1)+4) -> 1.8139 | W96: =VLOOKUP($S96,NA_All!$AJ$5:$BQ$245,3*($C$8-1)+2) -> 0.64309 | X96: =VLOOKUP($S96,NA_All!$AJ$5:$BQ$245,3*($C$8-1)+3) -> 0.93665 | Y96: =VLOOKUP($S96,NA_All!$AJ$5:$BQ$245,3*($C$8-1)+4) -> 1.6959 | Z96: =IF(ISNA(VLOOKUP($B$6,$A$28:$E$55,IF($B$8=$A$25,3,2))),EXP(VLOOKUP($B$6,$A$28:$E$55,4)*LN(VLOOKUP($S96,#REF!,$C$8+1)/1000)+VLOOKUP($B$6,$A$28:$E$55,5)),VLOOKUP($B$6,$A$28:$E$55,IF($B$8=$A$25,3,2))) -> 5
H97: 69 | I97: =IF($B$6="Hardness",VLOOKUP($H97,Ann_Hard!$A$5:$D$205,2),VLOOKUP($H97,P_All!$A$5:$AH$205,3*($C$8-1)+2)) -> 0.47942 | J97: =IF($B$6="Hardness",VLOOKUP($H97,Ann_Hard!$A$5:$D$205,3),VLOOKUP($H97,P_All!$A$5:$AH$205,3*($C$8-1)+3)) -> 1.0326 | K97: =IF($B$6="Hardness",VLOOKUP($H97,Ann_Hard!$A$5:$D$205,4),VLOOKUP($H97,P_All!$A$5:$AH$205,3*($C$8-1)+4)) -> 2.5007 | L97: =IF($B$6="Hardness",VLOOKUP($H97,Ann_Hard!$A$5:$G$205,5),VLOOKUP($H97,NA_All!$A$5:$AH$205,3*($C$8-1)+2)) -> 0.79123 | M97: =IF($B$6="Hardness",VLOOKUP($H97,Ann_Hard!$A$5:$G$205,6),VLOOKUP($H97,NA_All!$A$5:$AH$205,3*($C$8-1)+3)) -> 1.1894 | N97: =IF($B$6="Hardness",VLOOKUP($H97,Ann_Hard!$A$5:$G$205,7),VLOOKUP($H97,NA_All!$A$5:$AH$205,3*($C$8-1)+4)) -> 2.1793 | O97: =IF(VLOOKUP($B$6,$A$28:$D$55,4,FALSE)=0,#N/A,IF($B$8="PM-13",#N/A,(EXP((VLOOKUP($B$6,$A$28:$F$55,5,FALSE)*LN(Ann_Hard!B74/1000)) + VLOOKUP($B$6,$A$28:$F$55,6,FALSE))))) ->  | P97: 5 | Q97: =IF(VLOOKUP($B$6,$A$28:$D$55,4,FALSE)=0,#N/A,IF($B$8="PM-13",#N/A,(EXP((VLOOKUP($B$6,$A$28:$F$55,5,FALSE)*LN(Ann_Hard!D74/1000)) + VLOOKUP($B$6,$A$28:$F$55,6,FALSE))))) ->  | S97: 185.75 | T97: =VLOOKUP($S97,P_All!$AJ$5:$BQ$245,3*($C$8-1)+2) -> 0.3924 | U97: =VLOOKUP($S97,P_All!$AJ$5:$BQ$245,3*($C$8-1)+3) -> 0.82102 | V97: =VLOOKUP($S97,P_All!$AJ$5:$BQ$245,3*($C$8-1)+4) -> 1.9794 | W97: =VLOOKUP($S97,NA_All!$AJ$5:$BQ$245,3*($C$8-1)+2) -> 0.64104 | X97: =VLOOKUP($S97,NA_All!$AJ$5:$BQ$245,3*($C$8-1)+3) -> 0.96633 | Y97: =VLOOKUP($S97,NA_All!$AJ$5:$BQ$245,3*($C$8-1)+4) -> 1.6382 | Z97: =IF(ISNA(VLOOKUP($B$6,$A$28:$E$55,IF($B$8=$A$25,3,2))),EXP(VLOOKUP($B$6,$A$28:$E$55,4)*LN(VLOOKUP($S97,#REF!,$C$8+1)/1000)+VLOOKUP($B$6,$A$28:$E$55,5)),VLOOKUP($B$6,$A$28:$E$55,IF($B$8=$A$25,3,2))) -> 5
H98: 70 | I98: =IF($B$6="Hardness",VLOOKUP($H98,Ann_Hard!$A$5:$D$205,2),VLOOKUP($H98,P_All!$A$5:$AH$205,3*($C$8-1)+2)) -> 0.45833 | J98: =IF($B$6="Hardness",VLOOKUP($H98,Ann_Hard!$A$5:$D$205,3),VLOOKUP($H98,P_All!$A$5:$AH$205,3*($C$8-1)+3)) -> 1.0659 | K98: =IF($B$6="Hardness",VLOOKUP($H98,Ann_Hard!$A$5:$D$205,4),VLOOKUP($H98,P_All!$A$5:$AH$205,3*($C$8-1)+4)) -> 2.6636 | L98: =IF($B$6="Hardness",VLOOKUP($H98,Ann_Hard!$A$5:$G$205,5),VLOOKUP($H98,NA_All!$A$5:$AH$205,3*($C$8-1)+2)) -> 0.79359 | M98: =IF($B$6="Hardness",VLOOKUP($H98,Ann_Hard!$A$5:$G$205,6),VLOOKUP($H98,NA_All!$A$5:$AH$205,3*($C$8-1)+3)) -> 1.2034 | N98: =IF($B$6="Hardness",VLOOKUP($H98,Ann_Hard!$A$5:$G$205,7),VLOOKUP($H98,NA_All!$A$5:$AH$205,3*($C$8-1)+4)) -> 2.3113 | O98: =IF(VLOOKUP($B$6,$A$28:$D$55,4,FALSE)=0,#N/A,IF($B$8="PM-13",#N/A,(EXP((VLOOKUP($B$6,$A$28:$F$55,5,FALSE)*LN(Ann_Hard!B75/1000)) + VLOOKUP($B$6,$A$28:$F$55,6,FALSE))))) ->  | P98: 5 | Q98: =IF(VLOOKUP($B$6,$A$28:$D$55,4,FALSE)=0,#N/A,IF($B$8="PM-13",#N/A,(EXP((VLOOKUP($B$6,$A$28:$F$55,5,FALSE)*LN(Ann_Hard!D75/1000)) + VLOOKUP($B$6,$A$28:$F$55,6,FALSE))))) ->  | S98: 185.8333333 | T98: =VLOOKUP($S98,P_All!$AJ$5:$BQ$245,3*($C$8-1)+2) -> 0.42468 | U98: =VLOOKUP($S98,P_All!$AJ$5:$BQ$245,3*($C$8-1)+3) -> 0.88019 | V98: =VLOOKUP($S98,P_All!$AJ$5:$BQ$245,3*($C$8-1)+4) -> 2.064 | W98: =VLOOKUP($S98,NA_All!$AJ$5:$BQ$245,3*($C$8-1)+2) -> 0.65428 | X98: =VLOOKUP($S98,NA_All!$AJ$5:$BQ$245,3*($C$8-1)+3) -> 0.99792 | Y98: =VLOOKUP($S98,NA_All!$AJ$5:$BQ$245,3*($C$8-1)+4) -> 1.7 | Z98: =IF(ISNA(VLOOKUP($B$6,$A$28:$E$55,IF($B$8=$A$25,3,2))),EXP(VLOOKUP($B$6,$A$28:$E$55,4)*LN(VLOOKUP($S98,#REF!,$C$8+1)/1000)+VLOOKUP($B$6,$A$28:$E$55,5)),VLOOKUP($B$6,$A$28:$E$55,IF($B$8=$A$25,3,2))) -> 5
H99: 71 | I99: =IF($B$6="Hardness",VLOOKUP($H99,Ann_Hard!$A$5:$D$205,2),VLOOKUP($H99,P_All!$A$5:$AH$205,3*($C$8-1)+2)) -> 0.42689 | J99: =IF($B$6="Hardness",VLOOKUP($H99,Ann_Hard!$A$5:$D$205,3),VLOOKUP($H99,P_All!$A$5:$AH$205,3*($C$8-1)+3)) -> 1.0315 | K99: =IF($B$6="Hardness",VLOOKUP($H99,Ann_Hard!$A$5:$D$205,4),VLOOKUP($H99,P_All!$A$5:$AH$205,3*($C$8-1)+4)) -> 2.4154 | L99: =IF($B$6="Hardness",VLOOKUP($H99,Ann_Hard!$A$5:$G$205,5),VLOOKUP($H99,NA_All!$A$5:$AH$205,3*($C$8-1)+2)) -> 0.78494 | M99: =IF($B$6="Hardness",VLOOKUP($H99,Ann_Hard!$A$5:$G$205,6),VLOOKUP($H99,NA_All!$A$5:$AH$205,3*($C$8-1)+3)) -> 1.1745 | N99: =IF($B$6="Hardness",VLOOKUP($H99,Ann_Hard!$A$5:$G$205,7),VLOOKUP($H99,NA_All!$A$5:$AH$205,3*($C$8-1)+4)) -> 2.2629 | O99: =IF(VLOOKUP($B$6,$A$28:$D$55,4,FALSE)=0,#N/A,IF($B$8="PM-13",#N/A,(EXP((VLOOKUP($B$6,$A$28:$F$55,5,FALSE)*LN(Ann_Hard!B76/1000)) + VLOOKUP($B$6,$A$28:$F$55,6,FALSE))))) ->  | P99: 5 | Q99: =IF(VLOOKUP($B$6,$A$28:$D$55,4,FALSE)=0,#N/A,IF($B$8="PM-13",#N/A,(EXP((VLOOKUP($B$6,$A$28:$F$55,5,FALSE)*LN(Ann_Hard!D76/1000)) + VLOOKUP($B$6,$A$28:$F$55,6,FALSE))))) ->  | S99: 185.9166667 | T99: =VLOOKUP($S99,P_All!$AJ$5:$BQ$245,3*($C$8-1)+2) -> 0.42616 | U99: =VLOOKUP($S99,P_All!$AJ$5:$BQ$245,3*($C$8-1)+3) -> 0.91124 | V99: =VLOOKUP($S99,P_All!$AJ$5:$BQ$245,3*($C$8-1)+4) -> 2.2984 | W99: =VLOOKUP($S99,NA_All!$AJ$5:$BQ$245,3*($C$8-1)+2) -> 0.6681 | X99: =VLOOKUP($S99,NA_All!$AJ$5:$BQ$245,3*($C$8-1)+3) -> 1.0052 | Y99: =VLOOKUP($S99,NA_All!$AJ$5:$BQ$245,3*($C$8-1)+4) -> 1.7827 | Z99: =IF(ISNA(VLOOKUP($B$6,$A$28:$E$55,IF($B$8=$A$25,3,2))),EXP(VLOOKUP($B$6,$A$28:$E$55,4)*LN(VLOOKUP($S99,#REF!,$C$8+1)/1000)+VLOOKUP($B$6,$A$28:$E$55,5)),VLOOKUP($B$6,$A$28:$E$55,IF($B$8=$A$25,3,2))) -> 5
H100: 72 | I100: =IF($B$6="Hardness",VLOOKUP($H100,Ann_Hard!$A$5:$D$205,2),VLOOKUP($H100,P_All!$A$5:$AH$205,3*($C$8-1)+2)) -> 0.50005 | J100: =IF($B$6="Hardness",VLOOKUP($H100,Ann_Hard!$A$5:$D$205,3),VLOOKUP($H100,P_All!$A$5:$AH$205,3*($C$8-1)+3)) -> 1.0642 | K100: =IF($B$6="Hardness",VLOOKUP($H100,Ann_Hard!$A$5:$D$205,4),VLOOKUP($H100,P_All!$A$5:$AH$205,3*($C$8-1)+4)) -> 2.4906 | L100: =IF($B$6="Hardness",VLOOKUP($H100,Ann_Hard!$A$5:$G$205,5),VLOOKUP($H100,NA_All!$A$5:$AH$205,3*($C$8-1)+2)) -> 0.78728 | M100: =IF($B$6="Hardness",VLOOKUP($H100,Ann_Hard!$A$5:$G$205,6),VLOOKUP($H100,NA_All!$A$5:$AH$205,3*($C$8-1)+3)) -> 1.1934 | N100: =IF($B$6="Hardness",VLOOKUP($H100,Ann_Hard!$A$5:$G$205,7),VLOOKUP($H100,NA_All!$A$5:$AH$205,3*($C$8-1)+4)) -> 2.2736 | O100: =IF(VLOOKUP($B$6,$A$28:$D$55,4,FALSE)=0,#N/A,IF($B$8="PM-13",#N/A,(EXP((VLOOKUP($B$6,$A$28:$F$55,5,FALSE)*LN(Ann_Hard!B77/1000)) + VLOOKUP($B$6,$A$28:$F$55,6,FALSE))))) ->  | P100: 5 | Q100: =IF(VLOOKUP($B$6,$A$28:$D$55,4,FALSE)=0,#N/A,IF($B$8="PM-13",#N/A,(EXP((VLOOKUP($B$6,$A$28:$F$55,5,FALSE)*LN(Ann_Hard!D77/1000)) + VLOOKUP($B$6,$A$28:$F$55,6,FALSE))))) ->  | S100: 186 | T100: =VLOOKUP($S100,P_All!$AJ$5:$BQ$245,3*($C$8-1)+2) -> 0.41595 | U100: =VLOOKUP($S100,P_All!$AJ$5:$BQ$245,3*($C$8-1)+3) -> 0.86068 | V100: =VLOOKUP($S100,P_All!$AJ$5:$BQ$245,3*($C$8-1)+4) -> 1.8979 | W100: =VLOOKUP($S100,NA_All!$AJ$5:$BQ$245,3*($C$8-1)+2) -> 0.66455 | X100: =VLOOKUP($S100,NA_All!$AJ$5:$BQ$245,3*($C$8-1)+3) -> 0.96767 | Y100: =VLOOKUP($S100,NA_All!$AJ$5:$BQ$245,3*($C$8-1)+4) -> 1.6056 | Z100: =IF(ISNA(VLOOKUP($B$6,$A$28:$E$55,IF($B$8=$A$25,3,2))),EXP(VLOOKUP($B$6,$A$28:$E$55,4)*LN(VLOOKUP($S100,#REF!,$C$8+1)/1000)+VLOOKUP($B$6,$A$28:$E$55,5)),VLOOKUP($B$6,$A$28:$E$55,IF($B$8=$A$25,3,2))) -> 5
H101: 73 | I101: =IF($B$6="Hardness",VLOOKUP($H101,Ann_Hard!$A$5:$D$205,2),VLOOKUP($H101,P_All!$A$5:$AH$205,3*($C$8-1)+2)) -> 0.44978 | J101: =IF($B$6="Hardness",VLOOKUP($H101,Ann_Hard!$A$5:$D$205,3),VLOOKUP($H101,P_All!$A$5:$AH$205,3*($C$8-1)+3)) -> 1.0055 | K101: =IF($B$6="Hardness",VLOOKUP($H101,Ann_Hard!$A$5:$D$205,4),VLOOKUP($H101,P_All!$A$5:$AH$205,3*($C$8-1)+4)) -> 2.3283 | L101: =IF($B$6="Hardness",VLOOKUP($H101,Ann_Hard!$A$5:$G$205,5),VLOOKUP($H101,NA_All!$A$5:$AH$205,3*($C$8-1)+2)) -> 0.79447 | M101: =IF($B$6="Hardness",VLOOKUP($H101,Ann_Hard!$A$5:$G$205,6),VLOOKUP($H101,NA_All!$A$5:$AH$205,3*($C$8-1)+3)) -> 1.1841 | N101: =IF($B$6="Hardness",VLOOKUP($H101,Ann_Hard!$A$5:$G$205,7),VLOOKUP($H101,NA_All!$A$5:$AH$205,3*($C$8-1)+4)) -> 2.1325 | O101: =IF(VLOOKUP($B$6,$A$28:$D$55,4,FALSE)=0,#N/A,IF($B$8="PM-13",#N/A,(EXP((VLOOKUP($B$6,$A$28:$F$55,5,FALSE)*LN(Ann_Hard!B78/1000)) + VLOOKUP($B$6,$A$28:$F$55,6,FALSE))))) ->  | P101: 5 | Q101: =IF(VLOOKUP($B$6,$A$28:$D$55,4,FALSE)=0,#N/A,IF($B$8="PM-13",#N/A,(EXP((VLOOKUP($B$6,$A$28:$F$55,5,FALSE)*LN(Ann_Hard!D78/1000)) + VLOOKUP($B$6,$A$28:$F$55,6,FALSE))))) ->  | S101: 186.0833333 | T101: =VLOOKUP($S101,P_All!$AJ$5:$BQ$245,3*($C$8-1)+2) -> 0.35274 | U101: =VLOOKUP($S101,P_All!$AJ$5:$BQ$245,3*($C$8-1)+3) -> 0.66783 | V101: =VLOOKUP($S101,P_All!$AJ$5:$BQ$245,3*($C$8-1)+4) -> 1.3175 | W101: =VLOOKUP($S101,NA_All!$AJ$5:$BQ$245,3*($C$8-1)+2) -> 0.65936 | X101: =VLOOKUP($S101,NA_All!$AJ$5:$BQ$245,3*($C$8-1)+3) -> 0.90411 | Y101: =VLOOKUP($S101,NA_All!$AJ$5:$BQ$245,3*($C$8-1)+4) -> 1.5953 | Z101: =IF(ISNA(VLOOKUP($B$6,$A$28:$E$55,IF($B$8=$A$25,3,2))),EXP(VLOOKUP($B$6,$A$28:$E$55,4)*LN(VLOOKUP($S101,#REF!,$C$8+1)/1000)+VLOOKUP($B$6,$A$28:$E$55,5)),VLOOKUP($B$6,$A$28:$E$55,IF($B$8=$A$25,3,2))) -> 5
H102: 74 | I102: =IF($B$6="Hardness",VLOOKUP($H102,Ann_Hard!$A$5:$D$205,2),VLOOKUP($H102,P_All!$A$5:$AH$205,3*($C$8-1)+2)) -> 0.45139 | J102: =IF($B$6="Hardness",VLOOKUP($H102,Ann_Hard!$A$5:$D$205,3),VLOOKUP($H102,P_All!$A$5:$AH$205,3*($C$8-1)+3)) -> 1.079 | K102: =IF($B$6="Hardness",VLOOKUP($H102,Ann_Hard!$A$5:$D$205,4),VLOOKUP($H102,P_All!$A$5:$AH$205,3*($C$8-1)+4)) -> 2.395 | L102: =IF($B$6="Hardness",VLOOKUP($H102,Ann_Hard!$A$5:$G$205,5),VLOOKUP($H102,NA_All!$A$5:$AH$205,3*($C$8-1)+2)) -> 0.78826 | M102: =IF($B$6="Hardness",VLOOKUP($H102,Ann_Hard!$A$5:$G$205,6),VLOOKUP($H102,NA_All!$A$5:$AH$205,3*($C$8-1)+3)) -> 1.174 | N102: =IF($B$6="Hardness",VLOOKUP($H102,Ann_Hard!$A$5:$G$205,7),VLOOKUP($H102,NA_All!$A$5:$AH$205,3*($C$8-1)+4)) -> 2.1405 | O102: =IF(VLOOKUP($B$6,$A$28:$D$55,4,FALSE)=0,#N/A,IF($B$8="PM-13",#N/A,(EXP((VLOOKUP($B$6,$A$28:$F$55,5,FALSE)*LN(Ann_Hard!B79/1000)) + VLOOKUP($B$6,$A$28:$F$55,6,FALSE))))) ->  | P102: 5 | Q102: =IF(VLOOKUP($B$6,$A$28:$D$55,4,FALSE)=0,#N/A,IF($B$8="PM-13",#N/A,(EXP((VLOOKUP($B$6,$A$28:$F$55,5,FALSE)*LN(Ann_Hard!D79/1000)) + VLOOKUP($B$6,$A$28:$F$55,6,FALSE))))) ->  | S102: 186.1666667 | T102: =VLOOKUP($S102,P_All!$AJ$5:$BQ$245,3*($C$8-1)+2) -> 0.28649 | U102: =VLOOKUP($S102,P_All!$AJ$5:$BQ$245,3*($C$8-1)+3) -> 0.5038 | V102: =VLOOKUP($S102,P_All!$AJ$5:$BQ$245,3*($C$8-1)+4) -> 0.98653 | W102: =VLOOKUP($S102,NA_All!$AJ$5:$BQ$245,3*($C$8-1)+2) -> 0.64876 | X102: =VLOOKUP($S102,NA_All!$AJ$5:$BQ$245,3*($C$8-1)+3) -> 0.90438 | Y102: =VLOOKUP($S102,NA_All!$AJ$5:$BQ$245,3*($C$8-1)+4) -> 1.612 | Z102: =IF(ISNA(VLOOKUP($B$6,$A$28:$E$55,IF($B$8=$A$25,3,2))),EXP(VLOOKUP($B$6,$A$28:$E$55,4)*LN(VLOOKUP($S102,#REF!,$C$8+1)/1000)+VLOOKUP($B$6,$A$28:$E$55,5)),VLOOKUP($B$6,$A$28:$E$55,IF($B$8=$A$25,3,2))) -> 5
H103: 75 | I103: =IF($B$6="Hardness",VLOOKUP($H103,Ann_Hard!$A$5:$D$205,2),VLOOKUP($H103,P_All!$A$5:$AH$205,3*($C$8-1)+2)) -> 0.44926 | J103: =IF($B$6="Hardness",VLOOKUP($H103,Ann_Hard!$A$5:$D$205,3),VLOOKUP($H103,P_All!$A$5:$AH$205,3*($C$8-1)+3)) -> 1.0418 | K103: =IF($B$6="Hardness",VLOOKUP($H103,Ann_Hard!$A$5:$D$205,4),VLOOKUP($H103,P_All!$A$5:$AH$205,3*($C$8-1)+4)) -> 2.5194 | L103: =IF($B$6="Hardness",VLOOKUP($H103,Ann_Hard!$A$5:$G$205,5),VLOOKUP($H103,NA_All!$A$5:$AH$205,3*($C$8-1)+2)) -> 0.80217 | M103: =IF($B$6="Hardness",VLOOKUP($H103,Ann_Hard!$A$5:$G$205,6),VLOOKUP($H103,NA_All!$A$5:$AH$205,3*($C$8-1)+3)) -> 1.1709 | N103: =IF($B$6="Hardness",VLOOKUP($H103,Ann_Hard!$A$5:$G$205,7),VLOOKUP($H103,NA_All!$A$5:$AH$205,3*($C$8-1)+4)) -> 2.2207 | O103: =IF(VLOOKUP($B$6,$A$28:$D$55,4,FALSE)=0,#N/A,IF($B$8="PM-13",#N/A,(EXP((VLOOKUP($B$6,$A$28:$F$55,5,FALSE)*LN(Ann_Hard!B80/1000)) + VLOOKUP($B$6,$A$28:$F$55,6,FALSE))))) ->  | P103: 5 | Q103: =IF(VLOOKUP($B$6,$A$28:$D$55,4,FALSE)=0,#N/A,IF($B$8="PM-13",#N/A,(EXP((VLOOKUP($B$6,$A$28:$F$55,5,FALSE)*LN(Ann_Hard!D80/1000)) + VLOOKUP($B$6,$A$28:$F$55,6,FALSE))))) ->  | S103: 186.25 | T103: =VLOOKUP($S103,P_All!$AJ$5:$BQ$245,3*($C$8-1)+2) -> 0.25483 | U103: =VLOOKUP($S103,P_All!$AJ$5:$BQ$245,3*($C$8-1)+3) -> 0.48715 | V103: =VLOOKUP($S103,P_All!$AJ$5:$BQ$245,3*($C$8-1)+4) -> 1.3434 | W103: =VLOOKUP($S103,NA_All!$AJ$5:$BQ$245,3*($C$8-1)+2) -> 0.65065 | X103: =VLOOKUP($S103,NA_All!$AJ$5:$BQ$245,3*($C$8-1)+3) -> 0.925 | Y103: =VLOOKUP($S103,NA_All!$AJ$5:$BQ$245,3*($C$8-1)+4) -> 1.6839 | Z103: =IF(ISNA(VLOOKUP($B$6,$A$28:$E$55,IF($B$8=$A$25,3,2))),EXP(VLOOKUP($B$6,$A$28:$E$55,4)*LN(VLOOKUP($S103,#REF!,$C$8+1)/1000)+VLOOKUP($B$6,$A$28:$E$55,5)),VLOOKUP($B$6,$A$28:$E$55,IF($B$8=$A$25,3,2))) -> 5
H104: 76 | I104: =IF($B$6="Hardness",VLOOKUP($H104,Ann_Hard!$A$5:$D$205,2),VLOOKUP($H104,P_All!$A$5:$AH$205,3*($C$8-1)+2)) -> 0.45342 | J104: =IF($B$6="Hardness",VLOOKUP($H104,Ann_Hard!$A$5:$D$205,3),VLOOKUP($H104,P_All!$A$5:$AH$205,3*($C$8-1)+3)) -> 1.0405 | K104: =IF($B$6="Hardness",VLOOKUP($H104,Ann_Hard!$A$5:$D$205,4),VLOOKUP($H104,P_All!$A$5:$AH$205,3*($C$8-1)+4)) -> 2.6434 | L104: =IF($B$6="Hardness",VLOOKUP($H104,Ann_Hard!$A$5:$G$205,5),VLOOKUP($H104,NA_All!$A$5:$AH$205,3*($C$8-1)+2)) -> 0.78126 | M104: =IF($B$6="Hardness",VLOOKUP($H104,Ann_Hard!$A$5:$G$205,6),VLOOKUP($H104,NA_All!$A$5:$AH$205,3*($C$8-1)+3)) -> 1.1695 | N104: =IF($B$6="Hardness",VLOOKUP($H104,Ann_Hard!$A$5:$G$205,7),VLOOKUP($H104,NA_All!$A$5:$AH$205,3*($C$8-1)+4)) -> 2.3477 | O104: =IF(VLOOKUP($B$6,$A$28:$D$55,4,FALSE)=0,#N/A,IF($B$8="PM-13",#N/A,(EXP((VLOOKUP($B$6,$A$28:$F$55,5,FALSE)*LN(Ann_Hard!B81/1000)) + VLOOKUP($B$6,$A$28:$F$55,6,FALSE))))) ->  | P104: 5 | Q104: =IF(VLOOKUP($B$6,$A$28:$D$55,4,FALSE)=0,#N/A,IF($B$8="PM-13",#N/A,(EXP((VLOOKUP($B$6,$A$28:$F$55,5,FALSE)*LN(Ann_Hard!D81/1000)) + VLOOKUP($B$6,$A$28:$F$55,6,FALSE))))) ->  | S104: 186.3333333 | T104: =VLOOKUP($S104,P_All!$AJ$5:$BQ$245,3*($C$8-1)+2) -> 0.36971 | U104: =VLOOKUP($S104,P_All!$AJ$5:$BQ$245,3*($C$8-1)+3) -> 0.88205 | V104: =VLOOKUP($S104,P_All!$AJ$5:$BQ$245,3*($C$8-1)+4) -> 2.5385 | W104: =VLOOKUP($S104,NA_All!$AJ$5:$BQ$245,3*($C$8-1)+2) -> 0.6081 | X104: =VLOOKUP($S104,NA_All!$AJ$5:$BQ$245,3*($C$8-1)+3) -> 0.98443 | Y104: =VLOOKUP($S104,NA_All!$AJ$5:$BQ$245,3*($C$8-1)+4) -> 2.0944 | Z104: =IF(ISNA(VLOOKUP($B$6,$A$28:$E$55,IF($B$8=$A$25,3,2))),EXP(VLOOKUP($B$6,$A$28:$E$55,4)*LN(VLOOKUP($S104,#REF!,$C$8+1)/1000)+VLOOKUP($B$6,$A$28:$E$55,5)),VLOOKUP($B$6,$A$28:$E$55,IF($B$8=$A$25,3,2))) -> 5
H105: 77 | I105: =IF($B$6="Hardness",VLOOKUP($H105,Ann_Hard!$A$5:$D$205,2),VLOOKUP($H105,P_All!$A$5:$AH$205,3*($C$8-1)+2)) -> 0.46625 | J105: =IF($B$6="Hardness",VLOOKUP($H105,Ann_Hard!$A$5:$D$205,3),VLOOKUP($H105,P_All!$A$5:$AH$205,3*($C$8-1)+3)) -> 1.0097 | K105: =IF($B$6="Hardness",VLOOKUP($H105,Ann_Hard!$A$5:$D$205,4),VLOOKUP($H105,P_All!$A$5:$AH$205,3*($C$8-1)+4)) -> 2.5536 | L105: =IF($B$6="Hardness",VLOOKUP($H105,Ann_Hard!$A$5:$G$205,5),VLOOKUP($H105,NA_All!$A$5:$AH$205,3*($C$8-1)+2)) -> 0.77646 | M105: =IF($B$6="Hardness",VLOOKUP($H105,Ann_Hard!$A$5:$G$205,6),VLOOKUP($H105,NA_All!$A$5:$AH$205,3*($C$8-1)+3)) -> 1.1697 | N105: =IF($B$6="Hardness",VLOOKUP($H105,Ann_Hard!$A$5:$G$205,7),VLOOKUP($H105,NA_All!$A$5:$AH$205,3*($C$8-1)+4)) -> 2.2506 | O105: =IF(VLOOKUP($B$6,$A$28:$D$55,4,FALSE)=0,#N/A,IF($B$8="PM-13",#N/A,(EXP((VLOOKUP($B$6,$A$28:$F$55,5,FALSE)*LN(Ann_Hard!B82/1000)) + VLOOKUP($B$6,$A$28:$F$55,6,FALSE))))) ->  | P105: 5 | Q105: =IF(VLOOKUP($B$6,$A$28:$D$55,4,FALSE)=0,#N/A,IF($B$8="PM-13",#N/A,(EXP((VLOOKUP($B$6,$A$28:$F$55,5,FALSE)*LN(Ann_Hard!D82/1000)) + VLOOKUP($B$6,$A$28:$F$55,6,FALSE))))) ->  | S105: 186.4166667 | T105: =VLOOKUP($S105,P_All!$AJ$5:$BQ$245,3*($C$8-1)+2) -> 0.45978 | U105: =VLOOKUP($S105,P_All!$AJ$5:$BQ$245,3*($C$8-1)+3) -> 1.0173 | V105: =VLOOKUP($S105,P_All!$AJ$5:$BQ$245,3*($C$8-1)+4) -> 2.4671 | W105: =VLOOKUP($S105,NA_All!$AJ$5:$BQ$245,3*($C$8-1)+2) -> 0.5813 | X105: =VLOOKUP($S105,NA_All!$AJ$5:$BQ$245,3*($C$8-1)+3) -> 1.037 | Y105: =VLOOKUP($S105,NA_All!$AJ$5:$BQ$245,3*($C$8-1)+4) -> 2.0271 | Z105: =IF(ISNA(VLOOKUP($B$6,$A$28:$E$55,IF($B$8=$A$25,3,2))),EXP(VLOOKUP($B$6,$A$28:$E$55,4)*LN(VLOOKUP($S105,#REF!,$C$8+1)/1000)+VLOOKUP($B$6,$A$28:$E$55,5)),VLOOKUP($B$6,$A$28:$E$55,IF($B$8=$A$25,3,2))) -> 5
H106: 78 | I106: =IF($B$6="Hardness",VLOOKUP($H106,Ann_Hard!$A$5:$D$205,2),VLOOKUP($H106,P_All!$A$5:$AH$205,3*($C$8-1)+2)) -> 0.47058 | J106: =IF($B$6="Hardness",VLOOKUP($H106,Ann_Hard!$A$5:$D$205,3),VLOOKUP($H106,P_All!$A$5:$AH$205,3*($C$8-1)+3)) -> 1.1202 | K106: =IF($B$6="Hardness",VLOOKUP($H106,Ann_Hard!$A$5:$D$205,4),VLOOKUP($H106,P_All!$A$5:$AH$205,3*($C$8-1)+4)) -> 2.6416 | L106: =IF($B$6="Hardness",VLOOKUP($H106,Ann_Hard!$A$5:$G$205,5),VLOOKUP($H106,NA_All!$A$5:$AH$205,3*($C$8-1)+2)) -> 0.78124 | M106: =IF($B$6="Hardness",VLOOKUP($H106,Ann_Hard!$A$5:$G$205,6),VLOOKUP($H106,NA_All!$A$5:$AH$205,3*($C$8-1)+3)) -> 1.171 | N106: =IF($B$6="Hardness",VLOOKUP($H106,Ann_Hard!$A$5:$G$205,7),VLOOKUP($H106,NA_All!$A$5:$AH$205,3*($C$8-1)+4)) -> 2.2188 | O106: =IF(VLOOKUP($B$6,$A$28:$D$55,4,FALSE)=0,#N/A,IF($B$8="PM-13",#N/A,(EXP((VLOOKUP($B$6,$A$28:$F$55,5,FALSE)*LN(Ann_Hard!B83/1000)) + VLOOKUP($B$6,$A$28:$F$55,6,FALSE))))) ->  | P106: 5 | Q106: =IF(VLOOKUP($B$6,$A$28:$D$55,4,FALSE)=0,#N/A,IF($B$8="PM-13",#N/A,(EXP((VLOOKUP($B$6,$A$28:$F$55,5,FALSE)*LN(Ann_Hard!D83/1000)) + VLOOKUP($B$6,$A$28:$F$55,6,FALSE))))) ->  | S106: 186.5 | T106: =VLOOKUP($S106,P_All!$AJ$5:$BQ$245,3*($C$8-1)+2) -> 0.41028 | U106: =VLOOKUP($S106,P_All!$AJ$5:$BQ$245,3*($C$8-1)+3) -> 0.97072 | V106: =VLOOKUP($S106,P_All!$AJ$5:$BQ$245,3*($C$8-1)+4) -> 2.2371 | W106: =VLOOKUP($S106,NA_All!$AJ$5:$BQ$245,3*($C$8-1)+2) -> 0.62092 | X106: =VLOOKUP($S106,NA_All!$AJ$5:$BQ$245,3*($C$8-1)+3) -> 1.015 | Y106: =VLOOKUP($S106,NA_All!$AJ$5:$BQ$245,3*($C$8-1)+4) -> 1.8441 | Z106: =IF(ISNA(VLOOKUP($B$6,$A$28:$E$55,IF($B$8=$A$25,3,2))),EXP(VLOOKUP($B$6,$A$28:$E$55,4)*LN(VLOOKUP($S106,#REF!,$C$8+1)/1000)+VLOOKUP($B$6,$A$28:$E$55,5)),VLOOKUP($B$6,$A$28:$E$55,IF($B$8=$A$25,3,2))) -> 5
H107: 79 | I107: =IF($B$6="Hardness",VLOOKUP($H107,Ann_Hard!$A$5:$D$205,2),VLOOKUP($H107,P_All!$A$5:$AH$205,3*($C$8-1)+2)) -> 0.45552 | J107: =IF($B$6="Hardness",VLOOKUP($H107,Ann_Hard!$A$5:$D$205,3),VLOOKUP($H107,P_All!$A$5:$AH$205,3*($C$8-1)+3)) -> 1.0063 | K107: =IF($B$6="Hardness",VLOOKUP($H107,Ann_Hard!$A$5:$D$205,4),VLOOKUP($H107,P_All!$A$5:$AH$205,3*($C$8-1)+4)) -> 2.4715 | L107: =IF($B$6="Hardness",VLOOKUP($H107,Ann_Hard!$A$5:$G$205,5),VLOOKUP($H107,NA_All!$A$5:$AH$205,3*($C$8-1)+2)) -> 0.77666 | M107: =IF($B$6="Hardness",VLOOKUP($H107,Ann_Hard!$A$5:$G$205,6),VLOOKUP($H107,NA_All!$A$5:$AH$205,3*($C$8-1)+3)) -> 1.1585 | N107: =IF($B$6="Hardness",VLOOKUP($H107,Ann_Hard!$A$5:$G$205,7),VLOOKUP($H107,NA_All!$A$5:$AH$205,3*($C$8-1)+4)) -> 2.1851 | O107: =IF(VLOOKUP($B$6,$A$28:$D$55,4,FALSE)=0,#N/A,IF($B$8="PM-13",#N/A,(EXP((VLOOKUP($B$6,$A$28:$F$55,5,FALSE)*LN(Ann_Hard!B84/1000)) + VLOOKUP($B$6,$A$28:$F$55,6,FALSE))))) ->  | P107: 5 | Q107: =IF(VLOOKUP($B$6,$A$28:$D$55,4,FALSE)=0,#N/A,IF($B$8="PM-13",#N/A,(EXP((VLOOKUP($B$6,$A$28:$F$55,5,FALSE)*LN(Ann_Hard!D84/1000)) + VLOOKUP($B$6,$A$28:$F$55,6,FALSE))))) ->  | S107: 186.5833333 | T107: =VLOOKUP($S107,P_All!$AJ$5:$BQ$245,3*($C$8-1)+2) -> 0.4114 | U107: =VLOOKUP($S107,P_All!$AJ$5:$BQ$245,3*($C$8-1)+3) -> 0.87798 | V107: =VLOOKUP($S107,P_All!$AJ$5:$BQ$245,3*($C$8-1)+4) -> 1.9844 | W107: =VLOOKUP($S107,NA_All!$AJ$5:$BQ$245,3*($C$8-1)+2) -> 0.64602 | X107: =VLOOKUP($S107,NA_All!$AJ$5:$BQ$245,3*($C$8-1)+3) -> 0.98223 | Y107: =VLOOKUP($S107,NA_All!$AJ$5:$BQ$245,3*($C$8-1)+4) -> 1.7004 | Z107: =IF(ISNA(VLOOKUP($B$6,$A$28:$E$55,IF($B$8=$A$25,3,2))),EXP(VLOOKUP($B$6,$A$28:$E$55,4)*LN(VLOOKUP($S107,#REF!,$C$8+1)/1000)+VLOOKUP($B$6,$A$28:$E$55,5)),VLOOKUP($B$6,$A$28:$E$55,IF($B$8=$A$25,3,2))) -> 5
H108: 80 | I108: =IF($B$6="Hardness",VLOOKUP($H108,Ann_Hard!$A$5:$D$205,2),VLOOKUP($H108,P_All!$A$5:$AH$205,3*($C$8-1)+2)) -> 0.45103 | J108: =IF($B$6="Hardness",VLOOKUP($H108,Ann_Hard!$A$5:$D$205,3),VLOOKUP($H108,P_All!$A$5:$AH$205,3*($C$8-1)+3)) -> 1.0943 | K108: =IF($B$6="Hardness",VLOOKUP($H108,Ann_Hard!$A$5:$D$205,4),VLOOKUP($H108,P_All!$A$5:$AH$205,3*($C$8-1)+4)) -> 2.3974 | L108: =IF($B$6="Hardness",VLOOKUP($H108,Ann_Hard!$A$5:$G$205,5),VLOOKUP($H108,NA_All!$A$5:$AH$205,3*($C$8-1)+2)) -> 0.76979 | M108: =IF($B$6="Hardness",VLOOKUP($H108,Ann_Hard!$A$5:$G$205,6),VLOOKUP($H108,NA_All!$A$5:$AH$205,3*($C$8-1)+3)) -> 1.1631 | N108: =IF($B$6="Hardness",VLOOKUP($H108,Ann_Hard!$A$5:$G$205,7),VLOOKUP($H108,NA_All!$A$5:$AH$205,3*($C$8-1)+4)) -> 2.0934 | O108: =IF(VLOOKUP($B$6,$A$28:$D$55,4,FALSE)=0,#N/A,IF($B$8="PM-13",#N/A,(EXP((VLOOKUP($B$6,$A$28:$F$55,5,FALSE)*LN(Ann_Hard!B85/1000)) + VLOOKUP($B$6,$A$28:$F$55,6,FALSE))))) ->  | P108: 5 | Q108: =IF(VLOOKUP($B$6,$A$28:$D$55,4,FALSE)=0,#N/A,IF($B$8="PM-13",#N/A,(EXP((VLOOKUP($B$6,$A$28:$F$55,5,FALSE)*LN(Ann_Hard!D85/1000)) + VLOOKUP($B$6,$A$28:$F$55,6,FALSE))))) ->  | S108: 186.6666667 | T108: =VLOOKUP($S108,P_All!$AJ$5:$BQ$245,3*($C$8-1)+2) -> 0.39184 | U108: =VLOOKUP($S108,P_All!$AJ$5:$BQ$245,3*($C$8-1)+3) -> 0.81767 | V108: =VLOOKUP($S108,P_All!$AJ$5:$BQ$245,3*($C$8-1)+4) -> 1.8474 | W108: =VLOOKUP($S108,NA_All!$AJ$5:$BQ$245,3*($C$8-1)+2) -> 0.62113 | X108: =VLOOKUP($S108,NA_All!$AJ$5:$BQ$245,3*($C$8-1)+3) -> 0.93493 | Y108: =VLOOKUP($S108,NA_All!$AJ$5:$BQ$245,3*($C$8-1)+4) -> 1.6817 | Z108: =IF(ISNA(VLOOKUP($B$6,$A$28:$E$55,IF($B$8=$A$25,3,2))),EXP(VLOOKUP($B$6,$A$28:$E$55,4)*LN(VLOOKUP($S108,#REF!,$C$8+1)/1000)+VLOOKUP($B$6,$A$28:$E$55,5)),VLOOKUP($B$6,$A$28:$E$55,IF($B$8=$A$25,3,2))) -> 5
H109: 81 | I109: =IF($B$6="Hardness",VLOOKUP($H109,Ann_Hard!$A$5:$D$205,2),VLOOKUP($H109,P_All!$A$5:$AH$205,3*($C$8-1)+2)) -> 0.45159 | J109: =IF($B$6="Hardness",VLOOKUP($H109,Ann_Hard!$A$5:$D$205,3),VLOOKUP($H109,P_All!$A$5:$AH$205,3*($C$8-1)+3)) -> 1.0574 | K109: =IF($B$6="Hardness",VLOOKUP($H109,Ann_Hard!$A$5:$D$205,4),VLOOKUP($H109,P_All!$A$5:$AH$205,3*($C$8-1)+4)) -> 2.5025 | L109: =IF($B$6="Hardness",VLOOKUP($H109,Ann_Hard!$A$5:$G$205,5),VLOOKUP($H109,NA_All!$A$5:$AH$205,3*($C$8-1)+2)) -> 0.77051 | M109: =IF($B$6="Hardness",VLOOKUP($H109,Ann_Hard!$A$5:$G$205,6),VLOOKUP($H109,NA_All!$A$5:$AH$205,3*($C$8-1)+3)) -> 1.1683 | N109: =IF($B$6="Hardness",VLOOKUP($H109,Ann_Hard!$A$5:$G$205,7),VLOOKUP($H109,NA_All!$A$5:$AH$205,3*($C$8-1)+4)) -> 2.1246 | O109: =IF(VLOOKUP($B$6,$A$28:$D$55,4,FALSE)=0,#N/A,IF($B$8="PM-13",#N/A,(EXP((VLOOKUP($B$6,$A$28:$F$55,5,FALSE)*LN(Ann_Hard!B86/1000)) + VLOOKUP($B$6,$A$28:$F$55,6,FALSE))))) ->  | P109: 5 | Q109: =IF(VLOOKUP($B$6,$A$28:$D$55,4,FALSE)=0,#N/A,IF($B$8="PM-13",#N/A,(EXP((VLOOKUP($B$6,$A$28:$F$55,5,FALSE)*LN(Ann_Hard!D86/1000)) + VLOOKUP($B$6,$A$28:$F$55,6,FALSE))))) ->  | S109: 186.75 | T109: =VLOOKUP($S109,P_All!$AJ$5:$BQ$245,3*($C$8-1)+2) -> 0.38428 | U109: =VLOOKUP($S109,P_All!$AJ$5:$BQ$245,3*($C$8-1)+3) -> 0.85306 | V109: =VLOOKUP($S109,P_All!$AJ$5:$BQ$245,3*($C$8-1)+4) -> 2.2154 | W109: =VLOOKUP($S109,NA_All!$AJ$5:$BQ$245,3*($C$8-1)+2) -> 0.64498 | X109: =VLOOKUP($S109,NA_All!$AJ$5:$BQ$245,3*($C$8-1)+3) -> 0.97047 | Y109: =VLOOKUP($S109,NA_All!$AJ$5:$BQ$245,3*($C$8-1)+4) -> 1.7368 | Z109: =IF(ISNA(VLOOKUP($B$6,$A$28:$E$55,IF($B$8=$A$25,3,2))),EXP(VLOOKUP($B$6,$A$28:$E$55,4)*LN(VLOOKUP($S109,#REF!,$C$8+1)/1000)+VLOOKUP($B$6,$A$28:$E$55,5)),VLOOKUP($B$6,$A$28:$E$55,IF($B$8=$A$25,3,2))) -> 5
H110: 82 | I110: =IF($B$6="Hardness",VLOOKUP($H110,Ann_Hard!$A$5:$D$205,2),VLOOKUP($H110,P_All!$A$5:$AH$205,3*($C$8-1)+2)) -> 0.45283 | J110: =IF($B$6="Hardness",VLOOKUP($H110,Ann_Hard!$A$5:$D$205,3),VLOOKUP($H110,P_All!$A$5:$AH$205,3*($C$8-1)+3)) -> 1.0534 | K110: =IF($B$6="Hardness",VLOOKUP($H110,Ann_Hard!$A$5:$D$205,4),VLOOKUP($H110,P_All!$A$5:$AH$205,3*($C$8-1)+4)) -> 2.4288 | L110: =IF($B$6="Hardness",VLOOKUP($H110,Ann_Hard!$A$5:$G$205,5),VLOOKUP($H110,NA_All!$A$5:$AH$205,3*($C$8-1)+2)) -> 0.77802 | M110: =IF($B$6="Hardness",VLOOKUP($H110,Ann_Hard!$A$5:$G$205,6),VLOOKUP($H110,NA_All!$A$5:$AH$205,3*($C$8-1)+3)) -> 1.1389 | N110: =IF($B$6="Hardness",VLOOKUP($H110,Ann_Hard!$A$5:$G$205,7),VLOOKUP($H110,NA_All!$A$5:$AH$205,3*($C$8-1)+4)) -> 2.1194 | O110: =IF(VLOOKUP($B$6,$A$28:$D$55,4,FALSE)=0,#N/A,IF($B$8="PM-13",#N/A,(EXP((VLOOKUP($B$6,$A$28:$F$55,5,FALSE)*LN(Ann_Hard!B87/1000)) + VLOOKUP($B$6,$A$28:$F$55,6,FALSE))))) ->  | P110: 5 | Q110: =IF(VLOOKUP($B$6,$A$28:$D$55,4,FALSE)=0,#N/A,IF($B$8="PM-13",#N/A,(EXP((VLOOKUP($B$6,$A$28:$F$55,5,FALSE)*LN(Ann_Hard!D87/1000)) + VLOOKUP($B$6,$A$28:$F$55,6,FALSE))))) ->  | S110: 186.8333333 | T110: =VLOOKUP($S110,P_All!$AJ$5:$BQ$245,3*($C$8-1)+2) -> 0.41667 | U110: =VLOOKUP($S110,P_All!$AJ$5:$BQ$245,3*($C$8-1)+3) -> 0.91257 | V110: =VLOOKUP($S110,P_All!$AJ$5:$BQ$245,3*($C$8-1)+4) -> 2.0008 | W110: =VLOOKUP($S110,NA_All!$AJ$5:$BQ$245,3*($C$8-1)+2) -> 0.65037 | X110: =VLOOKUP($S110,NA_All!$AJ$5:$BQ$245,3*($C$8-1)+3) -> 0.96252 | Y110: =VLOOKUP($S110,NA_All!$AJ$5:$BQ$245,3*($C$8-1)+4) -> 1.6516 | Z110: =IF(ISNA(VLOOKUP($B$6,$A$28:$E$55,IF($B$8=$A$25,3,2))),EXP(VLOOKUP($B$6,$A$28:$E$55,4)*LN(VLOOKUP($S110,#REF!,$C$8+1)/1000)+VLOOKUP($B$6,$A$28:$E$55,5)),VLOOKUP($B$6,$A$28:$E$55,IF($B$8=$A$25,3,2))) -> 5
H111: 83 | I111: =IF($B$6="Hardness",VLOOKUP($H111,Ann_Hard!$A$5:$D$205,2),VLOOKUP($H111,P_All!$A$5:$AH$205,3*($C$8-1)+2)) -> 0.46225 | J111: =IF($B$6="Hardness",VLOOKUP($H111,Ann_Hard!$A$5:$D$205,3),VLOOKUP($H111,P_All!$A$5:$AH$205,3*($C$8-1)+3)) -> 1.074 | K111: =IF($B$6="Hardness",VLOOKUP($H111,Ann_Hard!$A$5:$D$205,4),VLOOKUP($H111,P_All!$A$5:$AH$205,3*($C$8-1)+4)) -> 2.4565 | L111: =IF($B$6="Hardness",VLOOKUP($H111,Ann_Hard!$A$5:$G$205,5),VLOOKUP($H111,NA_All!$A$5:$AH$205,3*($C$8-1)+2)) -> 0.78548 | M111: =IF($B$6="Hardness",VLOOKUP($H111,Ann_Hard!$A$5:$G$205,6),VLOOKUP($H111,NA_All!$A$5:$AH$205,3*($C$8-1)+3)) -> 1.1483 | N111: =IF($B$6="Hardness",VLOOKUP($H111,Ann_Hard!$A$5:$G$205,7),VLOOKUP($H111,NA_All!$A$5:$AH$205,3*($C$8-1)+4)) -> 2.2103 | O111: =IF(VLOOKUP($B$6,$A$28:$D$55,4,FALSE)=0,#N/A,IF($B$8="PM-13",#N/A,(EXP((VLOOKUP($B$6,$A$28:$F$55,5,FALSE)*LN(Ann_Hard!B88/1000)) + VLOOKUP($B$6,$A$28:$F$55,6,FALSE))))) ->  | P111: 5 | Q111: =IF(VLOOKUP($B$6,$A$28:$D$55,4,FALSE)=0,#N/A,IF($B$8="PM-13",#N/A,(EXP((VLOOKUP($B$6,$A$28:$F$55,5,FALSE)*LN(Ann_Hard!D88/1000)) + VLOOKUP($B$6,$A$28:$F$55,6,FALSE))))) ->  | S111: 186.9166667 | T111: =VLOOKUP($S111,P_All!$AJ$5:$BQ$245,3*($C$8-1)+2) -> 0.40999 | U111: =VLOOKUP($S111,P_All!$AJ$5:$BQ$245,3*($C$8-1)+3) -> 0.91857 | V111: =VLOOKUP($S111,P_All!$AJ$5:$BQ$245,3*($C$8-1)+4) -> 2.0928 | W111: =VLOOKUP($S111,NA_All!$AJ$5:$BQ$245,3*($C$8-1)+2) -> 0.66316 | X111: =VLOOKUP($S111,NA_All!$AJ$5:$BQ$245,3*($C$8-1)+3) -> 0.98946 | Y111: =VLOOKUP($S111,NA_All!$AJ$5:$BQ$245,3*($C$8-1)+4) -> 1.7196 | Z111: =IF(ISNA(VLOOKUP($B$6,$A$28:$E$55,IF($B$8=$A$25,3,2))),EXP(VLOOKUP($B$6,$A$28:$E$55,4)*LN(VLOOKUP($S111,#REF!,$C$8+1)/1000)+VLOOKUP($B$6,$A$28:$E$55,5)),VLOOKUP($B$6,$A$28:$E$55,IF($B$8=$A$25,3,2))) -> 5
H112: 84 | I112: =IF($B$6="Hardness",VLOOKUP($H112,Ann_Hard!$A$5:$D$205,2),VLOOKUP($H112,P_All!$A$5:$AH$205,3*($C$8-1)+2)) -> 0.46077 | J112: =IF($B$6="Hardness",VLOOKUP($H112,Ann_Hard!$A$5:$D$205,3),VLOOKUP($H112,P_All!$A$5:$AH$205,3*($C$8-1)+3)) -> 1.053 | K112: =IF($B$6="Hardness",VLOOKUP($H112,Ann_Hard!$A$5:$D$205,4),VLOOKUP($H112,P_All!$A$5:$AH$205,3*($C$8-1)+4)) -> 2.5044 | L112: =IF($B$6="Hardness",VLOOKUP($H112,Ann_Hard!$A$5:$G$205,5),VLOOKUP($H112,NA_All!$A$5:$AH$205,3*($C$8-1)+2)) -> 0.76917 | M112: =IF($B$6="Hardness",VLOOKUP($H112,Ann_Hard!$A$5:$G$205,6),VLOOKUP($H112,NA_All!$A$5:$AH$205,3*($C$8-1)+3)) -> 1.1634 | N112: =IF($B$6="Hardness",VLOOKUP($H112,Ann_Hard!$A$5:$G$205,7),VLOOKUP($H112,NA_All!$A$5:$AH$205,3*($C$8-1)+4)) -> 2.2064 | O112: =IF(VLOOKUP($B$6,$A$28:$D$55,4,FALSE)=0,#N/A,IF($B$8="PM-13",#N/A,(EXP((VLOOKUP($B$6,$A$28:$F$55,5,FALSE)*LN(Ann_Hard!B89/1000)) + VLOOKUP($B$6,$A$28:$F$55,6,FALSE))))) ->  | P112: 5 | Q112: =IF(VLOOKUP($B$6,$A$28:$D$55,4,FALSE)=0,#N/A,IF($B$8="PM-13",#N/A,(EXP((VLOOKUP($B$6,$A$28:$F$55,5,FALSE)*LN(Ann_Hard!D89/1000)) + VLOOKUP($B$6,$A$28:$F$55,6,FALSE))))) ->  | S112: 187 | T112: =VLOOKUP($S112,P_All!$AJ$5:$BQ$245,3*($C$8-1)+2) -> 0.40012 | U112: =VLOOKUP($S112,P_All!$AJ$5:$BQ$245,3*($C$8-1)+3) -> 0.79107 | V112: =VLOOKUP($S112,P_All!$AJ$5:$BQ$245,3*($C$8-1)+4) -> 1.6558 | W112: =VLOOKUP($S112,NA_All!$AJ$5:$BQ$245,3*($C$8-1)+2) -> 0.65782 | X112: =VLOOKUP($S112,NA_All!$AJ$5:$BQ$245,3*($C$8-1)+3) -> 0.93534 | Y112: =VLOOKUP($S112,NA_All!$AJ$5:$BQ$245,3*($C$8-1)+4) -> 1.5722 | Z112: =IF(ISNA(VLOOKUP($B$6,$A$28:$E$55,IF($B$8=$A$25,3,2))),EXP(VLOOKUP($B$6,$A$28:$E$55,4)*LN(VLOOKUP($S112,#REF!,$C$8+1)/1000)+VLOOKUP($B$6,$A$28:$E$55,5)),VLOOKUP($B$6,$A$28:$E$55,IF($B$8=$A$25,3,2))) -> 5
H113: 85 | I113: =IF($B$6="Hardness",VLOOKUP($H113,Ann_Hard!$A$5:$D$205,2),VLOOKUP($H113,P_All!$A$5:$AH$205,3*($C$8-1)+2)) -> 0.45658 | J113: =IF($B$6="Hardness",VLOOKUP($H113,Ann_Hard!$A$5:$D$205,3),VLOOKUP($H113,P_All!$A$5:$AH$205,3*($C$8-1)+3)) -> 1.0581 | K113: =IF($B$6="Hardness",VLOOKUP($H113,Ann_Hard!$A$5:$D$205,4),VLOOKUP($H113,P_All!$A$5:$AH$205,3*($C$8-1)+4)) -> 2.6417 | L113: =IF($B$6="Hardness",VLOOKUP($H113,Ann_Hard!$A$5:$G$205,5),VLOOKUP($H113,NA_All!$A$5:$AH$205,3*($C$8-1)+2)) -> 0.76016 | M113: =IF($B$6="Hardness",VLOOKUP($H113,Ann_Hard!$A$5:$G$205,6),VLOOKUP($H113,NA_All!$A$5:$AH$205,3*($C$8-1)+3)) -> 1.1255 | N113: =IF($B$6="Hardness",VLOOKUP($H113,Ann_Hard!$A$5:$G$205,7),VLOOKUP($H113,NA_All!$A$5:$AH$205,3*($C$8-1)+4)) -> 2.2583 | O113: =IF(VLOOKUP($B$6,$A$28:$D$55,4,FALSE)=0,#N/A,IF($B$8="PM-13",#N/A,(EXP((VLOOKUP($B$6,$A$28:$F$55,5,FALSE)*LN(Ann_Hard!B90/1000)) + VLOOKUP($B$6,$A$28:$F$55,6,FALSE))))) ->  | P113: 5 | Q113: =IF(VLOOKUP($B$6,$A$28:$D$55,4,FALSE)=0,#N/A,IF($B$8="PM-13",#N/A,(EXP((VLOOKUP($B$6,$A$28:$F$55,5,FALSE)*LN(Ann_Hard!D90/1000)) + VLOOKUP($B$6,$A$28:$F$55,6,FALSE))))) ->  | S113: 187.0833333 | T113: =VLOOKUP($S113,P_All!$AJ$5:$BQ$245,3*($C$8-1)+2) -> 0.33678 | U113: =VLOOKUP($S113,P_All!$AJ$5:$BQ$245,3*($C$8-1)+3) -> 0.61195 | V113: =VLOOKUP($S113,P_All!$AJ$5:$BQ$245,3*($C$8-1)+4) -> 1.2253 | W113: =VLOOKUP($S113,NA_All!$AJ$5:$BQ$245,3*($C$8-1)+2) -> 0.65107 | X113: =VLOOKUP($S113,NA_All!$AJ$5:$BQ$245,3*($C$8-1)+3) -> 0.92241 | Y113: =VLOOKUP($S113,NA_All!$AJ$5:$BQ$245,3*($C$8-1)+4) -> 1.5713 | Z113: =IF(ISNA(VLOOKUP($B$6,$A$28:$E$55,IF($B$8=$A$25,3,2))),EXP(VLOOKUP($B$6,$A$28:$E$55,4)*LN(VLOOKUP($S113,#REF!,$C$8+1)/1000)+VLOOKUP($B$6,$A$28:$E$55,5)),VLOOKUP($B$6,$A$28:$E$55,IF($B$8=$A$25,3,2))) -> 5
H114: 86 | I114: =IF($B$6="Hardness",VLOOKUP($H114,Ann_Hard!$A$5:$D$205,2),VLOOKUP($H114,P_All!$A$5:$AH$205,3*($C$8-1)+2)) -> 0.45949 | J114: =IF($B$6="Hardness",VLOOKUP($H114,Ann_Hard!$A$5:$D$205,3),VLOOKUP($H114,P_All!$A$5:$AH$205,3*($C$8-1)+3)) -> 1.0215 | K114: =IF($B$6="Hardness",VLOOKUP($H114,Ann_Hard!$A$5:$D$205,4),VLOOKUP($H114,P_All!$A$5:$AH$205,3*($C$8-1)+4)) -> 2.4921 | L114: =IF($B$6="Hardness",VLOOKUP($H114,Ann_Hard!$A$5:$G$205,5),VLOOKUP($H114,NA_All!$A$5:$AH$205,3*($C$8-1)+2)) -> 0.75242 | M114: =IF($B$6="Hardness",VLOOKUP($H114,Ann_Hard!$A$5:$G$205,6),VLOOKUP($H114,NA_All!$A$5:$AH$205,3*($C$8-1)+3)) -> 1.1603 | N114: =IF($B$6="Hardness",VLOOKUP($H114,Ann_Hard!$A$5:$G$205,7),VLOOKUP($H114,NA_All!$A$5:$AH$205,3*($C$8-1)+4)) -> 2.1628 | O114: =IF(VLOOKUP($B$6,$A$28:$D$55,4,FALSE)=0,#N/A,IF($B$8="PM-13",#N/A,(EXP((VLOOKUP($B$6,$A$28:$F$55,5,FALSE)*LN(Ann_Hard!B91/1000)) + VLOOKUP($B$6,$A$28:$F$55,6,FALSE))))) ->  | P114: 5 | Q114: =IF(VLOOKUP($B$6,$A$28:$D$55,4,FALSE)=0,#N/A,IF($B$8="PM-13",#N/A,(EXP((VLOOKUP($B$6,$A$28:$F$55,5,FALSE)*LN(Ann_Hard!D91/1000)) + VLOOKUP($B$6,$A$28:$F$55,6,FALSE))))) ->  | S114: 187.1666667 | T114: =VLOOKUP($S114,P_All!$AJ$5:$BQ$245,3*($C$8-1)+2) -> 0.2724 | U114: =VLOOKUP($S114,P_All!$AJ$5:$BQ$245,3*($C$8-1)+3) -> 0.47994 | V114: =VLOOKUP($S114,P_All!$AJ$5:$BQ$245,3*($C$8-1)+4) -> 1.016 | W114: =VLOOKUP($S114,NA_All!$AJ$5:$BQ$245,3*($C$8-1)+2) -> 0.64816 | X114: =VLOOKUP($S114,NA_All!$AJ$5:$BQ$245,3*($C$8-1)+3) -> 0.90592 | Y114: =VLOOKUP($S114,NA_All!$AJ$5:$BQ$245,3*($C$8-1)+4) -> 1.6103 | Z114: =IF(ISNA(VLOOKUP($B$6,$A$28:$E$55,IF($B$8=$A$25,3,2))),EXP(VLOOKUP($B$6,$A$28:$E$55,4)*LN(VLOOKUP($S114,#REF!,$C$8+1)/1000)+VLOOKUP($B$6,$A$28:$E$55,5)),VLOOKUP($B$6,$A$28:$E$55,IF($B$8=$A$25,3,2))) -> 5
H115: 87 | I115: =IF($B$6="Hardness",VLOOKUP($H115,Ann_Hard!$A$5:$D$205,2),VLOOKUP($H115,P_All!$A$5:$AH$205,3*($C$8-1)+2)) -> 0.45593 | J115: =IF($B$6="Hardness",VLOOKUP($H115,Ann_Hard!$A$5:$D$205,3),VLOOKUP($H115,P_All!$A$5:$AH$205,3*($C$8-1)+3)) -> 1.0405 | K115: =IF($B$6="Hardness",VLOOKUP($H115,Ann_Hard!$A$5:$D$205,4),VLOOKUP($H115,P_All!$A$5:$AH$205,3*($C$8-1)+4)) -> 2.5781 | L115: =IF($B$6="Hardness",VLOOKUP($H115,Ann_Hard!$A$5:$G$205,5),VLOOKUP($H115,NA_All!$A$5:$AH$205,3*($C$8-1)+2)) -> 0.75142 | M115: =IF($B$6="Hardness",VLOOKUP($H115,Ann_Hard!$A$5:$G$205,6),VLOOKUP($H115,NA_All!$A$5:$AH$205,3*($C$8-1)+3)) -> 1.1238 | N115: =IF($B$6="Hardness",VLOOKUP($H115,Ann_Hard!$A$5:$G$205,7),VLOOKUP($H115,NA_All!$A$5:$AH$205,3*($C$8-1)+4)) -> 2.2828 | O115: =IF(VLOOKUP($B$6,$A$28:$D$55,4,FALSE)=0,#N/A,IF($B$8="PM-13",#N/A,(EXP((VLOOKUP($B$6,$A$28:$F$55,5,FALSE)*LN(Ann_Hard!B92/1000)) + VLOOKUP($B$6,$A$28:$F$55,6,FALSE))))) ->  | P115: 5 | Q115: =IF(VLOOKUP($B$6,$A$28:$D$55,4,FALSE)=0,#N/A,IF($B$8="PM-13",#N/A,(EXP((VLOOKUP($B$6,$A$28:$F$55,5,FALSE)*LN(Ann_Hard!D92/1000)) + VLOOKUP($B$6,$A$28:$F$55,6,FALSE))))) ->  | S115: 187.25 | T115: =VLOOKUP($S115,P_All!$AJ$5:$BQ$245,3*($C$8-1)+2) -> 0.26006 | U115: =VLOOKUP($S115,P_All!$AJ$5:$BQ$245,3*($C$8-1)+3) -> 0.48457 | V115: =VLOOKUP($S115,P_All!$AJ$5:$BQ$245,3*($C$8-1)+4) -> 1.2571 | W115: =VLOOKUP($S115,NA_All!$AJ$5:$BQ$245,3*($C$8-1)+2) -> 0.64329 | X115: =VLOOKUP($S115,NA_All!$AJ$5:$BQ$245,3*($C$8-1)+3) -> 0.91801 | Y115: =VLOOKUP($S115,NA_All!$AJ$5:$BQ$245,3*($C$8-1)+4) -> 1.6709 | Z115: =IF(ISNA(VLOOKUP($B$6,$A$28:$E$55,IF($B$8=$A$25,3,2))),EXP(VLOOKUP($B$6,$A$28:$E$55,4)*LN(VLOOKUP($S115,#REF!,$C$8+1)/1000)+VLOOKUP($B$6,$A$28:$E$55,5)),VLOOKUP($B$6,$A$28:$E$55,IF($B$8=$A$25,3,2))) -> 5
H116: 88 | I116: =IF($B$6="Hardness",VLOOKUP($H116,Ann_Hard!$A$5:$D$205,2),VLOOKUP($H116,P_All!$A$5:$AH$205,3*($C$8-1)+2)) -> 0.43806 | J116: =IF($B$6="Hardness",VLOOKUP($H116,Ann_Hard!$A$5:$D$205,3),VLOOKUP($H116,P_All!$A$5:$AH$205,3*($C$8-1)+3)) -> 1.0459 | K116: =IF($B$6="Hardness",VLOOKUP($H116,Ann_Hard!$A$5:$D$205,4),VLOOKUP($H116,P_All!$A$5:$AH$205,3*($C$8-1)+4)) -> 2.4674 | L116: =IF($B$6="Hardness",VLOOKUP($H116,Ann_Hard!$A$5:$G$205,5),VLOOKUP($H116,NA_All!$A$5:$AH$205,3*($C$8-1)+2)) -> 0.76714 | M116: =IF($B$6="Hardness",VLOOKUP($H116,Ann_Hard!$A$5:$G$205,6),VLOOKUP($H116,NA_All!$A$5:$AH$205,3*($C$8-1)+3)) -> 1.1331 | N116: =IF($B$6="Hardness",VLOOKUP($H116,Ann_Hard!$A$5:$G$205,7),VLOOKUP($H116,NA_All!$A$5:$AH$205,3*($C$8-1)+4)) -> 2.1104 | O116: =IF(VLOOKUP($B$6,$A$28:$D$55,4,FALSE)=0,#N/A,IF($B$8="PM-13",#N/A,(EXP((VLOOKUP($B$6,$A$28:$F$55,5,FALSE)*LN(Ann_Hard!B93/1000)) + VLOOKUP($B$6,$A$28:$F$55,6,FALSE))))) ->  | P116: 5 | Q116: =IF(VLOOKUP($B$6,$A$28:$D$55,4,FALSE)=0,#N/A,IF($B$8="PM-13",#N/A,(EXP((VLOOKUP($B$6,$A$28:$F$55,5,FALSE)*LN(Ann_Hard!D93/1000)) + VLOOKUP($B$6,$A$28:$F$55,6,FALSE))))) ->  | S116: 187.3333333 | T116: =VLOOKUP($S116,P_All!$AJ$5:$BQ$245,3*($C$8-1)+2) -> 0.37654 | U116: =VLOOKUP($S116,P_All!$AJ$5:$BQ$245,3*($C$8-1)+3) -> 0.86345 | V116: =VLOOKUP($S116,P_All!$AJ$5:$BQ$245,3*($C$8-1)+4) -> 2.2489 | W116: =VLOOKUP($S116,NA_All!$AJ$5:$BQ$245,3*($C$8-1)+2) -> 0.60529 | X116: =VLOOKUP($S116,NA_All!$AJ$5:$BQ$245,3*($C$8-1)+3) -> 0.99139 | Y116: =VLOOKUP($S116,NA_All!$AJ$5:$BQ$245,3*($C$8-1)+4) -> 1.8614 | Z116: =IF(ISNA(VLOOKUP($B$6,$A$28:$E$55,IF($B$8=$A$25,3,2))),EXP(VLOOKUP($B$6,$A$28:$E$55,4)*LN(VLOOKUP($S116,#REF!,$C$8+1)/1000)+VLOOKUP($B$6,$A$28:$E$55,5)),VLOOKUP($B$6,$A$28:$E$55,IF($B$8=$A$25,3,2))) -> 5
H117: 89 | I117: =IF($B$6="Hardness",VLOOKUP($H117,Ann_Hard!$A$5:$D$205,2),VLOOKUP($H117,P_All!$A$5:$AH$205,3*($C$8-1)+2)) -> 0.44102 | J117: =IF($B$6="Hardness",VLOOKUP($H117,Ann_Hard!$A$5:$D$205,3),VLOOKUP($H117,P_All!$A$5:$AH$205,3*($C$8-1)+3)) -> 1.0202 | K117: =IF($B$6="Hardness",VLOOKUP($H117,Ann_Hard!$A$5:$D$205,4),VLOOKUP($H117,P_All!$A$5:$AH$205,3*($C$8-1)+4)) -> 2.4965 | L117: =IF($B$6="Hardness",VLOOKUP($H117,Ann_Hard!$A$5:$G$205,5),VLOOKUP($H117,NA_All!$A$5:$AH$205,3*($C$8-1)+2)) -> 0.75472 | M117: =IF($B$6="Hardness",VLOOKUP($H117,Ann_Hard!$A$5:$G$205,6),VLOOKUP($H117,NA_All!$A$5:$AH$205,3*($C$8-1)+3)) -> 1.1519 | N117: =IF($B$6="Hardness",VLOOKUP($H117,Ann_Hard!$A$5:$G$205,7),VLOOKUP($H117,NA_All!$A$5:$AH$205,3*($C$8-1)+4)) -> 2.0957 | O117: =IF(VLOOKUP($B$6,$A$28:$D$55,4,FALSE)=0,#N/A,IF($B$8="PM-13",#N/A,(EXP((VLOOKUP($B$6,$A$28:$F$55,5,FALSE)*LN(Ann_Hard!B94/1000)) + VLOOKUP($B$6,$A$28:$F$55,6,FALSE))))) ->  | P117: 5 | Q117: =IF(VLOOKUP($B$6,$A$28:$D$55,4,FALSE)=0,#N/A,IF($B$8="PM-13",#N/A,(EXP((VLOOKUP($B$6,$A$28:$F$55,5,FALSE)*LN(Ann_Hard!D94/1000)) + VLOOKUP($B$6,$A$28:$F$55,6,FALSE))))) ->  | S117: 187.4166667 | T117: =VLOOKUP($S117,P_All!$AJ$5:$BQ$245,3*($C$8-1)+2) -> 0.47651 | U117: =VLOOKUP($S117,P_All!$AJ$5:$BQ$245,3*($C$8-1)+3) -> 1.0643 | V117: =VLOOKUP($S117,P_All!$AJ$5:$BQ$245,3*($C$8-1)+4) -> 2.1734 | W117: =VLOOKUP($S117,NA_All!$AJ$5:$BQ$245,3*($C$8-1)+2) -> 0.61058 | X117: =VLOOKUP($S117,NA_All!$AJ$5:$BQ$245,3*($C$8-1)+3) -> 1.052 | Y117: =VLOOKUP($S117,NA_All!$AJ$5:$BQ$245,3*($C$8-1)+4) -> 1.7741 | Z117: =IF(ISNA(VLOOKUP($B$6,$A$28:$E$55,IF($B$8=$A$25,3,2))),EXP(VLOOKUP($B$6,$A$28:$E$55,4)*LN(VLOOKUP($S117,#REF!,$C$8+1)/1000)+VLOOKUP($B$6,$A$28:$E$55,5)),VLOOKUP($B$6,$A$28:$E$55,IF($B$8=$A$25,3,2))) -> 5
H118: 90 | I118: =IF($B$6="Hardness",VLOOKUP($H118,Ann_Hard!$A$5:$D$205,2),VLOOKUP($H118,P_All!$A$5:$AH$205,3*($C$8-1)+2)) -> 0.45558 | J118: =IF($B$6="Hardness",VLOOKUP($H118,Ann_Hard!$A$5:$D$205,3),VLOOKUP($H118,P_All!$A$5:$AH$205,3*($C$8-1)+3)) -> 1.0639 | K118: =IF($B$6="Hardness",VLOOKUP($H118,Ann_Hard!$A$5:$D$205,4),VLOOKUP($H118,P_All!$A$5:$AH$205,3*($C$8-1)+4)) -> 2.6127 | L118: =IF($B$6="Hardness",VLOOKUP($H118,Ann_Hard!$A$5:$G$205,5),VLOOKUP($H118,NA_All!$A$5:$AH$205,3*($C$8-1)+2)) -> 0.75798 | M118: =IF($B$6="Hardness",VLOOKUP($H118,Ann_Hard!$A$5:$G$205,6),VLOOKUP($H118,NA_All!$A$5:$AH$205,3*($C$8-1)+3)) -> 1.1398 | N118: =IF($B$6="Hardness",VLOOKUP($H118,Ann_Hard!$A$5:$G$205,7),VLOOKUP($H118,NA_All!$A$5:$AH$205,3*($C$8-1)+4)) -> 2.3197 | O118: =IF(VLOOKUP($B$6,$A$28:$D$55,4,FALSE)=0,#N/A,IF($B$8="PM-13",#N/A,(EXP((VLOOKUP($B$6,$A$28:$F$55,5,FALSE)*LN(Ann_Hard!B95/1000)) + VLOOKUP($B$6,$A$28:$F$55,6,FALSE))))) ->  | P118: 5 | Q118: =IF(VLOOKUP($B$6,$A$28:$D$55,4,FALSE)=0,#N/A,IF($B$8="PM-13",#N/A,(EXP((VLOOKUP($B$6,$A$28:$F$55,5,FALSE)*LN(Ann_Hard!D95/1000)) + VLOOKUP($B$6,$A$28:$F$55,6,FALSE))))) ->  | S118: 187.5 | T118: =VLOOKUP($S118,P_All!$AJ$5:$BQ$245,3*($C$8-1)+2) -> 0.43612 | U118: =VLOOKUP($S118,P_All!$AJ$5:$BQ$245,3*($C$8-1)+3) -> 1.0013 | V118: =VLOOKUP($S118,P_All!$AJ$5:$BQ$245,3*($C$8-1)+4) -> 2.2044 | W118: =VLOOKUP($S118,NA_All!$AJ$5:$BQ$245,3*($C$8-1)+2) -> 0.61792 | X118: =VLOOKUP($S118,NA_All!$AJ$5:$BQ$245,3*($C$8-1)+3) -> 1.0127 | Y118: =VLOOKUP($S118,NA_All!$AJ$5:$BQ$245,3*($C$8-1)+4) -> 1.7908 | Z118: =IF(ISNA(VLOOKUP($B$6,$A$28:$E$55,IF($B$8=$A$25,3,2))),EXP(VLOOKUP($B$6,$A$28:$E$55,4)*LN(VLOOKUP($S118,#REF!,$C$8+1)/1000)+VLOOKUP($B$6,$A$28:$E$55,5)),VLOOKUP($B$6,$A$28:$E$55,IF($B$8=$A$25,3,2))) -> 5
H119: 91 | I119: =IF($B$6="Hardness",VLOOKUP($H119,Ann_Hard!$A$5:$D$205,2),VLOOKUP($H119,P_All!$A$5:$AH$205,3*($C$8-1)+2)) -> 0.43854 | J119: =IF($B$6="Hardness",VLOOKUP($H119,Ann_Hard!$A$5:$D$205,3),VLOOKUP($H119,P_All!$A$5:$AH$205,3*($C$8-1)+3)) -> 1.0537 | K119: =IF($B$6="Hardness",VLOOKUP($H119,Ann_Hard!$A$5:$D$205,4),VLOOKUP($H119,P_All!$A$5:$AH$205,3*($C$8-1)+4)) -> 2.5005 | L119: =IF($B$6="Hardness",VLOOKUP($H119,Ann_Hard!$A$5:$G$205,5),VLOOKUP($H119,NA_All!$A$5:$AH$205,3*($C$8-1)+2)) -> 0.75131 | M119: =IF($B$6="Hardness",VLOOKUP($H119,Ann_Hard!$A$5:$G$205,6),VLOOKUP($H119,NA_All!$A$5:$AH$205,3*($C$8-1)+3)) -> 1.136 | N119: =IF($B$6="Hardness",VLOOKUP($H119,Ann_Hard!$A$5:$G$205,7),VLOOKUP($H119,NA_All!$A$5:$AH$205,3*($C$8-1)+4)) -> 2.1141 | O119: =IF(VLOOKUP($B$6,$A$28:$D$55,4,FALSE)=0,#N/A,IF($B$8="PM-13",#N/A,(EXP((VLOOKUP($B$6,$A$28:$F$55,5,FALSE)*LN(Ann_Hard!B96/1000)) + VLOOKUP($B$6,$A$28:$F$55,6,FALSE))))) ->  | P119: 5 | Q119: =IF(VLOOKUP($B$6,$A$28:$D$55,4,FALSE)=0,#N/A,IF($B$8="PM-13",#N/A,(EXP((VLOOKUP($B$6,$A$28:$F$55,5,FALSE)*LN(Ann_Hard!D96/1000)) + VLOOKUP($B$6,$A$28:$F$55,6,FALSE))))) ->  | S119: 187.5833333 | T119: =VLOOKUP($S119,P_All!$AJ$5:$BQ$245,3*($C$8-1)+2) -> 0.42274 | U119: =VLOOKUP($S119,P_All!$AJ$5:$BQ$245,3*($C$8-1)+3) -> 0.88985 | V119: =VLOOKUP($S119,P_All!$AJ$5:$BQ$245,3*($C$8-1)+4) -> 2.102 | W119: =VLOOKUP($S119,NA_All!$AJ$5:$BQ$245,3*($C$8-1)+2) -> 0.63762 | X119: =VLOOKUP($S119,NA_All!$AJ$5:$BQ$245,3*($C$8-1)+3) -> 0.95811 | Y119: =VLOOKUP($S119,NA_All!$AJ$5:$BQ$245,3*($C$8-1)+4) -> 1.85 | Z119: =IF(ISNA(VLOOKUP($B$6,$A$28:$E$55,IF($B$8=$A$25,3,2))),EXP(VLOOKUP($B$6,$A$28:$E$55,4)*LN(VLOOKUP($S119,#REF!,$C$8+1)/1000)+VLOOKUP($B$6,$A$28:$E$55,5)),VLOOKUP($B$6,$A$28:$E$55,IF($B$8=$A$25,3,2))) -> 5
H120: 92 | I120: =IF($B$6="Hardness",VLOOKUP($H120,Ann_Hard!$A$5:$D$205,2),VLOOKUP($H120,P_All!$A$5:$AH$205,3*($C$8-1)+2)) -> 0.45308 | J120: =IF($B$6="Hardness",VLOOKUP($H120,Ann_Hard!$A$5:$D$205,3),VLOOKUP($H120,P_All!$A$5:$AH$205,3*($C$8-1)+3)) -> 0.98967 | K120: =IF($B$6="Hardness",VLOOKUP($H120,Ann_Hard!$A$5:$D$205,4),VLOOKUP($H120,P_All!$A$5:$AH$205,3*($C$8-1)+4)) -> 2.3692 | L120: =IF($B$6="Hardness",VLOOKUP($H120,Ann_Hard!$A$5:$G$205,5),VLOOKUP($H120,NA_All!$A$5:$AH$205,3*($C$8-1)+2)) -> 0.74194 | M120: =IF($B$6="Hardness",VLOOKUP($H120,Ann_Hard!$A$5:$G$205,6),VLOOKUP($H120,NA_All!$A$5:$AH$205,3*($C$8-1)+3)) -> 1.1236 | N120: =IF($B$6="Hardness",VLOOKUP($H120,Ann_Hard!$A$5:$G$205,7),VLOOKUP($H120,NA_All!$A$5:$AH$205,3*($C$8-1)+4)) -> 2.1024 | O120: =IF(VLOOKUP($B$6,$A$28:$D$55,4,FALSE)=0,#N/A,IF($B$8="PM-13",#N/A,(EXP((VLOOKUP($B$6,$A$28:$F$55,5,FALSE)*LN(Ann_Hard!B97/1000)) + VLOOKUP($B$6,$A$28:$F$55,6,FALSE))))) ->  | P120: 5 | Q120: =IF(VLOOKUP($B$6,$A$28:$D$55,4,FALSE)=0,#N/A,IF($B$8="PM-13",#N/A,(EXP((VLOOKUP($B$6,$A$28:$F$55,5,FALSE)*LN(Ann_Hard!D97/1000)) + VLOOKUP($B$6,$A$28:$F$55,6,FALSE))))) ->  | S120: 187.6666667 | T120: =VLOOKUP($S120,P_All!$AJ$5:$BQ$245,3*($C$8-1)+2) -> 0.3753 | U120: =VLOOKUP($S120,P_All!$AJ$5:$BQ$245,3*($C$8-1)+3) -> 0.80366 | V120: =VLOOKUP($S120,P_All!$AJ$5:$BQ$245,3*($C$8-1)+4) -> 1.8594 | W120: =VLOOKUP($S120,NA_All!$AJ$5:$BQ$245,3*($C$8-1)+2) -> 0.63026 | X120: =VLOOKUP($S120,NA_All!$AJ$5:$BQ$245,3*($C$8-1)+3) -> 0.97716 | Y120: =VLOOKUP($S120,NA_All!$AJ$5:$BQ$245,3*($C$8-1)+4) -> 1.6576 | Z120: =IF(ISNA(VLOOKUP($B$6,$A$28:$E$55,IF($B$8=$A$25,3,2))),EXP(VLOOKUP($B$6,$A$28:$E$55,4)*LN(VLOOKUP($S120,#REF!,$C$8+1)/1000)+VLOOKUP($B$6,$A$28:$E$55,5)),VLOOKUP($B$6,$A$28:$E$55,IF($B$8=$A$25,3,2))) -> 5
H121: 93 | I121: =IF($B$6="Hardness",VLOOKUP($H121,Ann_Hard!$A$5:$D$205,2),VLOOKUP($H121,P_All!$A$5:$AH$205,3*($C$8-1)+2)) -> 0.47192 | J121: =IF($B$6="Hardness",VLOOKUP($H121,Ann_Hard!$A$5:$D$205,3),VLOOKUP($H121,P_All!$A$5:$AH$205,3*($C$8-1)+3)) -> 1.0318 | K121: =IF($B$6="Hardness",VLOOKUP($H121,Ann_Hard!$A$5:$D$205,4),VLOOKUP($H121,P_All!$A$5:$AH$205,3*($C$8-1)+4)) -> 2.4738 | L121: =IF($B$6="Hardness",VLOOKUP($H121,Ann_Hard!$A$5:$G$205,5),VLOOKUP($H121,NA_All!$A$5:$AH$205,3*($C$8-1)+2)) -> 0.76082 | M121: =IF($B$6="Hardness",VLOOKUP($H121,Ann_Hard!$A$5:$G$205,6),VLOOKUP($H121,NA_All!$A$5:$AH$205,3*($C$8-1)+3)) -> 1.116 | N121: =IF($B$6="Hardness",VLOOKUP($H121,Ann_Hard!$A$5:$G$205,7),VLOOKUP($H121,NA_All!$A$5:$AH$205,3*($C$8-1)+4)) -> 2.0589 | O121: =IF(VLOOKUP($B$6,$A$28:$D$55,4,FALSE)=0,#N/A,IF($B$8="PM-13",#N/A,(EXP((VLOOKUP($B$6,$A$28:$F$55,5,FALSE)*LN(Ann_Hard!B98/1000)) + VLOOKUP($B$6,$A$28:$F$55,6,FALSE))))) ->  | P121: 5 | Q121: =IF(VLOOKUP($B$6,$A$28:$D$55,4,FALSE)=0,#N/A,IF($B$8="PM-13",#N/A,(EXP((VLOOKUP($B$6,$A$28:$F$55,5,FALSE)*LN(Ann_Hard!D98/1000)) + VLOOKUP($B$6,$A$28:$F$55,6,FALSE))))) ->  | S121: 187.75 | T121: =VLOOKUP($S121,P_All!$AJ$5:$BQ$245,3*($C$8-1)+2) -> 0.35822 | U121: =VLOOKUP($S121,P_All!$AJ$5:$BQ$245,3*($C$8-1)+3) -> 0.83357 | V121: =VLOOKUP($S121,P_All!$AJ$5:$BQ$245,3*($C$8-1)+4) -> 2.0938 | W121: =VLOOKUP($S121,NA_All!$AJ$5:$BQ$245,3*($C$8-1)+2) -> 0.62522 | X121: =VLOOKUP($S121,NA_All!$AJ$5:$BQ$245,3*($C$8-1)+3) -> 0.9629 | Y121: =VLOOKUP($S121,NA_All!$AJ$5:$BQ$245,3*($C$8-1)+4) -> 1.7061 | Z121: =IF(ISNA(VLOOKUP($B$6,$A$28:$E$55,IF($B$8=$A$25,3,2))),EXP(VLOOKUP($B$6,$A$28:$E$55,4)*LN(VLOOKUP($S121,#REF!,$C$8+1)/1000)+VLOOKUP($B$6,$A$28:$E$55,5)),VLOOKUP($B$6,$A$28:$E$55,IF($B$8=$A$25,3,2))) -> 5
H122: 94 | I122: =IF($B$6="Hardness",VLOOKUP($H122,Ann_Hard!$A$5:$D$205,2),VLOOKUP($H122,P_All!$A$5:$AH$205,3*($C$8-1)+2)) -> 0.45343 | J122: =IF($B$6="Hardness",VLOOKUP($H122,Ann_Hard!$A$5:$D$205,3),VLOOKUP($H122,P_All!$A$5:$AH$205,3*($C$8-1)+3)) -> 1.079 | K122: =IF($B$6="Hardness",VLOOKUP($H122,Ann_Hard!$A$5:$D$205,4),VLOOKUP($H122,P_All!$A$5:$AH$205,3*($C$8-1)+4)) -> 2.6892 | L122: =IF($B$6="Hardness",VLOOKUP($H122,Ann_Hard!$A$5:$G$205,5),VLOOKUP($H122,NA_All!$A$5:$AH$205,3*($C$8-1)+2)) -> 0.75476 | M122: =IF($B$6="Hardness",VLOOKUP($H122,Ann_Hard!$A$5:$G$205,6),VLOOKUP($H122,NA_All!$A$5:$AH$205,3*($C$8-1)+3)) -> 1.1465 | N122: =IF($B$6="Hardness",VLOOKUP($H122,Ann_Hard!$A$5:$G$205,7),VLOOKUP($H122,NA_All!$A$5:$AH$205,3*($C$8-1)+4)) -> 2.3321 | O122: =IF(VLOOKUP($B$6,$A$28:$D$55,4,FALSE)=0,#N/A,IF($B$8="PM-13",#N/A,(EXP((VLOOKUP($B$6,$A$28:$F$55,5,FALSE)*LN(Ann_Hard!B99/1000)) + VLOOKUP($B$6,$A$28:$F$55,6,FALSE))))) ->  | P122: 5 | Q122: =IF(VLOOKUP($B$6,$A$28:$D$55,4,FALSE)=0,#N/A,IF($B$8="PM-13",#N/A,(EXP((VLOOKUP($B$6,$A$28:$F$55,5,FALSE)*LN(Ann_Hard!D99/1000)) + VLOOKUP($B$6,$A$28:$F$55,6,FALSE))))) ->  | S122: 187.8333333 | T122: =VLOOKUP($S122,P_All!$AJ$5:$BQ$245,3*($C$8-1)+2) -> 0.42424 | U122: =VLOOKUP($S122,P_All!$AJ$5:$BQ$245,3*($C$8-1)+3) -> 0.90014 | V122: =VLOOKUP($S122,P_All!$AJ$5:$BQ$245,3*($C$8-1)+4) -> 1.9663 | W122: =VLOOKUP($S122,NA_All!$AJ$5:$BQ$245,3*($C$8-1)+2) -> 0.64867 | X122: =VLOOKUP($S122,NA_All!$AJ$5:$BQ$245,3*($C$8-1)+3) -> 0.99471 | Y122: =VLOOKUP($S122,NA_All!$AJ$5:$BQ$245,3*($C$8-1)+4) -> 1.6864 | Z122: =IF(ISNA(VLOOKUP($B$6,$A$28:$E$55,IF($B$8=$A$25,3,2))),EXP(VLOOKUP($B$6,$A$28:$E$55,4)*LN(VLOOKUP($S122,#REF!,$C$8+1)/1000)+VLOOKUP($B$6,$A$28:$E$55,5)),VLOOKUP($B$6,$A$28:$E$55,IF($B$8=$A$25,3,2))) -> 5
H123: 95 | I123: =IF($B$6="Hardness",VLOOKUP($H123,Ann_Hard!$A$5:$D$205,2),VLOOKUP($H123,P_All!$A$5:$AH$205,3*($C$8-1)+2)) -> 0.45126 | J123: =IF($B$6="Hardness",VLOOKUP($H123,Ann_Hard!$A$5:$D$205,3),VLOOKUP($H123,P_All!$A$5:$AH$205,3*($C$8-1)+3)) -> 1.0054 | K123: =IF($B$6="Hardness",VLOOKUP($H123,Ann_Hard!$A$5:$D$205,4),VLOOKUP($H123,P_All!$A$5:$AH$205,3*($C$8-1)+4)) -> 2.561 | L123: =IF($B$6="Hardness",VLOOKUP($H123,Ann_Hard!$A$5:$G$205,5),VLOOKUP($H123,NA_All!$A$5:$AH$205,3*($C$8-1)+2)) -> 0.75665 | M123: =IF($B$6="Hardness",VLOOKUP($H123,Ann_Hard!$A$5:$G$205,6),VLOOKUP($H123,NA_All!$A$5:$AH$205,3*($C$8-1)+3)) -> 1.1013 | N123: =IF($B$6="Hardness",VLOOKUP($H123,Ann_Hard!$A$5:$G$205,7),VLOOKUP($H123,NA_All!$A$5:$AH$205,3*($C$8-1)+4)) -> 2.0931 | O123: =IF(VLOOKUP($B$6,$A$28:$D$55,4,FALSE)=0,#N/A,IF($B$8="PM-13",#N/A,(EXP((VLOOKUP($B$6,$A$28:$F$55,5,FALSE)*LN(Ann_Hard!B100/1000)) + VLOOKUP($B$6,$A$28:$F$55,6,FALSE))))) ->  | P123: 5 | Q123: =IF(VLOOKUP($B$6,$A$28:$D$55,4,FALSE)=0,#N/A,IF($B$8="PM-13",#N/A,(EXP((VLOOKUP($B$6,$A$28:$F$55,5,FALSE)*LN(Ann_Hard!D100/1000)) + VLOOKUP($B$6,$A$28:$F$55,6,FALSE))))) ->  | S123: 187.9166667 | T123: =VLOOKUP($S123,P_All!$AJ$5:$BQ$245,3*($C$8-1)+2) -> 0.409 | U123: =VLOOKUP($S123,P_All!$AJ$5:$BQ$245,3*($C$8-1)+3) -> 0.90609 | V123: =VLOOKUP($S123,P_All!$AJ$5:$BQ$245,3*($C$8-1)+4) -> 2.0499 | W123: =VLOOKUP($S123,NA_All!$AJ$5:$BQ$245,3*($C$8-1)+2) -> 0.66479 | X123: =VLOOKUP($S123,NA_All!$AJ$5:$BQ$245,3*($C$8-1)+3) -> 0.99319 | Y123: =VLOOKUP($S123,NA_All!$AJ$5:$BQ$245,3*($C$8-1)+4) -> 1.6777 | Z123: =IF(ISNA(VLOOKUP($B$6,$A$28:$E$55,IF($B$8=$A$25,3,2))),EXP(VLOOKUP($B$6,$A$28:$E$55,4)*LN(VLOOKUP($S123,#REF!,$C$8+1)/1000)+VLOOKUP($B$6,$A$28:$E$55,5)),VLOOKUP($B$6,$A$28:$E$55,IF($B$8=$A$25,3,2))) -> 5
H124: 96 | I124: =IF($B$6="Hardness",VLOOKUP($H124,Ann_Hard!$A$5:$D$205,2),VLOOKUP($H124,P_All!$A$5:$AH$205,3*($C$8-1)+2)) -> 0.45031 | J124: =IF($B$6="Hardness",VLOOKUP($H124,Ann_Hard!$A$5:$D$205,3),VLOOKUP($H124,P_All!$A$5:$AH$205,3*($C$8-1)+3)) -> 0.99744 | K124: =IF($B$6="Hardness",VLOOKUP($H124,Ann_Hard!$A$5:$D$205,4),VLOOKUP($H124,P_All!$A$5:$AH$205,3*($C$8-1)+4)) -> 2.3782 | L124: =IF($B$6="Hardness",VLOOKUP($H124,Ann_Hard!$A$5:$G$205,5),VLOOKUP($H124,NA_All!$A$5:$AH$205,3*($C$8-1)+2)) -> 0.73559 | M124: =IF($B$6="Hardness",VLOOKUP($H124,Ann_Hard!$A$5:$G$205,6),VLOOKUP($H124,NA_All!$A$5:$AH$205,3*($C$8-1)+3)) -> 1.0978 | N124: =IF($B$6="Hardness",VLOOKUP($H124,Ann_Hard!$A$5:$G$205,7),VLOOKUP($H124,NA_All!$A$5:$AH$205,3*($C$8-1)+4)) -> 2.0967 | O124: =IF(VLOOKUP($B$6,$A$28:$D$55,4,FALSE)=0,#N/A,IF($B$8="PM-13",#N/A,(EXP((VLOOKUP($B$6,$A$28:$F$55,5,FALSE)*LN(Ann_Hard!B101/1000)) + VLOOKUP($B$6,$A$28:$F$55,6,FALSE))))) ->  | P124: 5 | Q124: =IF(VLOOKUP($B$6,$A$28:$D$55,4,FALSE)=0,#N/A,IF($B$8="PM-13",#N/A,(EXP((VLOOKUP($B$6,$A$28:$F$55,5,FALSE)*LN(Ann_Hard!D101/1000)) + VLOOKUP($B$6,$A$28:$F$55,6,FALSE))))) ->  | S124: 188 | T124: =VLOOKUP($S124,P_All!$AJ$5:$BQ$245,3*($C$8-1)+2) -> 0.42132 | U124: =VLOOKUP($S124,P_All!$AJ$5:$BQ$245,3*($C$8-1)+3) -> 0.80499 | V124: =VLOOKUP($S124,P_All!$AJ$5:$BQ$245,3*($C$8-1)+4) -> 1.6375 | W124: =VLOOKUP($S124,NA_All!$AJ$5:$BQ$245,3*($C$8-1)+2) -> 0.66965 | X124: =VLOOKUP($S124,NA_All!$AJ$5:$BQ$245,3*($C$8-1)+3) -> 0.94734 | Y124: =VLOOKUP($S124,NA_All!$AJ$5:$BQ$245,3*($C$8-1)+4) -> 1.6117 | Z124: =IF(ISNA(VLOOKUP($B$6,$A$28:$E$55,IF($B$8=$A$25,3,2))),EXP(VLOOKUP($B$6,$A$28:$E$55,4)*LN(VLOOKUP($S124,#REF!,$C$8+1)/1000)+VLOOKUP($B$6,$A$28:$E$55,5)),VLOOKUP($B$6,$A$28:$E$55,IF($B$8=$A$25,3,2))) -> 5
H125: 97 | I125: =IF($B$6="Hardness",VLOOKUP($H125,Ann_Hard!$A$5:$D$205,2),VLOOKUP($H125,P_All!$A$5:$AH$205,3*($C$8-1)+2)) -> 0.43948 | J125: =IF($B$6="Hardness",VLOOKUP($H125,Ann_Hard!$A$5:$D$205,3),VLOOKUP($H125,P_All!$A$5:$AH$205,3*($C$8-1)+3)) -> 1.0439 | K125: =IF($B$6="Hardness",VLOOKUP($H125,Ann_Hard!$A$5:$D$205,4),VLOOKUP($H125,P_All!$A$5:$AH$205,3*($C$8-1)+4)) -> 2.4404 | L125: =IF($B$6="Hardness",VLOOKUP($H125,Ann_Hard!$A$5:$G$205,5),VLOOKUP($H125,NA_All!$A$5:$AH$205,3*($C$8-1)+2)) -> 0.74657 | M125: =IF($B$6="Hardness",VLOOKUP($H125,Ann_Hard!$A$5:$G$205,6),VLOOKUP($H125,NA_All!$A$5:$AH$205,3*($C$8-1)+3)) -> 1.1276 | N125: =IF($B$6="Hardness",VLOOKUP($H125,Ann_Hard!$A$5:$G$205,7),VLOOKUP($H125,NA_All!$A$5:$AH$205,3*($C$8-1)+4)) -> 2.0799 | O125: =IF(VLOOKUP($B$6,$A$28:$D$55,4,FALSE)=0,#N/A,IF($B$8="PM-13",#N/A,(EXP((VLOOKUP($B$6,$A$28:$F$55,5,FALSE)*LN(Ann_Hard!B102/1000)) + VLOOKUP($B$6,$A$28:$F$55,6,FALSE))))) ->  | P125: 5 | Q125: =IF(VLOOKUP($B$6,$A$28:$D$55,4,FALSE)=0,#N/A,IF($B$8="PM-13",#N/A,(EXP((VLOOKUP($B$6,$A$28:$F$55,5,FALSE)*LN(Ann_Hard!D102/1000)) + VLOOKUP($B$6,$A$28:$F$55,6,FALSE))))) ->  | S125: 188.0833333 | T125: =VLOOKUP($S125,P_All!$AJ$5:$BQ$245,3*($C$8-1)+2) -> 0.35208 | U125: =VLOOKUP($S125,P_All!$AJ$5:$BQ$245,3*($C$8-1)+3) -> 0.63161 | V125: =VLOOKUP($S125,P_All!$AJ$5:$BQ$245,3*($C$8-1)+4) -> 1.3449 | W125: =VLOOKUP($S125,NA_All!$AJ$5:$BQ$245,3*($C$8-1)+2) -> 0.65326 | X125: =VLOOKUP($S125,NA_All!$AJ$5:$BQ$245,3*($C$8-1)+3) -> 0.91679 | Y125: =VLOOKUP($S125,NA_All!$AJ$5:$BQ$245,3*($C$8-1)+4) -> 1.6375 | Z125: =IF(ISNA(VLOOKUP($B$6,$A$28:$E$55,IF($B$8=$A$25,3,2))),EXP(VLOOKUP($B$6,$A$28:$E$55,4)*LN(VLOOKUP($S125,#REF!,$C$8+1)/1000)+VLOOKUP($B$6,$A$28:$E$55,5)),VLOOKUP($B$6,$A$28:$E$55,IF($B$8=$A$25,3,2))) -> 5
H126: 98 | I126: =IF($B$6="Hardness",VLOOKUP($H126,Ann_Hard!$A$5:$D$205,2),VLOOKUP($H126,P_All!$A$5:$AH$205,3*($C$8-1)+2)) -> 0.45709 | J126: =IF($B$6="Hardness",VLOOKUP($H126,Ann_Hard!$A$5:$D$205,3),VLOOKUP($H126,P_All!$A$5:$AH$205,3*($C$8-1)+3)) -> 1.1013 | K126: =IF($B$6="Hardness",VLOOKUP($H126,Ann_Hard!$A$5:$D$205,4),VLOOKUP($H126,P_All!$A$5:$AH$205,3*($C$8-1)+4)) -> 2.4834 | L126: =IF($B$6="Hardness",VLOOKUP($H126,Ann_Hard!$A$5:$G$205,5),VLOOKUP($H126,NA_All!$A$5:$AH$205,3*($C$8-1)+2)) -> 0.74187 | M126: =IF($B$6="Hardness",VLOOKUP($H126,Ann_Hard!$A$5:$G$205,6),VLOOKUP($H126,NA_All!$A$5:$AH$205,3*($C$8-1)+3)) -> 1.1433 | N126: =IF($B$6="Hardness",VLOOKUP($H126,Ann_Hard!$A$5:$G$205,7),VLOOKUP($H126,NA_All!$A$5:$AH$205,3*($C$8-1)+4)) -> 2.1439 | O126: =IF(VLOOKUP($B$6,$A$28:$D$55,4,FALSE)=0,#N/A,IF($B$8="PM-13",#N/A,(EXP((VLOOKUP($B$6,$A$28:$F$55,5,FALSE)*LN(Ann_Hard!B103/1000)) + VLOOKUP($B$6,$A$28:$F$55,6,FALSE))))) ->  | P126: 5 | Q126: =IF(VLOOKUP($B$6,$A$28:$D$55,4,FALSE)=0,#N/A,IF($B$8="PM-13",#N/A,(EXP((VLOOKUP($B$6,$A$28:$F$55,5,FALSE)*LN(Ann_Hard!D103/1000)) + VLOOKUP($B$6,$A$28:$F$55,6,FALSE))))) ->  | S126: 188.1666667 | T126: =VLOOKUP($S126,P_All!$AJ$5:$BQ$245,3*($C$8-1)+2) -> 0.29393 | U126: =VLOOKUP($S126,P_All!$AJ$5:$BQ$245,3*($C$8-1)+3) -> 0.50951 | V126: =VLOOKUP($S126,P_All!$AJ$5:$BQ$245,3*($C$8-1)+4) -> 0.96046 | W126: =VLOOKUP($S126,NA_All!$AJ$5:$BQ$245,3*($C$8-1)+2) -> 0.64471 | X126: =VLOOKUP($S126,NA_All!$AJ$5:$BQ$245,3*($C$8-1)+3) -> 0.90247 | Y126: =VLOOKUP($S126,NA_All!$AJ$5:$BQ$245,3*($C$8-1)+4) -> 1.5969 | Z126: =IF(ISNA(VLOOKUP($B$6,$A$28:$E$55,IF($B$8=$A$25,3,2))),EXP(VLOOKUP($B$6,$A$28:$E$55,4)*LN(VLOOKUP($S126,#REF!,$C$8+1)/1000)+VLOOKUP($B$6,$A$28:$E$55,5)),VLOOKUP($B$6,$A$28:$E$55,IF($B$8=$A$25,3,2))) -> 5
H127: 99 | I127: =IF($B$6="Hardness",VLOOKUP($H127,Ann_Hard!$A$5:$D$205,2),VLOOKUP($H127,P_All!$A$5:$AH$205,3*($C$8-1)+2)) -> 0.45346 | J127: =IF($B$6="Hardness",VLOOKUP($H127,Ann_Hard!$A$5:$D$205,3),VLOOKUP($H127,P_All!$A$5:$AH$205,3*($C$8-1)+3)) -> 1.0464 | K127: =IF($B$6="Hardness",VLOOKUP($H127,Ann_Hard!$A$5:$D$205,4),VLOOKUP($H127,P_All!$A$5:$AH$205,3*($C$8-1)+4)) -> 2.5252 | L127: =IF($B$6="Hardness",VLOOKUP($H127,Ann_Hard!$A$5:$G$205,5),VLOOKUP($H127,NA_All!$A$5:$AH$205,3*($C$8-1)+2)) -> 0.74421 | M127: =IF($B$6="Hardness",VLOOKUP($H127,Ann_Hard!$A$5:$G$205,6),VLOOKUP($H127,NA_All!$A$5:$AH$205,3*($C$8-1)+3)) -> 1.1201 | N127: =IF($B$6="Hardness",VLOOKUP($H127,Ann_Hard!$A$5:$G$205,7),VLOOKUP($H127,NA_All!$A$5:$AH$205,3*($C$8-1)+4)) -> 2.1118 | O127: =IF(VLOOKUP($B$6,$A$28:$D$55,4,FALSE)=0,#N/A,IF($B$8="PM-13",#N/A,(EXP((VLOOKUP($B$6,$A$28:$F$55,5,FALSE)*LN(Ann_Hard!B104/1000)) + VLOOKUP($B$6,$A$28:$F$55,6,FALSE))))) ->  | P127: 5 | Q127: =IF(VLOOKUP($B$6,$A$28:$D$55,4,FALSE)=0,#N/A,IF($B$8="PM-13",#N/A,(EXP((VLOOKUP($B$6,$A$28:$F$55,5,FALSE)*LN(Ann_Hard!D104/1000)) + VLOOKUP($B$6,$A$28:$F$55,6,FALSE))))) ->  | S127: 188.25 | T127: =VLOOKUP($S127,P_All!$AJ$5:$BQ$245,3*($C$8-1)+2) -> 0.24782 | U127: =VLOOKUP($S127,P_All!$AJ$5:$BQ$245,3*($C$8-1)+3) -> 0.48266 | V127: =VLOOKUP($S127,P_All!$AJ$5:$BQ$245,3*($C$8-1)+4) -> 1.2063 | W127: =VLOOKUP($S127,NA_All!$AJ$5:$BQ$245,3*($C$8-1)+2) -> 0.64762 | X127: =VLOOKUP($S127,NA_All!$AJ$5:$BQ$245,3*($C$8-1)+3) -> 0.91038 | Y127: =VLOOKUP($S127,NA_All!$AJ$5:$BQ$245,3*($C$8-1)+4) -> 1.7002 | Z127: =IF(ISNA(VLOOKUP($B$6,$A$28:$E$55,IF($B$8=$A$25,3,2))),EXP(VLOOKUP($B$6,$A$28:$E$55,4)*LN(VLOOKUP($S127,#REF!,$C$8+1)/1000)+VLOOKUP($B$6,$A$28:$E$55,5)),VLOOKUP($B$6,$A$28:$E$55,IF($B$8=$A$25,3,2))) -> 5
H128: 100 | I128: =IF($B$6="Hardness",VLOOKUP($H128,Ann_Hard!$A$5:$D$205,2),VLOOKUP($H128,P_All!$A$5:$AH$205,3*($C$8-1)+2)) -> 0.44855 | J128: =IF($B$6="Hardness",VLOOKUP($H128,Ann_Hard!$A$5:$D$205,3),VLOOKUP($H128,P_All!$A$5:$AH$205,3*($C$8-1)+3)) -> 1.08 | K128: =IF($B$6="Hardness",VLOOKUP($H128,Ann_Hard!$A$5:$D$205,4),VLOOKUP($H128,P_All!$A$5:$AH$205,3*($C$8-1)+4)) -> 2.5686 | L128: =IF($B$6="Hardness",VLOOKUP($H128,Ann_Hard!$A$5:$G$205,5),VLOOKUP($H128,NA_All!$A$5:$AH$205,3*($C$8-1)+2)) -> 0.73754 | M128: =IF($B$6="Hardness",VLOOKUP($H128,Ann_Hard!$A$5:$G$205,6),VLOOKUP($H128,NA_All!$A$5:$AH$205,3*($C$8-1)+3)) -> 1.1332 | N128: =IF($B$6="Hardness",VLOOKUP($H128,Ann_Hard!$A$5:$G$205,7),VLOOKUP($H128,NA_All!$A$5:$AH$205,3*($C$8-1)+4)) -> 2.1664 | O128: =IF(VLOOKUP($B$6,$A$28:$D$55,4,FALSE)=0,#N/A,IF($B$8="PM-13",#N/A,(EXP((VLOOKUP($B$6,$A$28:$F$55,5,FALSE)*LN(Ann_Hard!B105/1000)) + VLOOKUP($B$6,$A$28:$F$55,6,FALSE))))) ->  | P128: 5 | Q128: =IF(VLOOKUP($B$6,$A$28:$D$55,4,FALSE)=0,#N/A,IF($B$8="PM-13",#N/A,(EXP((VLOOKUP($B$6,$A$28:$F$55,5,FALSE)*LN(Ann_Hard!D105/1000)) + VLOOKUP($B$6,$A$28:$F$55,6,FALSE))))) ->  | S128: 188.3333333 | T128: =VLOOKUP($S128,P_All!$AJ$5:$BQ$245,3*($C$8-1)+2) -> 0.39441 | U128: =VLOOKUP($S128,P_All!$AJ$5:$BQ$245,3*($C$8-1)+3) -> 0.96828 | V128: =VLOOKUP($S128,P_All!$AJ$5:$BQ$245,3*($C$8-1)+4) -> 2.5603 | W128: =VLOOKUP($S128,NA_All!$AJ$5:$BQ$245,3*($C$8-1)+2) -> 0.62129 | X128: =VLOOKUP($S128,NA_All!$AJ$5:$BQ$245,3*($C$8-1)+3) -> 1.0154 | Y128: =VLOOKUP($S128,NA_All!$AJ$5:$BQ$245,3*($C$8-1)+4) -> 2.0556 | Z128: =IF(ISNA(VLOOKUP($B$6,$A$28:$E$55,IF($B$8=$A$25,3,2))),EXP(VLOOKUP($B$6,$A$28:$E$55,4)*LN(VLOOKUP($S128,#REF!,$C$8+1)/1000)+VLOOKUP($B$6,$A$28:$E$55,5)),VLOOKUP($B$6,$A$28:$E$55,IF($B$8=$A$25,3,2))) -> 5
H129: 101 | I129: =IF($B$6="Hardness",VLOOKUP($H129,Ann_Hard!$A$5:$D$205,2),VLOOKUP($H129,P_All!$A$5:$AH$205,3*($C$8-1)+2)) -> 0.46609 | J129: =IF($B$6="Hardness",VLOOKUP($H129,Ann_Hard!$A$5:$D$205,3),VLOOKUP($H129,P_All!$A$5:$AH$205,3*($C$8-1)+3)) -> 1.0406 | K129: =IF($B$6="Hardness",VLOOKUP($H129,Ann_Hard!$A$5:$D$205,4),VLOOKUP($H129,P_All!$A$5:$AH$205,3*($C$8-1)+4)) -> 2.4356 | L129: =IF($B$6="Hardness",VLOOKUP($H129,Ann_Hard!$A$5:$G$205,5),VLOOKUP($H129,NA_All!$A$5:$AH$205,3*($C$8-1)+2)) -> 0.72766 | M129: =IF($B$6="Hardness",VLOOKUP($H129,Ann_Hard!$A$5:$G$205,6),VLOOKUP($H129,NA_All!$A$5:$AH$205,3*($C$8-1)+3)) -> 1.132 | N129: =IF($B$6="Hardness",VLOOKUP($H129,Ann_Hard!$A$5:$G$205,7),VLOOKUP($H129,NA_All!$A$5:$AH$205,3*($C$8-1)+4)) -> 2.0616 | O129: =IF(VLOOKUP($B$6,$A$28:$D$55,4,FALSE)=0,#N/A,IF($B$8="PM-13",#N/A,(EXP((VLOOKUP($B$6,$A$28:$F$55,5,FALSE)*LN(Ann_Hard!B106/1000)) + VLOOKUP($B$6,$A$28:$F$55,6,FALSE))))) ->  | P129: 5 | Q129: =IF(VLOOKUP($B$6,$A$28:$D$55,4,FALSE)=0,#N/A,IF($B$8="PM-13",#N/A,(EXP((VLOOKUP($B$6,$A$28:$F$55,5,FALSE)*LN(Ann_Hard!D106/1000)) + VLOOKUP($B$6,$A$28:$F$55,6,FALSE))))) ->  | S129: 188.4166667 | T129: =VLOOKUP($S129,P_All!$AJ$5:$BQ$245,3*($C$8-1)+2) -> 0.41759 | U129: =VLOOKUP($S129,P_All!$AJ$5:$BQ$245,3*($C$8-1)+3) -> 1.0289 | V129: =VLOOKUP($S129,P_All!$AJ$5:$BQ$245,3*($C$8-1)+4) -> 2.4132 | W129: =VLOOKUP($S129,NA_All!$AJ$5:$BQ$245,3*($C$8-1)+2) -> 0.57825 | X129: =VLOOKUP($S129,NA_All!$AJ$5:$BQ$245,3*($C$8-1)+3) -> 1.0312 | Y129: =VLOOKUP($S129,NA_All!$AJ$5:$BQ$245,3*($C$8-1)+4) -> 2.0364 | Z129: =IF(ISNA(VLOOKUP($B$6,$A$28:$E$55,IF($B$8=$A$25,3,2))),EXP(VLOOKUP($B$6,$A$28:$E$55,4)*LN(VLOOKUP($S129,#REF!,$C$8+1)/1000)+VLOOKUP($B$6,$A$28:$E$55,5)),VLOOKUP($B$6,$A$28:$E$55,IF($B$8=$A$25,3,2))) -> 5
H130: 102 | I130: =IF($B$6="Hardness",VLOOKUP($H130,Ann_Hard!$A$5:$D$205,2),VLOOKUP($H130,P_All!$A$5:$AH$205,3*($C$8-1)+2)) -> 0.43339 | J130: =IF($B$6="Hardness",VLOOKUP($H130,Ann_Hard!$A$5:$D$205,3),VLOOKUP($H130,P_All!$A$5:$AH$205,3*($C$8-1)+3)) -> 1.0629 | K130: =IF($B$6="Hardness",VLOOKUP($H130,Ann_Hard!$A$5:$D$205,4),VLOOKUP($H130,P_All!$A$5:$AH$205,3*($C$8-1)+4)) -> 2.5727 | L130: =IF($B$6="Hardness",VLOOKUP($H130,Ann_Hard!$A$5:$G$205,5),VLOOKUP($H130,NA_All!$A$5:$AH$205,3*($C$8-1)+2)) -> 0.7281 | M130: =IF($B$6="Hardness",VLOOKUP($H130,Ann_Hard!$A$5:$G$205,6),VLOOKUP($H130,NA_All!$A$5:$AH$205,3*($C$8-1)+3)) -> 1.0934 | N130: =IF($B$6="Hardness",VLOOKUP($H130,Ann_Hard!$A$5:$G$205,7),VLOOKUP($H130,NA_All!$A$5:$AH$205,3*($C$8-1)+4)) -> 2.1179 | O130: =IF(VLOOKUP($B$6,$A$28:$D$55,4,FALSE)=0,#N/A,IF($B$8="PM-13",#N/A,(EXP((VLOOKUP($B$6,$A$28:$F$55,5,FALSE)*LN(Ann_Hard!B107/1000)) + VLOOKUP($B$6,$A$28:$F$55,6,FALSE))))) ->  | P130: 5 | Q130: =IF(VLOOKUP($B$6,$A$28:$D$55,4,FALSE)=0,#N/A,IF($B$8="PM-13",#N/A,(EXP((VLOOKUP($B$6,$A$28:$F$55,5,FALSE)*LN(Ann_Hard!D107/1000)) + VLOOKUP($B$6,$A$28:$F$55,6,FALSE))))) ->  | S130: 188.5 | T130: =VLOOKUP($S130,P_All!$AJ$5:$BQ$245,3*($C$8-1)+2) -> 0.43075 | U130: =VLOOKUP($S130,P_All!$AJ$5:$BQ$245,3*($C$8-1)+3) -> 1.0175 | V130: =VLOOKUP($S130,P_All!$AJ$5:$BQ$245,3*($C$8-1)+4) -> 2.5636 | W130: =VLOOKUP($S130,NA_All!$AJ$5:$BQ$245,3*($C$8-1)+2) -> 0.63368 | X130: =VLOOKUP($S130,NA_All!$AJ$5:$BQ$245,3*($C$8-1)+3) -> 1.0089 | Y130: =VLOOKUP($S130,NA_All!$AJ$5:$BQ$245,3*($C$8-1)+4) -> 1.8594 | Z130: =IF(ISNA(VLOOKUP($B$6,$A$28:$E$55,IF($B$8=$A$25,3,2))),EXP(VLOOKUP($B$6,$A$28:$E$55,4)*LN(VLOOKUP($S130,#REF!,$C$8+1)/1000)+VLOOKUP($B$6,$A$28:$E$55,5)),VLOOKUP($B$6,$A$28:$E$55,IF($B$8=$A$25,3,2))) -> 5
H131: 103 | I131: =IF($B$6="Hardness",VLOOKUP($H131,Ann_Hard!$A$5:$D$205,2),VLOOKUP($H131,P_All!$A$5:$AH$205,3*($C$8-1)+2)) -> 0.45867 | J131: =IF($B$6="Hardness",VLOOKUP($H131,Ann_Hard!$A$5:$D$205,3),VLOOKUP($H131,P_All!$A$5:$AH$205,3*($C$8-1)+3)) -> 1.0216 | K131: =IF($B$6="Hardness",VLOOKUP($H131,Ann_Hard!$A$5:$D$205,4),VLOOKUP($H131,P_All!$A$5:$AH$205,3*($C$8-1)+4)) -> 2.5283 | L131: =IF($B$6="Hardness",VLOOKUP($H131,Ann_Hard!$A$5:$G$205,5),VLOOKUP($H131,NA_All!$A$5:$AH$205,3*($C$8-1)+2)) -> 0.72798 | M131: =IF($B$6="Hardness",VLOOKUP($H131,Ann_Hard!$A$5:$G$205,6),VLOOKUP($H131,NA_All!$A$5:$AH$205,3*($C$8-1)+3)) -> 1.1043 | N131: =IF($B$6="Hardness",VLOOKUP($H131,Ann_Hard!$A$5:$G$205,7),VLOOKUP($H131,NA_All!$A$5:$AH$205,3*($C$8-1)+4)) -> 2.1894 | O131: =IF(VLOOKUP($B$6,$A$28:$D$55,4,FALSE)=0,#N/A,IF($B$8="PM-13",#N/A,(EXP((VLOOKUP($B$6,$A$28:$F$55,5,FALSE)*LN(Ann_Hard!B108/1000)) + VLOOKUP($B$6,$A$28:$F$55,6,FALSE))))) ->  | P131: 5 | Q131: =IF(VLOOKUP($B$6,$A$28:$D$55,4,FALSE)=0,#N/A,IF($B$8="PM-13",#N/A,(EXP((VLOOKUP($B$6,$A$28:$F$55,5,FALSE)*LN(Ann_Hard!D108/1000)) + VLOOKUP($B$6,$A$28:$F$55,6,FALSE))))) ->  | S131: 188.5833333 | T131: =VLOOKUP($S131,P_All!$AJ$5:$BQ$245,3*($C$8-1)+2) -> 0.43915 | U131: =VLOOKUP($S131,P_All!$AJ$5:$BQ$245,3*($C$8-1)+3) -> 0.90106 | V131: =VLOOKUP($S131,P_All!$AJ$5:$BQ$245,3*($C$8-1)+4) -> 2.1994 | W131: =VLOOKUP($S131,NA_All!$AJ$5:$BQ$245,3*($C$8-1)+2) -> 0.64378 | X131: =VLOOKUP($S131,NA_All!$AJ$5:$BQ$245,3*($C$8-1)+3) -> 0.95546 | Y131: =VLOOKUP($S131,NA_All!$AJ$5:$BQ$245,3*($C$8-1)+4) -> 1.7269 | Z131: =IF(ISNA(VLOOKUP($B$6,$A$28:$E$55,IF($B$8=$A$25,3,2))),EXP(VLOOKUP($B$6,$A$28:$E$55,4)*LN(VLOOKUP($S131,#REF!,$C$8+1)/1000)+VLOOKUP($B$6,$A$28:$E$55,5)),VLOOKUP($B$6,$A$28:$E$55,IF($B$8=$A$25,3,2))) -> 5
H132: 104 | I132: =IF($B$6="Hardness",VLOOKUP($H132,Ann_Hard!$A$5:$D$205,2),VLOOKUP($H132,P_All!$A$5:$AH$205,3*($C$8-1)+2)) -> 0.48077 | J132: =IF($B$6="Hardness",VLOOKUP($H132,Ann_Hard!$A$5:$D$205,3),VLOOKUP($H132,P_All!$A$5:$AH$205,3*($C$8-1)+3)) -> 1.0014 | K132: =IF($B$6="Hardness",VLOOKUP($H132,Ann_Hard!$A$5:$D$205,4),VLOOKUP($H132,P_All!$A$5:$AH$205,3*($C$8-1)+4)) -> 2.5602 | L132: =IF($B$6="Hardness",VLOOKUP($H132,Ann_Hard!$A$5:$G$205,5),VLOOKUP($H132,NA_All!$A$5:$AH$205,3*($C$8-1)+2)) -> 0.7447 | M132: =IF($B$6="Hardness",VLOOKUP($H132,Ann_Hard!$A$5:$G$205,6),VLOOKUP($H132,NA_All!$A$5:$AH$205,3*($C$8-1)+3)) -> 1.1174 | N132: =IF($B$6="Hardness",VLOOKUP($H132,Ann_Hard!$A$5:$G$205,7),VLOOKUP($H132,NA_All!$A$5:$AH$205,3*($C$8-1)+4)) -> 2.049 | O132: =IF(VLOOKUP($B$6,$A$28:$D$55,4,FALSE)=0,#N/A,IF($B$8="PM-13",#N/A,(EXP((VLOOKUP($B$6,$A$28:$F$55,5,FALSE)*LN(Ann_Hard!B109/1000)) + VLOOKUP($B$6,$A$28:$F$55,6,FALSE))))) ->  | P132: 5 | Q132: =IF(VLOOKUP($B$6,$A$28:$D$55,4,FALSE)=0,#N/A,IF($B$8="PM-13",#N/A,(EXP((VLOOKUP($B$6,$A$28:$F$55,5,FALSE)*LN(Ann_Hard!D109/1000)) + VLOOKUP($B$6,$A$28:$F$55,6,FALSE))))) ->  | S132: 188.6666667 | T132: =VLOOKUP($S132,P_All!$AJ$5:$BQ$245,3*($C$8-1)+2) -> 0.41426 | U132: =VLOOKUP($S132,P_All!$AJ$5:$BQ$245,3*($C$8-1)+3) -> 0.80248 | V132: =VLOOKUP($S132,P_All!$AJ$5:$BQ$245,3*($C$8-1)+4) -> 1.7423 | W132: =VLOOKUP($S132,NA_All!$AJ$5:$BQ$245,3*($C$8-1)+2) -> 0.64832 | X132: =VLOOKUP($S132,NA_All!$AJ$5:$BQ$245,3*($C$8-1)+3) -> 0.97058 | Y132: =VLOOKUP($S132,NA_All!$AJ$5:$BQ$245,3*($C$8-1)+4) -> 1.6388 | Z132: =IF(ISNA(VLOOKUP($B$6,$A$28:$E$55,IF($B$8=$A$25,3,2))),EXP(VLOOKUP($B$6,$A$28:$E$55,4)*LN(VLOOKUP($S132,#REF!,$C$8+1)/1000)+VLOOKUP($B$6,$A$28:$E$55,5)),VLOOKUP($B$6,$A$28:$E$55,IF($B$8=$A$25,3,2))) -> 5
H133: 105 | I133: =IF($B$6="Hardness",VLOOKUP($H133,Ann_Hard!$A$5:$D$205,2),VLOOKUP($H133,P_All!$A$5:$AH$205,3*($C$8-1)+2)) -> 0.45196 | J133: =IF($B$6="Hardness",VLOOKUP($H133,Ann_Hard!$A$5:$D$205,3),VLOOKUP($H133,P_All!$A$5:$AH$205,3*($C$8-1)+3)) -> 1.0822 | K133: =IF($B$6="Hardness",VLOOKUP($H133,Ann_Hard!$A$5:$D$205,4),VLOOKUP($H133,P_All!$A$5:$AH$205,3*($C$8-1)+4)) -> 2.3856 | L133: =IF($B$6="Hardness",VLOOKUP($H133,Ann_Hard!$A$5:$G$205,5),VLOOKUP($H133,NA_All!$A$5:$AH$205,3*($C$8-1)+2)) -> 0.72169 | M133: =IF($B$6="Hardness",VLOOKUP($H133,Ann_Hard!$A$5:$G$205,6),VLOOKUP($H133,NA_All!$A$5:$AH$205,3*($C$8-1)+3)) -> 1.1201 | N133: =IF($B$6="Hardness",VLOOKUP($H133,Ann_Hard!$A$5:$G$205,7),VLOOKUP($H133,NA_All!$A$5:$AH$205,3*($C$8-1)+4)) -> 2.1103 | O133: =IF(VLOOKUP($B$6,$A$28:$D$55,4,FALSE)=0,#N/A,IF($B$8="PM-13",#N/A,(EXP((VLOOKUP($B$6,$A$28:$F$55,5,FALSE)*LN(Ann_Hard!B110/1000)) + VLOOKUP($B$6,$A$28:$F$55,6,FALSE))))) ->  | P133: 5 | Q133: =IF(VLOOKUP($B$6,$A$28:$D$55,4,FALSE)=0,#N/A,IF($B$8="PM-13",#N/A,(EXP((VLOOKUP($B$6,$A$28:$F$55,5,FALSE)*LN(Ann_Hard!D110/1000)) + VLOOKUP($B$6,$A$28:$F$55,6,FALSE))))) ->  | S133: 188.75 | T133: =VLOOKUP($S133,P_All!$AJ$5:$BQ$245,3*($C$8-1)+2) -> 0.39017 | U133: =VLOOKUP($S133,P_All!$AJ$5:$BQ$245,3*($C$8-1)+3) -> 0.84884 | V133: =VLOOKUP($S133,P_All!$AJ$5:$BQ$245,3*($C$8-1)+4) -> 2.1121 | W133: =VLOOKUP($S133,NA_All!$AJ$5:$BQ$245,3*($C$8-1)+2) -> 0.62059 | X133: =VLOOKUP($S133,NA_All!$AJ$5:$BQ$245,3*($C$8-1)+3) -> 0.95774 | Y133: =VLOOKUP($S133,NA_All!$AJ$5:$BQ$245,3*($C$8-1)+4) -> 1.6982 | Z133: =IF(ISNA(VLOOKUP($B$6,$A$28:$E$55,IF($B$8=$A$25,3,2))),EXP(VLOOKUP($B$6,$A$28:$E$55,4)*LN(VLOOKUP($S133,#REF!,$C$8+1)/1000)+VLOOKUP($B$6,$A$28:$E$55,5)),VLOOKUP($B$6,$A$28:$E$55,IF($B$8=$A$25,3,2))) -> 5
H134: 106 | I134: =IF($B$6="Hardness",VLOOKUP($H134,Ann_Hard!$A$5:$D$205,2),VLOOKUP($H134,P_All!$A$5:$AH$205,3*($C$8-1)+2)) -> 0.45049 | J134: =IF($B$6="Hardness",VLOOKUP($H134,Ann_Hard!$A$5:$D$205,3),VLOOKUP($H134,P_All!$A$5:$AH$205,3*($C$8-1)+3)) -> 1.0173 | K134: =IF($B$6="Hardness",VLOOKUP($H134,Ann_Hard!$A$5:$D$205,4),VLOOKUP($H134,P_All!$A$5:$AH$205,3*($C$8-1)+4)) -> 2.3829 | L134: =IF($B$6="Hardness",VLOOKUP($H134,Ann_Hard!$A$5:$G$205,5),VLOOKUP($H134,NA_All!$A$5:$AH$205,3*($C$8-1)+2)) -> 0.72353 | M134: =IF($B$6="Hardness",VLOOKUP($H134,Ann_Hard!$A$5:$G$205,6),VLOOKUP($H134,NA_All!$A$5:$AH$205,3*($C$8-1)+3)) -> 1.1036 | N134: =IF($B$6="Hardness",VLOOKUP($H134,Ann_Hard!$A$5:$G$205,7),VLOOKUP($H134,NA_All!$A$5:$AH$205,3*($C$8-1)+4)) -> 2.141 | O134: =IF(VLOOKUP($B$6,$A$28:$D$55,4,FALSE)=0,#N/A,IF($B$8="PM-13",#N/A,(EXP((VLOOKUP($B$6,$A$28:$F$55,5,FALSE)*LN(Ann_Hard!B111/1000)) + VLOOKUP($B$6,$A$28:$F$55,6,FALSE))))) ->  | P134: 5 | Q134: =IF(VLOOKUP($B$6,$A$28:$D$55,4,FALSE)=0,#N/A,IF($B$8="PM-13",#N/A,(EXP((VLOOKUP($B$6,$A$28:$F$55,5,FALSE)*LN(Ann_Hard!D111/1000)) + VLOOKUP($B$6,$A$28:$F$55,6,FALSE))))) ->  | S134: 188.8333333 | T134: =VLOOKUP($S134,P_All!$AJ$5:$BQ$245,3*($C$8-1)+2) -> 0.42779 | U134: =VLOOKUP($S134,P_All!$AJ$5:$BQ$245,3*($C$8-1)+3) -> 0.90454 | V134: =VLOOKUP($S134,P_All!$AJ$5:$BQ$245,3*($C$8-1)+4) -> 1.882 | W134: =VLOOKUP($S134,NA_All!$AJ$5:$BQ$245,3*($C$8-1)+2) -> 0.66083 | X134: =VLOOKUP($S134,NA_All!$AJ$5:$BQ$245,3*($C$8-1)+3) -> 0.97621 | Y134: =VLOOKUP($S134,NA_All!$AJ$5:$BQ$245,3*($C$8-1)+4) -> 1.6772 | Z134: =IF(ISNA(VLOOKUP($B$6,$A$28:$E$55,IF($B$8=$A$25,3,2))),EXP(VLOOKUP($B$6,$A$28:$E$55,4)*LN(VLOOKUP($S134,#REF!,$C$8+1)/1000)+VLOOKUP($B$6,$A$28:$E$55,5)),VLOOKUP($B$6,$A$28:$E$55,IF($B$8=$A$25,3,2))) -> 5
H135: 107 | I135: =IF($B$6="Hardness",VLOOKUP($H135,Ann_Hard!$A$5:$D$205,2),VLOOKUP($H135,P_All!$A$5:$AH$205,3*($C$8-1)+2)) -> 0.44257 | J135: =IF($B$6="Hardness",VLOOKUP($H135,Ann_Hard!$A$5:$D$205,3),VLOOKUP($H135,P_All!$A$5:$AH$205,3*($C$8-1)+3)) -> 1.0766 | K135: =IF($B$6="Hardness",VLOOKUP($H135,Ann_Hard!$A$5:$D$205,4),VLOOKUP($H135,P_All!$A$5:$AH$205,3*($C$8-1)+4)) -> 2.4103 | L135: =IF($B$6="Hardness",VLOOKUP($H135,Ann_Hard!$A$5:$G$205,5),VLOOKUP($H135,NA_All!$A$5:$AH$205,3*($C$8-1)+2)) -> 0.72573 | M135: =IF($B$6="Hardness",VLOOKUP($H135,Ann_Hard!$A$5:$G$205,6),VLOOKUP($H135,NA_All!$A$5:$AH$205,3*($C$8-1)+3)) -> 1.1184 | N135: =IF($B$6="Hardness",VLOOKUP($H135,Ann_Hard!$A$5:$G$205,7),VLOOKUP($H135,NA_All!$A$5:$AH$205,3*($C$8-1)+4)) -> 2.0719 | O135: =IF(VLOOKUP($B$6,$A$28:$D$55,4,FALSE)=0,#N/A,IF($B$8="PM-13",#N/A,(EXP((VLOOKUP($B$6,$A$28:$F$55,5,FALSE)*LN(Ann_Hard!B112/1000)) + VLOOKUP($B$6,$A$28:$F$55,6,FALSE))))) ->  | P135: 5 | Q135: =IF(VLOOKUP($B$6,$A$28:$D$55,4,FALSE)=0,#N/A,IF($B$8="PM-13",#N/A,(EXP((VLOOKUP($B$6,$A$28:$F$55,5,FALSE)*LN(Ann_Hard!D112/1000)) + VLOOKUP($B$6,$A$28:$F$55,6,FALSE))))) ->  | S135: 188.9166667 | T135: =VLOOKUP($S135,P_All!$AJ$5:$BQ$245,3*($C$8-1)+2) -> 0.41613 | U135: =VLOOKUP($S135,P_All!$AJ$5:$BQ$245,3*($C$8-1)+3) -> 0.88513 | V135: =VLOOKUP($S135,P_All!$AJ$5:$BQ$245,3*($C$8-1)+4) -> 1.9744 | W135: =VLOOKUP($S135,NA_All!$AJ$5:$BQ$245,3*($C$8-1)+2) -> 0.66804 | X135: =VLOOKUP($S135,NA_All!$AJ$5:$BQ$245,3*($C$8-1)+3) -> 0.98142 | Y135: =VLOOKUP($S135,NA_All!$AJ$5:$BQ$245,3*($C$8-1)+4) -> 1.6996 | Z135: =IF(ISNA(VLOOKUP($B$6,$A$28:$E$55,IF($B$8=$A$25,3,2))),EXP(VLOOKUP($B$6,$A$28:$E$55,4)*LN(VLOOKUP($S135,#REF!,$C$8+1)/1000)+VLOOKUP($B$6,$A$28:$E$55,5)),VLOOKUP($B$6,$A$28:$E$55,IF($B$8=$A$25,3,2))) -> 5
H136: 108 | I136: =IF($B$6="Hardness",VLOOKUP($H136,Ann_Hard!$A$5:$D$205,2),VLOOKUP($H136,P_All!$A$5:$AH$205,3*($C$8-1)+2)) -> 0.45575 | J136: =IF($B$6="Hardness",VLOOKUP($H136,Ann_Hard!$A$5:$D$205,3),VLOOKUP($H136,P_All!$A$5:$AH$205,3*($C$8-1)+3)) -> 1.006 | K136: =IF($B$6="Hardness",VLOOKUP($H136,Ann_Hard!$A$5:$D$205,4),VLOOKUP($H136,P_All!$A$5:$AH$205,3*($C$8-1)+4)) -> 2.4381 | L136: =IF($B$6="Hardness",VLOOKUP($H136,Ann_Hard!$A$5:$G$205,5),VLOOKUP($H136,NA_All!$A$5:$AH$205,3*($C$8-1)+2)) -> 0.72957 | M136: =IF($B$6="Hardness",VLOOKUP($H136,Ann_Hard!$A$5:$G$205,6),VLOOKUP($H136,NA_All!$A$5:$AH$205,3*($C$8-1)+3)) -> 1.0907 | N136: =IF($B$6="Hardness",VLOOKUP($H136,Ann_Hard!$A$5:$G$205,7),VLOOKUP($H136,NA_All!$A$5:$AH$205,3*($C$8-1)+4)) -> 2.1023 | O136: =IF(VLOOKUP($B$6,$A$28:$D$55,4,FALSE)=0,#N/A,IF($B$8="PM-13",#N/A,(EXP((VLOOKUP($B$6,$A$28:$F$55,5,FALSE)*LN(Ann_Hard!B113/1000)) + VLOOKUP($B$6,$A$28:$F$55,6,FALSE))))) ->  | P136: 5 | Q136: =IF(VLOOKUP($B$6,$A$28:$D$55,4,FALSE)=0,#N/A,IF($B$8="PM-13",#N/A,(EXP((VLOOKUP($B$6,$A$28:$F$55,5,FALSE)*LN(Ann_Hard!D113/1000)) + VLOOKUP($B$6,$A$28:$F$55,6,FALSE))))) ->  | S136: 189 | T136: =VLOOKUP($S136,P_All!$AJ$5:$BQ$245,3*($C$8-1)+2) -> 0.39472 | U136: =VLOOKUP($S136,P_All!$AJ$5:$BQ$245,3*($C$8-1)+3) -> 0.84828 | V136: =VLOOKUP($S136,P_All!$AJ$5:$BQ$245,3*($C$8-1)+4) -> 1.7862 | W136: =VLOOKUP($S136,NA_All!$AJ$5:$BQ$245,3*($C$8-1)+2) -> 0.66738 | X136: =VLOOKUP($S136,NA_All!$AJ$5:$BQ$245,3*($C$8-1)+3) -> 0.96325 | Y136: =VLOOKUP($S136,NA_All!$AJ$5:$BQ$245,3*($C$8-1)+4) -> 1.6314 | Z136: =IF(ISNA(VLOOKUP($B$6,$A$28:$E$55,IF($B$8=$A$25,3,2))),EXP(VLOOKUP($B$6,$A$28:$E$55,4)*LN(VLOOKUP($S136,#REF!,$C$8+1)/1000)+VLOOKUP($B$6,$A$28:$E$55,5)),VLOOKUP($B$6,$A$28:$E$55,IF($B$8=$A$25,3,2))) -> 5
H137: 109 | I137: =IF($B$6="Hardness",VLOOKUP($H137,Ann_Hard!$A$5:$D$205,2),VLOOKUP($H137,P_All!$A$5:$AH$205,3*($C$8-1)+2)) -> 0.4947 | J137: =IF($B$6="Hardness",VLOOKUP($H137,Ann_Hard!$A$5:$D$205,3),VLOOKUP($H137,P_All!$A$5:$AH$205,3*($C$8-1)+3)) -> 1.0481 | K137: =IF($B$6="Hardness",VLOOKUP($H137,Ann_Hard!$A$5:$D$205,4),VLOOKUP($H137,P_All!$A$5:$AH$205,3*($C$8-1)+4)) -> 2.5528 | L137: =IF($B$6="Hardness",VLOOKUP($H137,Ann_Hard!$A$5:$G$205,5),VLOOKUP($H137,NA_All!$A$5:$AH$205,3*($C$8-1)+2)) -> 0.72404 | M137: =IF($B$6="Hardness",VLOOKUP($H137,Ann_Hard!$A$5:$G$205,6),VLOOKUP($H137,NA_All!$A$5:$AH$205,3*($C$8-1)+3)) -> 1.1095 | N137: =IF($B$6="Hardness",VLOOKUP($H137,Ann_Hard!$A$5:$G$205,7),VLOOKUP($H137,NA_All!$A$5:$AH$205,3*($C$8-1)+4)) -> 2.2622 | O137: =IF(VLOOKUP($B$6,$A$28:$D$55,4,FALSE)=0,#N/A,IF($B$8="PM-13",#N/A,(EXP((VLOOKUP($B$6,$A$28:$F$55,5,FALSE)*LN(Ann_Hard!B114/1000)) + VLOOKUP($B$6,$A$28:$F$55,6,FALSE))))) ->  | P137: 5 | Q137: =IF(VLOOKUP($B$6,$A$28:$D$55,4,FALSE)=0,#N/A,IF($B$8="PM-13",#N/A,(EXP((VLOOKUP($B$6,$A$28:$F$55,5,FALSE)*LN(Ann_Hard!D114/1000)) + VLOOKUP($B$6,$A$28:$F$55,6,FALSE))))) ->  | S137: 189.0833333 | T137: =VLOOKUP($S137,P_All!$AJ$5:$BQ$245,3*($C$8-1)+2) -> 0.34944 | U137: =VLOOKUP($S137,P_All!$AJ$5:$BQ$245,3*($C$8-1)+3) -> 0.63844 | V137: =VLOOKUP($S137,P_All!$AJ$5:$BQ$245,3*($C$8-1)+4) -> 1.153 | W137: =VLOOKUP($S137,NA_All!$AJ$5:$BQ$245,3*($C$8-1)+2) -> 0.65233 | X137: =VLOOKUP($S137,NA_All!$AJ$5:$BQ$245,3*($C$8-1)+3) -> 0.91356 | Y137: =VLOOKUP($S137,NA_All!$AJ$5:$BQ$245,3*($C$8-1)+4) -> 1.5726 | Z137: =IF(ISNA(VLOOKUP($B$6,$A$28:$E$55,IF($B$8=$A$25,3,2))),EXP(VLOOKUP($B$6,$A$28:$E$55,4)*LN(VLOOKUP($S137,#REF!,$C$8+1)/1000)+VLOOKUP($B$6,$A$28:$E$55,5)),VLOOKUP($B$6,$A$28:$E$55,IF($B$8=$A$25,3,2))) -> 5
H138: 110 | I138: =IF($B$6="Hardness",VLOOKUP($H138,Ann_Hard!$A$5:$D$205,2),VLOOKUP($H138,P_All!$A$5:$AH$205,3*($C$8-1)+2)) -> 0.44215 | J138: =IF($B$6="Hardness",VLOOKUP($H138,Ann_Hard!$A$5:$D$205,3),VLOOKUP($H138,P_All!$A$5:$AH$205,3*($C$8-1)+3)) -> 1.0489 | K138: =IF($B$6="Hardness",VLOOKUP($H138,Ann_Hard!$A$5:$D$205,4),VLOOKUP($H138,P_All!$A$5:$AH$205,3*($C$8-1)+4)) -> 2.4141 | L138: =IF($B$6="Hardness",VLOOKUP($H138,Ann_Hard!$A$5:$G$205,5),VLOOKUP($H138,NA_All!$A$5:$AH$205,3*($C$8-1)+2)) -> 0.7266 | M138: =IF($B$6="Hardness",VLOOKUP($H138,Ann_Hard!$A$5:$G$205,6),VLOOKUP($H138,NA_All!$A$5:$AH$205,3*($C$8-1)+3)) -> 1.093 | N138: =IF($B$6="Hardness",VLOOKUP($H138,Ann_Hard!$A$5:$G$205,7),VLOOKUP($H138,NA_All!$A$5:$AH$205,3*($C$8-1)+4)) -> 2.053 | O138: =IF(VLOOKUP($B$6,$A$28:$D$55,4,FALSE)=0,#N/A,IF($B$8="PM-13",#N/A,(EXP((VLOOKUP($B$6,$A$28:$F$55,5,FALSE)*LN(Ann_Hard!B115/1000)) + VLOOKUP($B$6,$A$28:$F$55,6,FALSE))))) ->  | P138: 5 | Q138: =IF(VLOOKUP($B$6,$A$28:$D$55,4,FALSE)=0,#N/A,IF($B$8="PM-13",#N/A,(EXP((VLOOKUP($B$6,$A$28:$F$55,5,FALSE)*LN(Ann_Hard!D115/1000)) + VLOOKUP($B$6,$A$28:$F$55,6,FALSE))))) ->  | S138: 189.1666667 | T138: =VLOOKUP($S138,P_All!$AJ$5:$BQ$245,3*($C$8-1)+2) -> 0.28533 | U138: =VLOOKUP($S138,P_All!$AJ$5:$BQ$245,3*($C$8-1)+3) -> 0.50897 | V138: =VLOOKUP($S138,P_All!$AJ$5:$BQ$245,3*($C$8-1)+4) -> 0.93779 | W138: =VLOOKUP($S138,NA_All!$AJ$5:$BQ$245,3*($C$8-1)+2) -> 0.64914 | X138: =VLOOKUP($S138,NA_All!$AJ$5:$BQ$245,3*($C$8-1)+3) -> 0.89674 | Y138: =VLOOKUP($S138,NA_All!$AJ$5:$BQ$245,3*($C$8-1)+4) -> 1.6042 | Z138: =IF(ISNA(VLOOKUP($B$6,$A$28:$E$55,IF($B$8=$A$25,3,2))),EXP(VLOOKUP($B$6,$A$28:$E$55,4)*LN(VLOOKUP($S138,#REF!,$C$8+1)/1000)+VLOOKUP($B$6,$A$28:$E$55,5)),VLOOKUP($B$6,$A$28:$E$55,IF($B$8=$A$25,3,2))) -> 5
H139: 111 | I139: =IF($B$6="Hardness",VLOOKUP($H139,Ann_Hard!$A$5:$D$205,2),VLOOKUP($H139,P_All!$A$5:$AH$205,3*($C$8-1)+2)) -> 0.43795 | J139: =IF($B$6="Hardness",VLOOKUP($H139,Ann_Hard!$A$5:$D$205,3),VLOOKUP($H139,P_All!$A$5:$AH$205,3*($C$8-1)+3)) -> 1.0048 | K139: =IF($B$6="Hardness",VLOOKUP($H139,Ann_Hard!$A$5:$D$205,4),VLOOKUP($H139,P_All!$A$5:$AH$205,3*($C$8-1)+4)) -> 2.427 | L139: =IF($B$6="Hardness",VLOOKUP($H139,Ann_Hard!$A$5:$G$205,5),VLOOKUP($H139,NA_All!$A$5:$AH$205,3*($C$8-1)+2)) -> 0.73047 | M139: =IF($B$6="Hardness",VLOOKUP($H139,Ann_Hard!$A$5:$G$205,6),VLOOKUP($H139,NA_All!$A$5:$AH$205,3*($C$8-1)+3)) -> 1.0973 | N139: =IF($B$6="Hardness",VLOOKUP($H139,Ann_Hard!$A$5:$G$205,7),VLOOKUP($H139,NA_All!$A$5:$AH$205,3*($C$8-1)+4)) -> 2.0943 | O139: =IF(VLOOKUP($B$6,$A$28:$D$55,4,FALSE)=0,#N/A,IF($B$8="PM-13",#N/A,(EXP((VLOOKUP($B$6,$A$28:$F$55,5,FALSE)*LN(Ann_Hard!B116/1000)) + VLOOKUP($B$6,$A$28:$F$55,6,FALSE))))) ->  | P139: 5 | Q139: =IF(VLOOKUP($B$6,$A$28:$D$55,4,FALSE)=0,#N/A,IF($B$8="PM-13",#N/A,(EXP((VLOOKUP($B$6,$A$28:$F$55,5,FALSE)*LN(Ann_Hard!D116/1000)) + VLOOKUP($B$6,$A$28:$F$55,6,FALSE))))) ->  | S139: 189.25 | T139: =VLOOKUP($S139,P_All!$AJ$5:$BQ$245,3*($C$8-1)+2) -> 0.26297 | U139: =VLOOKUP($S139,P_All!$AJ$5:$BQ$245,3*($C$8-1)+3) -> 0.46059 | V139: =VLOOKUP($S139,P_All!$AJ$5:$BQ$245,3*($C$8-1)+4) -> 1.2007 | W139: =VLOOKUP($S139,NA_All!$AJ$5:$BQ$245,3*($C$8-1)+2) -> 0.64483 | X139: =VLOOKUP($S139,NA_All!$AJ$5:$BQ$245,3*($C$8-1)+3) -> 0.91924 | Y139: =VLOOKUP($S139,NA_All!$AJ$5:$BQ$245,3*($C$8-1)+4) -> 1.6449 | Z139: =IF(ISNA(VLOOKUP($B$6,$A$28:$E$55,IF($B$8=$A$25,3,2))),EXP(VLOOKUP($B$6,$A$28:$E$55,4)*LN(VLOOKUP($S139,#REF!,$C$8+1)/1000)+VLOOKUP($B$6,$A$28:$E$55,5)),VLOOKUP($B$6,$A$28:$E$55,IF($B$8=$A$25,3,2))) -> 5
H140: 112 | I140: =IF($B$6="Hardness",VLOOKUP($H140,Ann_Hard!$A$5:$D$205,2),VLOOKUP($H140,P_All!$A$5:$AH$205,3*($C$8-1)+2)) -> 0.48873 | J140: =IF($B$6="Hardness",VLOOKUP($H140,Ann_Hard!$A$5:$D$205,3),VLOOKUP($H140,P_All!$A$5:$AH$205,3*($C$8-1)+3)) -> 1.0396 | K140: =IF($B$6="Hardness",VLOOKUP($H140,Ann_Hard!$A$5:$D$205,4),VLOOKUP($H140,P_All!$A$5:$AH$205,3*($C$8-1)+4)) -> 2.2661 | L140: =IF($B$6="Hardness",VLOOKUP($H140,Ann_Hard!$A$5:$G$205,5),VLOOKUP($H140,NA_All!$A$5:$AH$205,3*($C$8-1)+2)) -> 0.7166 | M140: =IF($B$6="Hardness",VLOOKUP($H140,Ann_Hard!$A$5:$G$205,6),VLOOKUP($H140,NA_All!$A$5:$AH$205,3*($C$8-1)+3)) -> 1.0765 | N140: =IF($B$6="Hardness",VLOOKUP($H140,Ann_Hard!$A$5:$G$205,7),VLOOKUP($H140,NA_All!$A$5:$AH$205,3*($C$8-1)+4)) -> 1.9971 | O140: =IF(VLOOKUP($B$6,$A$28:$D$55,4,FALSE)=0,#N/A,IF($B$8="PM-13",#N/A,(EXP((VLOOKUP($B$6,$A$28:$F$55,5,FALSE)*LN(Ann_Hard!B117/1000)) + VLOOKUP($B$6,$A$28:$F$55,6,FALSE))))) ->  | P140: 5 | Q140: =IF(VLOOKUP($B$6,$A$28:$D$55,4,FALSE)=0,#N/A,IF($B$8="PM-13",#N/A,(EXP((VLOOKUP($B$6,$A$28:$F$55,5,FALSE)*LN(Ann_Hard!D117/1000)) + VLOOKUP($B$6,$A$28:$F$55,6,FALSE))))) ->  | S140: 189.3333333 | T140: =VLOOKUP($S140,P_All!$AJ$5:$BQ$245,3*($C$8-1)+2) -> 0.42972 | U140: =VLOOKUP($S140,P_All!$AJ$5:$BQ$245,3*($C$8-1)+3) -> 0.93384 | V140: =VLOOKUP($S140,P_All!$AJ$5:$BQ$245,3*($C$8-1)+4) -> 2.2413 | W140: =VLOOKUP($S140,NA_All!$AJ$5:$BQ$245,3*($C$8-1)+2) -> 0.59701 | X140: =VLOOKUP($S140,NA_All!$AJ$5:$BQ$245,3*($C$8-1)+3) -> 0.96592 | Y140: =VLOOKUP($S140,NA_All!$AJ$5:$BQ$245,3*($C$8-1)+4) -> 1.876 | Z140: =IF(ISNA(VLOOKUP($B$6,$A$28:$E$55,IF($B$8=$A$25,3,2))),EXP(VLOOKUP($B$6,$A$28:$E$55,4)*LN(VLOOKUP($S140,#REF!,$C$8+1)/1000)+VLOOKUP($B$6,$A$28:$E$55,5)),VLOOKUP($B$6,$A$28:$E$55,IF($B$8=$A$25,3,2))) -> 5
H141: 113 | I141: =IF($B$6="Hardness",VLOOKUP($H141,Ann_Hard!$A$5:$D$205,2),VLOOKUP($H141,P_All!$A$5:$AH$205,3*($C$8-1)+2)) -> 0.48923 | J141: =IF($B$6="Hardness",VLOOKUP($H141,Ann_Hard!$A$5:$D$205,3),VLOOKUP($H141,P_All!$A$5:$AH$205,3*($C$8-1)+3)) -> 1.0962 | K141: =IF($B$6="Hardness",VLOOKUP($H141,Ann_Hard!$A$5:$D$205,4),VLOOKUP($H141,P_All!$A$5:$AH$205,3*($C$8-1)+4)) -> 2.511 | L141: =IF($B$6="Hardness",VLOOKUP($H141,Ann_Hard!$A$5:$G$205,5),VLOOKUP($H141,NA_All!$A$5:$AH$205,3*($C$8-1)+2)) -> 0.71732 | M141: =IF($B$6="Hardness",VLOOKUP($H141,Ann_Hard!$A$5:$G$205,6),VLOOKUP($H141,NA_All!$A$5:$AH$205,3*($C$8-1)+3)) -> 1.1235 | N141: =IF($B$6="Hardness",VLOOKUP($H141,Ann_Hard!$A$5:$G$205,7),VLOOKUP($H141,NA_All!$A$5:$AH$205,3*($C$8-1)+4)) -> 2.099 | O141: =IF(VLOOKUP($B$6,$A$28:$D$55,4,FALSE)=0,#N/A,IF($B$8="PM-13",#N/A,(EXP((VLOOKUP($B$6,$A$28:$F$55,5,FALSE)*LN(Ann_Hard!B118/1000)) + VLOOKUP($B$6,$A$28:$F$55,6,FALSE))))) ->  | P141: 5 | Q141: =IF(VLOOKUP($B$6,$A$28:$D$55,4,FALSE)=0,#N/A,IF($B$8="PM-13",#N/A,(EXP((VLOOKUP($B$6,$A$28:$F$55,5,FALSE)*LN(Ann_Hard!D118/1000)) + VLOOKUP($B$6,$A$28:$F$55,6,FALSE))))) ->  | S141: 189.4166667 | T141: =VLOOKUP($S141,P_All!$AJ$5:$BQ$245,3*($C$8-1)+2) -> 0.45437 | U141: =VLOOKUP($S141,P_All!$AJ$5:$BQ$245,3*($C$8-1)+3) -> 1.0476 | V141: =VLOOKUP($S141,P_All!$AJ$5:$BQ$245,3*($C$8-1)+4) -> 2.3137 | W141: =VLOOKUP($S141,NA_All!$AJ$5:$BQ$245,3*($C$8-1)+2) -> 0.59593 | X141: =VLOOKUP($S141,NA_All!$AJ$5:$BQ$245,3*($C$8-1)+3) -> 1.0525 | Y141: =VLOOKUP($S141,NA_All!$AJ$5:$BQ$245,3*($C$8-1)+4) -> 1.9579 | Z141: =IF(ISNA(VLOOKUP($B$6,$A$28:$E$55,IF($B$8=$A$25,3,2))),EXP(VLOOKUP($B$6,$A$28:$E$55,4)*LN(VLOOKUP($S141,#REF!,$C$8+1)/1000)+VLOOKUP($B$6,$A$28:$E$55,5)),VLOOKUP($B$6,$A$28:$E$55,IF($B$8=$A$25,3,2))) -> 5
H142: 114 | I142: =IF($B$6="Hardness",VLOOKUP($H142,Ann_Hard!$A$5:$D$205,2),VLOOKUP($H142,P_All!$A$5:$AH$205,3*($C$8-1)+2)) -> 0.44499 | J142: =IF($B$6="Hardness",VLOOKUP($H142,Ann_Hard!$A$5:$D$205,3),VLOOKUP($H142,P_All!$A$5:$AH$205,3*($C$8-1)+3)) -> 1.0011 | K142: =IF($B$6="Hardness",VLOOKUP($H142,Ann_Hard!$A$5:$D$205,4),VLOOKUP($H142,P_All!$A$5:$AH$205,3*($C$8-1)+4)) -> 2.4244 | L142: =IF($B$6="Hardness",VLOOKUP($H142,Ann_Hard!$A$5:$G$205,5),VLOOKUP($H142,NA_All!$A$5:$AH$205,3*($C$8-1)+2)) -> 0.7123 | M142: =IF($B$6="Hardness",VLOOKUP($H142,Ann_Hard!$A$5:$G$205,6),VLOOKUP($H142,NA_All!$A$5:$AH$205,3*($C$8-1)+3)) -> 1.0906 | N142: =IF($B$6="Hardness",VLOOKUP($H142,Ann_Hard!$A$5:$G$205,7),VLOOKUP($H142,NA_All!$A$5:$AH$205,3*($C$8-1)+4)) -> 2.0967 | O142: =IF(VLOOKUP($B$6,$A$28:$D$55,4,FALSE)=0,#N/A,IF($B$8="PM-13",#N/A,(EXP((VLOOKUP($B$6,$A$28:$F$55,5,FALSE)*LN(Ann_Hard!B119/1000)) + VLOOKUP($B$6,$A$28:$F$55,6,FALSE))))) ->  | P142: 5 | Q142: =IF(VLOOKUP($B$6,$A$28:$D$55,4,FALSE)=0,#N/A,IF($B$8="PM-13",#N/A,(EXP((VLOOKUP($B$6,$A$28:$F$55,5,FALSE)*LN(Ann_Hard!D119/1000)) + VLOOKUP($B$6,$A$28:$F$55,6,FALSE))))) ->  | S142: 189.5 | T142: =VLOOKUP($S142,P_All!$AJ$5:$BQ$245,3*($C$8-1)+2) -> 0.44273 | U142: =VLOOKUP($S142,P_All!$AJ$5:$BQ$245,3*($C$8-1)+3) -> 0.95812 | V142: =VLOOKUP($S142,P_All!$AJ$5:$BQ$245,3*($C$8-1)+4) -> 2.1636 | W142: =VLOOKUP($S142,NA_All!$AJ$5:$BQ$245,3*($C$8-1)+2) -> 0.6053 | X142: =VLOOKUP($S142,NA_All!$AJ$5:$BQ$245,3*($C$8-1)+3) -> 1.0176 | Y142: =VLOOKUP($S142,NA_All!$AJ$5:$BQ$245,3*($C$8-1)+4) -> 1.8022 | Z142: =IF(ISNA(VLOOKUP($B$6,$A$28:$E$55,IF($B$8=$A$25,3,2))),EXP(VLOOKUP($B$6,$A$28:$E$55,4)*LN(VLOOKUP($S142,#REF!,$C$8+1)/1000)+VLOOKUP($B$6,$A$28:$E$55,5)),VLOOKUP($B$6,$A$28:$E$55,IF($B$8=$A$25,3,2))) -> 5
H143: 115 | I143: =IF($B$6="Hardness",VLOOKUP($H143,Ann_Hard!$A$5:$D$205,2),VLOOKUP($H143,P_All!$A$5:$AH$205,3*($C$8-1)+2)) -> 0.47099 | J143: =IF($B$6="Hardness",VLOOKUP($H143,Ann_Hard!$A$5:$D$205,3),VLOOKUP($H143,P_All!$A$5:$AH$205,3*($C$8-1)+3)) -> 1.0395 | K143: =IF($B$6="Hardness",VLOOKUP($H143,Ann_Hard!$A$5:$D$205,4),VLOOKUP($H143,P_All!$A$5:$AH$205,3*($C$8-1)+4)) -> 2.4393 | L143: =IF($B$6="Hardness",VLOOKUP($H143,Ann_Hard!$A$5:$G$205,5),VLOOKUP($H143,NA_All!$A$5:$AH$205,3*($C$8-1)+2)) -> 0.71495 | M143: =IF($B$6="Hardness",VLOOKUP($H143,Ann_Hard!$A$5:$G$205,6),VLOOKUP($H143,NA_All!$A$5:$AH$205,3*($C$8-1)+3)) -> 1.0924 | N143: =IF($B$6="Hardness",VLOOKUP($H143,Ann_Hard!$A$5:$G$205,7),VLOOKUP($H143,NA_All!$A$5:$AH$205,3*($C$8-1)+4)) -> 2.1707 | O143: =IF(VLOOKUP($B$6,$A$28:$D$55,4,FALSE)=0,#N/A,IF($B$8="PM-13",#N/A,(EXP((VLOOKUP($B$6,$A$28:$F$55,5,FALSE)*LN(Ann_Hard!B120/1000)) + VLOOKUP($B$6,$A$28:$F$55,6,FALSE))))) ->  | P143: 5 | Q143: =IF(VLOOKUP($B$6,$A$28:$D$55,4,FALSE)=0,#N/A,IF($B$8="PM-13",#N/A,(EXP((VLOOKUP($B$6,$A$28:$F$55,5,FALSE)*LN(Ann_Hard!D120/1000)) + VLOOKUP($B$6,$A$28:$F$55,6,FALSE))))) ->  | S143: 189.5833333 | T143: =VLOOKUP($S143,P_All!$AJ$5:$BQ$245,3*($C$8-1)+2) -> 0.43165 | U143: =VLOOKUP($S143,P_All!$AJ$5:$BQ$245,3*($C$8-1)+3) -> 0.8916 | V143: =VLOOKUP($S143,P_All!$AJ$5:$BQ$245,3*($C$8-1)+4) -> 2.1163 | W143: =VLOOKUP($S143,NA_All!$AJ$5:$BQ$245,3*($C$8-1)+2) -> 0.64355 | X143: =VLOOKUP($S143,NA_All!$AJ$5:$BQ$245,3*($C$8-1)+3) -> 0.98336 | Y143: =VLOOKUP($S143,NA_All!$AJ$5:$BQ$245,3*($C$8-1)+4) -> 1.7312 | Z143: =IF(ISNA(VLOOKUP($B$6,$A$28:$E$55,IF($B$8=$A$25,3,2))),EXP(VLOOKUP($B$6,$A$28:$E$55,4)*LN(VLOOKUP($S143,#REF!,$C$8+1)/1000)+VLOOKUP($B$6,$A$28:$E$55,5)),VLOOKUP($B$6,$A$28:$E$55,IF($B$8=$A$25,3,2))) -> 5
H144: 116 | I144: =IF($B$6="Hardness",VLOOKUP($H144,Ann_Hard!$A$5:$D$205,2),VLOOKUP($H144,P_All!$A$5:$AH$205,3*($C$8-1)+2)) -> 0.47029 | J144: =IF($B$6="Hardness",VLOOKUP($H144,Ann_Hard!$A$5:$D$205,3),VLOOKUP($H144,P_All!$A$5:$AH$205,3*($C$8-1)+3)) -> 1.0591 | K144: =IF($B$6="Hardness",VLOOKUP($H144,Ann_Hard!$A$5:$D$205,4),VLOOKUP($H144,P_All!$A$5:$AH$205,3*($C$8-1)+4)) -> 2.6191 | L144: =IF($B$6="Hardness",VLOOKUP($H144,Ann_Hard!$A$5:$G$205,5),VLOOKUP($H144,NA_All!$A$5:$AH$205,3*($C$8-1)+2)) -> 0.71829 | M144: =IF($B$6="Hardness",VLOOKUP($H144,Ann_Hard!$A$5:$G$205,6),VLOOKUP($H144,NA_All!$A$5:$AH$205,3*($C$8-1)+3)) -> 1.0955 | N144: =IF($B$6="Hardness",VLOOKUP($H144,Ann_Hard!$A$5:$G$205,7),VLOOKUP($H144,NA_All!$A$5:$AH$205,3*($C$8-1)+4)) -> 2.2 | O144: =IF(VLOOKUP($B$6,$A$28:$D$55,4,FALSE)=0,#N/A,IF($B$8="PM-13",#N/A,(EXP((VLOOKUP($B$6,$A$28:$F$55,5,FALSE)*LN(Ann_Hard!B121/1000)) + VLOOKUP($B$6,$A$28:$F$55,6,FALSE))))) ->  | P144: 5 | Q144: =IF(VLOOKUP($B$6,$A$28:$D$55,4,FALSE)=0,#N/A,IF($B$8="PM-13",#N/A,(EXP((VLOOKUP($B$6,$A$28:$F$55,5,FALSE)*LN(Ann_Hard!D121/1000)) + VLOOKUP($B$6,$A$28:$F$55,6,FALSE))))) ->  | S144: 189.6666667 | T144: =VLOOKUP($S144,P_All!$AJ$5:$BQ$245,3*($C$8-1)+2) -> 0.42084 | U144: =VLOOKUP($S144,P_All!$AJ$5:$BQ$245,3*($C$8-1)+3) -> 0.77474 | V144: =VLOOKUP($S144,P_All!$AJ$5:$BQ$245,3*($C$8-1)+4) -> 1.8711 | W144: =VLOOKUP($S144,NA_All!$AJ$5:$BQ$245,3*($C$8-1)+2) -> 0.62828 | X144: =VLOOKUP($S144,NA_All!$AJ$5:$BQ$245,3*($C$8-1)+3) -> 0.92112 | Y144: =VLOOKUP($S144,NA_All!$AJ$5:$BQ$245,3*($C$8-1)+4) -> 1.6207 | Z144: =IF(ISNA(VLOOKUP($B$6,$A$28:$E$55,IF($B$8=$A$25,3,2))),EXP(VLOOKUP($B$6,$A$28:$E$55,4)*LN(VLOOKUP($S144,#REF!,$C$8+1)/1000)+VLOOKUP($B$6,$A$28:$E$55,5)),VLOOKUP($B$6,$A$28:$E$55,IF($B$8=$A$25,3,2))) -> 5
H145: 117 | I145: =IF($B$6="Hardness",VLOOKUP($H145,Ann_Hard!$A$5:$D$205,2),VLOOKUP($H145,P_All!$A$5:$AH$205,3*($C$8-1)+2)) -> 0.46117 | J145: =IF($B$6="Hardness",VLOOKUP($H145,Ann_Hard!$A$5:$D$205,3),VLOOKUP($H145,P_All!$A$5:$AH$205,3*($C$8-1)+3)) -> 1.0774 | K145: =IF($B$6="Hardness",VLOOKUP($H145,Ann_Hard!$A$5:$D$205,4),VLOOKUP($H145,P_All!$A$5:$AH$205,3*($C$8-1)+4)) -> 2.4833 | L145: =IF($B$6="Hardness",VLOOKUP($H145,Ann_Hard!$A$5:$G$205,5),VLOOKUP($H145,NA_All!$A$5:$AH$205,3*($C$8-1)+2)) -> 0.70819 | M145: =IF($B$6="Hardness",VLOOKUP($H145,Ann_Hard!$A$5:$G$205,6),VLOOKUP($H145,NA_All!$A$5:$AH$205,3*($C$8-1)+3)) -> 1.0945 | N145: =IF($B$6="Hardness",VLOOKUP($H145,Ann_Hard!$A$5:$G$205,7),VLOOKUP($H145,NA_All!$A$5:$AH$205,3*($C$8-1)+4)) -> 2.0827 | O145: =IF(VLOOKUP($B$6,$A$28:$D$55,4,FALSE)=0,#N/A,IF($B$8="PM-13",#N/A,(EXP((VLOOKUP($B$6,$A$28:$F$55,5,FALSE)*LN(Ann_Hard!B122/1000)) + VLOOKUP($B$6,$A$28:$F$55,6,FALSE))))) ->  | P145: 5 | Q145: =IF(VLOOKUP($B$6,$A$28:$D$55,4,FALSE)=0,#N/A,IF($B$8="PM-13",#N/A,(EXP((VLOOKUP($B$6,$A$28:$F$55,5,FALSE)*LN(Ann_Hard!D122/1000)) + VLOOKUP($B$6,$A$28:$F$55,6,FALSE))))) ->  | S145: 189.75 | T145: =VLOOKUP($S145,P_All!$AJ$5:$BQ$245,3*($C$8-1)+2) -> 0.36577 | U145: =VLOOKUP($S145,P_All!$AJ$5:$BQ$245,3*($C$8-1)+3) -> 0.7847 | V145: =VLOOKUP($S145,P_All!$AJ$5:$BQ$245,3*($C$8-1)+4) -> 1.8174 | W145: =VLOOKUP($S145,NA_All!$AJ$5:$BQ$245,3*($C$8-1)+2) -> 0.61616 | X145: =VLOOKUP($S145,NA_All!$AJ$5:$BQ$245,3*($C$8-1)+3) -> 0.9378 | Y145: =VLOOKUP($S145,NA_All!$AJ$5:$BQ$245,3*($C$8-1)+4) -> 1.7147 | Z145: =IF(ISNA(VLOOKUP($B$6,$A$28:$E$55,IF($B$8=$A$25,3,2))),EXP(VLOOKUP($B$6,$A$28:$E$55,4)*LN(VLOOKUP($S145,#REF!,$C$8+1)/1000)+VLOOKUP($B$6,$A$28:$E$55,5)),VLOOKUP($B$6,$A$28:$E$55,IF($B$8=$A$25,3,2))) -> 5
H146: 118 | I146: =IF($B$6="Hardness",VLOOKUP($H146,Ann_Hard!$A$5:$D$205,2),VLOOKUP($H146,P_All!$A$5:$AH$205,3*($C$8-1)+2)) -> 0.44085 | J146: =IF($B$6="Hardness",VLOOKUP($H146,Ann_Hard!$A$5:$D$205,3),VLOOKUP($H146,P_All!$A$5:$AH$205,3*($C$8-1)+3)) -> 1.0016 | K146: =IF($B$6="Hardness",VLOOKUP($H146,Ann_Hard!$A$5:$D$205,4),VLOOKUP($H146,P_All!$A$5:$AH$205,3*($C$8-1)+4)) -> 2.391 | L146: =IF($B$6="Hardness",VLOOKUP($H146,Ann_Hard!$A$5:$G$205,5),VLOOKUP($H146,NA_All!$A$5:$AH$205,3*($C$8-1)+2)) -> 0.71956 | M146: =IF($B$6="Hardness",VLOOKUP($H146,Ann_Hard!$A$5:$G$205,6),VLOOKUP($H146,NA_All!$A$5:$AH$205,3*($C$8-1)+3)) -> 1.0609 | N146: =IF($B$6="Hardness",VLOOKUP($H146,Ann_Hard!$A$5:$G$205,7),VLOOKUP($H146,NA_All!$A$5:$AH$205,3*($C$8-1)+4)) -> 2.0326 | O146: =IF(VLOOKUP($B$6,$A$28:$D$55,4,FALSE)=0,#N/A,IF($B$8="PM-13",#N/A,(EXP((VLOOKUP($B$6,$A$28:$F$55,5,FALSE)*LN(Ann_Hard!B123/1000)) + VLOOKUP($B$6,$A$28:$F$55,6,FALSE))))) ->  | P146: 5 | Q146: =IF(VLOOKUP($B$6,$A$28:$D$55,4,FALSE)=0,#N/A,IF($B$8="PM-13",#N/A,(EXP((VLOOKUP($B$6,$A$28:$F$55,5,FALSE)*LN(Ann_Hard!D123/1000)) + VLOOKUP($B$6,$A$28:$F$55,6,FALSE))))) ->  | S146: 189.8333333 | T146: =VLOOKUP($S146,P_All!$AJ$5:$BQ$245,3*($C$8-1)+2) -> 0.42261 | U146: =VLOOKUP($S146,P_All!$AJ$5:$BQ$245,3*($C$8-1)+3) -> 0.91654 | V146: =VLOOKUP($S146,P_All!$AJ$5:$BQ$245,3*($C$8-1)+4) -> 2.0125 | W146: =VLOOKUP($S146,NA_All!$AJ$5:$BQ$245,3*($C$8-1)+2) -> 0.65609 | X146: =VLOOKUP($S146,NA_All!$AJ$5:$BQ$245,3*($C$8-1)+3) -> 0.99092 | Y146: =VLOOKUP($S146,NA_All!$AJ$5:$BQ$245,3*($C$8-1)+4) -> 1.6842 | Z146: =IF(ISNA(VLOOKUP($B$6,$A$28:$E$55,IF($B$8=$A$25,3,2))),EXP(VLOOKUP($B$6,$A$28:$E$55,4)*LN(VLOOKUP($S146,#REF!,$C$8+1)/1000)+VLOOKUP($B$6,$A$28:$E$55,5)),VLOOKUP($B$6,$A$28:$E$55,IF($B$8=$A$25,3,2))) -> 5
H147: 119 | I147: =IF($B$6="Hardness",VLOOKUP($H147,Ann_Hard!$A$5:$D$205,2),VLOOKUP($H147,P_All!$A$5:$AH$205,3*($C$8-1)+2)) -> 0.46581 | J147: =IF($B$6="Hardness",VLOOKUP($H147,Ann_Hard!$A$5:$D$205,3),VLOOKUP($H147,P_All!$A$5:$AH$205,3*($C$8-1)+3)) -> 1.0786 | K147: =IF($B$6="Hardness",VLOOKUP($H147,Ann_Hard!$A$5:$D$205,4),VLOOKUP($H147,P_All!$A$5:$AH$205,3*($C$8-1)+4)) -> 2.3505 | L147: =IF($B$6="Hardness",VLOOKUP($H147,Ann_Hard!$A$5:$G$205,5),VLOOKUP($H147,NA_All!$A$5:$AH$205,3*($C$8-1)+2)) -> 0.69888 | M147: =IF($B$6="Hardness",VLOOKUP($H147,Ann_Hard!$A$5:$G$205,6),VLOOKUP($H147,NA_All!$A$5:$AH$205,3*($C$8-1)+3)) -> 1.0887 | N147: =IF($B$6="Hardness",VLOOKUP($H147,Ann_Hard!$A$5:$G$205,7),VLOOKUP($H147,NA_All!$A$5:$AH$205,3*($C$8-1)+4)) -> 2.0961 | O147: =IF(VLOOKUP($B$6,$A$28:$D$55,4,FALSE)=0,#N/A,IF($B$8="PM-13",#N/A,(EXP((VLOOKUP($B$6,$A$28:$F$55,5,FALSE)*LN(Ann_Hard!B124/1000)) + VLOOKUP($B$6,$A$28:$F$55,6,FALSE))))) ->  | P147: 5 | Q147: =IF(VLOOKUP($B$6,$A$28:$D$55,4,FALSE)=0,#N/A,IF($B$8="PM-13",#N/A,(EXP((VLOOKUP($B$6,$A$28:$F$55,5,FALSE)*LN(Ann_Hard!D124/1000)) + VLOOKUP($B$6,$A$28:$F$55,6,FALSE))))) ->  | S147: 189.9166667 | T147: =VLOOKUP($S147,P_All!$AJ$5:$BQ$245,3*($C$8-1)+2) -> 0.45023 | U147: =VLOOKUP($S147,P_All!$AJ$5:$BQ$245,3*($C$8-1)+3) -> 0.97912 | V147: =VLOOKUP($S147,P_All!$AJ$5:$BQ$245,3*($C$8-1)+4) -> 2.3832 | W147: =VLOOKUP($S147,NA_All!$AJ$5:$BQ$245,3*($C$8-1)+2) -> 0.67491 | X147: =VLOOKUP($S147,NA_All!$AJ$5:$BQ$245,3*($C$8-1)+3) -> 1.0085 | Y147: =VLOOKUP($S147,NA_All!$AJ$5:$BQ$245,3*($C$8-1)+4) -> 1.7672 | Z147: =IF(ISNA(VLOOKUP($B$6,$A$28:$E$55,IF($B$8=$A$25,3,2))),EXP(VLOOKUP($B$6,$A$28:$E$55,4)*LN(VLOOKUP($S147,#REF!,$C$8+1)/1000)+VLOOKUP($B$6,$A$28:$E$55,5)),VLOOKUP($B$6,$A$28:$E$55,IF($B$8=$A$25,3,2))) -> 5
H148: 120 | I148: =IF($B$6="Hardness",VLOOKUP($H148,Ann_Hard!$A$5:$D$205,2),VLOOKUP($H148,P_All!$A$5:$AH$205,3*($C$8-1)+2)) -> 0.44137 | J148: =IF($B$6="Hardness",VLOOKUP($H148,Ann_Hard!$A$5:$D$205,3),VLOOKUP($H148,P_All!$A$5:$AH$205,3*($C$8-1)+3)) -> 1.0259 | K148: =IF($B$6="Hardness",VLOOKUP($H148,Ann_Hard!$A$5:$D$205,4),VLOOKUP($H148,P_All!$A$5:$AH$205,3*($C$8-1)+4)) -> 2.4629 | L148: =IF($B$6="Hardness",VLOOKUP($H148,Ann_Hard!$A$5:$G$205,5),VLOOKUP($H148,NA_All!$A$5:$AH$205,3*($C$8-1)+2)) -> 0.69915 | M148: =IF($B$6="Hardness",VLOOKUP($H148,Ann_Hard!$A$5:$G$205,6),VLOOKUP($H148,NA_All!$A$5:$AH$205,3*($C$8-1)+3)) -> 1.0893 | N148: =IF($B$6="Hardness",VLOOKUP($H148,Ann_Hard!$A$5:$G$205,7),VLOOKUP($H148,NA_All!$A$5:$AH$205,3*($C$8-1)+4)) -> 2.1681 | O148: =IF(VLOOKUP($B$6,$A$28:$D$55,4,FALSE)=0,#N/A,IF($B$8="PM-13",#N/A,(EXP((VLOOKUP($B$6,$A$28:$F$55,5,FALSE)*LN(Ann_Hard!B125/1000)) + VLOOKUP($B$6,$A$28:$F$55,6,FALSE))))) ->  | P148: 5 | Q148: =IF(VLOOKUP($B$6,$A$28:$D$55,4,FALSE)=0,#N/A,IF($B$8="PM-13",#N/A,(EXP((VLOOKUP($B$6,$A$28:$F$55,5,FALSE)*LN(Ann_Hard!D125/1000)) + VLOOKUP($B$6,$A$28:$F$55,6,FALSE))))) ->  | S148: 190 | T148: =VLOOKUP($S148,P_All!$AJ$5:$BQ$245,3*($C$8-1)+2) -> 0.43487 | U148: =VLOOKUP($S148,P_All!$AJ$5:$BQ$245,3*($C$8-1)+3) -> 0.83096 | V148: =VLOOKUP($S148,P_All!$AJ$5:$BQ$245,3*($C$8-1)+4) -> 1.9168 | W148: =VLOOKUP($S148,NA_All!$AJ$5:$BQ$245,3*($C$8-1)+2) -> 0.67134 | X148: =VLOOKUP($S148,NA_All!$AJ$5:$BQ$245,3*($C$8-1)+3) -> 0.95315 | Y148: =VLOOKUP($S148,NA_All!$AJ$5:$BQ$245,3*($C$8-1)+4) -> 1.6004 | Z148: =IF(ISNA(VLOOKUP($B$6,$A$28:$E$55,IF($B$8=$A$25,3,2))),EXP(VLOOKUP($B$6,$A$28:$E$55,4)*LN(VLOOKUP($S148,#REF!,$C$8+1)/1000)+VLOOKUP($B$6,$A$28:$E$55,5)),VLOOKUP($B$6,$A$28:$E$55,IF($B$8=$A$25,3,2))) -> 5
H149: 121 | I149: =IF($B$6="Hardness",VLOOKUP($H149,Ann_Hard!$A$5:$D$205,2),VLOOKUP($H149,P_All!$A$5:$AH$205,3*($C$8-1)+2)) -> 0.46197 | J149: =IF($B$6="Hardness",VLOOKUP($H149,Ann_Hard!$A$5:$D$205,3),VLOOKUP($H149,P_All!$A$5:$AH$205,3*($C$8-1)+3)) -> 1.0295 | K149: =IF($B$6="Hardness",VLOOKUP($H149,Ann_Hard!$A$5:$D$205,4),VLOOKUP($H149,P_All!$A$5:$AH$205,3*($C$8-1)+4)) -> 2.4294 | L149: =IF($B$6="Hardness",VLOOKUP($H149,Ann_Hard!$A$5:$G$205,5),VLOOKUP($H149,NA_All!$A$5:$AH$205,3*($C$8-1)+2)) -> 0.71242 | M149: =IF($B$6="Hardness",VLOOKUP($H149,Ann_Hard!$A$5:$G$205,6),VLOOKUP($H149,NA_All!$A$5:$AH$205,3*($C$8-1)+3)) -> 1.0816 | N149: =IF($B$6="Hardness",VLOOKUP($H149,Ann_Hard!$A$5:$G$205,7),VLOOKUP($H149,NA_All!$A$5:$AH$205,3*($C$8-1)+4)) -> 2.1288 | O149: =IF(VLOOKUP($B$6,$A$28:$D$55,4,FALSE)=0,#N/A,IF($B$8="PM-13",#N/A,(EXP((VLOOKUP($B$6,$A$28:$F$55,5,FALSE)*LN(Ann_Hard!B126/1000)) + VLOOKUP($B$6,$A$28:$F$55,6,FALSE))))) ->  | P149: 5 | Q149: =IF(VLOOKUP($B$6,$A$28:$D$55,4,FALSE)=0,#N/A,IF($B$8="PM-13",#N/A,(EXP((VLOOKUP($B$6,$A$28:$F$55,5,FALSE)*LN(Ann_Hard!D126/1000)) + VLOOKUP($B$6,$A$28:$F$55,6,FALSE))))) ->  | S149: 190.0833333 | T149: =VLOOKUP($S149,P_All!$AJ$5:$BQ$245,3*($C$8-1)+2) -> 0.35054 | U149: =VLOOKUP($S149,P_All!$AJ$5:$BQ$245,3*($C$8-1)+3) -> 0.63786 | V149: =VLOOKUP($S149,P_All!$AJ$5:$BQ$245,3*($C$8-1)+4) -> 1.2957 | W149: =VLOOKUP($S149,NA_All!$AJ$5:$BQ$245,3*($C$8-1)+2) -> 0.64874 | X149: =VLOOKUP($S149,NA_All!$AJ$5:$BQ$245,3*($C$8-1)+3) -> 0.92498 | Y149: =VLOOKUP($S149,NA_All!$AJ$5:$BQ$245,3*($C$8-1)+4) -> 1.5666 | Z149: =IF(ISNA(VLOOKUP($B$6,$A$28:$E$55,IF($B$8=$A$25,3,2))),EXP(VLOOKUP($B$6,$A$28:$E$55,4)*LN(VLOOKUP($S149,#REF!,$C$8+1)/1000)+VLOOKUP($B$6,$A$28:$E$55,5)),VLOOKUP($B$6,$A$28:$E$55,IF($B$8=$A$25,3,2))) -> 5
H150: 122 | I150: =IF($B$6="Hardness",VLOOKUP($H150,Ann_Hard!$A$5:$D$205,2),VLOOKUP($H150,P_All!$A$5:$AH$205,3*($C$8-1)+2)) -> 0.45462 | J150: =IF($B$6="Hardness",VLOOKUP($H150,Ann_Hard!$A$5:$D$205,3),VLOOKUP($H150,P_All!$A$5:$AH$205,3*($C$8-1)+3)) -> 1.015 | K150: =IF($B$6="Hardness",VLOOKUP($H150,Ann_Hard!$A$5:$D$205,4),VLOOKUP($H150,P_All!$A$5:$AH$205,3*($C$8-1)+4)) -> 2.6234 | L150: =IF($B$6="Hardness",VLOOKUP($H150,Ann_Hard!$A$5:$G$205,5),VLOOKUP($H150,NA_All!$A$5:$AH$205,3*($C$8-1)+2)) -> 0.70032 | M150: =IF($B$6="Hardness",VLOOKUP($H150,Ann_Hard!$A$5:$G$205,6),VLOOKUP($H150,NA_All!$A$5:$AH$205,3*($C$8-1)+3)) -> 1.0766 | N150: =IF($B$6="Hardness",VLOOKUP($H150,Ann_Hard!$A$5:$G$205,7),VLOOKUP($H150,NA_All!$A$5:$AH$205,3*($C$8-1)+4)) -> 2.2735 | O150: =IF(VLOOKUP($B$6,$A$28:$D$55,4,FALSE)=0,#N/A,IF($B$8="PM-13",#N/A,(EXP((VLOOKUP($B$6,$A$28:$F$55,5,FALSE)*LN(Ann_Hard!B127/1000)) + VLOOKUP($B$6,$A$28:$F$55,6,FALSE))))) ->  | P150: 5 | Q150: =IF(VLOOKUP($B$6,$A$28:$D$55,4,FALSE)=0,#N/A,IF($B$8="PM-13",#N/A,(EXP((VLOOKUP($B$6,$A$28:$F$55,5,FALSE)*LN(Ann_Hard!D127/1000)) + VLOOKUP($B$6,$A$28:$F$55,6,FALSE))))) ->  | S150: 190.1666667 | T150: =VLOOKUP($S150,P_All!$AJ$5:$BQ$245,3*($C$8-1)+2) -> 0.27727 | U150: =VLOOKUP($S150,P_All!$AJ$5:$BQ$245,3*($C$8-1)+3) -> 0.50519 | V150: =VLOOKUP($S150,P_All!$AJ$5:$BQ$245,3*($C$8-1)+4) -> 0.99728 | W150: =VLOOKUP($S150,NA_All!$AJ$5:$BQ$245,3*($C$8-1)+2) -> 0.64415 | X150: =VLOOKUP($S150,NA_All!$AJ$5:$BQ$245,3*($C$8-1)+3) -> 0.9027 | Y150: =VLOOKUP($S150,NA_All!$AJ$5:$BQ$245,3*($C$8-1)+4) -> 1.5996 | Z150: =IF(ISNA(VLOOKUP($B$6,$A$28:$E$55,IF($B$8=$A$25,3,2))),EXP(VLOOKUP($B$6,$A$28:$E$55,4)*LN(VLOOKUP($S150,#REF!,$C$8+1)/1000)+VLOOKUP($B$6,$A$28:$E$55,5)),VLOOKUP($B$6,$A$28:$E$55,IF($B$8=$A$25,3,2))) -> 5
H151: 123 | I151: =IF($B$6="Hardness",VLOOKUP($H151,Ann_Hard!$A$5:$D$205,2),VLOOKUP($H151,P_All!$A$5:$AH$205,3*($C$8-1)+2)) -> 0.44514 | J151: =IF($B$6="Hardness",VLOOKUP($H151,Ann_Hard!$A$5:$D$205,3),VLOOKUP($H151,P_All!$A$5:$AH$205,3*($C$8-1)+3)) -> 0.98263 | K151: =IF($B$6="Hardness",VLOOKUP($H151,Ann_Hard!$A$5:$D$205,4),VLOOKUP($H151,P_All!$A$5:$AH$205,3*($C$8-1)+4)) -> 2.517 | L151: =IF($B$6="Hardness",VLOOKUP($H151,Ann_Hard!$A$5:$G$205,5),VLOOKUP($H151,NA_All!$A$5:$AH$205,3*($C$8-1)+2)) -> 0.70969 | M151: =IF($B$6="Hardness",VLOOKUP($H151,Ann_Hard!$A$5:$G$205,6),VLOOKUP($H151,NA_All!$A$5:$AH$205,3*($C$8-1)+3)) -> 1.0841 | N151: =IF($B$6="Hardness",VLOOKUP($H151,Ann_Hard!$A$5:$G$205,7),VLOOKUP($H151,NA_All!$A$5:$AH$205,3*($C$8-1)+4)) -> 2.1413 | O151: =IF(VLOOKUP($B$6,$A$28:$D$55,4,FALSE)=0,#N/A,IF($B$8="PM-13",#N/A,(EXP((VLOOKUP($B$6,$A$28:$F$55,5,FALSE)*LN(Ann_Hard!B128/1000)) + VLOOKUP($B$6,$A$28:$F$55,6,FALSE))))) ->  | P151: 5 | Q151: =IF(VLOOKUP($B$6,$A$28:$D$55,4,FALSE)=0,#N/A,IF($B$8="PM-13",#N/A,(EXP((VLOOKUP($B$6,$A$28:$F$55,5,FALSE)*LN(Ann_Hard!D128/1000)) + VLOOKUP($B$6,$A$28:$F$55,6,FALSE))))) ->  | S151: 190.25 | T151: =VLOOKUP($S151,P_All!$AJ$5:$BQ$245,3*($C$8-1)+2) -> 0.2641 | U151: =VLOOKUP($S151,P_All!$AJ$5:$BQ$245,3*($C$8-1)+3) -> 0.46933 | V151: =VLOOKUP($S151,P_All!$AJ$5:$BQ$245,3*($C$8-1)+4) -> 1.2212 | W151: =VLOOKUP($S151,NA_All!$AJ$5:$BQ$245,3*($C$8-1)+2) -> 0.65107 | X151: =VLOOKUP($S151,NA_All!$AJ$5:$BQ$245,3*($C$8-1)+3) -> 0.91688 | Y151: =VLOOKUP($S151,NA_All!$AJ$5:$BQ$245,3*($C$8-1)+4) -> 1.6793 | Z151: =IF(ISNA(VLOOKUP($B$6,$A$28:$E$55,IF($B$8=$A$25,3,2))),EXP(VLOOKUP($B$6,$A$28:$E$55,4)*LN(VLOOKUP($S151,#REF!,$C$8+1)/1000)+VLOOKUP($B$6,$A$28:$E$55,5)),VLOOKUP($B$6,$A$28:$E$55,IF($B$8=$A$25,3,2))) -> 5
H152: 124 | I152: =IF($B$6="Hardness",VLOOKUP($H152,Ann_Hard!$A$5:$D$205,2),VLOOKUP($H152,P_All!$A$5:$AH$205,3*($C$8-1)+2)) -> 0.43993 | J152: =IF($B$6="Hardness",VLOOKUP($H152,Ann_Hard!$A$5:$D$205,3),VLOOKUP($H152,P_All!$A$5:$AH$205,3*($C$8-1)+3)) -> 1.0194 | K152: =IF($B$6="Hardness",VLOOKUP($H152,Ann_Hard!$A$5:$D$205,4),VLOOKUP($H152,P_All!$A$5:$AH$205,3*($C$8-1)+4)) -> 2.3981 | L152: =IF($B$6="Hardness",VLOOKUP($H152,Ann_Hard!$A$5:$G$205,5),VLOOKUP($H152,NA_All!$A$5:$AH$205,3*($C$8-1)+2)) -> 0.70136 | M152: =IF($B$6="Hardness",VLOOKUP($H152,Ann_Hard!$A$5:$G$205,6),VLOOKUP($H152,NA_All!$A$5:$AH$205,3*($C$8-1)+3)) -> 1.0678 | N152: =IF($B$6="Hardness",VLOOKUP($H152,Ann_Hard!$A$5:$G$205,7),VLOOKUP($H152,NA_All!$A$5:$AH$205,3*($C$8-1)+4)) -> 2.042 | O152: =IF(VLOOKUP($B$6,$A$28:$D$55,4,FALSE)=0,#N/A,IF($B$8="PM-13",#N/A,(EXP((VLOOKUP($B$6,$A$28:$F$55,5,FALSE)*LN(Ann_Hard!B129/1000)) + VLOOKUP($B$6,$A$28:$F$55,6,FALSE))))) ->  | P152: 5 | Q152: =IF(VLOOKUP($B$6,$A$28:$D$55,4,FALSE)=0,#N/A,IF($B$8="PM-13",#N/A,(EXP((VLOOKUP($B$6,$A$28:$F$55,5,FALSE)*LN(Ann_Hard!D129/1000)) + VLOOKUP($B$6,$A$28:$F$55,6,FALSE))))) ->  | S152: 190.3333333 | T152: =VLOOKUP($S152,P_All!$AJ$5:$BQ$245,3*($C$8-1)+2) -> 0.36068 | U152: =VLOOKUP($S152,P_All!$AJ$5:$BQ$245,3*($C$8-1)+3) -> 0.9234 | V152: =VLOOKUP($S152,P_All!$AJ$5:$BQ$245,3*($C$8-1)+4) -> 2.3782 | W152: =VLOOKUP($S152,NA_All!$AJ$5:$BQ$245,3*($C$8-1)+2) -> 0.59586 | X152: =VLOOKUP($S152,NA_All!$AJ$5:$BQ$245,3*($C$8-1)+3) -> 0.98682 | Y152: =VLOOKUP($S152,NA_All!$AJ$5:$BQ$245,3*($C$8-1)+4) -> 2.005 | Z152: =IF(ISNA(VLOOKUP($B$6,$A$28:$E$55,IF($B$8=$A$25,3,2))),EXP(VLOOKUP($B$6,$A$28:$E$55,4)*LN(VLOOKUP($S152,#REF!,$C$8+1)/1000)+VLOOKUP($B$6,$A$28:$E$55,5)),VLOOKUP($B$6,$A$28:$E$55,IF($B$8=$A$25,3,2))) -> 5
H153: 125 | I153: =IF($B$6="Hardness",VLOOKUP($H153,Ann_Hard!$A$5:$D$205,2),VLOOKUP($H153,P_All!$A$5:$AH$205,3*($C$8-1)+2)) -> 0.44595 | J153: =IF($B$6="Hardness",VLOOKUP($H153,Ann_Hard!$A$5:$D$205,3),VLOOKUP($H153,P_All!$A$5:$AH$205,3*($C$8-1)+3)) -> 1.0244 | K153: =IF($B$6="Hardness",VLOOKUP($H153,Ann_Hard!$A$5:$D$205,4),VLOOKUP($H153,P_All!$A$5:$AH$205,3*($C$8-1)+4)) -> 2.3837 | L153: =IF($B$6="Hardness",VLOOKUP($H153,Ann_Hard!$A$5:$G$205,5),VLOOKUP($H153,NA_All!$A$5:$AH$205,3*($C$8-1)+2)) -> 0.71214 | M153: =IF($B$6="Hardness",VLOOKUP($H153,Ann_Hard!$A$5:$G$205,6),VLOOKUP($H153,NA_All!$A$5:$AH$205,3*($C$8-1)+3)) -> 1.0962 | N153: =IF($B$6="Hardness",VLOOKUP($H153,Ann_Hard!$A$5:$G$205,7),VLOOKUP($H153,NA_All!$A$5:$AH$205,3*($C$8-1)+4)) -> 2.0866 | O153: =IF(VLOOKUP($B$6,$A$28:$D$55,4,FALSE)=0,#N/A,IF($B$8="PM-13",#N/A,(EXP((VLOOKUP($B$6,$A$28:$F$55,5,FALSE)*LN(Ann_Hard!B130/1000)) + VLOOKUP($B$6,$A$28:$F$55,6,FALSE))))) ->  | P153: 5 | Q153: =IF(VLOOKUP($B$6,$A$28:$D$55,4,FALSE)=0,#N/A,IF($B$8="PM-13",#N/A,(EXP((VLOOKUP($B$6,$A$28:$F$55,5,FALSE)*LN(Ann_Hard!D130/1000)) + VLOOKUP($B$6,$A$28:$F$55,6,FALSE))))) ->  | S153: 190.4166667 | T153: =VLOOKUP($S153,P_All!$AJ$5:$BQ$245,3*($C$8-1)+2) -> 0.41661 | U153: =VLOOKUP($S153,P_All!$AJ$5:$BQ$245,3*($C$8-1)+3) -> 1.0455 | V153: =VLOOKUP($S153,P_All!$AJ$5:$BQ$245,3*($C$8-1)+4) -> 2.3805 | W153: =VLOOKUP($S153,NA_All!$AJ$5:$BQ$245,3*($C$8-1)+2) -> 0.5755 | X153: =VLOOKUP($S153,NA_All!$AJ$5:$BQ$245,3*($C$8-1)+3) -> 1.0526 | Y153: =VLOOKUP($S153,NA_All!$AJ$5:$BQ$245,3*($C$8-1)+4) -> 1.9932 | Z153: =IF(ISNA(VLOOKUP($B$6,$A$28:$E$55,IF($B$8=$A$25,3,2))),EXP(VLOOKUP($B$6,$A$28:$E$55,4)*LN(VLOOKUP($S153,#REF!,$C$8+1)/1000)+VLOOKUP($B$6,$A$28:$E$55,5)),VLOOKUP($B$6,$A$28:$E$55,IF($B$8=$A$25,3,2))) -> 5
H154: 126 | I154: =IF($B$6="Hardness",VLOOKUP($H154,Ann_Hard!$A$5:$D$205,2),VLOOKUP($H154,P_All!$A$5:$AH$205,3*($C$8-1)+2)) -> 0.45827 | J154: =IF($B$6="Hardness",VLOOKUP($H154,Ann_Hard!$A$5:$D$205,3),VLOOKUP($H154,P_All!$A$5:$AH$205,3*($C$8-1)+3)) -> 1.0292 | K154: =IF($B$6="Hardness",VLOOKUP($H154,Ann_Hard!$A$5:$D$205,4),VLOOKUP($H154,P_All!$A$5:$AH$205,3*($C$8-1)+4)) -> 2.5085 | L154: =IF($B$6="Hardness",VLOOKUP($H154,Ann_Hard!$A$5:$G$205,5),VLOOKUP($H154,NA_All!$A$5:$AH$205,3*($C$8-1)+2)) -> 0.70723 | M154: =IF($B$6="Hardness",VLOOKUP($H154,Ann_Hard!$A$5:$G$205,6),VLOOKUP($H154,NA_All!$A$5:$AH$205,3*($C$8-1)+3)) -> 1.0779 | N154: =IF($B$6="Hardness",VLOOKUP($H154,Ann_Hard!$A$5:$G$205,7),VLOOKUP($H154,NA_All!$A$5:$AH$205,3*($C$8-1)+4)) -> 2.1835 | O154: =IF(VLOOKUP($B$6,$A$28:$D$55,4,FALSE)=0,#N/A,IF($B$8="PM-13",#N/A,(EXP((VLOOKUP($B$6,$A$28:$F$55,5,FALSE)*LN(Ann_Hard!B131/1000)) + VLOOKUP($B$6,$A$28:$F$55,6,FALSE))))) ->  | P154: 5 | Q154: =IF(VLOOKUP($B$6,$A$28:$D$55,4,FALSE)=0,#N/A,IF($B$8="PM-13",#N/A,(EXP((VLOOKUP($B$6,$A$28:$F$55,5,FALSE)*LN(Ann_Hard!D131/1000)) + VLOOKUP($B$6,$A$28:$F$55,6,FALSE))))) ->  | S154: 190.5 | T154: =VLOOKUP($S154,P_All!$AJ$5:$BQ$245,3*($C$8-1)+2) -> 0.45749 | U154: =VLOOKUP($S154,P_All!$AJ$5:$BQ$245,3*($C$8-1)+3) -> 1.0024 | V154: =VLOOKUP($S154,P_All!$AJ$5:$BQ$245,3*($C$8-1)+4) -> 2.4404 | W154: =VLOOKUP($S154,NA_All!$AJ$5:$BQ$245,3*($C$8-1)+2) -> 0.64707 | X154: =VLOOKUP($S154,NA_All!$AJ$5:$BQ$245,3*($C$8-1)+3) -> 1.0344 | Y154: =VLOOKUP($S154,NA_All!$AJ$5:$BQ$245,3*($C$8-1)+4) -> 1.9799 | Z154: =IF(ISNA(VLOOKUP($B$6,$A$28:$E$55,IF($B$8=$A$25,3,2))),EXP(VLOOKUP($B$6,$A$28:$E$55,4)*LN(VLOOKUP($S154,#REF!,$C$8+1)/1000)+VLOOKUP($B$6,$A$28:$E$55,5)),VLOOKUP($B$6,$A$28:$E$55,IF($B$8=$A$25,3,2))) -> 5
H155: 127 | I155: =IF($B$6="Hardness",VLOOKUP($H155,Ann_Hard!$A$5:$D$205,2),VLOOKUP($H155,P_All!$A$5:$AH$205,3*($C$8-1)+2)) -> 0.47691 | J155: =IF($B$6="Hardness",VLOOKUP($H155,Ann_Hard!$A$5:$D$205,3),VLOOKUP($H155,P_All!$A$5:$AH$205,3*($C$8-1)+3)) -> 1.0857 | K155: =IF($B$6="Hardness",VLOOKUP($H155,Ann_Hard!$A$5:$D$205,4),VLOOKUP($H155,P_All!$A$5:$AH$205,3*($C$8-1)+4)) -> 2.5662 | L155: =IF($B$6="Hardness",VLOOKUP($H155,Ann_Hard!$A$5:$G$205,5),VLOOKUP($H155,NA_All!$A$5:$AH$205,3*($C$8-1)+2)) -> 0.69667 | M155: =IF($B$6="Hardness",VLOOKUP($H155,Ann_Hard!$A$5:$G$205,6),VLOOKUP($H155,NA_All!$A$5:$AH$205,3*($C$8-1)+3)) -> 1.1121 | N155: =IF($B$6="Hardness",VLOOKUP($H155,Ann_Hard!$A$5:$G$205,7),VLOOKUP($H155,NA_All!$A$5:$AH$205,3*($C$8-1)+4)) -> 2.0873 | O155: =IF(VLOOKUP($B$6,$A$28:$D$55,4,FALSE)=0,#N/A,IF($B$8="PM-13",#N/A,(EXP((VLOOKUP($B$6,$A$28:$F$55,5,FALSE)*LN(Ann_Hard!B132/1000)) + VLOOKUP($B$6,$A$28:$F$55,6,FALSE))))) ->  | P155: 5 | Q155: =IF(VLOOKUP($B$6,$A$28:$D$55,4,FALSE)=0,#N/A,IF($B$8="PM-13",#N/A,(EXP((VLOOKUP($B$6,$A$28:$F$55,5,FALSE)*LN(Ann_Hard!D132/1000)) + VLOOKUP($B$6,$A$28:$F$55,6,FALSE))))) ->  | S155: 190.5833333 | T155: =VLOOKUP($S155,P_All!$AJ$5:$BQ$245,3*($C$8-1)+2) -> 0.40897 | U155: =VLOOKUP($S155,P_All!$AJ$5:$BQ$245,3*($C$8-1)+3) -> 0.87473 | V155: =VLOOKUP($S155,P_All!$AJ$5:$BQ$245,3*($C$8-1)+4) -> 1.9951 | W155: =VLOOKUP($S155,NA_All!$AJ$5:$BQ$245,3*($C$8-1)+2) -> 0.63175 | X155: =VLOOKUP($S155,NA_All!$AJ$5:$BQ$245,3*($C$8-1)+3) -> 0.98008 | Y155: =VLOOKUP($S155,NA_All!$AJ$5:$BQ$245,3*($C$8-1)+4) -> 1.6552 | Z155: =IF(ISNA(VLOOKUP($B$6,$A$28:$E$55,IF($B$8=$A$25,3,2))),EXP(VLOOKUP($B$6,$A$28:$E$55,4)*LN(VLOOKUP($S155,#REF!,$C$8+1)/1000)+VLOOKUP($B$6,$A$28:$E$55,5)),VLOOKUP($B$6,$A$28:$E$55,IF($B$8=$A$25,3,2))) -> 5
H156: 128 | I156: =IF($B$6="Hardness",VLOOKUP($H156,Ann_Hard!$A$5:$D$205,2),VLOOKUP($H156,P_All!$A$5:$AH$205,3*($C$8-1)+2)) -> 0.48735 | J156: =IF($B$6="Hardness",VLOOKUP($H156,Ann_Hard!$A$5:$D$205,3),VLOOKUP($H156,P_All!$A$5:$AH$205,3*($C$8-1)+3)) -> 1.0135 | K156: =IF($B$6="Hardness",VLOOKUP($H156,Ann_Hard!$A$5:$D$205,4),VLOOKUP($H156,P_All!$A$5:$AH$205,3*($C$8-1)+4)) -> 2.354 | L156: =IF($B$6="Hardness",VLOOKUP($H156,Ann_Hard!$A$5:$G$205,5),VLOOKUP($H156,NA_All!$A$5:$AH$205,3*($C$8-1)+2)) -> 0.70122 | M156: =IF($B$6="Hardness",VLOOKUP($H156,Ann_Hard!$A$5:$G$205,6),VLOOKUP($H156,NA_All!$A$5:$AH$205,3*($C$8-1)+3)) -> 1.0541 | N156: =IF($B$6="Hardness",VLOOKUP($H156,Ann_Hard!$A$5:$G$205,7),VLOOKUP($H156,NA_All!$A$5:$AH$205,3*($C$8-1)+4)) -> 2.0176 | O156: =IF(VLOOKUP($B$6,$A$28:$D$55,4,FALSE)=0,#N/A,IF($B$8="PM-13",#N/A,(EXP((VLOOKUP($B$6,$A$28:$F$55,5,FALSE)*LN(Ann_Hard!B133/1000)) + VLOOKUP($B$6,$A$28:$F$55,6,FALSE))))) ->  | P156: 5 | Q156: =IF(VLOOKUP($B$6,$A$28:$D$55,4,FALSE)=0,#N/A,IF($B$8="PM-13",#N/A,(EXP((VLOOKUP($B$6,$A$28:$F$55,5,FALSE)*LN(Ann_Hard!D133/1000)) + VLOOKUP($B$6,$A$28:$F$55,6,FALSE))))) ->  | S156: 190.6666667 | T156: =VLOOKUP($S156,P_All!$AJ$5:$BQ$245,3*($C$8-1)+2) -> 0.41003 | U156: =VLOOKUP($S156,P_All!$AJ$5:$BQ$245,3*($C$8-1)+3) -> 0.81939 | V156: =VLOOKUP($S156,P_All!$AJ$5:$BQ$245,3*($C$8-1)+4) -> 1.9257 | W156: =VLOOKUP($S156,NA_All!$AJ$5:$BQ$245,3*($C$8-1)+2) -> 0.64528 | X156: =VLOOKUP($S156,NA_All!$AJ$5:$BQ$245,3*($C$8-1)+3) -> 0.94845 | Y156: =VLOOKUP($S156,NA_All!$AJ$5:$BQ$245,3*($C$8-1)+4) -> 1.7248 | Z156: =IF(ISNA(VLOOKUP($B$6,$A$28:$E$55,IF($B$8=$A$25,3,2))),EXP(VLOOKUP($B$6,$A$28:$E$55,4)*LN(VLOOKUP($S156,#REF!,$C$8+1)/1000)+VLOOKUP($B$6,$A$28:$E$55,5)),VLOOKUP($B$6,$A$28:$E$55,IF($B$8=$A$25,3,2))) -> 5
H157: 129 | I157: =IF($B$6="Hardness",VLOOKUP($H157,Ann_Hard!$A$5:$D$205,2),VLOOKUP($H157,P_All!$A$5:$AH$205,3*($C$8-1)+2)) -> 0.48025 | J157: =IF($B$6="Hardness",VLOOKUP($H157,Ann_Hard!$A$5:$D$205,3),VLOOKUP($H157,P_All!$A$5:$AH$205,3*($C$8-1)+3)) -> 1.1554 | K157: =IF($B$6="Hardness",VLOOKUP($H157,Ann_Hard!$A$5:$D$205,4),VLOOKUP($H157,P_All!$A$5:$AH$205,3*($C$8-1)+4)) -> 2.6356 | L157: =IF($B$6="Hardness",VLOOKUP($H157,Ann_Hard!$A$5:$G$205,5),VLOOKUP($H157,NA_All!$A$5:$AH$205,3*($C$8-1)+2)) -> 0.70183 | M157: =IF($B$6="Hardness",VLOOKUP($H157,Ann_Hard!$A$5:$G$205,6),VLOOKUP($H157,NA_All!$A$5:$AH$205,3*($C$8-1)+3)) -> 1.1411 | N157: =IF($B$6="Hardness",VLOOKUP($H157,Ann_Hard!$A$5:$G$205,7),VLOOKUP($H157,NA_All!$A$5:$AH$205,3*($C$8-1)+4)) -> 2.2108 | O157: =IF(VLOOKUP($B$6,$A$28:$D$55,4,FALSE)=0,#N/A,IF($B$8="PM-13",#N/A,(EXP((VLOOKUP($B$6,$A$28:$F$55,5,FALSE)*LN(Ann_Hard!B134/1000)) + VLOOKUP($B$6,$A$28:$F$55,6,FALSE))))) ->  | P157: =IF(VLOOKUP($B$6,$A$28:$D$55,4,FALSE)=0,VLOOKUP($B$6,$A$28:$B$55,2,FALSE),IF($B$8="PM-13",(EXP((VLOOKUP($B$6,$A$28:$F$55,5,FALSE)*LN(95)) + VLOOKUP($B$6,$A$28:$F$55,6,FALSE))),#N/A)) -> 5 | Q157: =IF(VLOOKUP($B$6,$A$28:$D$55,4,FALSE)=0,#N/A,IF($B$8="PM-13",#N/A,(EXP((VLOOKUP($B$6,$A$28:$F$55,5,FALSE)*LN(Ann_Hard!D134/1000)) + VLOOKUP($B$6,$A$28:$F$55,6,FALSE))))) ->  | S157: 190.75 | T157: =VLOOKUP($S157,P_All!$AJ$5:$BQ$245,3*($C$8-1)+2) -> 0.36643 | U157: =VLOOKUP($S157,P_All!$AJ$5:$BQ$245,3*($C$8-1)+3) -> 0.81854 | V157: =VLOOKUP($S157,P_All!$AJ$5:$BQ$245,3*($C$8-1)+4) -> 2.0841 | W157: =VLOOKUP($S157,NA_All!$AJ$5:$BQ$245,3*($C$8-1)+2) -> 0.63125 | X157: =VLOOKUP($S157,NA_All!$AJ$5:$BQ$245,3*($C$8-1)+3) -> 0.96005 | Y157: =VLOOKUP($S157,NA_All!$AJ$5:$BQ$245,3*($C$8-1)+4) -> 1.6224 | Z157: =IF(ISNA(VLOOKUP($B$6,$A$28:$E$55,IF($B$8=$A$25,3,2))),EXP(VLOOKUP($B$6,$A$28:$E$55,4)*LN(VLOOKUP($S157,#REF!,$C$8+1)/1000)+VLOOKUP($B$6,$A$28:$E$55,5)),VLOOKUP($B$6,$A$28:$E$55,IF($B$8=$A$25,3,2))) -> 5
H158: 130 | I158: =IF($B$6="Hardness",VLOOKUP($H158,Ann_Hard!$A$5:$D$205,2),VLOOKUP($H158,P_All!$A$5:$AH$205,3*($C$8-1)+2)) -> 0.4919 | J158: =IF($B$6="Hardness",VLOOKUP($H158,Ann_Hard!$A$5:$D$205,3),VLOOKUP($H158,P_All!$A$5:$AH$205,3*($C$8-1)+3)) -> 1.0099 | K158: =IF($B$6="Hardness",VLOOKUP($H158,Ann_Hard!$A$5:$D$205,4),VLOOKUP($H158,P_All!$A$5:$AH$205,3*($C$8-1)+4)) -> 2.5272 | L158: =IF($B$6="Hardness",VLOOKUP($H158,Ann_Hard!$A$5:$G$205,5),VLOOKUP($H158,NA_All!$A$5:$AH$205,3*($C$8-1)+2)) -> 0.69321 | M158: =IF($B$6="Hardness",VLOOKUP($H158,Ann_Hard!$A$5:$G$205,6),VLOOKUP($H158,NA_All!$A$5:$AH$205,3*($C$8-1)+3)) -> 1.0942 | N158: =IF($B$6="Hardness",VLOOKUP($H158,Ann_Hard!$A$5:$G$205,7),VLOOKUP($H158,NA_All!$A$5:$AH$205,3*($C$8-1)+4)) -> 2.0936 | O158: =IF(VLOOKUP($B$6,$A$28:$D$55,4,FALSE)=0,#N/A,IF($B$8="PM-13",#N/A,(EXP((VLOOKUP($B$6,$A$28:$F$55,5,FALSE)*LN(Ann_Hard!B135/1000)) + VLOOKUP($B$6,$A$28:$F$55,6,FALSE))))) ->  | P158: 5 | Q158: =IF(VLOOKUP($B$6,$A$28:$D$55,4,FALSE)=0,#N/A,IF($B$8="PM-13",#N/A,(EXP((VLOOKUP($B$6,$A$28:$F$55,5,FALSE)*LN(Ann_Hard!D135/1000)) + VLOOKUP($B$6,$A$28:$F$55,6,FALSE))))) ->  | S158: =S157+1/12 -> 190.8333333 | T158: =VLOOKUP($S158,P_All!$AJ$5:$BQ$245,3*($C$8-1)+2) -> 0.40601 | U158: =VLOOKUP($S158,P_All!$AJ$5:$BQ$245,3*($C$8-1)+3) -> 0.91623 | V158: =VLOOKUP($S158,P_All!$AJ$5:$BQ$245,3*($C$8-1)+4) -> 2.1838 | W158: =VLOOKUP($S158,NA_All!$AJ$5:$BQ$245,3*($C$8-1)+2) -> 0.6561 | X158: =VLOOKUP($S158,NA_All!$AJ$5:$BQ$245,3*($C$8-1)+3) -> 0.98969 | Y158: =VLOOKUP($S158,NA_All!$AJ$5:$BQ$245,3*($C$8-1)+4) -> 1.7435 | Z158: =IF(ISNA(VLOOKUP($B$6,$A$28:$E$55,IF($B$8=$A$25,3,2))),EXP(VLOOKUP($B$6,$A$28:$E$55,4)*LN(VLOOKUP($S158,#REF!,$C$8+1)/1000)+VLOOKUP($B$6,$A$28:$E$55,5)),VLOOKUP($B$6,$A$28:$E$55,IF($B$8=$A$25,3,2))) -> 5
H159: 131 | I159: =IF($B$6="Hardness",VLOOKUP($H159,Ann_Hard!$A$5:$D$205,2),VLOOKUP($H159,P_All!$A$5:$AH$205,3*($C$8-1)+2)) -> 0.45479 | J159: =IF($B$6="Hardness",VLOOKUP($H159,Ann_Hard!$A$5:$D$205,3),VLOOKUP($H159,P_All!$A$5:$AH$205,3*($C$8-1)+3)) -> 1.1065 | K159: =IF($B$6="Hardness",VLOOKUP($H159,Ann_Hard!$A$5:$D$205,4),VLOOKUP($H159,P_All!$A$5:$AH$205,3*($C$8-1)+4)) -> 2.5357 | L159: =IF($B$6="Hardness",VLOOKUP($H159,Ann_Hard!$A$5:$G$205,5),VLOOKUP($H159,NA_All!$A$5:$AH$205,3*($C$8-1)+2)) -> 0.71222 | M159: =IF($B$6="Hardness",VLOOKUP($H159,Ann_Hard!$A$5:$G$205,6),VLOOKUP($H159,NA_All!$A$5:$AH$205,3*($C$8-1)+3)) -> 1.107 | N159: =IF($B$6="Hardness",VLOOKUP($H159,Ann_Hard!$A$5:$G$205,7),VLOOKUP($H159,NA_All!$A$5:$AH$205,3*($C$8-1)+4)) -> 2.1342 | O159: =IF(VLOOKUP($B$6,$A$28:$D$55,4,FALSE)=0,#N/A,IF($B$8="PM-13",#N/A,(EXP((VLOOKUP($B$6,$A$28:$F$55,5,FALSE)*LN(Ann_Hard!B136/1000)) + VLOOKUP($B$6,$A$28:$F$55,6,FALSE))))) ->  | P159: 5 | Q159: =IF(VLOOKUP($B$6,$A$28:$D$55,4,FALSE)=0,#N/A,IF($B$8="PM-13",#N/A,(EXP((VLOOKUP($B$6,$A$28:$F$55,5,FALSE)*LN(Ann_Hard!D136/1000)) + VLOOKUP($B$6,$A$28:$F$55,6,FALSE))))) ->  | S159: 190.9166667 | T159: =VLOOKUP($S159,P_All!$AJ$5:$BQ$245,3*($C$8-1)+2) -> 0.41109 | U159: =VLOOKUP($S159,P_All!$AJ$5:$BQ$245,3*($C$8-1)+3) -> 0.93597 | V159: =VLOOKUP($S159,P_All!$AJ$5:$BQ$245,3*($C$8-1)+4) -> 2.0782 | W159: =VLOOKUP($S159,NA_All!$AJ$5:$BQ$245,3*($C$8-1)+2) -> 0.68494 | X159: =VLOOKUP($S159,NA_All!$AJ$5:$BQ$245,3*($C$8-1)+3) -> 0.98896 | Y159: =VLOOKUP($S159,NA_All!$AJ$5:$BQ$245,3*($C$8-1)+4) -> 1.6987 | Z159: =IF(ISNA(VLOOKUP($B$6,$A$28:$E$55,IF($B$8=$A$25,3,2))),EXP(VLOOKUP($B$6,$A$28:$E$55,4)*LN(VLOOKUP($S159,#REF!,$C$8+1)/1000)+VLOOKUP($B$6,$A$28:$E$55,5)),VLOOKUP($B$6,$A$28:$E$55,IF($B$8=$A$25,3,2))) -> 5
H160: 132 | I160: =IF($B$6="Hardness",VLOOKUP($H160,Ann_Hard!$A$5:$D$205,2),VLOOKUP($H160,P_All!$A$5:$AH$205,3*($C$8-1)+2)) -> 0.46888 | J160: =IF($B$6="Hardness",VLOOKUP($H160,Ann_Hard!$A$5:$D$205,3),VLOOKUP($H160,P_All!$A$5:$AH$205,3*($C$8-1)+3)) -> 1.0782 | K160: =IF($B$6="Hardness",VLOOKUP($H160,Ann_Hard!$A$5:$D$205,4),VLOOKUP($H160,P_All!$A$5:$AH$205,3*($C$8-1)+4)) -> 2.4427 | L160: =IF($B$6="Hardness",VLOOKUP($H160,Ann_Hard!$A$5:$G$205,5),VLOOKUP($H160,NA_All!$A$5:$AH$205,3*($C$8-1)+2)) -> 0.70074 | M160: =IF($B$6="Hardness",VLOOKUP($H160,Ann_Hard!$A$5:$G$205,6),VLOOKUP($H160,NA_All!$A$5:$AH$205,3*($C$8-1)+3)) -> 1.0711 | N160: =IF($B$6="Hardness",VLOOKUP($H160,Ann_Hard!$A$5:$G$205,7),VLOOKUP($H160,NA_All!$A$5:$AH$205,3*($C$8-1)+4)) -> 2.1067 | O160: =IF(VLOOKUP($B$6,$A$28:$D$55,4,FALSE)=0,#N/A,IF($B$8="PM-13",#N/A,(EXP((VLOOKUP($B$6,$A$28:$F$55,5,FALSE)*LN(Ann_Hard!B137/1000)) + VLOOKUP($B$6,$A$28:$F$55,6,FALSE))))) ->  | P160: 5 | Q160: =IF(VLOOKUP($B$6,$A$28:$D$55,4,FALSE)=0,#N/A,IF($B$8="PM-13",#N/A,(EXP((VLOOKUP($B$6,$A$28:$F$55,5,FALSE)*LN(Ann_Hard!D137/1000)) + VLOOKUP($B$6,$A$28:$F$55,6,FALSE))))) ->  | S160: 191 | T160: =VLOOKUP($S160,P_All!$AJ$5:$BQ$245,3*($C$8-1)+2) -> 0.40156 | U160: =VLOOKUP($S160,P_All!$AJ$5:$BQ$245,3*($C$8-1)+3) -> 0.80458 | V160: =VLOOKUP($S160,P_All!$AJ$5:$BQ$245,3*($C$8-1)+4) -> 1.6583 | W160: =VLOOKUP($S160,NA_All!$AJ$5:$BQ$245,3*($C$8-1)+2) -> 0.65555 | X160: =VLOOKUP($S160,NA_All!$AJ$5:$BQ$245,3*($C$8-1)+3) -> 0.94629 | Y160: =VLOOKUP($S160,NA_All!$AJ$5:$BQ$245,3*($C$8-1)+4) -> 1.6007 | Z160: =IF(ISNA(VLOOKUP($B$6,$A$28:$E$55,IF($B$8=$A$25,3,2))),EXP(VLOOKUP($B$6,$A$28:$E$55,4)*LN(VLOOKUP($S160,#REF!,$C$8+1)/1000)+VLOOKUP($B$6,$A$28:$E$55,5)),VLOOKUP($B$6,$A$28:$E$55,IF($B$8=$A$25,3,2))) -> 5
H161: 133 | I161: =IF($B$6="Hardness",VLOOKUP($H161,Ann_Hard!$A$5:$D$205,2),VLOOKUP($H161,P_All!$A$5:$AH$205,3*($C$8-1)+2)) -> 0.46342 | J161: =IF($B$6="Hardness",VLOOKUP($H161,Ann_Hard!$A$5:$D$205,3),VLOOKUP($H161,P_All!$A$5:$AH$205,3*($C$8-1)+3)) -> 1.04 | K161: =IF($B$6="Hardness",VLOOKUP($H161,Ann_Hard!$A$5:$D$205,4),VLOOKUP($H161,P_All!$A$5:$AH$205,3*($C$8-1)+4)) -> 2.4716 | L161: =IF($B$6="Hardness",VLOOKUP($H161,Ann_Hard!$A$5:$G$205,5),VLOOKUP($H161,NA_All!$A$5:$AH$205,3*($C$8-1)+2)) -> 0.70202 | M161: =IF($B$6="Hardness",VLOOKUP($H161,Ann_Hard!$A$5:$G$205,6),VLOOKUP($H161,NA_All!$A$5:$AH$205,3*($C$8-1)+3)) -> 1.0553 | N161: =IF($B$6="Hardness",VLOOKUP($H161,Ann_Hard!$A$5:$G$205,7),VLOOKUP($H161,NA_All!$A$5:$AH$205,3*($C$8-1)+4)) -> 2.0348 | O161: =IF(VLOOKUP($B$6,$A$28:$D$55,4,FALSE)=0,#N/A,IF($B$8="PM-13",#N/A,(EXP((VLOOKUP($B$6,$A$28:$F$55,5,FALSE)*LN(Ann_Hard!B138/1000)) + VLOOKUP($B$6,$A$28:$F$55,6,FALSE))))) ->  | P161: 5 | Q161: =IF(VLOOKUP($B$6,$A$28:$D$55,4,FALSE)=0,#N/A,IF($B$8="PM-13",#N/A,(EXP((VLOOKUP($B$6,$A$28:$F$55,5,FALSE)*LN(Ann_Hard!D138/1000)) + VLOOKUP($B$6,$A$28:$F$55,6,FALSE))))) ->  | S161: 191.0833333 | T161: =VLOOKUP($S161,P_All!$AJ$5:$BQ$245,3*($C$8-1)+2) -> 0.34329 | U161: =VLOOKUP($S161,P_All!$AJ$5:$BQ$245,3*($C$8-1)+3) -> 0.61561 | V161: =VLOOKUP($S161,P_All!$AJ$5:$BQ$245,3*($C$8-1)+4) -> 1.1146 | W161: =VLOOKUP($S161,NA_All!$AJ$5:$BQ$245,3*($C$8-1)+2) -> 0.64993 | X161: =VLOOKUP($S161,NA_All!$AJ$5:$BQ$245,3*($C$8-1)+3) -> 0.89981 | Y161: =VLOOKUP($S161,NA_All!$AJ$5:$BQ$245,3*($C$8-1)+4) -> 1.5855 | Z161: =IF(ISNA(VLOOKUP($B$6,$A$28:$E$55,IF($B$8=$A$25,3,2))),EXP(VLOOKUP($B$6,$A$28:$E$55,4)*LN(VLOOKUP($S161,#REF!,$C$8+1)/1000)+VLOOKUP($B$6,$A$28:$E$55,5)),VLOOKUP($B$6,$A$28:$E$55,IF($B$8=$A$25,3,2))) -> 5
H162: 134 | I162: =IF($B$6="Hardness",VLOOKUP($H162,Ann_Hard!$A$5:$D$205,2),VLOOKUP($H162,P_All!$A$5:$AH$205,3*($C$8-1)+2)) -> 0.44847 | J162: =IF($B$6="Hardness",VLOOKUP($H162,Ann_Hard!$A$5:$D$205,3),VLOOKUP($H162,P_All!$A$5:$AH$205,3*($C$8-1)+3)) -> 1.0439 | K162: =IF($B$6="Hardness",VLOOKUP($H162,Ann_Hard!$A$5:$D$205,4),VLOOKUP($H162,P_All!$A$5:$AH$205,3*($C$8-1)+4)) -> 2.5088 | L162: =IF($B$6="Hardness",VLOOKUP($H162,Ann_Hard!$A$5:$G$205,5),VLOOKUP($H162,NA_All!$A$5:$AH$205,3*($C$8-1)+2)) -> 0.7031 | M162: =IF($B$6="Hardness",VLOOKUP($H162,Ann_Hard!$A$5:$G$205,6),VLOOKUP($H162,NA_All!$A$5:$AH$205,3*($C$8-1)+3)) -> 1.0765 | N162: =IF($B$6="Hardness",VLOOKUP($H162,Ann_Hard!$A$5:$G$205,7),VLOOKUP($H162,NA_All!$A$5:$AH$205,3*($C$8-1)+4)) -> 2.1147 | O162: =IF(VLOOKUP($B$6,$A$28:$D$55,4,FALSE)=0,#N/A,IF($B$8="PM-13",#N/A,(EXP((VLOOKUP($B$6,$A$28:$F$55,5,FALSE)*LN(Ann_Hard!B139/1000)) + VLOOKUP($B$6,$A$28:$F$55,6,FALSE))))) ->  | P162: 5 | Q162: =IF(VLOOKUP($B$6,$A$28:$D$55,4,FALSE)=0,#N/A,IF($B$8="PM-13",#N/A,(EXP((VLOOKUP($B$6,$A$28:$F$55,5,FALSE)*LN(Ann_Hard!D139/1000)) + VLOOKUP($B$6,$A$28:$F$55,6,FALSE))))) ->  | S162: 191.1666667 | T162: =VLOOKUP($S162,P_All!$AJ$5:$BQ$245,3*($C$8-1)+2) -> 0.28945 | U162: =VLOOKUP($S162,P_All!$AJ$5:$BQ$245,3*($C$8-1)+3) -> 0.48034 | V162: =VLOOKUP($S162,P_All!$AJ$5:$BQ$245,3*($C$8-1)+4) -> 1.0606 | W162: =VLOOKUP($S162,NA_All!$AJ$5:$BQ$245,3*($C$8-1)+2) -> 0.64484 | X162: =VLOOKUP($S162,NA_All!$AJ$5:$BQ$245,3*($C$8-1)+3) -> 0.90235 | Y162: =VLOOKUP($S162,NA_All!$AJ$5:$BQ$245,3*($C$8-1)+4) -> 1.624 | Z162: =IF(ISNA(VLOOKUP($B$6,$A$28:$E$55,IF($B$8=$A$25,3,2))),EXP(VLOOKUP($B$6,$A$28:$E$55,4)*LN(VLOOKUP($S162,#REF!,$C$8+1)/1000)+VLOOKUP($B$6,$A$28:$E$55,5)),VLOOKUP($B$6,$A$28:$E$55,IF($B$8=$A$25,3,2))) -> 5
H163: 135 | I163: =IF($B$6="Hardness",VLOOKUP($H163,Ann_Hard!$A$5:$D$205,2),VLOOKUP($H163,P_All!$A$5:$AH$205,3*($C$8-1)+2)) -> 0.47912 | J163: =IF($B$6="Hardness",VLOOKUP($H163,Ann_Hard!$A$5:$D$205,3),VLOOKUP($H163,P_All!$A$5:$AH$205,3*($C$8-1)+3)) -> 1.0661 | K163: =IF($B$6="Hardness",VLOOKUP($H163,Ann_Hard!$A$5:$D$205,4),VLOOKUP($H163,P_All!$A$5:$AH$205,3*($C$8-1)+4)) -> 2.4659 | L163: =IF($B$6="Hardness",VLOOKUP($H163,Ann_Hard!$A$5:$G$205,5),VLOOKUP($H163,NA_All!$A$5:$AH$205,3*($C$8-1)+2)) -> 0.69729 | M163: =IF($B$6="Hardness",VLOOKUP($H163,Ann_Hard!$A$5:$G$205,6),VLOOKUP($H163,NA_All!$A$5:$AH$205,3*($C$8-1)+3)) -> 1.0751 | N163: =IF($B$6="Hardness",VLOOKUP($H163,Ann_Hard!$A$5:$G$205,7),VLOOKUP($H163,NA_All!$A$5:$AH$205,3*($C$8-1)+4)) -> 2.0971 | O163: =IF(VLOOKUP($B$6,$A$28:$D$55,4,FALSE)=0,#N/A,IF($B$8="PM-13",#N/A,(EXP((VLOOKUP($B$6,$A$28:$F$55,5,FALSE)*LN(Ann_Hard!B140/1000)) + VLOOKUP($B$6,$A$28:$F$55,6,FALSE))))) ->  | P163: 5 | Q163: =IF(VLOOKUP($B$6,$A$28:$D$55,4,FALSE)=0,#N/A,IF($B$8="PM-13",#N/A,(EXP((VLOOKUP($B$6,$A$28:$F$55,5,FALSE)*LN(Ann_Hard!D140/1000)) + VLOOKUP($B$6,$A$28:$F$55,6,FALSE))))) ->  | S163: 191.25 | T163: =VLOOKUP($S163,P_All!$AJ$5:$BQ$245,3*($C$8-1)+2) -> 0.25672 | U163: =VLOOKUP($S163,P_All!$AJ$5:$BQ$245,3*($C$8-1)+3) -> 0.47442 | V163: =VLOOKUP($S163,P_All!$AJ$5:$BQ$245,3*($C$8-1)+4) -> 1.1575 | W163: =VLOOKUP($S163,NA_All!$AJ$5:$BQ$245,3*($C$8-1)+2) -> 0.64735 | X163: =VLOOKUP($S163,NA_All!$AJ$5:$BQ$245,3*($C$8-1)+3) -> 0.90907 | Y163: =VLOOKUP($S163,NA_All!$AJ$5:$BQ$245,3*($C$8-1)+4) -> 1.6293 | Z163: =IF(ISNA(VLOOKUP($B$6,$A$28:$E$55,IF($B$8=$A$25,3,2))),EXP(VLOOKUP($B$6,$A$28:$E$55,4)*LN(VLOOKUP($S163,#REF!,$C$8+1)/1000)+VLOOKUP($B$6,$A$28:$E$55,5)),VLOOKUP($B$6,$A$28:$E$55,IF($B$8=$A$25,3,2))) -> 5
H164: 136 | I164: =IF($B$6="Hardness",VLOOKUP($H164,Ann_Hard!$A$5:$D$205,2),VLOOKUP($H164,P_All!$A$5:$AH$205,3*($C$8-1)+2)) -> 0.43705 | J164: =IF($B$6="Hardness",VLOOKUP($H164,Ann_Hard!$A$5:$D$205,3),VLOOKUP($H164,P_All!$A$5:$AH$205,3*($C$8-1)+3)) -> 1.1293 | K164: =IF($B$6="Hardness",VLOOKUP($H164,Ann_Hard!$A$5:$D$205,4),VLOOKUP($H164,P_All!$A$5:$AH$205,3*($C$8-1)+4)) -> 2.311 | L164: =IF($B$6="Hardness",VLOOKUP($H164,Ann_Hard!$A$5:$G$205,5),VLOOKUP($H164,NA_All!$A$5:$AH$205,3*($C$8-1)+2)) -> 0.68221 | M164: =IF($B$6="Hardness",VLOOKUP($H164,Ann_Hard!$A$5:$G$205,6),VLOOKUP($H164,NA_All!$A$5:$AH$205,3*($C$8-1)+3)) -> 1.1224 | N164: =IF($B$6="Hardness",VLOOKUP($H164,Ann_Hard!$A$5:$G$205,7),VLOOKUP($H164,NA_All!$A$5:$AH$205,3*($C$8-1)+4)) -> 1.9706 | O164: =IF(VLOOKUP($B$6,$A$28:$D$55,4,FALSE)=0,#N/A,IF($B$8="PM-13",#N/A,(EXP((VLOOKUP($B$6,$A$28:$F$55,5,FALSE)*LN(Ann_Hard!B141/1000)) + VLOOKUP($B$6,$A$28:$F$55,6,FALSE))))) ->  | P164: 5 | Q164: =IF(VLOOKUP($B$6,$A$28:$D$55,4,FALSE)=0,#N/A,IF($B$8="PM-13",#N/A,(EXP((VLOOKUP($B$6,$A$28:$F$55,5,FALSE)*LN(Ann_Hard!D141/1000)) + VLOOKUP($B$6,$A$28:$F$55,6,FALSE))))) ->  | S164: 191.3333333 | T164: =VLOOKUP($S164,P_All!$AJ$5:$BQ$245,3*($C$8-1)+2) -> 0.40504 | U164: =VLOOKUP($S164,P_All!$AJ$5:$BQ$245,3*($C$8-1)+3) -> 1.0157 | V164: =VLOOKUP($S164,P_All!$AJ$5:$BQ$245,3*($C$8-1)+4) -> 2.3092 | W164: =VLOOKUP($S164,NA_All!$AJ$5:$BQ$245,3*($C$8-1)+2) -> 0.61647 | X164: =VLOOKUP($S164,NA_All!$AJ$5:$BQ$245,3*($C$8-1)+3) -> 1.0477 | Y164: =VLOOKUP($S164,NA_All!$AJ$5:$BQ$245,3*($C$8-1)+4) -> 1.9452 | Z164: =IF(ISNA(VLOOKUP($B$6,$A$28:$E$55,IF($B$8=$A$25,3,2))),EXP(VLOOKUP($B$6,$A$28:$E$55,4)*LN(VLOOKUP($S164,#REF!,$C$8+1)/1000)+VLOOKUP($B$6,$A$28:$E$55,5)),VLOOKUP($B$6,$A$28:$E$55,IF($B$8=$A$25,3,2))) -> 5
H165: 137 | I165: =IF($B$6="Hardness",VLOOKUP($H165,Ann_Hard!$A$5:$D$205,2),VLOOKUP($H165,P_All!$A$5:$AH$205,3*($C$8-1)+2)) -> 0.44302 | J165: =IF($B$6="Hardness",VLOOKUP($H165,Ann_Hard!$A$5:$D$205,3),VLOOKUP($H165,P_All!$A$5:$AH$205,3*($C$8-1)+3)) -> 1.0446 | K165: =IF($B$6="Hardness",VLOOKUP($H165,Ann_Hard!$A$5:$D$205,4),VLOOKUP($H165,P_All!$A$5:$AH$205,3*($C$8-1)+4)) -> 2.4243 | L165: =IF($B$6="Hardness",VLOOKUP($H165,Ann_Hard!$A$5:$G$205,5),VLOOKUP($H165,NA_All!$A$5:$AH$205,3*($C$8-1)+2)) -> 0.68657 | M165: =IF($B$6="Hardness",VLOOKUP($H165,Ann_Hard!$A$5:$G$205,6),VLOOKUP($H165,NA_All!$A$5:$AH$205,3*($C$8-1)+3)) -> 1.0641 | N165: =IF($B$6="Hardness",VLOOKUP($H165,Ann_Hard!$A$5:$G$205,7),VLOOKUP($H165,NA_All!$A$5:$AH$205,3*($C$8-1)+4)) -> 1.9762 | O165: =IF(VLOOKUP($B$6,$A$28:$D$55,4,FALSE)=0,#N/A,IF($B$8="PM-13",#N/A,(EXP((VLOOKUP($B$6,$A$28:$F$55,5,FALSE)*LN(Ann_Hard!B142/1000)) + VLOOKUP($B$6,$A$28:$F$55,6,FALSE))))) ->  | P165: 5 | Q165: =IF(VLOOKUP($B$6,$A$28:$D$55,4,FALSE)=0,#N/A,IF($B$8="PM-13",#N/A,(EXP((VLOOKUP($B$6,$A$28:$F$55,5,FALSE)*LN(Ann_Hard!D142/1000)) + VLOOKUP($B$6,$A$28:$F$55,6,FALSE))))) ->  | S165: 191.4166667 | T165: =VLOOKUP($S165,P_All!$AJ$5:$BQ$245,3*($C$8-1)+2) -> 0.46758 | U165: =VLOOKUP($S165,P_All!$AJ$5:$BQ$245,3*($C$8-1)+3) -> 1.0375 | V165: =VLOOKUP($S165,P_All!$AJ$5:$BQ$245,3*($C$8-1)+4) -> 2.2054 | W165: =VLOOKUP($S165,NA_All!$AJ$5:$BQ$245,3*($C$8-1)+2) -> 0.61722 | X165: =VLOOKUP($S165,NA_All!$AJ$5:$BQ$245,3*($C$8-1)+3) -> 1.0491 | Y165: =VLOOKUP($S165,NA_All!$AJ$5:$BQ$245,3*($C$8-1)+4) -> 1.9642 | Z165: =IF(ISNA(VLOOKUP($B$6,$A$28:$E$55,IF($B$8=$A$25,3,2))),EXP(VLOOKUP($B$6,$A$28:$E$55,4)*LN(VLOOKUP($S165,#REF!,$C$8+1)/1000)+VLOOKUP($B$6,$A$28:$E$55,5)),VLOOKUP($B$6,$A$28:$E$55,IF($B$8=$A$25,3,2))) -> 5
H166: 138 | I166: =IF($B$6="Hardness",VLOOKUP($H166,Ann_Hard!$A$5:$D$205,2),VLOOKUP($H166,P_All!$A$5:$AH$205,3*($C$8-1)+2)) -> 0.43401 | J166: =IF($B$6="Hardness",VLOOKUP($H166,Ann_Hard!$A$5:$D$205,3),VLOOKUP($H166,P_All!$A$5:$AH$205,3*($C$8-1)+3)) -> 1.0056 | K166: =IF($B$6="Hardness",VLOOKUP($H166,Ann_Hard!$A$5:$D$205,4),VLOOKUP($H166,P_All!$A$5:$AH$205,3*($C$8-1)+4)) -> 2.4215 | L166: =IF($B$6="Hardness",VLOOKUP($H166,Ann_Hard!$A$5:$G$205,5),VLOOKUP($H166,NA_All!$A$5:$AH$205,3*($C$8-1)+2)) -> 0.68127 | M166: =IF($B$6="Hardness",VLOOKUP($H166,Ann_Hard!$A$5:$G$205,6),VLOOKUP($H166,NA_All!$A$5:$AH$205,3*($C$8-1)+3)) -> 1.0526 | N166: =IF($B$6="Hardness",VLOOKUP($H166,Ann_Hard!$A$5:$G$205,7),VLOOKUP($H166,NA_All!$A$5:$AH$205,3*($C$8-1)+4)) -> 1.9893 | O166: =IF(VLOOKUP($B$6,$A$28:$D$55,4,FALSE)=0,#N/A,IF($B$8="PM-13",#N/A,(EXP((VLOOKUP($B$6,$A$28:$F$55,5,FALSE)*LN(Ann_Hard!B143/1000)) + VLOOKUP($B$6,$A$28:$F$55,6,FALSE))))) ->  | P166: 5 | Q166: =IF(VLOOKUP($B$6,$A$28:$D$55,4,FALSE)=0,#N/A,IF($B$8="PM-13",#N/A,(EXP((VLOOKUP($B$6,$A$28:$F$55,5,FALSE)*LN(Ann_Hard!D143/1000)) + VLOOKUP($B$6,$A$28:$F$55,6,FALSE))))) ->  | S166: 191.5 | T166: =VLOOKUP($S166,P_All!$AJ$5:$BQ$245,3*($C$8-1)+2) -> 0.45141 | U166: =VLOOKUP($S166,P_All!$AJ$5:$BQ$245,3*($C$8-1)+3) -> 0.98679 | V166: =VLOOKUP($S166,P_All!$AJ$5:$BQ$245,3*($C$8-1)+4) -> 2.4374 | W166: =VLOOKUP($S166,NA_All!$AJ$5:$BQ$245,3*($C$8-1)+2) -> 0.62589 | X166: =VLOOKUP($S166,NA_All!$AJ$5:$BQ$245,3*($C$8-1)+3) -> 1.0108 | Y166: =VLOOKUP($S166,NA_All!$AJ$5:$BQ$245,3*($C$8-1)+4) -> 1.8298 | Z166: =IF(ISNA(VLOOKUP($B$6,$A$28:$E$55,IF($B$8=$A$25,3,2))),EXP(VLOOKUP($B$6,$A$28:$E$55,4)*LN(VLOOKUP($S166,#REF!,$C$8+1)/1000)+VLOOKUP($B$6,$A$28:$E$55,5)),VLOOKUP($B$6,$A$28:$E$55,IF($B$8=$A$25,3,2))) -> 5
H167: 139 | I167: =IF($B$6="Hardness",VLOOKUP($H167,Ann_Hard!$A$5:$D$205,2),VLOOKUP($H167,P_All!$A$5:$AH$205,3*($C$8-1)+2)) -> 0.45986 | J167: =IF($B$6="Hardness",VLOOKUP($H167,Ann_Hard!$A$5:$D$205,3),VLOOKUP($H167,P_All!$A$5:$AH$205,3*($C$8-1)+3)) -> 1.0093 | K167: =IF($B$6="Hardness",VLOOKUP($H167,Ann_Hard!$A$5:$D$205,4),VLOOKUP($H167,P_All!$A$5:$AH$205,3*($C$8-1)+4)) -> 2.5141 | L167: =IF($B$6="Hardness",VLOOKUP($H167,Ann_Hard!$A$5:$G$205,5),VLOOKUP($H167,NA_All!$A$5:$AH$205,3*($C$8-1)+2)) -> 0.69751 | M167: =IF($B$6="Hardness",VLOOKUP($H167,Ann_Hard!$A$5:$G$205,6),VLOOKUP($H167,NA_All!$A$5:$AH$205,3*($C$8-1)+3)) -> 1.0732 | N167: =IF($B$6="Hardness",VLOOKUP($H167,Ann_Hard!$A$5:$G$205,7),VLOOKUP($H167,NA_All!$A$5:$AH$205,3*($C$8-1)+4)) -> 2.1458 | O167: =IF(VLOOKUP($B$6,$A$28:$D$55,4,FALSE)=0,#N/A,IF($B$8="PM-13",#N/A,(EXP((VLOOKUP($B$6,$A$28:$F$55,5,FALSE)*LN(Ann_Hard!B144/1000)) + VLOOKUP($B$6,$A$28:$F$55,6,FALSE))))) ->  | P167: 5 | Q167: =IF(VLOOKUP($B$6,$A$28:$D$55,4,FALSE)=0,#N/A,IF($B$8="PM-13",#N/A,(EXP((VLOOKUP($B$6,$A$28:$F$55,5,FALSE)*LN(Ann_Hard!D144/1000)) + VLOOKUP($B$6,$A$28:$F$55,6,FALSE))))) ->  | S167: 191.5833333 | T167: =VLOOKUP($S167,P_All!$AJ$5:$BQ$245,3*($C$8-1)+2) -> 0.44004 | U167: =VLOOKUP($S167,P_All!$AJ$5:$BQ$245,3*($C$8-1)+3) -> 0.85683 | V167: =VLOOKUP($S167,P_All!$AJ$5:$BQ$245,3*($C$8-1)+4) -> 2.0209 | W167: =VLOOKUP($S167,NA_All!$AJ$5:$BQ$245,3*($C$8-1)+2) -> 0.6392 | X167: =VLOOKUP($S167,NA_All!$AJ$5:$BQ$245,3*($C$8-1)+3) -> 0.95491 | Y167: =VLOOKUP($S167,NA_All!$AJ$5:$BQ$245,3*($C$8-1)+4) -> 1.6273 | Z167: =IF(ISNA(VLOOKUP($B$6,$A$28:$E$55,IF($B$8=$A$25,3,2))),EXP(VLOOKUP($B$6,$A$28:$E$55,4)*LN(VLOOKUP($S167,#REF!,$C$8+1)/1000)+VLOOKUP($B$6,$A$28:$E$55,5)),VLOOKUP($B$6,$A$28:$E$55,IF($B$8=$A$25,3,2))) -> 5
H168: 140 | I168: =IF($B$6="Hardness",VLOOKUP($H168,Ann_Hard!$A$5:$D$205,2),VLOOKUP($H168,P_All!$A$5:$AH$205,3*($C$8-1)+2)) -> 0.42071 | J168: =IF($B$6="Hardness",VLOOKUP($H168,Ann_Hard!$A$5:$D$205,3),VLOOKUP($H168,P_All!$A$5:$AH$205,3*($C$8-1)+3)) -> 0.97551 | K168: =IF($B$6="Hardness",VLOOKUP($H168,Ann_Hard!$A$5:$D$205,4),VLOOKUP($H168,P_All!$A$5:$AH$205,3*($C$8-1)+4)) -> 2.4391 | L168: =IF($B$6="Hardness",VLOOKUP($H168,Ann_Hard!$A$5:$G$205,5),VLOOKUP($H168,NA_All!$A$5:$AH$205,3*($C$8-1)+2)) -> 0.68557 | M168: =IF($B$6="Hardness",VLOOKUP($H168,Ann_Hard!$A$5:$G$205,6),VLOOKUP($H168,NA_All!$A$5:$AH$205,3*($C$8-1)+3)) -> 1.064 | N168: =IF($B$6="Hardness",VLOOKUP($H168,Ann_Hard!$A$5:$G$205,7),VLOOKUP($H168,NA_All!$A$5:$AH$205,3*($C$8-1)+4)) -> 2.0268 | O168: =IF(VLOOKUP($B$6,$A$28:$D$55,4,FALSE)=0,#N/A,IF($B$8="PM-13",#N/A,(EXP((VLOOKUP($B$6,$A$28:$F$55,5,FALSE)*LN(Ann_Hard!B145/1000)) + VLOOKUP($B$6,$A$28:$F$55,6,FALSE))))) ->  | P168: 5 | Q168: =IF(VLOOKUP($B$6,$A$28:$D$55,4,FALSE)=0,#N/A,IF($B$8="PM-13",#N/A,(EXP((VLOOKUP($B$6,$A$28:$F$55,5,FALSE)*LN(Ann_Hard!D145/1000)) + VLOOKUP($B$6,$A$28:$F$55,6,FALSE))))) ->  | S168: 191.6666667 | T168: =VLOOKUP($S168,P_All!$AJ$5:$BQ$245,3*($C$8-1)+2) -> 0.3844 | U168: =VLOOKUP($S168,P_All!$AJ$5:$BQ$245,3*($C$8-1)+3) -> 0.81078 | V168: =VLOOKUP($S168,P_All!$AJ$5:$BQ$245,3*($C$8-1)+4) -> 1.7917 | W168: =VLOOKUP($S168,NA_All!$AJ$5:$BQ$245,3*($C$8-1)+2) -> 0.65083 | X168: =VLOOKUP($S168,NA_All!$AJ$5:$BQ$245,3*($C$8-1)+3) -> 0.9508 | Y168: =VLOOKUP($S168,NA_All!$AJ$5:$BQ$245,3*($C$8-1)+4) -> 1.6242 | Z168: =IF(ISNA(VLOOKUP($B$6,$A$28:$E$55,IF($B$8=$A$25,3,2))),EXP(VLOOKUP($B$6,$A$28:$E$55,4)*LN(VLOOKUP($S168,#REF!,$C$8+1)/1000)+VLOOKUP($B$6,$A$28:$E$55,5)),VLOOKUP($B$6,$A$28:$E$55,IF($B$8=$A$25,3,2))) -> 5
H169: 141 | I169: =IF($B$6="Hardness",VLOOKUP($H169,Ann_Hard!$A$5:$D$205,2),VLOOKUP($H169,P_All!$A$5:$AH$205,3*($C$8-1)+2)) -> 0.43153 | J169: =IF($B$6="Hardness",VLOOKUP($H169,Ann_Hard!$A$5:$D$205,3),VLOOKUP($H169,P_All!$A$5:$AH$205,3*($C$8-1)+3)) -> 1.0731 | K169: =IF($B$6="Hardness",VLOOKUP($H169,Ann_Hard!$A$5:$D$205,4),VLOOKUP($H169,P_All!$A$5:$AH$205,3*($C$8-1)+4)) -> 2.6986 | L169: =IF($B$6="Hardness",VLOOKUP($H169,Ann_Hard!$A$5:$G$205,5),VLOOKUP($H169,NA_All!$A$5:$AH$205,3*($C$8-1)+2)) -> 0.69236 | M169: =IF($B$6="Hardness",VLOOKUP($H169,Ann_Hard!$A$5:$G$205,6),VLOOKUP($H169,NA_All!$A$5:$AH$205,3*($C$8-1)+3)) -> 1.0617 | N169: =IF($B$6="Hardness",VLOOKUP($H169,Ann_Hard!$A$5:$G$205,7),VLOOKUP($H169,NA_All!$A$5:$AH$205,3*($C$8-1)+4)) -> 2.2121 | O169: =IF(VLOOKUP($B$6,$A$28:$D$55,4,FALSE)=0,#N/A,IF($B$8="PM-13",#N/A,(EXP((VLOOKUP($B$6,$A$28:$F$55,5,FALSE)*LN(Ann_Hard!B146/1000)) + VLOOKUP($B$6,$A$28:$F$55,6,FALSE))))) ->  | P169: 5 | Q169: =IF(VLOOKUP($B$6,$A$28:$D$55,4,FALSE)=0,#N/A,IF($B$8="PM-13",#N/A,(EXP((VLOOKUP($B$6,$A$28:$F$55,5,FALSE)*LN(Ann_Hard!D146/1000)) + VLOOKUP($B$6,$A$28:$F$55,6,FALSE))))) ->  | S169: 191.75 | T169: =VLOOKUP($S169,P_All!$AJ$5:$BQ$245,3*($C$8-1)+2) -> 0.38474 | U169: =VLOOKUP($S169,P_All!$AJ$5:$BQ$245,3*($C$8-1)+3) -> 0.81764 | V169: =VLOOKUP($S169,P_All!$AJ$5:$BQ$245,3*($C$8-1)+4) -> 2.1212 | W169: =VLOOKUP($S169,NA_All!$AJ$5:$BQ$245,3*($C$8-1)+2) -> 0.64037 | X169: =VLOOKUP($S169,NA_All!$AJ$5:$BQ$245,3*($C$8-1)+3) -> 0.97471 | Y169: =VLOOKUP($S169,NA_All!$AJ$5:$BQ$245,3*($C$8-1)+4) -> 1.6989 | Z169: =IF(ISNA(VLOOKUP($B$6,$A$28:$E$55,IF($B$8=$A$25,3,2))),EXP(VLOOKUP($B$6,$A$28:$E$55,4)*LN(VLOOKUP($S169,#REF!,$C$8+1)/1000)+VLOOKUP($B$6,$A$28:$E$55,5)),VLOOKUP($B$6,$A$28:$E$55,IF($B$8=$A$25,3,2))) -> 5
